Workbook

Sheet Calc (hidden)
J1: =J2-J3 -> 491.7299699
B2: T | C2: =Dashboard!C3 -> 21 | E2: f | F2: =Dashboard!C27 -> 125 | I2: max | J2: =MAX(I23:I123) -> 0 | L2: dist ratio M | M2: =MAX(F23:F123)/MIN(F23:F123) -> 6.305361917 | N2: =20*LOG(M2) -> 15.99420039
B3: c | C3: =Dashboard!C4 -> 344.026 | E3: λ | F3: =C3/F2 -> 2.752208 | I3: min | J3: =MIN(I23:I123) -> -491.7299699 | L3: dist ratio S | M3: =MAX(G23:G123)/MIN(G23:G123) -> 11.29572859 | N3: =20*LOG(M3) -> 21.05828498
I4: diff | J4: =J2+J3 -> -491.7299699
E5: LV log | F5: LV lin | G5: delay (ms) | H5: dist | I5: goal | J5: =-J1+2*J6 -> -491.7299699 | L5: H | M5: =(O11-O10) -> 55 | O5: X | P5: Y | Q5: Z
I6: offset back | J6: =Dashboard!D31 -> 0 | L6: H_inter | M6: =M5/100 -> 0.55
B7: Sub | E7: =Dashboard!C10 -> 0 | F7: =10^(E7/20) -> 1 | O7: =Dashboard!C7 -> 0 | P7: 0 | Q7: =Dashboard!C8 -> 0
B8: Main | E8: =Dashboard!C16 -> 0 | F8: =10^(E8/20) -> 1 | G8: 1.542752912 | H8: =G8*C3/1000 -> 0.5307471134 | L8: W | M8: =O11-O10 -> 55 | O8: =Dashboard!C13 -> 0 | P8: 0 | Q8: =Dashboard!C14 -> 10
B10: P1 Start | F10: P1 Slope | G10: =(Q11-Q10)/(O11-O10) -> 0 | L10: W_inter | M10: =(M8/100) -> 0.55 | O10: =Dashboard!C20 -> 5 | Q10: =Dashboard!C21 -> 1.8
B11: P1 Stop | F11: P1 Interval | G11: =(O11-O10)/100 -> 0.55 | L11: W_sym_strt | M11: =-M8/2 -> -27.5 | O11: =Dashboard!C23 -> 60 | Q11: =Dashboard!C24 -> 1.8
B13: match | C13: =MATCH(0,I23:I123,1) -> 101
B14: dist index | C14: =INDEX(D23:D123,C13) -> 60 | D14: 0
B15: level diff | C15: =20*LOG(INDEX(K23:K123,C13)/INDEX(J23:J123,C13)) -> 0.07646142977
I19: norm | J19: =MAX(J23:L123) -> 0.220273397
B21: Plane 1 | D21: X | E21: Z | F21: d-main | G21: d-sub | H21: diff | I21: deg | J21: LV main | K21: LV sub | L21: ABS | M21: LV main log | N21: LV sub log | O21: LV sum log | AA21: d sub PLAN | AB21: 0 | AC21: 1 | AD21: 2 | AE21: 3 | AF21: 4 | AG21: 5 | AH21: 6 | AI21: 7 | AJ21: 8 | AK21: 9 | AL21: 10 | AM21: 11 | AN21: 12 | AO21: 13 | AP21: 14 | AQ21: 15 | AR21: 16 | AS21: 17 | AT21: 18 | AU21: 19 | AV21: 20 | AW21: 21 | AX21: 22 | AY21: 23 | AZ21: 24 | BA21: 25 | BB21: 26 | BC21: 27 | BD21: 28 | BE21: 29 | BF21: 30 | BG21: 31 | BH21: 32 | BI21: 33 | BJ21: 34 | BK21: 35 | BL21: 36 | BM21: 37 | BN21: 38 | BO21: 39 | BP21: 40 | BQ21: 41 | BR21: 42 | BS21: 43 | BT21: 44 | BU21: 45 | BV21: 46 | BW21: 47 | BX21: 48 | BY21: 49 | BZ21: 50 | CA21: 51 | CB21: 52 | CC21: 53 | CD21: 54 | CE21: 55 | CF21: 56 | CG21: 57 | CH21: 58 | CI21: 59 | CJ21: 60 | CK21: 61 | CL21: 62 | CM21: 63 | CN21: 64 | CO21: 65 | CP21: 66 | CQ21: 67 | CR21: 68 | CS21: 69 | CT21: 70 | CU21: 71 | CV21: 72 | CW21: 73 | CX21: 74 | CY21: 75 | CZ21: 76 | DA21: 77 | DB21: 78 | DC21: 79 | DD21: 80 | DE21: 81 | DF21: 82 | DG21: 83 | DH21: 84 | DI21: 85 | DJ21: 86 | DK21: 87 | DL21: 88 | DM21: 89 | DN21: 90 | DO21: 91 | DP21: 92 | DQ21: 93 | DR21: 94 | DS21: 95 | DT21: 96 | DU21: 97 | DV21: 98 | DW21: 99 | DX21: 100 | EB21: d sub SECTION | EC21: 0 | ED21: 1 | EE21: 2 | EF21: 3 | EG21: 4 | EH21: 5 | EI21: 6 | EJ21: 7 | EK21: 8 | EL21: 9 | EM21: 10 | EN21: 11 | EO21: 12 | EP21: 13 | EQ21: 14 | ER21: 15 | ES21: 16 | ET21: 17 | EU21: 18 | EV21: 19 | EW21: 20 | EX21: 21 | EY21: 22 | EZ21: 23 | FA21: 24 | FB21: 25 | FC21: 26 | FD21: 27 | FE21: 28 | FF21: 29 | FG21: 30 | FH21: 31 | FI21: 32 | FJ21: 33 | FK21: 34 | FL21: 35 | FM21: 36 | FN21: 37 | FO21: 38 | FP21: 39 | FQ21: 40 | FR21: 41 | FS21: 42 | FT21: 43 | FU21: 44 | FV21: 45 | FW21: 46 | FX21: 47 | FY21: 48 | FZ21: 49 | GA21: 50 | GB21: 51 | GC21: 52 | GD21: 53 | GE21: 54 | GF21: 55 | GG21: 56 | GH21: 57 | GI21: 58 | GJ21: 59 | GK21: 60 | GL21: 61 | GM21: 62 | GN21: 63 | GO21: 64 | GP21: 65 | GQ21: 66 | GR21: 67 | GS21: 68 | GT21: 69 | GU21: 70 | GV21: 71 | GW21: 72 | GX21: 73 | GY21: 74 | GZ21: 75 | HA21: 76 | HB21: 77 | HC21: 78 | HD21: 79 | HE21: 80 | HF21: 81 | HG21: 82 | HH21: 83 | HI21: 84 | HJ21: 85 | HK21: 86 | HL21: 87 | HM21: 88 | HN21: 89 | HO21: 90 | HP21: 91 | HQ21: 92 | HR21: 93 | HS21: 94 | HT21: 95 | HU21: 96 | HV21: 97 | HW21: 98 | HX21: 99 | HY21: 100
AB22: =AB21*$M$10+$M$11 -> -27.5 | AC22: =AC21*$M$10+$M$11 -> -26.95 | AD22: -26.4 | AE22: -25.85 | AF22: -25.3 | AG22: -24.75 | AH22: -24.2 | AI22: -23.65 | AJ22: -23.1 | AK22: -22.55 | AL22: -22 | AM22: -21.45 | AN22: -20.9 | AO22: -20.35 | AP22: -19.8 | AQ22: -19.25 | AR22: -18.7 | AS22: -18.15 | AT22: -17.6 | AU22: -17.05 | AV22: -16.5 | AW22: -15.95 | AX22: -15.4 | AY22: -14.85 | AZ22: -14.3 | BA22: -13.75 | BB22: -13.2 | BC22: -12.65 | BD22: -12.1 | BE22: -11.55 | BF22: -11 | BG22: -10.45 | BH22: -9.9 | BI22: -9.35 | BJ22: -8.8 | BK22: -8.25 | BL22: -7.7 | BM22: -7.15 | BN22: -6.6 | BO22: -6.05 | BP22: -5.5 | BQ22: -4.95 | BR22: -4.4 | BS22: -3.85 | BT22: -3.3 | BU22: -2.75 | BV22: -2.2 | BW22: -1.65 | BX22: -1.1 | BY22: -0.55 | BZ22: 0 | CA22: 0.55 | CB22: 1.1 | CC22: 1.65 | CD22: 2.2 | CE22: 2.75 | CF22: 3.3 | CG22: 3.85 | CH22: 4.4 | CI22: 4.95 | CJ22: 5.5 | CK22: 6.05 | CL22: 6.6 | CM22: 7.15 | CN22: 7.7 | CO22: =CO21*$M$10+$M$11 -> 8.25 | CP22: 8.8 | CQ22: 9.35 | CR22: 9.9 | CS22: 10.45 | CT22: 11 | CU22: 11.55 | CV22: 12.1 | CW22: 12.65 | CX22: 13.2 | CY22: 13.75 | CZ22: 14.3 | DA22: 14.85 | DB22: 15.4 | DC22: 15.95 | DD22: 16.5 | DE22: 17.05 | DF22: 17.6 | DG22: 18.15 | DH22: 18.7 | DI22: 19.25 | DJ22: 19.8 | DK22: 20.35 | DL22: 20.9 | DM22: 21.45 | DN22: 22 | DO22: 22.55 | DP22: 23.1 | DQ22: 23.65 | DR22: 24.2 | DS22: 24.75 | DT22: 25.3 | DU22: 25.85 | DV22: 26.4 | DW22: 26.95 | DX22: 27.5 | EC22: =EC21*$M$6 -> 0 | ED22: =ED21*$M$6 -> 0.55 | EE22: 1.1 | EF22: 1.65 | EG22: 2.2 | EH22: 2.75 | EI22: 3.3 | EJ22: 3.85 | EK22: 4.4 | EL22: 4.95 | EM22: 5.5 | EN22: 6.05 | EO22: 6.6 | EP22: 7.15 | EQ22: 7.7 | ER22: 8.25 | ES22: 8.8 | ET22: 9.35 | EU22: 9.9 | EV22: 10.45 | EW22: 11 | EX22: 11.55 | EY22: 12.1 | EZ22: 12.65 | FA22: 13.2 | FB22: 13.75 | FC22: 14.3 | FD22: 14.85 | FE22: 15.4 | FF22: 15.95 | FG22: 16.5 | FH22: 17.05 | FI22: 17.6 | FJ22: 18.15 | FK22: 18.7 | FL22: 19.25 | FM22: 19.8 | FN22: 20.35 | FO22: 20.9 | FP22: 21.45 | FQ22: 22 | FR22: 22.55 | FS22: 23.1 | FT22: 23.65 | FU22: 24.2 | FV22: 24.75 | FW22: 25.3 | FX22: 25.85 | FY22: 26.4 | FZ22: 26.95 | GA22: 27.5 | GB22: 28.05 | GC22: 28.6 | GD22: 29.15 | GE22: 29.7 | GF22: 30.25 | GG22: 30.8 | GH22: 31.35 | GI22: 31.9 | GJ22: 32.45 | GK22: 33 | GL22: 33.55 | GM22: 34.1 | GN22: 34.65 | GO22: 35.2 | GP22: =GP21*$M$6 -> 35.75 | GQ22: 36.3 | GR22: 36.85 | GS22: 37.4 | GT22: 37.95 | GU22: 38.5 | GV22: 39.05 | GW22: 39.6 | GX22: 40.15 | GY22: 40.7 | GZ22: 41.25 | HA22: 41.8 | HB22: 42.35 | HC22: 42.9 | HD22: 43.45 | HE22: 44 | HF22: 44.55 | HG22: 45.1 | HH22: 45.65 | HI22: 46.2 | HJ22: 46.75 | HK22: 47.3 | HL22: 47.85 | HM22: 48.4 | HN22: 48.95 | HO22: 49.5 | HP22: 50.05 | HQ22: 50.6 | HR22: 51.15 | HS22: 51.7 | HT22: 52.25 | HU22: 52.8 | HV22: 53.35 | HW22: 53.9 | HX22: 54.45 | HY22: 55
B23: 0 | C23: =B23*$G$11 -> 0 | D23: =C23+$O$10 -> 5 | E23: =C23*$G$10+$Q$10 -> 1.8 | F23: =SQRT((D23-$O$8)^2+(E23-$Q$8)^2) -> 9.604165763 | G23: =SQRT((D23-$O$7)^2+(E23-$Q$7)^2) -> 5.314132102 | H23: =G23-F23+$H$8 -> -3.759286547 | I23: =360*H23/$F$3 -> -491.7299699 | J23: =$F$8/F23 -> 0.1041214849 | K23: =$F$7/G23 -> 0.1881774824 | L23: =SQRT(J23^2+K23^2+2*J23*K23*COS(RADIANS(I23))) -> 0.1420162206 | M23: =20*LOG(J23/$J$19) -> -6.508433933 | N23: =20*LOG(K23/$J$19) -> -1.367887914 | O23: =20*LOG(L23/$J$19) -> -3.812481976 | AA23: =$D23 -> 5 | AB23: =SQRT(($AA23-$O$7)^2+(AB$22-$P$7)^2+($DY23-$Q$7)^2) -> 28.00874863 | AC23: =SQRT(($AA23-$O$7)^2+(AC$22-$P$7)^2+($DY23-$Q$7)^2) -> 27.468937 | AD23: 26.92953769 | AE23: 26.39057597 | AF23: 25.85207922 | AG23: 25.31407711 | AH23: 24.77660187 | AI23: 24.23968853 | AJ23: 23.70337529 | AK23: 23.16770381 | AL23: 22.63271968 | AM23: 22.0984728 | AN23: 21.56501797 | AO23: 21.03241546 | AP23: 20.50073169 | AQ23: 19.97004006 | AR23: 19.44042181 | AS23: 18.91196711 | AT23: 18.38477631 | AU23: 17.85896134 | AV23: 17.33464739 | AW23: 16.8119749 | AX23: 16.29110187 | AY23: 15.77220657 | AZ23: 15.25549081 | BA23: 14.74118381 | BB23: 14.22954673 | BC23: 13.72087825 | BD23: 13.21552118 | BE23: 12.71387038 | BF23: 12.21638244 | BG23: 11.72358733 | BH23: 11.23610253 | BI23: 10.75465016 | BJ23: 10.28007782 | BK23: 9.813383718 | BL23: 9.355746897 | BM23: 8.908563296 | BN23: 8.473488066 | BO23: 8.052484089 | BP23: 7.647875522 | BQ23: 7.262403184 | BR23: 6.899275324 | BS23: 6.562202374 | BT23: 6.255397669 | BU23: 5.983519031 | BV23: 5.751521538 | BW23: 5.564395744 | BX23: 5.42678542 | BY23: 5.342518133 | BZ23: 5.314132102 | CA23: 5.342518133 | CB23: 5.42678542 | CC23: 5.564395744 | CD23: 5.751521538 | CE23: 5.983519031 | CF23: 6.255397669 | CG23: 6.562202374 | CH23: 6.899275324 | CI23: 7.262403184 | CJ23: 7.647875522 | CK23: 8.052484089 | CL23: 8.473488066 | CM23: 8.908563296 | CN23: 9.355746897 | CO23: =SQRT(($AA23-$O$7)^2+(CO$22-$P$7)^2+($DY23-$Q$7)^2) -> 9.813383718 | CP23: 10.28007782 | CQ23: 10.75465016 | CR23: 11.23610253 | CS23: 11.72358733 | CT23: 12.21638244 | CU23: 12.71387038 | CV23: 13.21552118 | CW23: 13.72087825 | CX23: 14.22954673 | CY23: 14.74118381 | CZ23: 15.25549081 | DA23: 15.77220657 | DB23: 16.29110187 | DC23: 16.8119749 | DD23: 17.33464739 | DE23: 17.85896134 | DF23: 18.38477631 | DG23: 18.91196711 | DH23: 19.44042181 | DI23: 19.97004006 | DJ23: 20.50073169 | DK23: 21.03241546 | DL23: 21.56501797 | DM23: 22.0984728 | DN23: 22.63271968 | DO23: 23.16770381 | DP23: 23.70337529 | DQ23: 24.23968853 | DR23: 24.77660187 | DS23: 25.31407711 | DT23: 25.85207922 | DU23: 26.39057597 | DV23: 26.92953769 | DW23: 27.468937 | DX23: 28.00874863 | DY23: =$E23 -> 1.8 | EB23: =$D23 -> 5 | EC23: =SQRT(($EB23-$O$7)^2+(EC$22-$Q$7)^2+(-$P$7)^2) -> 5 | ED23: =SQRT(($EB23-$O$7)^2+(ED$22-$Q$7)^2+(-$P$7)^2) -> 5.030159043 | EE23: 5.119570294 | EF23: 5.265216045 | EG23: 5.462600113 | EH23: 5.706356105 | EI23: 5.99082632 | EJ23: 6.310507111 | EK23: 6.660330322 | EL23: 7.035801305 | EM23: 7.433034374 | EN23: 7.848726011 | EO23: 8.280096618 | EP23: 8.724820915 | EQ23: 9.180958556 | ER23: 9.646890691 | ES23: 10.12126474 | ET23: 10.6029477 | EU23: 11.09098733 | EV23: 11.58458027 | EW23: 12.08304597 | EX23: 12.5858055 | EY23: 13.09236419 | EZ23: 13.6022976 | FA23: 14.11523999 | FB23: 14.63087489 | FC23: 15.14892735 | FD23: 15.6691576 | FE23: 16.19135572 | FF23: 16.71533727 | FG23: 17.24093965 | FH23: 17.76801902 | FI23: 18.29644774 | FJ23: 18.82611218 | FK23: 19.35691091 | FL23: 19.8887531 | FM23: 20.42155724 | FN23: 20.95524994 | FO23: 21.48976501 | FP23: 22.02504257 | FQ23: 22.56102835 | FR23: 23.09767304 | FS23: 23.63493177 | FT23: 24.1727636 | FU23: 24.7111311 | FV23: 25.25 | FW23: 25.78933888 | FX23: 26.32911886 | FY23: 26.86931335 | FZ23: 27.40989785 | GA23: 27.95084972 | GB23: 28.49214804 | GC23: 29.03377344 | GD23: 29.57570794 | GE23: 30.11793486 | GF23: 30.66043868 | GG23: 31.20320496 | GH23: 31.74622025 | GI23: 32.28947197 | GJ23: 32.83294839 | GK23: 33.37663854 | GL23: 33.92053213 | GM23: 34.46461954 | GN23: 35.00889173 | GO23: 35.55334021 | GP23: =SQRT(($EB23-$O$7)^2+(GP$22-$Q$7)^2+(-$P$7)^2) -> 36.09795701 | GQ23: 36.64273461 | GR23: 37.18766597 | GS23: 37.7327444 | GT23: 38.27796363 | GU23: 38.82331774 | GV23: 39.3688011 | GW23: 39.91440843 | GX23: 40.4601347 | GY23: 41.00597517 | GZ23: 41.55192535 | HA23: 42.09798095 | HB23: 42.64413793 | HC23: 43.19039245 | HD23: 43.73674085 | HE23: 44.28317965 | HF23: 44.82970555 | HG23: 45.37631541 | HH23: 45.92300622 | HI23: 46.46977512 | HJ23: 47.0166194 | HK23: 47.56353645 | HL23: 48.1105238 | HM23: 48.65757906 | HN23: 49.20469998 | HO23: 49.75188439 | HP23: 50.29913021 | HQ23: 50.84643547 | HR23: 51.39379826 | HS23: 51.94121677 | HT23: 52.48868926 | HU23: 53.03621404 | HV23: 53.58378953 | HW23: 54.13141417 | HX23: 54.6790865 | HY23: 55.22680509 | HZ23: =$E23 -> 1.8
B24: 1 | C24: =B24*$G$11 -> 0.55 | D24: 5.55 | E24: 1.8 | F24: 9.901641278 | G24: 5.834595102 | H24: -3.536299063 | I24: =360*H24/$F$3 -> -462.5623001 | J24: 0.1009933578 | K24: =$F$7/G24 -> 0.1713914989 | L24: =SQRT(J24^2+K24^2+2*J24*K24*COS(RADIANS(I24))) -> 0.1790113892 | M24: =20*LOG(J24/$J$19) -> -6.773384758 | N24: =20*LOG(K24/$J$19) -> -2.179455451 | O24: =20*LOG(L24/$J$19) -> -1.80162773 | AA24: =$D24 -> 5.55 | AB24: =SQRT(($AA24-$O$7)^2+(AB$22-$P$7)^2+($DY24-$Q$7)^2) -> 28.11214151 | AC24: 27.57435403 | AD24: 27.0370579 | AE24: 26.50028302 | AF24: 25.9640617 | AG24: 25.42842897 | AH24: 24.89342283 | AI24: 24.35908455 | AJ24: 23.82545907 | AK24: 23.29259539 | AL24: 22.76054701 | AM24: 22.22937246 | AN24: 21.69913593 | AO24: 21.16990789 | AP24: 20.64176591 | AQ24: 20.11479555 | AR24: 19.58909135 | AS24: 19.06475806 | AT24: 18.54191198 | AU24: 18.02068256 | AV24: 17.50121424 | AW24: 16.98366863 | AX24: 16.46822698 | AY24: 15.95509323 | AZ24: 15.4444974 | BA24: 14.93669977 | BB24: 14.4319957 | BC24: 13.93072145 | BD24: 13.43326096 | BE24: 12.9400541 | BF24: 12.45160632 | BG24: 11.96850032 | BH24: 11.49140984 | BI24: 11.0211161 | BJ24: 10.55852736 | BK24: 10.10470188 | BL24: 9.660874702 | BM24: 9.2284885 | BN24: 8.809228116 | BO24: 8.405058001 | BP24: 8.01826041 | BQ24: 7.651470447 | BR24: 7.307701417 | BS24: 6.990350492 | BT24: 6.703170891 | BU24: 6.450193796 | BV24: 6.235583373 | BW24: 6.063414879 | BX24: 5.937381578 | BY24: 5.860460733 | BZ24: 5.834595102 | CA24: 5.860460733 | CB24: 5.937381578 | CC24: 6.063414879 | CD24: 6.235583373 | CE24: 6.450193796 | CF24: 6.703170891 | CG24: 6.990350492 | CH24: 7.307701417 | CI24: 7.651470447 | CJ24: 8.01826041 | CK24: 8.405058001 | CL24: 8.809228116 | CM24: 9.2284885 | CN24: 9.660874702 | CO24: 10.10470188 | CP24: 10.55852736 | CQ24: 11.0211161 | CR24: 11.49140984 | CS24: 11.96850032 | CT24: 12.45160632 | CU24: 12.9400541 | CV24: 13.43326096 | CW24: 13.93072145 | CX24: 14.4319957 | CY24: 14.93669977 | CZ24: 15.4444974 | DA24: 15.95509323 | DB24: 16.46822698 | DC24: 16.98366863 | DD24: 17.50121424 | DE24: 18.02068256 | DF24: 18.54191198 | DG24: 19.06475806 | DH24: 19.58909135 | DI24: 20.11479555 | DJ24: 20.64176591 | DK24: 21.16990789 | DL24: 21.69913593 | DM24: 22.22937246 | DN24: 22.76054701 | DO24: 23.29259539 | DP24: 23.82545907 | DQ24: 24.35908455 | DR24: 24.89342283 | DS24: 25.42842897 | DT24: 25.9640617 | DU24: 26.50028302 | DV24: 27.0370579 | DW24: 27.57435403 | DX24: 28.11214151 | DY24: =$E24 -> 1.8 | EB24: =$D24 -> 5.55 | EC24: =SQRT(($EB24-$O$7)^2+(EC$22-$Q$7)^2+(-$P$7)^2) -> 5.55 | ED24: 5.57718567 | EE24: 5.657958996 | EF24: 5.79007772 | EG24: 5.970134002 | EH24: 6.19394866 | EI24: 6.456972975 | EJ24: 6.754628043 | EK24: 7.082548976 | EL24: 7.436733154 | EM24: 7.813609921 | EN24: 8.210054811 | EO24: 8.623369411 | EP24: 9.051243009 | EQ24: 9.491706907 | ER24: 9.943088052 | ES24: 10.40396559 | ET24: 10.87313202 | EU24: 11.34955946 | EV24: 11.83237085 | EW24: 12.32081572 | EX24: 12.81424988 | EY24: 13.31211854 | EZ24: 13.81394223 | FA24: 14.31930515 | FB24: 14.82784543 | FC24: 15.33924705 | FD24: 15.85323311 | FE24: 16.36956017 | FF24: 16.8880135 | FG24: 17.40840314 | FH24: 17.9305605 | FI24: 18.45433553 | FJ24: 18.97959431 | FK24: 19.50621696 | FL24: 20.03409594 | FM24: 20.56313449 | FN24: 21.09324536 | FO24: 21.6243497 | FP24: 22.15637606 | FQ24: 22.68925957 | FR24: 23.22294124 | FS24: 23.75736728 | FT24: 24.29248855 | FU24: 24.82826011 | FV24: 25.36464074 | FW24: 25.90159262 | FX24: 26.43908092 | FY24: 26.9770736 | FZ24: 27.51554106 | GA24: 28.05445597 | GB24: 28.59379303 | GC24: 29.13352879 | GD24: 29.6736415 | GE24: 30.21411094 | GF24: 30.75491831 | GG24: 31.29604608 | GH24: 31.83747792 | GI24: 32.37919857 | GJ24: 32.92119378 | GK24: 33.46345021 | GL24: 34.00595536 | GM24: 34.54869752 | GN24: 35.09166568 | GO24: 35.63484952 | GP24: 36.17823932 | GQ24: 36.72182593 | GR24: 37.26560076 | GS24: 37.80955567 | GT24: 38.353683 | GU24: 38.89797553 | GV24: 39.4424264 | GW24: 39.98702915 | GX24: 40.53177766 | GY24: 41.07666613 | GZ24: 41.62168906 | HA24: 42.16684124 | HB24: 42.71211772 | HC24: 43.2575138 | HD24: 43.80302501 | HE24: 44.3486471 | HF24: 44.89437604 | HG24: 45.44020797 | HH24: 45.98613922 | HI24: 46.53216629 | HJ24: 47.07828587 | HK24: 47.62449475 | HL24: 48.1707899 | HM24: 48.71716843 | HN24: 49.26362756 | HO24: 49.81016463 | HP24: 50.3567771 | HQ24: 50.90346255 | HR24: 51.45021866 | HS24: 51.99704319 | HT24: 52.543934 | HU24: 53.09088905 | HV24: 53.63790637 | HW24: 54.18498408 | HX24: 54.73212037 | HY24: 55.27931349 | HZ24: =$E24 -> 1.8
B25: 2 | C25: 1.1 | D25: 6.1 | E25: 1.8 | F25: 10.22007828 | G25: 6.360031446 | H25: -3.329299718 | I25: -435.4859438 | J25: 0.09784660869 | K25: 0.157231927 | L25: 0.2049564427 | M25: -7.048325433 | N25: -2.928426249 | O25: -0.626009497 | AA25: 6.1 | AB25: 28.22587465 | AC25: 27.69029613 | AD25: 27.15529414 | AE25: 26.62090344 | AF25: 26.08716159 | AG25: 25.55410926 | AH25: 25.0217905 | AI25: 24.49025316 | AJ25: 23.95954924 | AK25: 23.42973538 | AL25: 22.90087335 | AM25: 22.37303064 | AN25: 21.84628115 | AO25: 21.3207059 | AP25: 20.79639392 | AQ25: 20.27344322 | AR25: 19.75196193 | AS25: 19.23206957 | AT25: 18.71389858 | AU25: 18.197596 | AV25: 17.68332548 | AW25: 17.17126961 | AX25: 16.66163257 | AY25: 16.1546433 | AZ25: 15.6505591 | BA25: 15.14966996 | BB25: 14.65230357 | BC25: 14.15883117 | BD25: 13.66967447 | BE25: 13.1853138 | BF25: 12.70629765 | BG25: 12.23325386 | BH25: 11.76690274 | BI25: 11.30807234 | BJ25: 10.85771615 | BK25: 10.41693333 | BL25: 9.986991539 | BM25: 9.56935212 | BN25: 9.165696918 | BO25: 8.777955343 | BP25: 8.408329204 | BQ25: 8.059311385 | BR25: 7.73369252 | BS25: 7.434547733 | BT25: 7.165193647 | BU25: 6.929105281 | BV25: 6.729784543 | BW25: 6.570578361 | BX25: 6.454455825 | BY25: 6.38376848 | BZ25: 6.360031446 | CA25: 6.38376848 | CB25: 6.454455825 | CC25: 6.570578361 | CD25: 6.729784543 | CE25: 6.929105281 | CF25: 7.165193647 | CG25: 7.434547733 | CH25: 7.73369252 | CI25: 8.059311385 | CJ25: 8.408329204 | CK25: 8.777955343 | CL25: 9.165696918 | CM25: 9.56935212 | CN25: 9.986991539 | CO25: 10.41693333 | CP25: 10.85771615 | CQ25: 11.30807234 | CR25: 11.76690274 | CS25: 12.23325386 | CT25: 12.70629765 | CU25: 13.1853138 | CV25: 13.66967447 | CW25: 14.15883117 | CX25: 14.65230357 | CY25: 15.14966996 | CZ25: 15.6505591 | DA25: 16.1546433 | DB25: 16.66163257 | DC25: 17.17126961 | DD25: 17.68332548 | DE25: 18.197596 | DF25: 18.71389858 | DG25: 19.23206957 | DH25: 19.75196193 | DI25: 20.27344322 | DJ25: 20.79639392 | DK25: 21.3207059 | DL25: 21.84628115 | DM25: 22.37303064 | DN25: 22.90087335 | DO25: 23.42973538 | DP25: 23.95954924 | DQ25: 24.49025316 | DR25: 25.0217905 | DS25: 25.55410926 | DT25: 26.08716159 | DU25: 26.62090344 | DV25: 27.15529414 | DW25: 27.69029613 | DX25: 28.22587465 | DY25: 1.8 | EB25: 6.1 | EC25: 6.1 | ED25: 6.124744893 | EE25: 6.198386887 | EF25: 6.319216724 | EG25: 6.484597135 | EH25: 6.691225598 | EI25: 6.935416354 | EJ25: 7.213355668 | EK25: 7.521303079 | EL25: 7.855730393 | EM25: 8.213403679 | EN25: 8.591420139 | EO25: 8.987213139 | EP25: 9.39853712 | EQ25: 9.823441352 | ER25: 10.26023879 | ES25: 10.70747403 | ET25: 11.16389269 | EU25: 11.62841348 | EV25: 12.10010331 | EW25: 12.57815567 | EX25: 13.06187199 | EY25: 13.55064574 | EZ25: 14.04394887 | FA25: 14.54132044 | FB25: 15.04235686 | FC25: 15.54670383 | FD25: 16.05404933 | FE25: 16.56411785 | FF25: 17.07666537 | FG25: 17.59147521 | FH25: 18.10835443 | FI25: 18.62713075 | FJ25: 19.14764999 | FK25: 19.66977377 | FL25: 20.19337763 | FM25: 20.71834936 | FN25: 21.24458755 | FO25: 21.77200037 | FP25: 22.30050448 | FQ25: 22.83002409 | FR25: 23.36049015 | FS25: 23.89183961 | FT25: 24.42401482 | FU25: 24.95696296 | FV25: 25.49063554 | FW25: 26.02498799 | FX25: 26.55997929 | FY25: 27.09557159 | FZ25: 27.63172995 | GA25: 28.16842204 | GB25: 28.70561792 | GC25: 29.24328983 | GD25: 29.78141199 | GE25: 30.31996042 | GF25: 30.85891281 | GG25: 31.39824836 | GH25: 31.93794765 | GI25: 32.47799255 | GJ25: 33.0183661 | GK25: 33.55905243 | GL25: 34.10003666 | GM25: 34.64130483 | GN25: 35.18284383 | GO25: 35.72464136 | GP25: 36.26668581 | GQ25: 36.8089663 | GR25: 37.35147253 | GS25: 37.89419481 | GT25: 38.43712398 | GU25: 38.98025141 | GV25: 39.52356892 | GW25: 40.06706877 | GX25: 40.61074365 | GY25: 41.15458662 | GZ25: 41.6985911 | HA25: 42.24275086 | HB25: 42.78705996 | HC25: 43.33151278 | HD25: 43.87610397 | HE25: 44.42082845 | HF25: 44.96568136 | HG25: 45.51065809 | HH25: 46.05575426 | HI25: 46.60096566 | HJ25: 47.1462883 | HK25: 47.69171836 | HL25: 48.2372522 | HM25: 48.78288634 | HN25: 49.32861745 | HO25: 49.87444235 | HP25: 50.42035799 | HQ25: 50.96636146 | HR25: 51.51244995 | HS25: 52.0586208 | HT25: 52.60487145 | HU25: 53.15119942 | HV25: 53.69760237 | HW25: 54.24407802 | HX25: 54.7906242 | HY25: 55.33723882 | HZ25: 1.8
B26: 3 | C26: 1.65 | D26: 6.65 | E26: 1.8 | F26: 10.55758022 | G26: 6.889303303 | H26: -3.137529799 | I26: -410.4016584 | J26: 0.09471867413 | K26: 0.1451525584 | L26: 0.2181002702 | M26: -7.330528786 | N26: -3.622747091 | O26: -0.08611691564 | AA26: 6.65 | AB26: 28.34982363 | AC26: 27.81663172 | AD26: 27.2841071 | AE26: 26.75228962 | AF26: 26.22122232 | AG26: 25.69095171 | AH26: 25.16152817 | AI26: 24.63300631 | AJ26: 24.10544544 | AK26: 23.57891007 | AL26: 23.05347045 | AM26: 22.52920327 | AN26: 22.00619231 | AO26: 21.48452932 | AP26: 20.96431492 | AQ26: 20.44565969 | AR26: 19.92868536 | AS26: 19.41352621 | AT26: 18.90033068 | AU26: 18.38926317 | AV26: 17.88050614 | AW26: 17.37426257 | AX26: 16.87075873 | AY26: 16.3702474 | AZ26: 15.87301169 | BA26: 15.3793693 | BB26: 14.88967763 | BC26: 14.40433962 | BD26: 13.92381054 | BE26: 13.44860588 | BF26: 12.97931046 | BG26: 12.51658899 | BH26: 12.06119812 | BI26: 11.61400017 | BJ26: 11.1759787 | BK26: 10.74825567 | BL26: 10.33211014 | BM26: 9.928997935 | BN26: 9.540571262 | BO26: 9.168696745 | BP26: 8.815469358 | BQ26: 8.483218729 | BR26: 8.174503043 | BS26: 7.892084642 | BT26: 7.638880808 | BU26: 7.417883795 | BV26: 7.232046737 | BW26: 7.084137209 | BX26: 6.976567924 | BY26: 6.911222757 | BZ26: 6.889303303 | CA26: 6.911222757 | CB26: 6.976567924 | CC26: 7.084137209 | CD26: 7.232046737 | CE26: 7.417883795 | CF26: 7.638880808 | CG26: 7.892084642 | CH26: 8.174503043 | CI26: 8.483218729 | CJ26: 8.815469358 | CK26: 9.168696745 | CL26: 9.540571262 | CM26: 9.928997935 | CN26: =SQRT(($AA26-$O$7)^2+(CN$22-$P$7)^2+($DY26-$Q$7)^2) -> 10.33211014 | CO26: 10.74825567 | CP26: 11.1759787 | CQ26: 11.61400017 | CR26: 12.06119812 | CS26: 12.51658899 | CT26: 12.97931046 | CU26: 13.44860588 | CV26: 13.92381054 | CW26: 14.40433962 | CX26: 14.88967763 | CY26: 15.3793693 | CZ26: 15.87301169 | DA26: 16.3702474 | DB26: 16.87075873 | DC26: 17.37426257 | DD26: 17.88050614 | DE26: 18.38926317 | DF26: 18.90033068 | DG26: 19.41352621 | DH26: 19.92868536 | DI26: 20.44565969 | DJ26: 20.96431492 | DK26: 21.48452932 | DL26: 22.00619231 | DM26: 22.52920327 | DN26: 23.05347045 | DO26: 23.57891007 | DP26: 24.10544544 | DQ26: 24.63300631 | DR26: 25.16152817 | DS26: 25.69095171 | DT26: 26.22122232 | DU26: 26.75228962 | DV26: 27.2841071 | DW26: 27.81663172 | DX26: 28.34982363 | DY26: 1.8 | EB26: 6.65 | EC26: 6.65 | ED26: 6.672705598 | EE26: 6.740363492 | EF26: 6.851642139 | EG26: 7.004462863 | EH26: 7.196179542 | EI26: 7.423779361 | EJ26: 7.68407444 | EK26: 7.973863555 | EL26: 8.290054282 | EM26: 8.629745072 | EN26: 8.990272521 | EO26: 9.369231559 | EP26: 9.764476432 | EQ26: 10.1741093 | ER26: 10.59646167 | ES26: 11.03007253 | ET26: 11.4736655 | EU26: 11.92612678 | EV26: 12.38648457 | EW26: 12.85389046 | EX26: 13.32760294 | EY26: 13.80697288 | EZ26: 14.291431 | FA26: 14.78047699 | FB26: 15.27367015 | FC26: 15.77062142 | FD26: 16.27098645 | FE26: 16.77445975 | FF26: 17.28076966 | FG26: 17.78967397 | FH26: 18.30095626 | FI26: 18.81442266 | FJ26: 19.32989912 | FK26: 19.84722903 | FL26: 20.36627114 | FM26: 20.88689781 | FN26: 21.40899344 | FO26: 21.93245312 | FP26: 22.45718148 | FQ26: 22.98309161 | FR26: 23.51010421 | FS26: 24.03814677 | FT26: 24.56715287 | FU26: 25.09706158 | FV26: 25.62781692 | FW26: 26.15936735 | FX26: 26.69166537 | FY26: 27.22466712 | FZ26: 27.75833208 | GA26: 28.29262271 | GB26: 28.82750423 | GC26: 29.36294433 | GD26: 29.89891302 | GE26: 30.43538237 | GF26: 30.97232636 | GG26: 31.50972072 | GH26: 32.04754281 | GI26: 32.58577143 | GJ26: 33.12438679 | GK26: 33.6633703 | GL26: 34.20270457 | GM26: 34.74237326 | GN26: 35.28236103 | GO26: =SQRT(($EB26-$O$7)^2+(GO$22-$Q$7)^2+(-$P$7)^2) -> 35.82265345 | GP26: 36.36323693 | GQ26: 36.90409869 | GR26: 37.44522667 | GS26: 37.98660948 | GT26: 38.5282364 | GU26: 39.07009726 | GV26: 39.61218247 | GW26: 40.15448294 | GX26: 40.69699006 | GY26: 41.23969568 | GZ26: 41.78259207 | HA26: 42.32567188 | HB26: 42.86892814 | HC26: 43.41235423 | HD26: 43.95594385 | HE26: 44.49969101 | HF26: 45.04359 | HG26: 45.58763539 | HH26: 46.13182199 | HI26: 46.67614487 | HJ26: 47.22059932 | HK26: 47.76518083 | HL26: 48.30988512 | HM26: 48.85470806 | HN26: 49.39964575 | HO26: 49.94469441 | HP26: 50.48985047 | HQ26: 51.03511046 | HR26: 51.58047111 | HS26: 52.12592925 | HT26: 52.67148185 | HU26: 53.217126 | HV26: 53.76285893 | HW26: 54.30867794 | HX26: 54.85458048 | HY26: 55.40056408 | HZ26: 1.8
B27: 4 | C27: 2.2 | D27: 7.2 | E27: 1.8 | F27: 10.91237829 | G27: 7.421590126 | H27: -2.960041053 | I27: -387.1854086 | J27: 0.09163905184 | K27: 0.1347420139 | L27: 0.220273397 | M27: -7.617629249 | N27: -4.269180306 | O27: 0 | AA27: 7.2 | AB27: 28.48385508 | AC27: 27.95321985 | AD27: 27.42334772 | AE27: 26.89428378 | AF27: 26.36607669 | AG27: 25.838779 | AH27: 25.31244753 | AI27: 24.78714385 | AJ27: 24.26293469 | AK27: 23.73989259 | AL27: 23.21809639 | AM27: 22.69763204 | AN27: 22.17859328 | AO27: 21.66108261 | AP27: 21.14521222 | AQ27: 20.63110516 | AR27: 20.11889659 | AS27: 19.6087353 | AT27: 19.10078532 | AU27: 18.59522788 | AV27: 18.09226354 | AW27: 17.59211471 | AX27: 17.09502852 | AY27: 16.60128007 | AZ27: 16.11117625 | BA27: 15.62506 | BB27: 15.14331536 | BC27: 14.6663731 | BD27: 14.19471733 | BE27: 13.72889289 | BF27: 13.26951393 | BG27: 12.8172735 | BH27: 12.37295438 | BI27: 11.9374411 | BJ27: 11.51173314 | BK27: 11.09695904 | BL27: 10.69439105 | BM27: 10.30545972 | BN27: 9.931767214 | BO27: 9.575097911 | BP27: 9.237423883 | BQ27: 8.920902421 | BR27: 8.627861844 | BS27: 8.360771496 | BT27: 8.122191822 | BU27: 7.91470151 | BV27: 7.740800992 | BW27: 7.602795538 | BX27: 7.502666193 | BY27: 7.441941951 | BZ27: 7.421590126 | CA27: 7.441941951 | CB27: 7.502666193 | CC27: 7.602795538 | CD27: 7.740800992 | CE27: 7.91470151 | CF27: 8.122191822 | CG27: 8.360771496 | CH27: 8.627861844 | CI27: 8.920902421 | CJ27: 9.237423883 | CK27: 9.575097911 | CL27: 9.931767214 | CM27: 10.30545972 | CN27: 10.69439105 | CO27: 11.09695904 | CP27: 11.51173314 | CQ27: 11.9374411 | CR27: 12.37295438 | CS27: 12.8172735 | CT27: 13.26951393 | CU27: 13.72889289 | CV27: 14.19471733 | CW27: 14.6663731 | CX27: 15.14331536 | CY27: 15.62506 | CZ27: 16.11117625 | DA27: 16.60128007 | DB27: 17.09502852 | DC27: 17.59211471 | DD27: 18.09226354 | DE27: 18.59522788 | DF27: 19.10078532 | DG27: 19.6087353 | DH27: 20.11889659 | DI27: 20.63110516 | DJ27: 21.14521222 | DK27: 21.66108261 | DL27: 22.17859328 | DM27: 22.69763204 | DN27: 23.21809639 | DO27: 23.73989259 | DP27: 24.26293469 | DQ27: 24.78714385 | DR27: 25.31244753 | DS27: 25.838779 | DT27: 26.36607669 | DU27: 26.89428378 | DV27: 27.42334772 | DW27: 27.95321985 | DX27: 28.48385508 | DY27: 1.8 | EB27: 7.2 | EC27: 7.2 | ED27: 7.220976388 | EE27: 7.283543094 | EF27: 7.386643351 | EG27: 7.52861209 | EH27: 7.707301733 | EI27: 7.920227269 | EJ27: 8.16471065 | EK27: 8.438009244 | EL27: 8.737419528 | EM27: 9.060353194 | EN27: 9.404387274 | EO27: 9.767292358 | EP27: 10.1470439 | EQ27: 10.54182147 | ER27: 10.95 | ES27: 11.37013632 | ET27: 11.80095335 | EU27: 12.24132346 | EV27: 12.69025216 | EW27: 13.14686274 | EX27: 13.61038207 | EY27: 14.08012784 | EZ27: 14.55549724 | FA27: 15.0359569 | FB27: 15.52103412 | FC27: 16.01030918 | FD27: 16.50340874 | FE27: 17 | FF27: 17.49978571 | FG27: 18.00249983 | FH27: 18.50790372 | FI27: 19.01578292 | FJ27: 19.52594428 | FK27: 20.03821349 | FL27: 20.55243295 | FM27: 21.06845984 | FN27: 21.58616455 | FO27: 22.1054292 | FP27: 22.62614638 | FQ27: 23.14821807 | FR27: 23.67155466 | FS27: 24.19607406 | FT27: 24.72170099 | FU27: 25.24836628 | FV27: 25.77600628 | FW27: 26.30456234 | FX27: 26.83398032 | FY27: 27.3642102 | FZ27: 27.89520568 | GA27: 28.42692386 | GB27: 28.95932492 | GC27: 29.4923719 | GD27: 30.02603037 | GE27: 30.56026832 | GF27: 31.09505588 | GG27: 31.63036516 | GH27: 32.16617012 | GI27: 32.70244639 | GJ27: 33.23917117 | GK27: 33.77632307 | GL27: 34.31388203 | GM27: 34.85182922 | GN27: 35.39014693 | GO27: 35.92881852 | GP27: 36.46782829 | GQ27: 37.00716147 | GR27: 37.54680412 | GS27: 38.0867431 | GT27: 38.62696597 | GU27: 39.16746098 | GV27: 39.70821703 | GW27: 40.24922359 | GX27: 40.7904707 | GY27: 41.3319489 | GZ27: 41.87364923 | HA27: 42.41556318 | HB27: 42.95768267 | HC27: 43.5 | HD27: 44.04250788 | HE27: 44.58519934 | HF27: 45.12806776 | HG27: 45.67110684 | HH27: 46.21431055 | HI27: 46.75767317 | HJ27: 47.3011892 | HK27: 47.84485343 | HL27: 48.38866086 | HM27: 48.93260672 | HN27: 49.47668643 | HO27: 50.02089563 | HP27: 50.56523015 | HQ27: 51.10968597 | HR27: 51.65425926 | HS27: 52.19894635 | HT27: 52.7437437 | HU27: 53.28864795 | HV27: 53.83365583 | HW27: 54.37876424 | HX27: 54.92397018 | HY27: 55.46927077 | HZ27: 1.8
B28: 5 | C28: 2.75 | D28: 7.75 | E28: 1.8 | F28: 11.28284095 | G28: 7.956286822 | H28: -2.795807019 | I28: -365.702929 | J28: 0.08863016009 | K28: 0.125686771 | L28: 0.2140595139 | M28: -7.907610315 | N28: -4.873449609 | O28: -0.248550293 | AA28: 7.75 | AB28: 28.62782737 | AC28: 28.09991103 | AD28: 27.57285803 | AE28: 27.04671884 | AF28: 26.52154784 | AG28: 25.99740372 | AH28: 25.47434984 | AI28: 24.95245479 | AJ28: 24.43179281 | AK28: 23.91244446 | AL28: 23.39449722 | AM28: 22.87804625 | AN28: 22.36319521 | AO28: 21.85005721 | AP28: 21.33875582 | AQ28: 20.8294263 | AR28: 20.32221691 | AS28: 19.81729043 | AT28: 19.31482591 | AU28: 18.8150206 | AV28: 18.31809215 | AW28: 17.82428119 | AX28: 17.33385416 | AY28: 16.84710658 | AZ28: 16.36436678 | BA28: 15.88600013 | BB28: 15.41241383 | BC28: 14.94406237 | BD28: 14.48145366 | BE28: 14.02515597 | BF28: 13.57580569 | BG28: 13.13411588 | BH28: 12.7008858 | BI28: 12.27701104 | BJ28: 11.86349443 | BK28: 11.46145715 | BL28: 11.07214975 | BM28: 10.69696219 | BN28: 10.33743198 | BO28: 9.995248871 | BP28: 9.672254132 | BQ28: 9.370432221 | BR28: 9.091891992 | BS28: 8.838834765 | BT28: 8.613506835 | BU28: 8.418135185 | BV28: 8.254847061 | BW28: 8.125576903 | BX28: 8.03196738 | BY28: 7.97527429 | BZ28: 7.956286822 | CA28: 7.97527429 | CB28: 8.03196738 | CC28: 8.125576903 | CD28: 8.254847061 | CE28: 8.418135185 | CF28: 8.613506835 | CG28: 8.838834765 | CH28: 9.091891992 | CI28: 9.370432221 | CJ28: 9.672254132 | CK28: 9.995248871 | CL28: 10.33743198 | CM28: 10.69696219 | CN28: 11.07214975 | CO28: 11.46145715 | CP28: 11.86349443 | CQ28: 12.27701104 | CR28: 12.7008858 | CS28: 13.13411588 | CT28: 13.57580569 | CU28: 14.02515597 | CV28: 14.48145366 | CW28: 14.94406237 | CX28: 15.41241383 | CY28: 15.88600013 | CZ28: 16.36436678 | DA28: 16.84710658 | DB28: 17.33385416 | DC28: 17.82428119 | DD28: 18.31809215 | DE28: 18.8150206 | DF28: 19.31482591 | DG28: 19.81729043 | DH28: 20.32221691 | DI28: 20.8294263 | DJ28: 21.33875582 | DK28: 21.85005721 | DL28: 22.36319521 | DM28: 22.87804625 | DN28: 23.39449722 | DO28: 23.91244446 | DP28: 24.43179281 | DQ28: 24.95245479 | DR28: 25.47434984 | DS28: 25.99740372 | DT28: 26.52154784 | DU28: 27.04671884 | DV28: 27.57285803 | DW28: 28.09991103 | DX28: 28.62782737 | DY28: 1.8 | EB28: 7.75 | EC28: 7.75 | ED28: 7.769491618 | EE28: 7.827675262 | EF28: 7.923698631 | EG28: 8.056208786 | EH28: 8.223442102 | EI28: 8.423330695 | EJ28: 8.653611963 | EK28: 8.911930206 | EL28: 9.19592301 | EM28: 9.503288904 | EN28: 9.831836044 | EO28: 10.17951374 | EP28: 10.54442981 | EQ28: 10.92485698 | ER28: 11.31923142 | ES28: 11.726146 | ET28: 12.14434025 | EU28: 12.57268865 | EV28: 13.01018832 | EW28: 13.45594664 | EX28: 13.90916964 | EY28: 14.36915098 | EZ28: 14.83526205 | FA28: 15.30694287 | FB28: 15.78369412 | FC28: 16.26506994 | FD28: 16.75067163 | FE28: 17.24014211 | FF28: 17.73316103 | FG28: 18.22944047 | FH28: 18.72872126 | FI28: 19.23076962 | FJ28: 19.73537433 | FK28: 20.24234423 | FL28: 20.75150597 | FM28: 21.26270209 | FN28: 21.77578931 | FO28: 22.29063705 | FP28: 22.80712608 | FQ28: 23.32514737 | FR28: 23.84460107 | FS28: 24.36539554 | FT28: 24.88744663 | FU28: 25.41067689 | FV28: 25.93501494 | FW28: 26.46039493 | FX28: 26.98675601 | FY28: 27.51404187 | FZ28: 28.04220034 | GA28: 28.57118303 | GB28: 29.100945 | GC28: 29.63144445 | GD28: 30.16264246 | GE28: 30.69450277 | GF28: 31.22699153 | GG28: 31.76007714 | GH28: 32.29373004 | GI28: 32.82792257 | GJ28: 33.36262879 | GK28: 33.89782441 | GL28: 34.43348661 | GM28: 34.96959394 | GN28: 35.50612623 | GO28: 36.04306452 | GP28: 36.58039092 | GQ28: 37.11808858 | GR28: 37.6561416 | GS28: 38.19453495 | GT28: 38.73325445 | GU28: 39.27228667 | GV28: 39.81161891 | GW28: 40.35123914 | GX28: 40.89113596 | GY28: 41.43129856 | GZ28: 41.97171667 | HA28: 42.51238055 | HB28: 43.05328094 | HC28: 43.59440905 | HD28: 44.13575648 | HE28: 44.67731527 | HF28: 45.21907783 | HG28: 45.76103692 | HH28: 46.30318564 | HI28: 46.84551739 | HJ28: 47.38802591 | HK28: 47.93070519 | HL28: 48.47354949 | HM28: 49.01655333 | HN28: 49.55971146 | HO28: 50.10301887 | HP28: 50.64647076 | HQ28: 51.19006251 | HR28: 51.73378973 | HS28: 52.27764819 | HT28: 52.82163383 | HU28: 53.36574276 | HV28: 53.90997125 | HW28: 54.45431572 | HX28: 54.99877271 | HY28: 55.54333893 | HZ28: 1.8
B29: 6 | C29: 3.3 | D29: 8.3 | E29: 1.8 | F29: 11.66747616 | G29: 8.492938243 | H29: -2.643790806 | I29: -345.8185901 | J29: 0.08570833881 | K29: 0.1177448807 | L29: 0.2019359307 | M29: -8.198779435 | N29: -5.440400312 | O29: -0.754968984 | AA29: 8.3 | AB29: 28.78159134 | AC29: 28.25654791 | AD29: 27.73247194 | AE29: 27.20941932 | AF29: 26.68745023 | AG29: 26.16662951 | AH29: 25.64702712 | AI29: 25.12871863 | AJ29: 24.61178579 | AK29: 24.09631715 | AL29: 23.5824087 | AM29: 23.07016472 | AN29: 22.55969858 | AO29: 22.05113376 | AP29: 21.54460489 | AQ29: 21.04025903 | AR29: 20.53825699 | AS29: 20.03877491 | AT29: 19.54200604 | AU29: 19.04816264 | AV29: 18.55747828 | AW29: 18.07021029 | AX29: 17.58664266 | AY29: 17.10708917 | AZ29: 16.63189707 | BA29: 16.16145105 | BB29: 15.69617788 | BC29: 15.23655145 | BD29: 14.78309846 | BE29: 14.33640471 | BF29: 13.897122 | BG29: 13.46597564 | BH29: 13.04377246 | BI29: 12.63140926 | BJ29: 12.22988144 | BK29: 11.84029138 | BL29: 11.46385624 | BM29: 11.10191425 | BN29: 10.7559286 | BO29: 10.42748771 | BP29: 10.11830025 | BQ29: 9.830183111 | BR29: 9.565040512 | BS29: 9.324832438 | BT29: 9.111531156 | BU29: 8.927065587 | BV29: 8.773254812 | BW29: 8.65173393 | BX29: 8.563877626 | BY29: 8.510728523 | BZ29: 8.492938243 | CA29: 8.510728523 | CB29: 8.563877626 | CC29: 8.65173393 | CD29: 8.773254812 | CE29: 8.927065587 | CF29: 9.111531156 | CG29: 9.324832438 | CH29: 9.565040512 | CI29: 9.830183111 | CJ29: 10.11830025 | CK29: 10.42748771 | CL29: 10.7559286 | CM29: 11.10191425 | CN29: 11.46385624 | CO29: 11.84029138 | CP29: 12.22988144 | CQ29: 12.63140926 | CR29: 13.04377246 | CS29: 13.46597564 | CT29: 13.897122 | CU29: 14.33640471 | CV29: 14.78309846 | CW29: 15.23655145 | CX29: 15.69617788 | CY29: 16.16145105 | CZ29: 16.63189707 | DA29: 17.10708917 | DB29: 17.58664266 | DC29: 18.07021029 | DD29: 18.55747828 | DE29: 19.04816264 | DF29: 19.54200604 | DG29: 20.03877491 | DH29: 20.53825699 | DI29: 21.04025903 | DJ29: 21.54460489 | DK29: 22.05113376 | DL29: 22.55969858 | DM29: 23.07016472 | DN29: 23.5824087 | DO29: 24.09631715 | DP29: 24.61178579 | DQ29: 25.12871863 | DR29: 25.64702712 | DS29: 26.16662951 | DT29: 26.68745023 | DU29: 27.20941932 | DV29: 27.73247194 | DW29: 28.25654791 | DX29: 28.78159134 | DY29: 1.8 | EB29: 8.3 | EC29: 8.3 | ED29: 8.318202931 | EE29: 8.372574276 | EF29: 8.462416912 | EG29: 8.586617495 | EH29: 8.743712026 | EI29: 8.931965069 | EJ29: 9.149453536 | EK29: 9.394147114 | EL29: 9.663979512 | EM29: 9.95690715 | EN29: 10.27095419 | EO29: 10.60424443 | EP29: 10.95502168 | EQ29: 11.32166066 | ER29: 11.70267064 | ES29: 12.09669376 | ET29: 12.50249975 | EU29: 12.91897829 | EV29: 13.3451302 | EW29: 13.78005806 | EX29: 14.2229568 | EY29: 14.67310465 | EZ29: 15.12985459 | FA29: 15.59262646 | FB29: 16.06089973 | FC29: 16.53420697 | FD29: 17.01212803 | FE29: 17.49428478 | FF29: 17.98033648 | FG29: 18.46997564 | FH29: 18.96292435 | FI29: 19.45893111 | FJ29: 19.95776791 | FK29: 20.45922775 | FL29: 20.96312238 | FM29: 21.46928038 | FN29: 21.97754536 | FO29: 22.48777446 | FP29: 22.99983696 | FQ29: 23.51361308 | FR29: 24.0289929 | FS29: 24.54587542 | FT29: 25.06416765 | FU29: 25.58378393 | FV29: 26.10464518 | FW29: 26.62667835 | FX29: 27.14981584 | FY29: 27.67399501 | FZ29: 28.19915779 | GA29: 28.72525022 | GB29: 29.25222214 | GC29: 29.78002686 | GD29: 30.30862089 | GE29: 30.83796362 | GF29: 31.36801715 | GG29: 31.89874606 | GH29: 32.43011718 | GI29: 32.96209945 | GJ29: 33.49466375 | GK29: 34.02778277 | GL29: 34.56143082 | GM29: 35.09558377 | GN29: 35.63021892 | GO29: 36.16531487 | GP29: 36.70085149 | GQ29: 37.23680975 | GR29: 37.7731717 | GS29: 38.30992039 | GT29: 38.84703978 | GU29: 39.38451472 | GV29: 39.92233084 | GW29: 40.46047454 | GX29: 40.99893291 | GY29: 41.53769373 | GZ29: 42.07674536 | HA29: 42.61607678 | HB29: 43.15567749 | HC29: 43.69553753 | HD29: 44.23564739 | HE29: 44.77599803 | HF29: 45.31658085 | HG29: 45.85738763 | HH29: 46.39841053 | HI29: 46.93964209 | HJ29: 47.48107518 | HK29: 48.02270296 | HL29: 48.56451894 | HM29: 49.10651688 | HN29: 49.64869082 | HO29: 50.19103506 | HP29: 50.73354413 | HQ29: 51.27621281 | HR29: 51.81903608 | HS29: 52.36200913 | HT29: 52.90512735 | HU29: 53.44838632 | HV29: 53.99178178 | HW29: 54.53530966 | HX29: 55.07896604 | HY29: 55.62274715 | HZ29: 1.8
B30: 7 | C30: 3.85 | D30: 8.85 | E30: 1.8 | F30: 12.06492851 | G30: 9.031195934 | H30: -2.502985465 | I30: -327.4006787 | J30: 0.08288486741 | K30: 0.1107273065 | L30: 0.1859945364 | M30: -8.489736049 | N30: -5.97414628 | O30: -1.469237252 | AA30: 8.85 | AB30: 28.94499093 | AC30: 28.42296607 | AD30: 27.90201606 | AE30: 27.38220225 | AF30: 26.8635906 | AG30: 26.34625211 | AH30: 25.83026326 | AI30: 25.31570659 | AJ30: 24.80267123 | AK30: 24.29125357 | AL30: 23.78155798 | AM30: 23.2736976 | AN30: 22.76779524 | AO30: 22.26398437 | AP30: 21.76241025 | AQ30: 21.26323117 | AR30: 20.76661985 | AS30: 20.27276498 | AT30: 19.78187302 | AU30: 19.2941701 | AV30: 18.80990431 | AW30: 18.32934805 | AX30: 17.8528009 | AY30: 17.38059263 | AZ30: 16.91308665 | BA30: 16.45068388 | BB30: 15.99382693 | BC30: 15.54300486 | BD30: 15.09875823 | BE30: 14.66168476 | BF30: 14.23244533 | BG30: 13.81177034 | BH30: 13.40046641 | BI30: 12.99942306 | BJ30: 12.60961934 | BK30: 12.23212982 | BL30: 11.86812959 | BM30: 11.51889752 | BN30: 11.18581691 | BO30: 10.87037258 | BP30: 10.57414299 | BQ30: 10.29878634 | BR30: 10.04601911 | BS30: 9.817586261 | BT30: 9.615222306 | BU30: 9.440603794 | BV30: 9.295294509 | BW30: 9.180686249 | BX30: 9.097939327 | BY30: 9.04792794 | BZ30: 9.031195934 | CA30: 9.04792794 | CB30: 9.097939327 | CC30: 9.180686249 | CD30: 9.295294509 | CE30: 9.440603794 | CF30: 9.615222306 | CG30: 9.817586261 | CH30: 10.04601911 | CI30: 10.29878634 | CJ30: 10.57414299 | CK30: 10.87037258 | CL30: 11.18581691 | CM30: =SQRT(($AA30-$O$7)^2+(CM$22-$P$7)^2+($DY30-$Q$7)^2) -> 11.51889752 | CN30: 11.86812959 | CO30: 12.23212982 | CP30: 12.60961934 | CQ30: 12.99942306 | CR30: =SQRT(($AA30-$O$7)^2+(CR$22-$P$7)^2+($DY30-$Q$7)^2) -> 13.40046641 | CS30: 13.81177034 | CT30: 14.23244533 | CU30: 14.66168476 | CV30: 15.09875823 | CW30: 15.54300486 | CX30: 15.99382693 | CY30: 16.45068388 | CZ30: 16.91308665 | DA30: 17.38059263 | DB30: 17.8528009 | DC30: 18.32934805 | DD30: 18.80990431 | DE30: 19.2941701 | DF30: 19.78187302 | DG30: 20.27276498 | DH30: =SQRT(($AA30-$O$7)^2+(DH$22-$P$7)^2+($DY30-$Q$7)^2) -> 20.76661985 | DI30: 21.26323117 | DJ30: 21.76241025 | DK30: 22.26398437 | DL30: 22.76779524 | DM30: 23.2736976 | DN30: 23.78155798 | DO30: 24.29125357 | DP30: 24.80267123 | DQ30: 25.31570659 | DR30: 25.83026326 | DS30: 26.34625211 | DT30: 26.8635906 | DU30: 27.38220225 | DV30: 27.90201606 | DW30: 28.42296607 | DX30: =SQRT(($AA30-$O$7)^2+(DX$22-$P$7)^2+($DY30-$Q$7)^2) -> 28.94499093 | DY30: 1.8 | EB30: 8.85 | EC30: 8.85 | ED30: 8.867073925 | EE30: 8.918099573 | EF30: 9.002499653 | EG30: 9.119347564 | EH30: 9.267416037 | EI30: 9.445236895 | EJ30: 9.651165733 | EK30: 9.883445755 | EL30: 10.14026627 | EM30: 10.41981286 | EN30: 10.72030783 | EO30: 11.04004076 | EP30: 11.37738986 | EQ30: 11.73083543 | ER30: 12.0989669 | ES30: 12.48048477 | ET30: 12.874199 | EU30: 13.27902481 | EV30: 13.69397678 | EW30: 14.11816206 | EX30: 14.55077318 | EY30: 14.99108068 | EZ30: 15.43842609 | FA30: 15.89221508 | FB30: 16.3519112 | FC30: 16.81703006 | FD30: 17.28713394 | FE30: 17.76182705 | FF30: 18.24075108 | FG30: 18.72358139 | FH30: 19.21002343 | FI30: 19.69980964 | FJ30: 20.1926967 | FK30: 20.68846297 | FL30: 21.18690633 | FM30: 21.68784222 | FN30: 22.19110182 | FO30: 22.69653057 | FP30: 23.20398673 | FQ30: 23.71334013 | FR30: 24.2244711 | FS30: 24.73726945 | FT30: 25.25163361 | FU30: 25.7674698 | FV30: 26.28469136 | FW30: 26.80321809 | FX30: 27.32297568 | FY30: 27.8438952 | FZ30: 28.36591264 | GA30: 28.88896848 | GB30: 29.41300733 | GC30: 29.93797755 | GD30: 30.46383101 | GE30: 30.99052274 | GF30: 31.51801072 | GG30: 32.04625563 | GH30: 32.57522064 | GI30: 33.10487124 | GJ30: 33.63517504 | GK30: 34.16610162 | GL30: 34.6976224 | GM30: 35.22971047 | GN30: =SQRT(($EB30-$O$7)^2+(GN$22-$Q$7)^2+(-$P$7)^2) -> 35.76234053 | GO30: 36.2954887 | GP30: 36.82913249 | GQ30: 37.36325066 | GR30: 37.89782316 | GS30: =SQRT(($EB30-$O$7)^2+(GS$22-$Q$7)^2+(-$P$7)^2) -> 38.43283102 | GT30: 38.96825631 | GU30: 39.50408207 | GV30: 40.04029221 | GW30: 40.57687149 | GX30: 41.11380547 | GY30: 41.65108042 | GZ30: 42.18868332 | HA30: 42.72660178 | HB30: 43.26482405 | HC30: 43.80333891 | HD30: 44.34213572 | HE30: 44.88120431 | HF30: 45.420535 | HG30: 45.96011858 | HH30: 46.49994624 | HI30: =SQRT(($EB30-$O$7)^2+(HI$22-$Q$7)^2+(-$P$7)^2) -> 47.04000957 | HJ30: 47.58030055 | HK30: 48.12081151 | HL30: 48.66153512 | HM30: 49.20246437 | HN30: 49.74359255 | HO30: 50.28491324 | HP30: 50.82642029 | HQ30: 51.36810781 | HR30: 51.90997014 | HS30: 52.45200187 | HT30: 52.9941978 | HU30: 53.53655293 | HV30: 54.07906249 | HW30: 54.62172187 | HX30: 55.16452665 | HY30: =SQRT(($EB30-$O$7)^2+(HY$22-$Q$7)^2+(-$P$7)^2) -> 55.70747257 | HZ30: 1.8
B31: 8 | C31: 4.4 | D31: 9.4 | E31: 1.8 | F31: 12.4739729 | G31: 9.570788891 | H31: -2.372436899 | I31: -310.3243954 | J31: 0.08016692097 | K31: 0.1044845949 | L31: 0.1678823892 | M31: -8.779336916 | N31: -6.478195726 | O31: -2.359138168 | AA31: 9.4 | AB31: 29.11786393 | AC31: 28.59899474 | AD31: 28.08131051 | AE31: 27.56487802 | AF31: 27.04976895 | AG31: 26.53606037 | AH31: 26.02383523 | AI31: 25.51318287 | AJ31: 25.00419965 | AK31: 24.49698961 | AL31: 23.99166522 | AM31: 23.48834818 | AN31: 22.98717033 | AO31: 22.48827472 | AP31: 21.99181666 | AQ31: 21.49796502 | AR31: =SQRT(($AA31-$O$7)^2+(AR$22-$P$7)^2+($DY31-$Q$7)^2) -> 21.00690363 | AS31: 20.51883281 | AT31: 20.03397115 | AU31: 19.55255738 | AV31: 19.07485256 | AW31: 18.60114244 | AX31: 18.13174013 | AY31: 17.66698899 | AZ31: 17.20726591 | BA31: 16.75298481 | BB31: 16.30460058 | BC31: 15.86261328 | BD31: 15.42757272 | BE31: 15.00008333 | BF31: 14.58080931 | BG31: 14.17047988 | BH31: =SQRT(($AA31-$O$7)^2+(BH$22-$P$7)^2+($DY31-$Q$7)^2) -> 13.7698947 | BI31: 13.379929 | BJ31: 13.00153837 | BK31: 12.63576274 | BL31: 12.28372908 | BM31: 11.94665225 | BN31: 11.6258333 | BO31: 11.32265428 | BP31: 11.03856875 | BQ31: 10.77508701 | BR31: 10.53375527 | BS31: 10.31612815 | BT31: 10.12373449 | BU31: 9.958036955 | BV31: 9.820386958 | BW31: 9.711977142 | BX31: =SQRT(($AA31-$O$7)^2+(BX$22-$P$7)^2+($DY31-$Q$7)^2) -> 9.633794683 | BY31: 9.58657916 | BZ31: 9.570788891 | CA31: 9.58657916 | CB31: 9.633794683 | CC31: 9.711977142 | CD31: 9.820386958 | CE31: 9.958036955 | CF31: 10.12373449 | CG31: 10.31612815 | CH31: 10.53375527 | CI31: 10.77508701 | CJ31: 11.03856875 | CK31: 11.32265428 | CL31: 11.6258333 | CM31: 11.94665225 | CN31: 12.28372908 | CO31: 12.63576274 | CP31: 13.00153837 | CQ31: 13.379929 | CR31: 13.7698947 | CS31: 14.17047988 | CT31: 14.58080931 | CU31: 15.00008333 | CV31: 15.42757272 | CW31: 15.86261328 | CX31: 16.30460058 | CY31: 16.75298481 | CZ31: 17.20726591 | DA31: 17.66698899 | DB31: 18.13174013 | DC31: 18.60114244 | DD31: 19.07485256 | DE31: 19.55255738 | DF31: 20.03397115 | DG31: 20.51883281 | DH31: 21.00690363 | DI31: 21.49796502 | DJ31: 21.99181666 | DK31: 22.48827472 | DL31: 22.98717033 | DM31: 23.48834818 | DN31: 23.99166522 | DO31: 24.49698961 | DP31: 25.00419965 | DQ31: 25.51318287 | DR31: 26.02383523 | DS31: 26.53606037 | DT31: 27.04976895 | DU31: 27.56487802 | DV31: 28.08131051 | DW31: 28.59899474 | DX31: 29.11786393 | DY31: 1.8 | EB31: 9.4 | EC31: 9.4 | ED31: 9.416076678 | EE31: 9.464142856 | EF31: 9.543715209 | EG31: 9.654014709 | EH31: 9.794003267 | EI31: 9.962429423 | EJ31: 10.15787872 | EK31: 10.3788246 | EL31: 10.62367639 | EM31: 10.89082182 | EN31: 11.17866271 | EO31: 11.48564321 | EP31: 11.81027095 | EQ31: 12.15113163 | ER31: 12.5068981 | ES31: =SQRT(($EB31-$O$7)^2+(ES$22-$Q$7)^2+(-$P$7)^2) -> 12.87633488 | ET31: 13.25829929 | EU31: 13.65173982 | EV31: 14.0556928 | EW31: 14.4692778 | EX31: 14.89169231 | EY31: 15.32220611 | EZ31: 15.76015546 | FA31: 16.20493752 | FB31: 16.65600492 | FC31: 17.11286066 | FD31: 17.57505334 | FE31: 18.04217282 | FF31: 18.51384617 | FG31: 18.98973407 | FH31: 19.46952747 | FI31: =SQRT(($EB31-$O$7)^2+(FI$22-$Q$7)^2+(-$P$7)^2) -> 19.95294464 | FJ31: 20.43972847 | FK31: 20.92964405 | FL31: 21.42247651 | FM31: 21.91802911 | FN31: 22.41612143 | FO31: 22.91658788 | FP31: 23.41927625 | FQ31: 23.92404648 | FR31: 24.43076953 | FS31: 24.93932637 | FT31: 25.44960707 | FU31: 25.96150997 | FV31: 26.47494098 | FW31: 26.98981289 | FX31: 27.50604479 | FY31: =SQRT(($EB31-$O$7)^2+(FY$22-$Q$7)^2+(-$P$7)^2) -> 28.02356152 | FZ31: 28.54229318 | GA31: 29.06217473 | GB31: 29.58314554 | GC31: 30.10514906 | GD31: 30.62813249 | GE31: 31.15204648 | GF31: 31.67684486 | GG31: 32.20248438 | GH31: 32.72892452 | GI31: 33.25612725 | GJ31: 33.78405689 | GK31: 34.31267987 | GL31: 34.84196464 | GM31: 35.37188149 | GN31: 35.90240243 | GO31: 36.43350107 | GP31: 36.96515251 | GQ31: 37.49733324 | GR31: 38.03002104 | GS31: 38.56319489 | GT31: 39.09683491 | GU31: 39.63092227 | GV31: 40.16543912 | GW31: 40.70036855 | GX31: 41.23569449 | GY31: 41.7714017 | GZ31: 42.3074757 | HA31: 42.84390272 | HB31: 43.38066966 | HC31: 43.91776406 | HD31: 44.45517405 | HE31: 44.99288833 | HF31: 45.5308961 | HG31: 46.0691871 | HH31: 46.6077515 | HI31: 47.14657994 | HJ31: 47.68566346 | HK31: 48.22499352 | HL31: 48.76456193 | HM31: 49.30436086 | HN31: 49.84438283 | HO31: 50.38462067 | HP31: 50.9250675 | HQ31: 51.46571674 | HR31: 52.00656209 | HS31: 52.54759747 | HT31: 53.08881709 | HU31: 53.63021536 | HV31: 54.17178694 | HW31: 54.71352666 | HX31: 55.2554296 | HY31: 55.79749098 | HZ31: 1.8
B32: 9 | C32: 4.95 | D32: 9.95 | E32: 1.8 | F32: 12.89350612 | G32: 10.11150335 | H32: -2.251255654 | I32: -294.4733957 | J32: 0.07755842289 | K32: 0.09889726239 | L32: 0.148832628 | M32: -9.066661603 | N32: -6.955555591 | O32: -3.405277981 | AA32: 9.95 | AB32: 29.30004266 | AC32: 28.78445761 | AD32: 28.27016979 | AE32: 27.7572513 | AF32: 27.24577949 | AG32: 26.73583737 | AH32: 26.22751418 | AI32: 25.72090589 | AJ32: 25.21611588 | AK32: 24.71325555 | AL32: 24.21244515 | AM32: 23.71381454 | AN32: 23.21750417 | AO32: 22.72366608 | AP32: 22.232465 | AQ32: 21.74407965 | AR32: 21.2587041 | AS32: 20.77654928 | AT32: 20.29784471 | AU32: 19.82284036 | AV32: 19.3518087 | AW32: 18.88504699 | AX32: 18.4228798 | AY32: 17.96566169 | AZ32: 17.51378029 | BA32: 17.06765948 | BB32: 16.62776293 | BC32: 16.19459786 | BD32: 15.76871903 | BE32: 15.35073288 | BF32: 14.94130182 | BG32: 14.54114851 | BH32: 14.15106003 | BI32: 13.77189166 | BJ32: 13.40457012 | BK32: 13.05009579 | BL32: 12.70954366 | BM32: 12.38406234 | BN32: 12.0748706 | BO32: 11.78325082 | BP32: 11.51053865 | BQ32: 11.25810819 | BR32: 11.02735236 | BS32: 10.81965804 | BT32: 10.63637626 | BU32: 10.4787881 | BV32: 10.34806745 | BW32: 10.2452428 | BX32: 10.17116021 | BY32: 10.12645051 | BZ32: 10.11150335 | CA32: 10.12645051 | CB32: 10.17116021 | CC32: 10.2452428 | CD32: 10.34806745 | CE32: 10.4787881 | CF32: 10.63637626 | CG32: 10.81965804 | CH32: 11.02735236 | CI32: 11.25810819 | CJ32: 11.51053865 | CK32: 11.78325082 | CL32: 12.0748706 | CM32: 12.38406234 | CN32: 12.70954366 | CO32: 13.05009579 | CP32: 13.40457012 | CQ32: 13.77189166 | CR32: 14.15106003 | CS32: 14.54114851 | CT32: 14.94130182 | CU32: 15.35073288 | CV32: 15.76871903 | CW32: 16.19459786 | CX32: 16.62776293 | CY32: 17.06765948 | CZ32: 17.51378029 | DA32: 17.96566169 | DB32: 18.4228798 | DC32: 18.88504699 | DD32: 19.3518087 | DE32: 19.82284036 | DF32: 20.29784471 | DG32: 20.77654928 | DH32: 21.2587041 | DI32: 21.74407965 | DJ32: 22.232465 | DK32: 22.72366608 | DL32: 23.21750417 | DM32: 23.71381454 | DN32: 24.21244515 | DO32: 24.71325555 | DP32: 25.21611588 | DQ32: 25.72090589 | DR32: 26.22751418 | DS32: 26.73583737 | DT32: 27.24577949 | DU32: 27.7572513 | DV32: 28.27016979 | DW32: 28.78445761 | DX32: 29.30004266 | DY32: 1.8 | EB32: 9.95 | EC32: 9.95 | ED32: 9.965189411 | EE32: 10.01061936 | EF32: 10.08588122 | EG32: 10.19031403 | EH32: 10.3230325 | EI32: 10.48296237 | EJ32: 10.66887998 | EK32: 10.87945311 | EL32: 11.11328034 | EM32: 11.36892695 | EN32: 11.64495599 | EO32: 11.93995394 | EP32: 12.25255075 | EQ32: 12.58143474 | ER32: 12.92536266 | ES32: 13.28316604 | ET32: 13.65375406 | EU32: 14.03611413 | EV32: 14.42931045 | EW32: 14.83248125 | EX32: 15.24483519 | EY32: 15.66564713 | EZ32: 16.09425363 | FA32: 16.5300484 | FB32: 16.97247772 | FC32: 17.42103613 | FD32: 17.87526224 | FE32: 18.33473479 | FF32: 18.79906913 | FG32: 19.26791374 | FH32: 19.74094729 | FI32: 20.21787575 | FJ32: 20.69842989 | FK32: 21.18236295 | FL32: 21.66944854 | FM32: 22.15947878 | FN32: 22.65226258 | FO32: 23.14762407 | FP32: 23.64540124 | FQ32: 24.1454447 | FR32: 24.64761652 | FS32: 25.1517892 | FT32: 25.6578448 | FU32: 26.16567408 | FV32: 26.67517573 | FW32: 27.18625572 | FX32: 27.69882669 | FY32: 28.21280738 | FZ32: 28.72812211 | GA32: 29.24470037 | GB32: 29.76247638 | GC32: 30.28138867 | GD32: 30.80137984 | GE32: 31.32239614 | GF32: 31.84438726 | GG32: 32.36730604 | GH32: 32.89110822 | GI32: 33.41575227 | GJ32: 33.94119915 | GK32: 34.46741215 | GL32: 34.99435669 | GM32: 35.52200023 | GN32: 36.05031207 | GO32: 36.57926325 | GP32: 37.10882644 | GQ32: 37.63897581 | GR32: 38.16968693 | GS32: 38.70093668 | GT32: 39.2327032 | GU32: 39.76496574 | GV32: 40.29770465 | GW32: 40.83090129 | GX32: 41.36453795 | GY32: 41.89859783 | GZ32: 42.43306494 | HA32: 42.96792408 | HB32: 43.5031608 | HC32: 44.03876134 | HD32: 44.57471256 | HE32: 45.11100198 | HF32: 45.64761768 | HG32: 46.18454828 | HH32: 46.72178293 | HI32: 47.25931125 | HJ32: 47.79712334 | HK32: 48.33520973 | HL32: 48.87356136 | HM32: 49.41216955 | HN32: 49.95102602 | HO32: 50.4901228 | HP32: 51.02945228 | HQ32: 51.56900717 | HR32: 52.10878045 | HS32: 52.64876542 | HT32: 53.18895562 | HU32: 53.72934487 | HV32: 54.26992722 | HW32: 54.81069695 | HX32: 55.35164858 | HY32: 55.89277681 | HZ32: 1.8
B33: 10 | C33: 5.5 | D33: 10.5 | E33: 1.8 | F33: 13.3225373 | G33: 10.65316854 | H33: -2.13862164 | I33: -279.7404085 | J33: 0.07506077692 | K33: 0.09386878617 | L33: 0.1297288382 | M33: -9.350979884 | N33: -7.40881695 | O33: -4.598510418 | AA33: 10.5 | AB33: 29.49135467 | AC33: 28.97917356 | AD33: 28.46840354 | AE33: 27.95912195 | AF33: 27.45141162 | AG33: 26.94536138 | AH33: 26.44106654 | AI33: 25.93862949 | AJ33: 25.43816031 | AK33: 24.93977746 | AL33: 24.44360857 | AM33: 23.94979123 | AN33: 23.45847395 | AO33: 22.96981715 | AP33: 22.48399431 | AQ33: 22.00119315 | AR33: 21.52161704 | AS33: 21.04548645 | AT33: 20.57304061 | AU33: 20.10453929 | AV33: 19.64026476 | AW33: 19.18052398 | AX33: 18.72565086 | AY33: 18.27600886 | AZ33: 17.83199372 | BA33: 17.39403633 | BB33: 16.96260593 | BC33: 16.53821333 | BD33: 16.12141433 | BE33: 15.71281324 | BF33: 15.31306632 | BG33: 14.92288511 | BH33: 14.54303957 | BI33: 14.17436066 | BJ33: 13.81774222 | BK33: 13.4741419 | BL33: 13.14458063 | BM33: 12.8301403 | BN33: 12.53195914 | BO33: 12.25122443 | BP33: 11.98916177 | BQ33: 11.7470209 | BR33: 11.52605744 | BS33: 11.32751076 | BT33: 11.15257818 | BU33: 11.0023861 | BV33: 10.87795937 | BW33: 10.78019017 | BX33: 10.70980859 | BY33: 10.66735675 | BZ33: 10.65316854 | CA33: 10.66735675 | CB33: 10.70980859 | CC33: 10.78019017 | CD33: 10.87795937 | CE33: 11.0023861 | CF33: 11.15257818 | CG33: 11.32751076 | CH33: 11.52605744 | CI33: 11.7470209 | CJ33: 11.98916177 | CK33: 12.25122443 | CL33: 12.53195914 | CM33: 12.8301403 | CN33: 13.14458063 | CO33: 13.4741419 | CP33: 13.81774222 | CQ33: 14.17436066 | CR33: 14.54303957 | CS33: 14.92288511 | CT33: 15.31306632 | CU33: 15.71281324 | CV33: 16.12141433 | CW33: 16.53821333 | CX33: 16.96260593 | CY33: 17.39403633 | CZ33: 17.83199372 | DA33: 18.27600886 | DB33: 18.72565086 | DC33: 19.18052398 | DD33: 19.64026476 | DE33: 20.10453929 | DF33: 20.57304061 | DG33: 21.04548645 | DH33: 21.52161704 | DI33: 22.00119315 | DJ33: 22.48399431 | DK33: 22.96981715 | DL33: 23.45847395 | DM33: 23.94979123 | DN33: 24.44360857 | DO33: 24.93977746 | DP33: 25.43816031 | DQ33: 25.93862949 | DR33: 26.44106654 | DS33: 26.94536138 | DT33: 27.45141162 | DU33: 27.95912195 | DV33: 28.46840354 | DW33: 28.97917356 | DX33: 29.49135467 | DY33: 1.8 | EB33: 10.5 | EC33: 10.5 | ED33: 10.51439489 | EE33: 10.55746182 | EF33: 10.62885224 | EG33: 10.72800075 | EH33: 10.85414667 | EI33: 11.0063618 | EJ33: 11.18358172 | EK33: 11.38463877 | EL33: 11.60829445 | EM33: 11.85326959 | EN33: 12.11827133 | EO33: 12.40201597 | EP33: 12.70324762 | EQ33: 13.02075267 | ER33: 13.35337036 | ES33: 13.7 | ET33: 14.05960526 | EU33: 14.43121616 | EV33: 14.81392926 | EW33: 15.20690633 | EX33: 15.60937218 | EY33: 16.02061172 | EZ33: 16.43996654 | FA33: 16.86683136 | FB33: 17.30065028 | FC33: 17.74091317 | FD33: 18.18715206 | FE33: 18.63893774 | FF33: 19.09587652 | FG33: 19.55760722 | FH33: 20.02379834 | FI33: 20.49414551 | FJ33: 20.96836904 | FK33: 21.44621179 | FL33: 21.92743715 | FM33: 22.41182723 | FN33: 22.89918121 | FO33: 23.3893138 | FP33: 23.88205393 | FQ33: 24.37724349 | FR33: 24.87473618 | FS33: 25.37439654 | FT33: 25.87609901 | FU33: 26.37972706 | FV33: 26.88517249 | FW33: 27.39233469 | FX33: 27.90112005 | FY33: 28.41144136 | FZ33: 28.92321732 | GA33: 29.43637206 | GB33: 29.95083471 | GC33: 30.46653902 | GD33: 30.98342299 | GE33: 31.50142854 | GF33: 32.02050125 | GG33: 32.54059004 | GH33: 33.06164696 | GI33: 33.58362696 | GJ33: 34.10648765 | GK33: 34.63018914 | GL33: 35.15469385 | GM33: 35.67996637 | GN33: 36.20597326 | GO33: 36.73268299 | GP33: 37.26006575 | GQ33: 37.78809336 | GR33: 38.31673916 | GS33: 38.84597791 | GT33: 39.37578571 | GU33: 39.90613988 | GV33: 40.43701893 | GW33: 40.96840246 | GX33: 41.50027108 | GY33: 42.03260639 | GZ33: 42.56539087 | HA33: 43.09860787 | HB33: 43.63224152 | HC33: 44.16627673 | HD33: 44.7006991 | HE33: 45.23549491 | HF33: 45.77065108 | HG33: 46.3061551 | HH33: 46.84199505 | HI33: 47.37815953 | HJ33: 47.91463764 | HK33: 48.45141897 | HL33: 48.98849355 | HM33: 49.52585184 | HN33: 50.0634847 | HO33: 50.60138338 | HP33: 51.1395395 | HQ33: 51.67794501 | HR33: 52.21659219 | HS33: 52.75547365 | HT33: 53.29458228 | HU33: 53.83391125 | HV33: 54.373454 | HW33: 54.91320424 | HX33: 55.45315591 | HY33: 55.99330317 | HZ33: 1.8
B34: 11 | C34: 6.05 | D34: 11.05 | E34: 1.8 | F34: 13.76017805 | G34: 11.19564648 | H34: -2.033784463 | I34: -266.0272794 | J34: 0.07267347823 | K34: 0.08932043381 | L34: 0.1111761232 | M34: -9.63172206 | N34: -7.840224516 | O34: -5.939010477 | AA34: 11.05 | AB34: 29.6916234 | AC34: 29.18295736 | AD34: 28.67581734 | AE34: 28.17028576 | AF34: 27.6664508 | AG34: 27.16440686 | AH34: 26.6642551 | AI34: 26.16610403 | AJ34: 25.67007012 | AK34: 25.17627852 | AL34: 24.68486378 | AM34: 24.19597074 | AN34: 23.70975538 | AO34: 23.22638586 | AP34: 22.74604361 | AQ34: 22.26892454 | AR34: 21.79524031 | AS34: 21.32521981 | AT34: 20.85911072 | AU34: 20.39718118 | AV34: 19.93972166 | AW34: 19.48704698 | AX34: 19.03949842 | AY34: 18.59744606 | AZ34: 18.16129125 | BA34: 17.7314692 | BB34: 17.30845169 | BC34: 16.89274992 | BD34: 16.48491735 | BE34: 16.08555252 | BF34: 15.69530184 | BG34: 15.31486206 | BH34: 14.94498244 | BI34: 14.58646633 | BJ34: 14.24017205 | BK34: 13.90701262 | BL34: 13.58795422 | BM34: 13.28401295 | BN34: 12.99624946 | BO34: 12.72576127 | BP34: 12.47367227 | BQ34: 12.24111923 | BR34: 12.02923522 | BS34: 11.83913004 | BT34: 11.67186789 | BU34: 11.52844309 | BV34: 11.4097546 | BW34: 11.31658076 | BX34: 11.24955555 | BY34: 11.20914805 | BZ34: 11.19564648 | CA34: 11.20914805 | CB34: 11.24955555 | CC34: 11.31658076 | CD34: 11.4097546 | CE34: 11.52844309 | CF34: 11.67186789 | CG34: 11.83913004 | CH34: 12.02923522 | CI34: 12.24111923 | CJ34: 12.47367227 | CK34: 12.72576127 | CL34: 12.99624946 | CM34: 13.28401295 | CN34: 13.58795422 | CO34: 13.90701262 | CP34: 14.24017205 | CQ34: 14.58646633 | CR34: 14.94498244 | CS34: 15.31486206 | CT34: 15.69530184 | CU34: 16.08555252 | CV34: 16.48491735 | CW34: 16.89274992 | CX34: 17.30845169 | CY34: 17.7314692 | CZ34: 18.16129125 | DA34: 18.59744606 | DB34: 19.03949842 | DC34: 19.48704698 | DD34: 19.93972166 | DE34: 20.39718118 | DF34: 20.85911072 | DG34: 21.32521981 | DH34: 21.79524031 | DI34: 22.26892454 | DJ34: 22.74604361 | DK34: 23.22638586 | DL34: 23.70975538 | DM34: 24.19597074 | DN34: 24.68486378 | DO34: 25.17627852 | DP34: 25.67007012 | DQ34: 26.16610403 | DR34: 26.6642551 | DS34: 27.16440686 | DT34: 27.6664508 | DU34: 28.17028576 | DV34: 28.67581734 | DW34: 29.18295736 | DX34: 29.6916234 | DY34: 1.8 | EB34: 11.05 | EC34: 11.05 | ED34: 11.06367932 | EE34: 11.10461616 | EF34: 11.17251091 | EG34: 11.26687623 | EH34: 11.38705405 | EI34: 11.53223742 | EJ34: 11.70149563 | EK34: 11.89380091 | EL34: 12.10805517 | EM34: 12.34311549 | EN34: 12.59781727 | EO34: 12.87099452 | EP34: 13.16149688 | EQ34: 13.4682033 | ER34: 13.79003263 | ES34: 14.1259513 | ET34: 14.47497841 | EU34: 14.83618886 | EV34: 15.20871461 | EW34: 15.59174461 | EX34: 15.98452377 | EY34: 16.38635103 | EZ34: 16.79657703 | FA34: 17.21460136 | FB34: 17.63986961 | FC34: 18.07187041 | FD34: 18.51013236 | FE34: 18.95422117 | FF34: 19.40373675 | FG34: 19.8583106 | FH34: 20.31760321 | FI34: 20.78130169 | FJ34: 21.24911763 | FK34: 21.72078498 | FL34: 22.19605821 | FM34: 22.67471058 | FN34: 23.15653256 | FO34: 23.64133033 | FP34: 24.12892455 | FQ34: 24.61914905 | FR34: 25.11184979 | FS34: 25.60688384 | FT34: 26.10411845 | FU34: 26.60343023 | FV34: 27.10470439 | FW34: 27.60783403 | FX34: 28.11271954 | FY34: 28.61926799 | FZ34: 29.12739261 | GA34: 29.63701233 | GB34: 30.14805135 | GC34: 30.66043868 | GD34: 31.17410785 | GE34: 31.68899651 | GF34: 32.20504619 | GG34: 32.72220194 | GH34: 33.24041215 | GI34: 33.75962826 | GJ34: 34.27980455 | GK34: 34.80089798 | GL34: 35.32286795 | GM34: 35.84567617 | GN34: 36.36928649 | GO34: 36.89366477 | GP34: 37.41877871 | GQ34: 37.94459777 | GR34: 38.47109304 | GS34: 38.99823714 | GT34: 39.5260041 | GU34: 40.0543693 | GV34: 40.58330938 | GW34: 41.11280214 | GX34: 41.64282651 | GY34: 42.17336245 | GZ34: 42.70439087 | HA34: 43.23589365 | HB34: 43.7678535 | HC34: 44.30025395 | HD34: 44.83307931 | HE34: 45.3663146 | HF34: 45.89994553 | HG34: 46.43395848 | HH34: 46.9683404 | HI34: 47.50307885 | HJ34: 48.03816191 | HK34: 48.57357821 | HL34: 49.10931683 | HM34: 49.64536736 | HN34: 50.18171978 | HO34: 50.71836452 | HP34: 51.25529241 | HQ34: 51.79249463 | HR34: 52.32996274 | HS34: 52.86768862 | HT34: 53.40566449 | HU34: 53.94388288 | HV34: 54.48233659 | HW34: 55.02101871 | HX34: 55.55992261 | HY34: 56.09904188 | HZ34: 1.8
B35: 12 | C35: 6.6 | D35: 11.6 | E35: 1.8 | F35: 14.20563269 | G35: 11.73882447 | H35: -1.9360611 | I35: -253.2446661 | J35: 0.07039461192 | K35: 0.08518740546 | L35: 0.09356683907 | M35: -9.908452609 | N35: -8.251733165 | O35: -7.436801827 | AA35: 11.6 | AB35: 29.90066889 | AC35: 29.39562042 | AD35: 28.89221348 | AE35: 28.39053539 | AF35: 27.89067945 | AG35: 27.39274539 | AH35: 26.89683996 | AI35: 26.40307747 | AJ35: 25.91158042 | AK35: 25.42248021 | AL35: 24.93591787 | AM35: 24.4520449 | AN35: 23.97102418 | AO35: 23.49303088 | AP35: 23.01825363 | AQ35: 22.54689557 | AR35: 22.07917571 | AS35: 21.61533021 | AT35: 21.15561391 | AU35: 20.70030193 | AV35: 20.24969136 | AW35: 19.80410311 | AX35: 19.36388391 | AY35: 18.92940834 | AZ35: 18.50108105 | BA35: 18.07933904 | BB35: 17.66465397 | BC35: 17.25753459 | BD35: 16.858529 | BE35: 16.46822698 | BF35: 16.08726204 | BG35: 15.71631318 | BH35: 15.35610628 | BI35: 15.00741483 | BJ35: 14.67105995 | BK35: 14.34790926 | BL35: 14.0388746 | BM35: 13.74490815 | BN35: 13.4669967 | BO35: 13.20615387 | BP35: 12.96341005 | BQ35: 12.73979984 | BR35: 12.53634716 | BS35: 12.35404792 | BT35: 12.19385091 | BU35: 12.05663718 | BV35: 11.9431989 | BW35: 11.85421866 | BX35: 11.79025021 | BY35: 11.751702 | BZ35: 11.73882447 | CA35: 11.751702 | CB35: 11.79025021 | CC35: 11.85421866 | CD35: 11.9431989 | CE35: 12.05663718 | CF35: 12.19385091 | CG35: 12.35404792 | CH35: 12.53634716 | CI35: 12.73979984 | CJ35: 12.96341005 | CK35: 13.20615387 | CL35: 13.4669967 | CM35: 13.74490815 | CN35: 14.0388746 | CO35: 14.34790926 | CP35: 14.67105995 | CQ35: 15.00741483 | CR35: 15.35610628 | CS35: 15.71631318 | CT35: 16.08726204 | CU35: 16.46822698 | CV35: 16.858529 | CW35: 17.25753459 | CX35: 17.66465397 | CY35: 18.07933904 | CZ35: 18.50108105 | DA35: 18.92940834 | DB35: 19.36388391 | DC35: 19.80410311 | DD35: 20.24969136 | DE35: 20.70030193 | DF35: 21.15561391 | DG35: 21.61533021 | DH35: 22.07917571 | DI35: 22.54689557 | DJ35: 23.01825363 | DK35: 23.49303088 | DL35: 23.97102418 | DM35: 24.4520449 | DN35: 24.93591787 | DO35: 25.42248021 | DP35: 25.91158042 | DQ35: 26.40307747 | DR35: 26.89683996 | DS35: 27.39274539 | DT35: 27.89067945 | DU35: 28.39053539 | DV35: 28.89221348 | DW35: 29.39562042 | DX35: 29.90066889 | DY35: 1.8 | EB35: 11.6 | EC35: 11.6 | ED35: 11.61303147 | EE35: 11.65203845 | EF35: 11.7167615 | EG35: 11.80677771 | EH35: 11.92151417 | EI35: 12.06026534 | EJ35: 12.22221338 | EK35: 12.40644994 | EL35: 12.61199826 | EM35: 12.83783471 | EN35: 13.0829087 | EO35: 13.3461605 | EP35: 13.62653661 | EQ35: 13.92300255 | ER35: 14.23455303 | ES35: 14.56021978 | ET35: 14.89907715 | EU35: 15.2502459 | EV35: 15.61289531 | EW35: 15.98624409 | EX35: 16.36956017 | EY35: 16.76215977 | EZ35: 17.16340584 | FA35: 17.57270611 | FB35: 17.98951083 | FC35: 18.4133104 | FD35: 18.84363288 | FE35: 19.28004149 | FF35: 19.72213224 | FG35: 20.16953148 | FH35: 20.62189371 | FI35: 21.0788994 | FJ35: 21.54025302 | FK35: 22.00568108 | FL35: 22.47493048 | FM35: 22.94776678 | FN35: 23.42397276 | FO35: 23.90334705 | FP35: 24.38570278 | FQ35: 24.87086649 | FR35: 25.35867702 | FS35: 25.84898451 | FT35: 26.34164953 | FU35: 26.83654225 | FV35: 27.33354167 | FW35: 27.83253492 | FX35: 28.33341667 | FY35: 28.8360885 | FZ35: 29.34045841 | GA35: 29.84644032 | GB35: 30.35395361 | GC35: 30.86292274 | GD35: 31.37327685 | GE35: 31.88494943 | GF35: 32.39787802 | GG35: 32.91200389 | GH35: 33.4272718 | GI35: 33.94362974 | GJ35: 34.46102871 | GK35: 34.97942252 | GL35: 35.49876758 | GM35: 36.01902275 | GN35: 36.54014915 | GO35: 37.06211003 | GP35: 37.58487063 | GQ35: 38.10839802 | GR35: 38.63266105 | GS35: 39.15763016 | GT35: 39.68327733 | GU35: 40.20957597 | GV35: 40.73650083 | GW35: 41.26402792 | GX35: 41.79213443 | GY35: 42.32079867 | GZ35: 42.85 | HA35: 43.37971876 | HB35: 43.90993623 | HC35: 44.44063456 | HD35: 44.97179672 | HE35: 45.50340647 | HF35: 46.0354483 | HG35: 46.5679074 | HH35: 47.10076963 | HI35: 47.63402146 | HJ35: 48.16764993 | HK35: 48.70164268 | HL35: 49.23598785 | HM35: 49.7706741 | HN35: 50.30569053 | HO35: 50.84102674 | HP35: 51.37667272 | HQ35: 51.91261889 | HR35: 52.44885604 | HS35: 52.98537534 | HT35: 53.5221683 | HU35: 54.05922678 | HV35: 54.59654293 | HW35: 55.13410922 | HX35: 55.67191841 | HY35: 56.20996353 | HZ35: 1.8
B36: 13 | C36: 7.15 | D36: 12.15 | E36: 1.8 | F36: 14.65818884 | G36: 12.28260966 | H36: -1.844832067 | I36: -241.3115375 | J36: 0.06822125237 | K36: 0.08141592283 | L36: 0.07713654684 | M36: -10.18084724 | N36: -8.645053993 | O36: -9.114037131 | AA36: 12.15 | AB36: 30.11830839 | AC36: 29.61697149 | AD36: 29.11739171 | AE36: 28.61966107 | AF36: 28.12387776 | AG36: 27.63014658 | AH36: 27.13857955 | AI36: 26.64929643 | AJ36: 26.16242535 | AK36: 25.67810351 | AL36: 25.19647793 | AM36: 24.7177062 | AN36: 24.24195743 | AO36: 23.76941312 | AP36: 23.30026824 | AQ36: 22.83473232 | AR36: 22.37303064 | AS36: 21.91540554 | AT36: 21.46211779 | AU36: 21.01344807 | AV36: 20.56969859 | AW36: 20.1311947 | AX36: 19.69828673 | AY36: 19.27135179 | AZ36: 18.85079574 | BA36: 18.43705508 | BB36: 18.03059899 | BC36: 17.63193126 | BD36: 17.24159215 | BE36: 16.86016014 | BF36: 16.48825339 | BG36: 16.12653094 | BH36: 15.77569333 | BI36: 15.43648276 | BJ36: 15.10968233 | BK36: 14.79611435 | BL36: 14.49663754 | BM36: 14.2121427 | BN36: 13.94354689 | BO36: 13.69178586 | BP36: 13.45780443 | BQ36: 13.24254507 | BR36: 13.04693451 | BS36: 12.87186855 | BT36: 12.71819563 | BU36: 12.58669933 | BV36: 12.47808078 | BW36: 12.39294154 | BX36: 12.33176792 | BY36: 12.29491765 | BZ36: 12.28260966 | CA36: 12.29491765 | CB36: 12.33176792 | CC36: 12.39294154 | CD36: 12.47808078 | CE36: 12.58669933 | CF36: 12.71819563 | CG36: 12.87186855 | CH36: 13.04693451 | CI36: 13.24254507 | CJ36: 13.45780443 | CK36: 13.69178586 | CL36: 13.94354689 | CM36: 14.2121427 | CN36: 14.49663754 | CO36: 14.79611435 | CP36: 15.10968233 | CQ36: 15.43648276 | CR36: 15.77569333 | CS36: 16.12653094 | CT36: 16.48825339 | CU36: 16.86016014 | CV36: 17.24159215 | CW36: 17.63193126 | CX36: 18.03059899 | CY36: 18.43705508 | CZ36: 18.85079574 | DA36: 19.27135179 | DB36: 19.69828673 | DC36: 20.1311947 | DD36: 20.56969859 | DE36: 21.01344807 | DF36: 21.46211779 | DG36: 21.91540554 | DH36: 22.37303064 | DI36: 22.83473232 | DJ36: 23.30026824 | DK36: 23.76941312 | DL36: 24.24195743 | DM36: 24.7177062 | DN36: 25.19647793 | DO36: 25.67810351 | DP36: 26.16242535 | DQ36: 26.64929643 | DR36: 27.13857955 | DS36: 27.63014658 | DT36: 28.12387776 | DU36: 28.61966107 | DV36: 29.11739171 | DW36: 29.61697149 | DX36: 30.11830839 | DY36: 1.8 | EB36: 12.15 | EC36: 12.15 | ED36: 12.16244219 | EE36: 12.19969262 | EF36: 12.26152519 | EG36: 12.34757061 | EH36: 12.45732716 | EI36: 12.59017474 | EJ36: 12.74539132 | EK36: 12.92217087 | EL36: 13.11964176 | EM36: 13.33688494 | EN36: 13.57295104 | EO36: 13.826876 | EP36: 14.09769485 | EQ36: 14.38445341 | ER36: 14.68621803 | ES36: 15.00208319 | ET36: 15.33117738 | EU36: 15.67266729 | EV36: 16.02576051 | EW36: 16.38970714 | EX36: 16.76380029 | EY36: 17.14737589 | EZ36: 17.53981186 | FA36: 17.94052675 | FB36: 18.34897817 | FC36: 18.76466093 | FD36: 19.18710504 | FE36: 19.61587367 | FF36: 20.05056109 | FG36: 20.49079061 | FH36: 20.93621265 | FI36: 21.38650275 | FJ36: 21.84135985 | FK36: 22.30050448 | FL36: 22.76367721 | FM36: 23.2306371 | FN36: 23.70116031 | FO36: 24.17503878 | FP36: 24.65207902 | FQ36: 25.13210099 | FR36: 25.61493705 | FS36: 26.10043103 | FT36: 26.58843734 | FU36: 27.07882014 | FV36: 27.57145263 | FW36: 28.06621635 | FX36: 28.56300054 | FY36: 29.0617016 | FZ36: 29.56222251 | GA36: 30.06447239 | GB36: 30.568366 | GC36: 31.07382339 | GD36: 31.58076946 | GE36: 32.08913367 | GF36: 32.59884967 | GG36: 33.10985503 | GH36: 33.62209095 | GI36: 34.13550205 | GJ36: 34.65003608 | GK36: 35.16564374 | GL36: 35.68227851 | GM36: 36.19989641 | GN36: 36.71845585 | GO36: 37.2379175 | GP36: 37.75824413 | GQ36: 38.27940047 | GR36: 38.80135307 | GS36: 39.32407024 | GT36: 39.84752188 | GU36: 40.37167943 | GV36: 40.89651574 | GW36: 41.42200502 | GX36: 41.94812272 | GY36: 42.4748455 | GZ36: 43.00215111 | HA36: 43.53001838 | HB36: 44.05842712 | HC36: 44.58735807 | HD36: 45.11679288 | HE36: 45.64671401 | HF36: 46.17710472 | HG36: 46.707949 | HH36: 47.23923158 | HI36: 47.77093782 | HJ36: 48.30305373 | HK36: 48.83556593 | HL36: 49.36846159 | HM36: 49.90172843 | HN36: 50.43535466 | HO36: 50.96932901 | HP36: 51.50364065 | HQ36: 52.03827918 | HR36: 52.57323464 | HS36: 53.10849744 | HT36: 53.64405838 | HU36: 54.17990864 | HV36: 54.7160397 | HW36: 55.25244338 | HX36: 55.78911184 | HY36: 56.3260375 | HZ36: 1.8
B37: 14 | C37: 7.7 | D37: 12.7 | E37: 1.8 | F37: 15.11720874 | G37: 12.82692481 | H37: -1.759536817 | I37: -230.1545719 | J37: 0.06614977787 | K37: 0.07796100898 | L37: 0.06200973613 | M37: -10.44867319 | N37: -9.021691967 | O37: -11.01004332 | AA37: 12.7 | AB37: 30.34435697 | AC37: 29.84681725 | AD37: 29.35114989 | AE37: 28.85745138 | AF37: 28.36582451 | AG37: 27.87637889 | AH37: 27.38923146 | AI37: 26.90450706 | AJ37: 26.42233903 | AK37: 25.94286993 | AL37: 25.46625218 | AM37: 24.99264892 | AN37: 24.52223481 | AO37: 24.05519694 | AP37: 23.59173584 | AQ37: 23.13206649 | AR37: 22.67641947 | AS37: 22.22504218 | AT37: 21.77820011 | AU37: 21.3361782 | AV37: 20.89928228 | AW37: 20.46784063 | AX37: 20.04220547 | AY37: 19.62275465 | AZ37: 19.20989328 | BA37: 18.80405541 | BB37: 18.40570564 | BC37: 18.01534069 | BD37: 17.63349086 | BE37: 17.26072131 | BF37: 16.89763297 | BG37: 16.54486325 | BH37: 16.20308613 | BI37: 15.87301169 | BJ37: 15.55538492 | BK37: 15.25098357 | BL37: 14.96061496 | BM37: 14.68511151 | BN37: 14.42532495 | BO37: 14.18211902 | BP37: 13.95636056 | BQ37: 13.74890905 | BR37: 13.56060471 | BS37: 13.39225522 | BT37: 13.24462155 | BU37: 13.1184031 | BV37: 13.01422299 | BW37: 12.93261381 | BX37: 12.87400482 | BY37: 12.83871099 | BZ37: 12.82692481 | CA37: 12.83871099 | CB37: 12.87400482 | CC37: 12.93261381 | CD37: 13.01422299 | CE37: 13.1184031 | CF37: 13.24462155 | CG37: 13.39225522 | CH37: 13.56060471 | CI37: 13.74890905 | CJ37: 13.95636056 | CK37: 14.18211902 | CL37: 14.42532495 | CM37: 14.68511151 | CN37: 14.96061496 | CO37: 15.25098357 | CP37: 15.55538492 | CQ37: 15.87301169 | CR37: 16.20308613 | CS37: 16.54486325 | CT37: 16.89763297 | CU37: 17.26072131 | CV37: 17.63349086 | CW37: 18.01534069 | CX37: 18.40570564 | CY37: 18.80405541 | CZ37: 19.20989328 | DA37: 19.62275465 | DB37: 20.04220547 | DC37: 20.46784063 | DD37: 20.89928228 | DE37: 21.3361782 | DF37: 21.77820011 | DG37: 22.22504218 | DH37: 22.67641947 | DI37: 23.13206649 | DJ37: 23.59173584 | DK37: 24.05519694 | DL37: 24.52223481 | DM37: 24.99264892 | DN37: 25.46625218 | DO37: 25.94286993 | DP37: 26.42233903 | DQ37: 26.90450706 | DR37: 27.38923146 | DS37: 27.87637889 | DT37: 28.36582451 | DU37: 28.85745138 | DV37: 29.35114989 | DW37: 29.84681725 | DX37: 30.34435697 | DY37: 1.8 | EB37: 12.7 | EC37: 12.7 | ED37: 12.71190387 | EE37: 12.74754878 | EF37: 12.80673651 | EG37: 12.88914272 | EH37: 12.99432568 | EI37: 13.12173769 | EJ37: 13.27073849 | EK37: 13.44061011 | EL37: 13.63057226 | EM37: 13.83979769 | EN37: 14.06742691 | EO37: 14.31258188 | EP37: 14.5743782 | EQ37: 14.8519359 | ER37: 15.1443884 | ES37: 15.45088994 | ET37: 15.77062142 | EU37: 16.10279479 | EV37: 16.4466562 | EW37: 16.80148803 | EX37: 17.16661003 | EY37: 17.54137965 | EZ37: 17.92519177 | FA37: 18.31747799 | FB37: 18.71770552 | FC37: 19.12537581 | FD37: 19.54002303 | FE37: 19.96121239 | FF37: 20.38853845 | FG37: 20.82162338 | FH37: 21.26011524 | FI37: 21.70368632 | FJ37: 22.15203151 | FK37: 22.60486673 | FL37: 23.0619275 | FM37: 23.5229675 | FN37: 23.98775729 | FO37: 24.45608309 | FP37: 24.92774559 | FQ37: 25.40255893 | FR37: 25.88034969 | FS37: 26.36095598 | FT37: 26.84422657 | FU37: 27.33002012 | FV37: 27.81820447 | FW37: 28.30865592 | FX37: 28.80125865 | FY37: 29.29590415 | FZ37: 29.79249066 | GA37: 30.29092273 | GB37: 30.79111073 | GC37: 31.29297046 | GD37: 31.79642275 | GE37: 32.30139316 | GF37: 32.80781157 | GG37: 33.31561196 | GH37: 33.82473208 | GI37: 34.33511322 | GJ37: 34.84669999 | GK37: 35.35944004 | GL37: 35.87328393 | GM37: 36.3881849 | GN37: 36.90409869 | GO37: 37.42098342 | GP37: 37.9387994 | GQ37: 38.45750902 | GR37: 38.9770766 | GS37: 39.49746827 | GT37: 40.0186519 | GU37: 40.54059694 | GV37: 41.06327435 | GW37: 41.58665651 | GX37: 42.11071716 | GY37: 42.63543127 | GZ37: 43.16077502 | HA37: 43.68672567 | HB37: 44.21326159 | HC37: 44.74036209 | HD37: 45.26800747 | HE37: 45.79617888 | HF37: 46.32485834 | HG37: 46.85402864 | HH37: 47.38367335 | HI37: 47.91377672 | HJ37: 48.44432371 | HK37: 48.9752999 | HL37: 49.50669147 | HM37: 50.03848519 | HN37: 50.57066838 | HO37: 51.10322886 | HP37: 51.63615497 | HQ37: 52.1694355 | HR37: 52.70305968 | HS37: 53.2370172 | HT37: 53.77129811 | HU37: 54.30589287 | HV37: 54.8407923 | HW37: 55.37598758 | HX37: 55.9114702 | HY37: 56.447232 | HZ37: 1.8
B38: 15 | C38: 8.25 | D38: 13.25 | E38: 1.8 | F38: 15.58212116 | G38: 13.3717052 | H38: -1.67966885 | I38: -219.707517 | J38: 0.06417611501 | K38: 0.07478477763 | L38: 0.04823726917 | M38: -10.71177253 | N38: -9.382976857 | O38: -13.19158672 | AA38: 13.25 | AB38: 30.57862816 | AC38: 30.08496302 | AD38: 29.59328471 | AE38: 29.10369392 | AF38: 28.6162978 | AG38: 28.13121043 | AH38: 27.64855331 | AI38: 27.16845597 | AJ38: 26.69105655 | AK38: 26.21650244 | AL38: 25.74495096 | AM38: 25.27657018 | AN38: 24.81153965 | AO38: 24.35005133 | AP38: 23.89231048 | AQ38: 23.43853664 | AR38: 22.98896474 | AS38: 22.54384617 | AT38: 22.10344996 | AU38: 21.66806406 | AV38: 21.23799661 | AW38: 20.8135773 | AX38: 20.39515874 | AY38: 19.98311787 | AZ38: 19.57785739 | BA38: 19.17980709 | BB38: 18.78942522 | BC38: 18.40719968 | BD38: 18.0336491 | BE38: 17.6693237 | BF38: 17.3148058 | BG38: 16.97071006 | BH38: 16.63768313 | BI38: 16.31640279 | BJ38: 16.00757633 | BK38: 15.71193814 | BL38: 15.43024627 | BM38: 15.16327801 | BN38: 14.91182417 | BO38: 14.67668219 | BP38: 14.45864793 | BQ38: 14.25850623 | BR38: 14.07702028 | BS38: 13.91492005 | BT38: 13.77289004 | BU38: 13.65155669 | BV38: 13.55147593 | BW38: 13.47312139 | BX38: 13.4168737 | BY38: 13.38301162 | BZ38: 13.3717052 | CA38: 13.38301162 | CB38: 13.4168737 | CC38: 13.47312139 | CD38: 13.55147593 | CE38: 13.65155669 | CF38: 13.77289004 | CG38: 13.91492005 | CH38: 14.07702028 | CI38: 14.25850623 | CJ38: 14.45864793 | CK38: 14.67668219 | CL38: 14.91182417 | CM38: 15.16327801 | CN38: 15.43024627 | CO38: 15.71193814 | CP38: 16.00757633 | CQ38: =SQRT(($AA38-$O$7)^2+(CQ$22-$P$7)^2+($DY38-$Q$7)^2) -> 16.31640279 | CR38: 16.63768313 | CS38: 16.97071006 | CT38: 17.3148058 | CU38: 17.6693237 | CV38: 18.0336491 | CW38: 18.40719968 | CX38: 18.78942522 | CY38: 19.17980709 | CZ38: 19.57785739 | DA38: 19.98311787 | DB38: 20.39515874 | DC38: 20.8135773 | DD38: 21.23799661 | DE38: 21.66806406 | DF38: 22.10344996 | DG38: =SQRT(($AA38-$O$7)^2+(DG$22-$P$7)^2+($DY38-$Q$7)^2) -> 22.54384617 | DH38: 22.98896474 | DI38: 23.43853664 | DJ38: 23.89231048 | DK38: 24.35005133 | DL38: 24.81153965 | DM38: 25.27657018 | DN38: 25.74495096 | DO38: 26.21650244 | DP38: 26.69105655 | DQ38: 27.16845597 | DR38: 27.64855331 | DS38: 28.13121043 | DT38: 28.6162978 | DU38: 29.10369392 | DV38: 29.59328471 | DW38: =SQRT(($AA38-$O$7)^2+(DW$22-$P$7)^2+($DY38-$Q$7)^2) -> 30.08496302 | DX38: 30.57862816 | DY38: 1.8 | EB38: 13.25 | EC38: 13.25 | ED38: 13.26141018 | EE38: 13.29558197 | EF38: 13.35234062 | EG38: 13.43139978 | EH38: 13.5323686 | EI38: 13.65476107 | EJ38: 13.7980071 | EK38: 13.96146482 | EL38: 14.14443353 | EM38: 14.34616674 | EN38: 14.5658848 | EO38: 14.8027869 | EP38: 15.0560619 | EQ38: 15.32489804 | ER38: 15.60849128 | ES38: 15.90605231 | ET38: 16.21681226 | EU38: 16.54002721 | EV38: 16.87498148 | EW38: 17.2209901 | EX38: 17.57740026 | EY38: 17.94359217 | EZ38: 18.31897923 | FA38: 18.70300778 | FB38: 19.09515645 | FC38: 19.49493524 | FD38: 19.90188433 | FE38: 20.31557284 | FF38: 20.73559741 | FG38: 21.16158075 | FH38: 21.59317022 | FI38: 22.03003631 | FJ38: 22.47187131 | FK38: 22.91838781 | FL38: 23.36931749 | FM38: 23.82440975 | FN38: 24.28343056 | FO38: 24.74616132 | FP38: 25.21239774 | FQ38: 25.68194891 | FR38: 26.1546363 | FS38: 26.6302929 | FT38: 27.10876242 | FU38: 27.58989851 | FV38: 28.07356408 | FW38: 28.5596306 | FX38: 29.04797755 | FY38: 29.53849184 | FZ38: 30.03106725 | GA38: 30.52560401 | GB38: 31.02200832 | GC38: 31.52019194 | GD38: 32.02007183 | GE38: 32.52156977 | GF38: 33.02461203 | GG38: 33.52912913 | GH38: 34.03505546 | GI38: 34.54232911 | GJ38: 35.05089157 | GK38: 35.56068756 | GL38: 36.07166478 | GM38: 36.58377373 | GN38: 37.09696753 | GO38: 37.61120179 | GP38: 38.1264344 | GQ38: 38.64262543 | GR38: =SQRT(($EB38-$O$7)^2+(GR$22-$Q$7)^2+(-$P$7)^2) -> 39.15973698 | GS38: 39.67773305 | GT38: 40.19657946 | GU38: 40.71624369 | GV38: 41.23669482 | GW38: 41.75790344 | GX38: 42.27984153 | GY38: 42.8024824 | GZ38: 43.32580063 | HA38: 43.84977195 | HB38: 44.37437324 | HC38: 44.8995824 | HD38: 45.42537837 | HE38: 45.95174099 | HF38: 46.47865101 | HG38: 47.00609003 | HH38: =SQRT(($EB38-$O$7)^2+(HH$22-$Q$7)^2+(-$P$7)^2) -> 47.53404043 | HI38: 48.06248537 | HJ38: 48.59140871 | HK38: 49.12079499 | HL38: 49.6506294 | HM38: 50.18089776 | HN38: 50.71158645 | HO38: 51.2426824 | HP38: 51.7741731 | HQ38: 52.3060465 | HR38: 52.83829104 | HS38: 53.37089563 | HT38: 53.90384958 | HU38: 54.43714265 | HV38: 54.97076496 | HW38: 55.50470701 | HX38: =SQRT(($EB38-$O$7)^2+(HX$22-$Q$7)^2+(-$P$7)^2) -> 56.03895966 | HY38: 56.57351412 | HZ38: 1.8
B39: 16 | C39: 8.8 | D39: 13.8 | E39: 1.8 | F39: 16.05241415 | G39: 13.91689621 | H39: -1.60477083 | I39: -209.9105513 | J39: 0.06229592576 | K39: 0.07185510226 | L39: 0.03583036 | M39: -10.97004811 | N39: -9.730088754 | O39: -15.77421756 | AA39: 13.8 | AB39: 30.82093444 | AC39: 30.3312133 | AD39: 29.84359228 | AE39: 29.35817603 | AF39: 28.87507576 | AG39: 28.39440966 | AH39: 27.91630348 | AI39: 27.44089102 | AJ39: 26.96831474 | AK39: 26.49872638 | AL39: 26.03228764 | AM39: 25.56917089 | AN39: 25.10955993 | AO39: 24.65365085 | AP39: 24.20165284 | AQ39: 23.75378917 | AR39: 23.31029815 | AS39: 22.87143415 | AT39: 22.43746866 | AU39: 22.00869146 | AV39: 21.58541174 | AW39: 21.16795928 | AX39: 20.75668567 | AY39: 20.35196551 | AZ39: 19.95419755 | BA39: 19.56380587 | BB39: 19.18124084 | BC39: 18.80698009 | BD39: 18.44152922 | BE39: 18.08542231 | BF39: 17.73922208 | BG39: 17.40351976 | BH39: 17.07893439 | BI39: 16.76611165 | BJ39: 16.46572197 | BK39: 16.1784579 | BL39: 15.90503065 | BM39: 15.64616566 | BN39: 15.40259718 | BO39: 15.17506178 | BP39: 14.96429083 | BQ39: 14.771002 | BR39: 14.59588983 | BS39: 14.43961565 | BT39: 14.30279693 | BU39: 14.18599662 | BV39: 14.08971256 | BW39: 14.01436763 | BX39: 13.96030086 | BY39: 13.92776005 | BZ39: 13.91689621 | CA39: 13.92776005 | CB39: 13.96030086 | CC39: 14.01436763 | CD39: 14.08971256 | CE39: 14.18599662 | CF39: 14.30279693 | CG39: 14.43961565 | CH39: 14.59588983 | CI39: 14.771002 | CJ39: 14.96429083 | CK39: 15.17506178 | CL39: 15.40259718 | CM39: 15.64616566 | CN39: 15.90503065 | CO39: 16.1784579 | CP39: 16.46572197 | CQ39: 16.76611165 | CR39: 17.07893439 | CS39: 17.40351976 | CT39: 17.73922208 | CU39: 18.08542231 | CV39: 18.44152922 | CW39: 18.80698009 | CX39: 19.18124084 | CY39: 19.56380587 | CZ39: 19.95419755 | DA39: 20.35196551 | DB39: 20.75668567 | DC39: 21.16795928 | DD39: 21.58541174 | DE39: 22.00869146 | DF39: 22.43746866 | DG39: 22.87143415 | DH39: 23.31029815 | DI39: 23.75378917 | DJ39: 24.20165284 | DK39: 24.65365085 | DL39: 25.10955993 | DM39: 25.56917089 | DN39: 26.03228764 | DO39: 26.49872638 | DP39: 26.96831474 | DQ39: 27.44089102 | DR39: 27.91630348 | DS39: 28.39440966 | DT39: 28.87507576 | DU39: 29.35817603 | DV39: 29.84359228 | DW39: 30.3312133 | DX39: 30.82093444 | DY39: 1.8 | EB39: 13.8 | EC39: 13.8 | ED39: 13.8109558 | EE39: 13.84377116 | EF39: 13.89829126 | EG39: 13.97426206 | EH39: 14.07133611 | EI39: 14.18908031 | EJ39: 14.32698503 | EK39: 14.48447445 | EL39: 14.66091743 | EM39: 14.85563866 | EN39: 15.06792952 | EO39: 15.29705854 | EP39: 15.54228104 | EQ39: 15.80284784 | ER39: 16.07801294 | ES39: 16.36704005 | ET39: 16.66920814 | EU39: 16.98381583 | EV39: 17.31018486 | EW39: 17.64766273 | EX39: 17.99562447 | EY39: 18.35347379 | EZ39: 18.72064369 | FA39: 19.09659656 | FB39: 19.4808239 | FC39: 19.8728458 | FD39: 20.27221004 | FE39: 20.67849124 | FF39: 21.09128967 | FG39: 21.51023012 | FH39: 21.93496068 | FI39: 22.36515146 | FJ39: 22.80049342 | FK39: 23.24069706 | FL39: 23.68549134 | FM39: 24.13462243 | FN39: 24.58785269 | FO39: 25.04495957 | FP39: 25.50573465 | FQ39: 25.96998267 | FR39: 26.43752069 | FS39: 26.9081772 | FT39: 27.3817914 | FU39: 27.85821243 | FV39: 28.33729874 | FW39: 28.8189174 | FX39: 29.30294354 | FY39: 29.78925981 | FZ39: 30.27775586 | GA39: 30.76832787 | GB39: 31.26087811 | GC39: 31.75531452 | GD39: 32.25155035 | GE39: 32.74950381 | GF39: 33.24909773 | GG39: 33.75025926 | GH39: 34.25291958 | GI39: 34.75701368 | GJ39: 35.26248006 | GK39: 35.76926055 | GL39: 36.27730006 | GM39: 36.78654645 | GN39: 37.29695028 | GO39: 37.80846466 | GP39: 38.32104513 | GQ39: 38.83464948 | GR39: 39.3492376 | GS39: 39.86477142 | GT39: 40.38121469 | GU39: 40.89853298 | GV39: 41.41669349 | GW39: 41.93566501 | GX39: 42.45541779 | GY39: 42.97592349 | GZ39: 43.49715508 | HA39: 44.01908677 | HB39: 44.54169395 | HC39: 45.06495312 | HD39: 45.58884184 | HE39: 46.11333863 | HF39: 46.638423 | HG39: 47.16407531 | HH39: 47.69027679 | HI39: 48.21700945 | HJ39: 48.74425607 | HK39: 49.27200016 | HL39: 49.8002259 | HM39: 50.32891813 | HN39: 50.85806229 | HO39: 51.38764443 | HP39: 51.91765114 | HQ39: 52.44806955 | HR39: 52.9788873 | HS39: 53.51009251 | HT39: 54.04167373 | HU39: 54.57362 | HV39: 55.10592073 | HW39: 55.63856576 | HX39: 56.17154529 | HY39: 56.70484988 | HZ39: 1.8
B40: 17 | C40: 9.35 | D40: 14.35 | E40: 1.8 | F40: 16.52762838 | G40: 14.46245138 | H40: -1.534429888 | I40: -200.7096701 | J40: 0.06050474858 | K40: 0.06914457124 | L40: 0.02480514614 | M40: -11.22345178 | N40: -10.06407923 | O40: -18.96840519 | AA40: 14.35 | AB40: 31.07108785 | AC40: 30.58537232 | AD40: 30.10186871 | AE40: 29.62068534 | AF40: 29.14193714 | AG40: 28.66574611 | AH40: 28.19224184 | AI40: 27.72156201 | AJ40: 27.25385294 | AK40: 26.78927024 | AL40: 26.32797941 | AM40: 25.87015655 | AN40: 25.41598906 | AO40: 24.96567644 | AP40: 24.51943107 | AQ40: 24.0774791 | AR40: 23.64006134 | AS40: 23.20743415 | AT40: 22.7798705 | AU40: 22.35766088 | AV40: 21.94111437 | AW40: 21.53055968 | AX40: 21.12634611 | AY40: 20.72884464 | AZ40: 20.33844881 | BA40: 19.95557566 | BB40: 19.58066649 | BC40: 19.21418747 | BD40: 18.85663013 | BE40: 18.50851156 | BF40: 18.17037424 | BG40: 17.84278566 | BH40: 17.52633732 | BI40: 17.22164336 | BJ40: 16.92933844 | BK40: 16.65007507 | BL40: 16.38452013 | BM40: 16.13335055 | BN40: 15.89724819 | BO40: 15.67689382 | BP40: 15.47296029 | BQ40: 15.2861048 | BR40: 15.11696067 | BS40: 14.96612842 | BT40: 14.83416664 | BU40: 14.7215828 | BV40: 14.62882429 | BW40: 14.55627013 | BX40: 14.50422352 | BY40: 14.47290572 | BZ40: 14.46245138 | CA40: 14.47290572 | CB40: 14.50422352 | CC40: 14.55627013 | CD40: 14.62882429 | CE40: 14.7215828 | CF40: 14.83416664 | CG40: 14.96612842 | CH40: 15.11696067 | CI40: 15.2861048 | CJ40: 15.47296029 | CK40: 15.67689382 | CL40: 15.89724819 | CM40: 16.13335055 | CN40: 16.38452013 | CO40: 16.65007507 | CP40: 16.92933844 | CQ40: 17.22164336 | CR40: 17.52633732 | CS40: 17.84278566 | CT40: 18.17037424 | CU40: 18.50851156 | CV40: 18.85663013 | CW40: 19.21418747 | CX40: 19.58066649 | CY40: 19.95557566 | CZ40: 20.33844881 | DA40: 20.72884464 | DB40: 21.12634611 | DC40: 21.53055968 | DD40: 21.94111437 | DE40: 22.35766088 | DF40: 22.7798705 | DG40: 23.20743415 | DH40: 23.64006134 | DI40: 24.0774791 | DJ40: 24.51943107 | DK40: 24.96567644 | DL40: 25.41598906 | DM40: 25.87015655 | DN40: 26.32797941 | DO40: 26.78927024 | DP40: 27.25385294 | DQ40: 27.72156201 | DR40: 28.19224184 | DS40: 28.66574611 | DT40: 29.14193714 | DU40: 29.62068534 | DV40: 30.10186871 | DW40: 30.58537232 | DX40: 31.07108785 | DY40: 1.8 | EB40: 14.35 | EC40: 14.35 | ED40: 14.3605362 | EE40: 14.39209853 | EF40: 14.44454914 | EG40: 14.51766166 | EH40: 14.6111259 | EI40: 14.72455432 | EJ40: 14.85748969 | EK40: 15.00941371 | EL40: 15.17975626 | EM40: 15.36790487 | EN40: 15.57321418 | EO40: 15.79501504 | EP40: 16.03262299 | EQ40: 16.28534617 | ER40: 16.55249226 | ES40: 16.83337459 | ET40: 17.12731736 | EU40: 17.43365997 | EV40: 17.75176048 | EW40: 18.08099831 | EX40: 18.42077631 | EY40: 18.7705221 | EZ40: 19.12968897 | FA40: 19.49775628 | FB40: 19.87422954 | FC40: 20.25864013 | FD40: 20.65054479 | FE40: 21.04952494 | FF40: 21.45518585 | FG40: 21.86715574 | FH40: 22.2850847 | FI40: 22.70864373 | FJ40: 23.13752364 | FK40: 23.57143398 | FL40: 24.01010204 | FM40: 24.45327176 | FN40: 24.9007028 | FO40: 25.35216953 | FP40: 25.80746016 | FQ40: 26.26637584 | FR40: 26.72872986 | FS40: 27.19434684 | FT40: 27.66306201 | FU40: 28.13472054 | FV40: 28.60917685 | FW40: 29.08629402 | FX40: 29.56594325 | FY40: 30.04800326 | FZ40: 30.53235988 | GA40: 31.01890553 | GB40: 31.50753878 | GC40: 31.99816401 | GD40: 32.49069097 | GE40: 32.98503449 | GF40: 33.48111408 | GG40: 33.97885372 | GH40: 34.47818151 | GI40: 34.97902943 | GJ40: 35.48133312 | GK40: 35.98503161 | GL40: 36.49006714 | GM40: 36.99638496 | GN40: 37.50393313 | GO40: 38.01266236 | GP40: 38.52252588 | GQ40: 39.03347922 | GR40: 39.54548015 | GS40: 40.05848849 | GT40: 40.57246603 | GU40: 41.08737641 | GV40: 41.60318497 | GW40: 42.11985874 | GX40: 42.63736624 | GY40: 43.15567749 | GZ40: 43.67476388 | HA40: 44.19459809 | HB40: 44.71515403 | HC40: 45.2364068 | HD40: 45.75833257 | HE40: 46.28090859 | HF40: 46.80411307 | HG40: 47.32792516 | HH40: 47.85232492 | HI40: 48.37729323 | HJ40: 48.90281178 | HK40: 49.42886303 | HL40: 49.95543014 | HM40: 50.48249697 | HN40: 51.01004803 | HO40: 51.53806845 | HP40: 52.06654396 | HQ40: 52.59546083 | HR40: 53.12480588 | HS40: 53.65456644 | HT40: 54.18473032 | HU40: 54.7152858 | HV40: 55.24622159 | HW40: 55.77752684 | HX40: 56.30919108 | HY40: 56.84120424 | HZ40: 1.8
B41: 18 | C41: 9.9 | D41: 14.9 | E41: 1.8 | F41: 17.00735135 | G41: 15.00833102 | H41: -1.468273219 | I41: -192.0561086 | J41: 0.0587981032 | K41: 0.06662966047 | L41: 0.01530210663 | M41: -11.47197467 | N41: -10.38588899 | O41: -23.16421651 | AA41: 14.9 | AB41: 31.3289004 | AC41: 30.84724461 | AD41: 30.3679107 | AE41: 29.89101035 | AF41: 29.41666195 | AG41: 28.94499093 | AH41: 28.47613036 | AI41: 28.01022135 | AJ41: 27.54741367 | AK41: 27.08786629 | AL41: 26.63174797 | AM41: 26.17923796 | AN41: 25.73052662 | AO41: 25.28581618 | AP41: 24.84532149 | AQ41: 24.40927078 | AR41: 23.9779065 | AS41: 23.55148615 | AT41: 23.13028318 | AU41: 22.71458782 | AV41: 22.30470802 | AW41: 21.9009703 | AX41: 21.50372061 | AY41: 21.11332518 | AZ41: 20.73017125 | BA41: 20.35466777 | BB41: 19.98724593 | BC41: 19.62835959 | BD41: 19.27848542 | BE41: 18.93812293 | BF41: 18.60779407 | BG41: 18.28804254 | BH41: 17.97943269 | BI41: 17.68254789 | BJ41: 17.39798839 | BK41: 17.12636856 | BL41: 16.86831349 | BM41: 16.62445488 | BN41: 16.39542619 | BO41: 16.18185712 | BP41: 15.98436736 | BQ41: 15.80355973 | BR41: 15.64001279 | BS41: 15.49427314 | BT41: 15.36684743 | BU41: 15.25819452 | BV41: 15.16871781 | BW41: 15.09875823 | BX41: 15.04858797 | BY41: 15.01840537 | BZ41: 15.00833102 | CA41: 15.01840537 | CB41: 15.04858797 | CC41: 15.09875823 | CD41: 15.16871781 | CE41: 15.25819452 | CF41: 15.36684743 | CG41: 15.49427314 | CH41: 15.64001279 | CI41: 15.80355973 | CJ41: 15.98436736 | CK41: 16.18185712 | CL41: 16.39542619 | CM41: 16.62445488 | CN41: 16.86831349 | CO41: 17.12636856 | CP41: 17.39798839 | CQ41: 17.68254789 | CR41: 17.97943269 | CS41: 18.28804254 | CT41: 18.60779407 | CU41: 18.93812293 | CV41: 19.27848542 | CW41: 19.62835959 | CX41: 19.98724593 | CY41: 20.35466777 | CZ41: 20.73017125 | DA41: 21.11332518 | DB41: 21.50372061 | DC41: 21.9009703 | DD41: 22.30470802 | DE41: 22.71458782 | DF41: 23.13028318 | DG41: 23.55148615 | DH41: 23.9779065 | DI41: 24.40927078 | DJ41: 24.84532149 | DK41: 25.28581618 | DL41: 25.73052662 | DM41: 26.17923796 | DN41: 26.63174797 | DO41: 27.08786629 | DP41: 27.54741367 | DQ41: 28.01022135 | DR41: 28.47613036 | DS41: 28.94499093 | DT41: 29.41666195 | DU41: 29.89101035 | DV41: 30.3679107 | DW41: 30.84724461 | DX41: 31.3289004 | DY41: 1.8 | EB41: 14.9 | EC41: 14.9 | ED41: 14.91014755 | EE41: 14.94054885 | EF41: 14.99108068 | EG41: 15.06154043 | EH41: 15.15165008 | EI41: 15.26106156 | EJ41: 15.38936321 | EK41: 15.53608702 | EL41: 15.70071654 | EM41: 15.88269499 | EN41: 16.08143339 | EO41: 16.2963186 | EP41: 16.52672079 | EQ41: 16.77200048 | ER41: 17.03151491 | ES41: 17.30462366 | ET41: 17.59069356 | EU41: 17.88910283 | EV41: 18.19924449 | EW41: 18.52052915 | EX41: 18.85238712 | EY41: 19.19426998 | EZ41: 19.54565169 | FA41: 19.90602924 | FB41: 20.27492293 | FC41: 20.65187643 | FD41: 21.03645645 | FE41: 21.42825238 | FF41: 21.82687564 | FG41: 22.23195898 | FH41: 22.6431557 | FI41: 23.06013877 | FJ41: 23.48259994 | FK41: 23.91024885 | FL41: 24.34281208 | FM41: 24.78003228 | FN41: 25.22166727 | FO41: 25.66748916 | FP41: 26.11728355 | FQ41: 26.57084869 | FR41: 27.02799475 | FS41: 27.48854307 | FT41: 27.95232548 | FU41: 28.41918366 | FV41: 28.88896848 | FW41: 29.36153947 | FX41: 29.83676423 | FY41: 30.31451797 | FZ41: 30.79468298 | GA41: 31.27714821 | GB41: 31.76180883 | GC41: 32.24856586 | GD41: 32.73732579 | GE41: 33.22800024 | GF41: 33.72050563 | GG41: 34.2147629 | GH41: 34.7106972 | GI41: 35.20823767 | GJ41: 35.70731718 | GK41: 36.20787207 | GL41: 36.709842 | GM41: 37.21316971 | GN41: 37.71780084 | GO41: 38.22368376 | GP41: 38.73076942 | GQ41: 39.2390112 | GR41: 39.74836475 | GS41: 40.25878786 | GT41: 40.77024037 | GU41: 41.28268402 | GV41: 41.79608235 | GW41: 42.31040061 | GX41: 42.82560566 | GY41: 43.34166587 | GZ41: 43.85855105 | HA41: 44.37623238 | HB41: 44.89468231 | HC41: 45.41387453 | HD41: 45.93378386 | HE41: 46.45438623 | HF41: 46.97565859 | HG41: 47.49757889 | HH41: 48.02012599 | HI41: 48.54327966 | HJ41: 49.06702049 | HK41: 49.59132989 | HL41: 50.11619 | HM41: 50.6415837 | HN41: 51.16749456 | HO41: 51.6939068 | HP41: 52.22080524 | HQ41: 52.74817532 | HR41: 53.27600304 | HS41: 53.80427492 | HT41: 54.33297802 | HU41: 54.86209985 | HV41: 55.39162843 | HW41: 55.9215522 | HX41: 56.45186002 | HY41: 56.98254119 | HZ41: 1.8
B42: 19 | C42: 10.45 | D42: 15.45 | E42: 1.8 | F42: 17.49121208 | G42: 15.55450096 | H42: -1.40596401 | I42: -183.9058107 | J42: 0.05717156681 | K42: 0.06429007287 | L42: 0.008230858803 | M42: -11.7156391 | N42: -10.69636263 | O42: -28.55033796 | AA42: 15.45 | AB42: 31.59418459 | AC42: 31.11663542 | AD42: 30.64151595 | AE42: 30.16894098 | AF42: 29.69903197 | AG42: 29.23191749 | AH42: 28.76773366 | AI42: 28.30662467 | AJ42: 27.84874324 | AK42: 27.39425122 | AL42: 26.94332014 | AM42: 26.49613179 | AN42: 26.05287892 | AO42: 25.61376583 | AP42: 25.17900911 | AQ42: 24.74883836 | AR42: 24.32349687 | AS42: 23.90324246 | AT42: 23.48834818 | AU42: 23.0791031 | AV42: 22.67581311 | AW42: 22.27880158 | AX42: 21.88841018 | AY42: 21.50499942 | AZ42: 21.12894933 | BA42: 20.76065991 | BB42: 20.40055146 | BC42: 20.04906482 | BD42: 19.70666131 | BE42: 19.37382254 | BF42: 19.05104984 | BG42: 18.73886336 | BH42: 18.43780085 | BI42: 18.14841591 | BJ42: 17.87127584 | BK42: 17.60695885 | BL42: 17.35605082 | BM42: 17.11914133 | BN42: 16.89681923 | BO42: 16.68966746 | BP42: 16.49825748 | BQ42: 16.32314308 | BR42: 16.16485385 | BS42: 16.02388842 | BT42: 15.90070753 | BU42: 15.79572727 | BV42: 15.70931252 | BW42: 15.641771 | BX42: 15.59334794 | BY42: 15.56422179 | BZ42: 15.55450096 | CA42: 15.56422179 | CB42: 15.59334794 | CC42: 15.641771 | CD42: 15.70931252 | CE42: 15.79572727 | CF42: 15.90070753 | CG42: 16.02388842 | CH42: 16.16485385 | CI42: 16.32314308 | CJ42: 16.49825748 | CK42: 16.68966746 | CL42: 16.89681923 | CM42: 17.11914133 | CN42: 17.35605082 | CO42: 17.60695885 | CP42: 17.87127584 | CQ42: 18.14841591 | CR42: 18.43780085 | CS42: 18.73886336 | CT42: 19.05104984 | CU42: 19.37382254 | CV42: 19.70666131 | CW42: 20.04906482 | CX42: 20.40055146 | CY42: 20.76065991 | CZ42: 21.12894933 | DA42: 21.50499942 | DB42: 21.88841018 | DC42: 22.27880158 | DD42: 22.67581311 | DE42: 23.0791031 | DF42: 23.48834818 | DG42: 23.90324246 | DH42: 24.32349687 | DI42: 24.74883836 | DJ42: 25.17900911 | DK42: 25.61376583 | DL42: 26.05287892 | DM42: 26.49613179 | DN42: 26.94332014 | DO42: 27.39425122 | DP42: 27.84874324 | DQ42: 28.30662467 | DR42: 28.76773366 | DS42: 29.23191749 | DT42: 29.69903197 | DU42: 30.16894098 | DV42: 30.64151595 | DW42: 31.11663542 | DX42: 31.59418459 | DY42: 1.8 | EB42: 15.45 | EC42: 15.45 | ED42: 15.45978654 | EE42: 15.48910908 | EF42: 15.537857 | EG42: 15.60584826 | EH42: 15.69283276 | EI42: 15.79849676 | EJ42: 15.9224684 | EK42: 16.06432383 | EL42: 16.22359393 | EM42: 16.39977134 | EN42: 16.5923175 | EO42: 16.80066963 | EP42: 17.02424741 | EQ42: 17.26245927 | ER42: 17.5147081 | ES42: 17.78039651 | ET42: 18.05893131 | EU42: 18.34972752 | EV42: 18.65221167 | EW42: 18.96582453 | EX42: 19.29002333 | EY42: 19.62428343 | EZ42: 19.96809956 | FA42: 20.32098669 | FB42: 20.68248051 | FC42: 21.05213766 | FD42: 21.42953569 | FE42: 21.81427285 | FF42: 22.20596767 | FG42: 22.60425845 | FH42: 23.00880266 | FI42: 23.41927625 | FJ42: 23.83537287 | FK42: 24.25680317 | FL42: 24.68329395 | FM42: 25.11458739 | FN42: 25.55044031 | FO42: 25.99062331 | FP42: 26.43492009 | FQ42: 26.88312668 | FR42: 27.33505076 | FS42: 27.79051097 | FT42: 28.24933628 | FU42: 28.71136535 | FV42: 29.17644598 | FW42: 29.64443455 | FX42: 30.1151955 | FY42: 30.58860082 | FZ42: 31.06452961 | GA42: 31.54286766 | GB42: 32.02350699 | GC42: 32.50634553 | GD42: 32.99128673 | GE42: 33.4782392 | GF42: 33.96711645 | GG42: 34.45783655 | GH42: 34.95032189 | GI42: 35.44449887 | GJ42: 35.94029772 | GK42: 36.43765223 | GL42: 36.93649956 | GM42: 37.43678004 | GN42: 37.93843697 | GO42: 38.44141647 | GP42: 38.94566728 | GQ42: 39.45114067 | GR42: 39.95779023 | GS42: 40.46557179 | GT42: 40.97444325 | GU42: 41.48436452 | GV42: 41.99529736 | GW42: 42.50720527 | GX42: 43.02005346 | GY42: 43.5338087 | GZ42: 44.04843925 | HA42: 44.56391477 | HB42: 45.0802063 | HC42: 45.5972861 | HD42: 46.11512767 | HE42: 46.63370562 | HF42: 47.15299566 | HG42: 47.67297452 | HH42: 48.19361991 | HI42: 48.71491045 | HJ42: 49.23682565 | HK42: 49.75934586 | HL42: 50.28245221 | HM42: 50.8061266 | HN42: 51.33035165 | HO42: 51.85511064 | HP42: 52.38038755 | HQ42: 52.90616694 | HR42: 53.43243397 | HS42: 53.95917438 | HT42: 54.48637444 | HU42: 55.01402094 | HV42: 55.54210115 | HW42: 56.07060281 | HX42: 56.59951413 | HY42: 57.12882372 | HZ42: 1.8
B43: 20 | C43: 11 | D43: 16 | E43: 1.8 | F43: 17.97887649 | G43: 16.10093165 | H43: -1.347197731 | I43: -176.2189424 | J43: 0.05562082816 | K43: 0.06210820726 | L43: 0.007558093822 | M43: -11.95449197 | N43: -10.99626112 | O43: -29.29099542 | AA43: 16 | AB43: 31.86675384 | AC43: 31.39335121 | AD43: 30.92248373 | AE43: 30.45426899 | AF43: 29.98883125 | AG43: 29.52630183 | AH43: 29.06681957 | AI43: 28.61053128 | AJ43: 28.15759223 | AK43: 27.70816667 | AL43: 27.26242836 | AM43: 26.82056114 | AN43: 26.38275952 | AO43: 25.94922928 | AP43: 25.52018809 | AQ43: 25.09586619 | AR43: 24.67650705 | AS43: 24.26236798 | AT43: 23.85372088 | AU43: 23.45085286 | AV43: 23.05406689 | AW43: 22.6636824 | AX43: 22.28003591 | AY43: 21.90348146 | AZ43: 21.5343911 | BA43: 21.17315517 | BB43: 20.82018252 | BC43: 20.47590047 | BD43: 20.1407547 | BE43: 19.81520881 | BF43: 19.49974359 | BG43: 19.19485608 | BH43: 18.90105817 | BI43: 18.61887483 | BJ43: 18.34884193 | BK43: 18.09150353 | BL43: 17.84740878 | BM43: 17.61710816 | BN43: 17.40114939 | BO43: 17.20007267 | BP43: 17.01440566 | BQ43: 16.84465791 | BR43: 16.69131511 | BS43: 16.55483313 | BT43: 16.43563202 | BU43: 16.33409012 | BV43: 16.25053845 | BW43: 16.18525564 | BX43: 16.13846337 | BY43: 16.11032278 | BZ43: 16.10093165 | CA43: 16.11032278 | CB43: 16.13846337 | CC43: 16.18525564 | CD43: 16.25053845 | CE43: 16.33409012 | CF43: 16.43563202 | CG43: 16.55483313 | CH43: 16.69131511 | CI43: 16.84465791 | CJ43: 17.01440566 | CK43: 17.20007267 | CL43: 17.40114939 | CM43: 17.61710816 | CN43: 17.84740878 | CO43: 18.09150353 | CP43: 18.34884193 | CQ43: 18.61887483 | CR43: 18.90105817 | CS43: 19.19485608 | CT43: 19.49974359 | CU43: 19.81520881 | CV43: 20.1407547 | CW43: 20.47590047 | CX43: 20.82018252 | CY43: 21.17315517 | CZ43: 21.5343911 | DA43: 21.90348146 | DB43: 22.28003591 | DC43: 22.6636824 | DD43: 23.05406689 | DE43: 23.45085286 | DF43: 23.85372088 | DG43: 24.26236798 | DH43: 24.67650705 | DI43: 25.09586619 | DJ43: 25.52018809 | DK43: 25.94922928 | DL43: 26.38275952 | DM43: 26.82056114 | DN43: 27.26242836 | DO43: 27.70816667 | DP43: 28.15759223 | DQ43: 28.61053128 | DR43: 29.06681957 | DS43: 29.52630183 | DT43: 29.98883125 | DU43: 30.45426899 | DV43: 30.92248373 | DW43: 31.39335121 | DX43: 31.86675384 | DY43: 1.8 | EB43: 16 | EC43: 16 | ED43: 16.00945033 | EE43: 16.03776792 | EF43: 16.08485312 | EG43: 16.15054179 | EH43: 16.2346081 | EI43: 16.33676835 | EJ43: 16.45668557 | EK43: 16.59397481 | EL43: 16.74820886 | EM43: 16.91892432 | EN43: 17.10562773 | EO43: 17.30780171 | EP43: 17.52491084 | EQ43: 17.75640729 | ER43: 18.00173603 | ES43: 18.26033954 | ET43: 18.53166209 | EU43: 18.81515347 | EV43: 19.11027211 | EW43: 19.41648784 | EX43: 19.73328407 | EY43: 20.06015952 | EZ43: 20.39662962 | FA43: 20.74222746 | FB43: 21.09650445 | FC43: 21.45903073 | FD43: 21.82939532 | FE43: 22.20720604 | FF43: 22.59208932 | FG43: 22.98368987 | FH43: 23.38167017 | FI43: 23.78571 | FJ43: 24.19550578 | FK43: 24.61077 | FL43: 25.03123049 | FM43: 25.45662978 | FN43: 25.8867244 | FO43: 26.32128416 | FP43: 26.76009155 | FQ43: 27.20294102 | FR43: 27.64963833 | FS43: 28.1 | FT43: 28.55385263 | FU43: 29.01103238 | FV43: 29.47138443 | FW43: 29.9347624 | FX43: 30.40102794 | FY43: 30.87005021 | FZ43: 31.34170544 | GA43: 31.81587654 | GB43: 32.29245268 | GC43: 32.77132893 | GD43: 33.25240593 | GE43: 33.73558952 | GF43: 34.22079046 | GG43: 34.70792417 | GH43: 35.19691038 | GI43: 35.68767294 | GJ43: 36.18013958 | GK43: 36.67424164 | GL43: 37.16991391 | GM43: 37.66709439 | GN43: 38.16572415 | GO43: 38.66574712 | GP43: 39.16710993 | GQ43: 39.66976178 | GR43: 40.1736543 | GS43: 40.67874138 | GT43: 41.18497906 | GU43: 41.69232543 | GV43: 42.20074051 | GW43: 42.71018614 | GX43: 43.22062586 | GY43: 43.73202488 | GZ43: 44.24434992 | HA43: 44.75756919 | HB43: 45.27165228 | HC43: 45.78657008 | HD43: 46.30229476 | HE43: 46.81879964 | HF43: 47.33605919 | HG43: 47.85404894 | HH43: 48.37274543 | HI43: 48.89212616 | HJ43: 49.41216955 | HK43: 49.93285492 | HL43: 50.45416237 | HM43: 50.97607282 | HN43: 51.49856794 | HO43: 52.02163012 | HP43: 52.54524241 | HQ43: 53.06938854 | HR43: 53.59405284 | HS43: 54.11922025 | HT43: 54.64487625 | HU43: 55.17100688 | HV43: 55.69759869 | HW43: 56.22463873 | HX43: 56.7521145 | HY43: 57.28001397 | HZ43: 1.8
B44: 21 | C44: 11.55 | D44: 16.55 | E44: 1.8 | F44: 18.47004331 | G44: 16.64759742 | H44: -1.291698776 | I44: -168.9594534 | J44: 0.05414172469 | K44: 0.06006872791 | L44: 0.01247053776 | M44: -12.18859927 | N44: -11.28627229 | O44: -24.94153736 | AA44: 16.55 | AB44: 32.14642282 | AC44: 31.6772 | AD44: 31.21061518 | AE44: 30.74678845 | AF44: 30.28584653 | AG44: 29.82792316 | AH44: 29.37315952 | AI44: 28.92170465 | AJ44: 28.47371595 | AK44: 28.02935961 | AL44: 27.58881114 | AM44: 27.15225589 | AN44: 26.7198896 | AO44: 26.29191891 | AP44: 25.868562 | AQ44: 25.45004912 | AR44: 25.03662317 | AS44: 24.62854035 | AT44: 24.22607067 | AU44: 23.82949853 | AV44: 23.43912328 | AW44: 23.0552597 | AX44: 22.67823847 | AY44: 22.30840649 | AZ44: 21.94612722 | BA44: 21.59178084 | BB44: 21.24576428 | BC44: 20.9084911 | BD44: 20.58039115 | BE44: 20.26191008 | BF44: 19.95350846 | BG44: 19.65566076 | BH44: 19.36885386 | BI44: 19.09358531 | BJ44: 18.83036112 | BK44: 18.57969322 | BL44: 18.34209639 | BM44: 18.11808489 | BN44: 17.90816853 | BO44: 17.71284844 | BP44: 17.53261247 | BQ44: 17.36793022 | BR44: 17.21924795 | BS44: 17.08698335 | BT44: 16.97152026 | BU44: 16.87320361 | BV44: 16.79233456 | BW44: 16.72916615 | BX44: 16.68389942 | BY44: 16.65668034 | BZ44: 16.64759742 | CA44: 16.65668034 | CB44: 16.68389942 | CC44: 16.72916615 | CD44: 16.79233456 | CE44: 16.87320361 | CF44: 16.97152026 | CG44: 17.08698335 | CH44: 17.21924795 | CI44: 17.36793022 | CJ44: 17.53261247 | CK44: 17.71284844 | CL44: 17.90816853 | CM44: 18.11808489 | CN44: 18.34209639 | CO44: 18.57969322 | CP44: 18.83036112 | CQ44: 19.09358531 | CR44: 19.36885386 | CS44: 19.65566076 | CT44: 19.95350846 | CU44: 20.26191008 | CV44: 20.58039115 | CW44: 20.9084911 | CX44: 21.24576428 | CY44: 21.59178084 | CZ44: 21.94612722 | DA44: 22.30840649 | DB44: 22.67823847 | DC44: 23.0552597 | DD44: 23.43912328 | DE44: 23.82949853 | DF44: 24.22607067 | DG44: 24.62854035 | DH44: 25.03662317 | DI44: 25.45004912 | DJ44: 25.868562 | DK44: 26.29191891 | DL44: 26.7198896 | DM44: 27.15225589 | DN44: 27.58881114 | DO44: 28.02935961 | DP44: 28.47371595 | DQ44: 28.92170465 | DR44: 29.37315952 | DS44: 29.82792316 | DT44: 30.28584653 | DU44: 30.74678845 | DV44: 31.21061518 | DW44: 31.6772 | DX44: 32.14642282 | DY44: 1.8 | EB44: 16.55 | EC44: 16.55 | ED44: 16.55913645 | EE44: 16.58651561 | EF44: 16.63204738 | EG44: 16.69558325 | EH44: 16.77691867 | EI44: 16.87579628 | EJ44: 16.99190984 | EK44: 17.12490876 | EL44: 17.27440303 | EM44: 17.43996846 | EN44: 17.62115206 | EO44: 17.81747737 | EP44: 18.02844974 | EQ44: 18.2535613 | ER44: 18.49229569 | ES44: 18.74413242 | ET44: 19.00855071 | EU44: 19.28503306 | EV44: 19.57306823 | EW44: 19.87215388 | EX44: 20.18179873 | EY44: 20.50152433 | EZ44: 20.83086652 | FA44: 21.16937647 | FB44: 21.51662148 | FC44: 21.87218553 | FD44: 22.23566954 | FE44: 22.60669149 | FF44: 22.98488634 | FG44: 23.36990586 | FH44: 23.76141831 | FI44: 24.15910801 | FJ44: 24.56267494 | FK44: 24.97183413 | FL44: 25.38631521 | FM44: 25.80586174 | FN44: 26.23023065 | FO44: 26.65919166 | FP44: 27.09252664 | FQ44: 27.53002906 | FR44: 27.97150336 | FS44: 28.41676442 | FT44: 28.86563701 | FU44: 29.31795525 | FV44: 29.7735621 | FW44: 30.23230888 | FX44: 30.6940548 | FY44: 31.15866653 | FZ44: 31.62601777 | GA44: 32.09598885 | GB44: 32.56846634 | GC44: 33.04334275 | GD44: 33.52051611 | GE44: 33.99988971 | GF44: 34.48137178 | GG44: 34.96487523 | GH44: 35.45031735 | GI44: 35.93761957 | GJ44: 36.42670724 | GK44: 36.9175094 | GL44: 37.40995857 | GM44: 37.90399056 | GN44: 38.39954427 | GO44: 38.89656154 | GP44: 39.39498699 | GQ44: 39.89476783 | GR44: 40.39585375 | GS44: 40.89819678 | GT44: 41.40175117 | GU44: 41.90647325 | GV44: 42.41232132 | GW44: 42.91925559 | GX44: 43.427238 | GY44: 43.9362322 | GZ44: 44.44620344 | HA44: 44.95711846 | HB44: 45.46894545 | HC44: 45.98165395 | HD44: 46.49521481 | HE44: 47.00960008 | HF44: 47.52478301 | HG44: 48.04073792 | HH44: 48.55744021 | HI44: 49.07486628 | HJ44: 49.59299346 | HK44: 50.11180001 | HL44: 50.63126504 | HM44: 51.15136851 | HN44: 51.67209111 | HO44: 52.19341434 | HP44: 52.71532035 | HQ44: 53.23779203 | HR44: 53.76081287 | HS44: 54.28436699 | HT44: 54.80843913 | HU44: 55.33301456 | HV44: 55.85807909 | HW44: 56.38361908 | HX44: 56.90962133 | HY44: 57.43607316 | HZ44: 1.8
B45: 22 | C45: 12.1 | D45: 17.1 | E45: 1.8 | F45: 18.96444041 | G45: 17.19447586 | H45: -1.239217438 | I45: -162.0946809 | J45: 0.05273026667 | K45: 0.05815821362 | L45: 0.01807009522 | M45: -12.41804164 | N45: -11.56701982 | O45: -21.72003217 | AA45: 17.1 | AB45: 32.43300788 | AC45: 31.9679918 | AD45: 31.50571377 | AE45: 31.04629608 | AF45: 30.5898676 | AG45: 30.13656417 | AH45: 29.68652893 | AI45: 29.23991279 | AJ45: 28.79687483 | AK45: 28.35758276 | AL45: 27.92221338 | AM45: 27.49095306 | AN45: 27.06399823 | AO45: 26.64155589 | AP45: 26.22384411 | AQ45: 25.81109258 | AR45: 25.40354306 | AS45: 25.00144996 | AT45: 24.60508078 | AU45: 24.2147166 | AV45: 23.83065253 | AW45: 23.45319808 | AX45: 23.08267749 | AY45: 22.71943001 | AZ45: 22.36381005 | BA45: 22.01618723 | BB45: 21.67694628 | BC45: 21.34648683 | BD45: 21.02522295 | BE45: 20.7135825 | BF45: 20.41200627 | BG45: 20.1209468 | BH45: 19.84086692 | BI45: 19.57223799 | BJ45: 19.31553779 | BK45: 19.07124799 | BL45: 18.83985138 | BM45: 18.62182859 | BN45: 18.41765457 | BO45: 18.22779471 | BP45: 18.05270063 | BQ45: 17.89280582 | BR45: 17.74852107 | BS45: 17.62022985 | BT45: 17.50828375 | BU45: 17.41299802 | BV45: 17.33464739 | BW45: 17.2734623 | BX45: 17.22962565 | BY45: 17.20327004 | BZ45: 17.19447586 | CA45: 17.20327004 | CB45: 17.22962565 | CC45: 17.2734623 | CD45: 17.33464739 | CE45: 17.41299802 | CF45: 17.50828375 | CG45: 17.62022985 | CH45: 17.74852107 | CI45: 17.89280582 | CJ45: 18.05270063 | CK45: 18.22779471 | CL45: 18.41765457 | CM45: 18.62182859 | CN45: 18.83985138 | CO45: 19.07124799 | CP45: 19.31553779 | CQ45: 19.57223799 | CR45: 19.84086692 | CS45: 20.1209468 | CT45: 20.41200627 | CU45: 20.7135825 | CV45: 21.02522295 | CW45: 21.34648683 | CX45: 21.67694628 | CY45: 22.01618723 | CZ45: 22.36381005 | DA45: 22.71943001 | DB45: 23.08267749 | DC45: 23.45319808 | DD45: 23.83065253 | DE45: 24.2147166 | DF45: 24.60508078 | DG45: 25.00144996 | DH45: 25.40354306 | DI45: 25.81109258 | DJ45: 26.22384411 | DK45: 26.64155589 | DL45: 27.06399823 | DM45: 27.49095306 | DN45: 27.92221338 | DO45: 28.35758276 | DP45: 28.79687483 | DQ45: 29.23991279 | DR45: 29.68652893 | DS45: 30.13656417 | DT45: 30.5898676 | DU45: 31.04629608 | DV45: 31.50571377 | DW45: 31.9679918 | DX45: 32.43300788 | DY45: 1.8 | EB45: 17.1 | EC45: 17.1 | ED45: 17.10884274 | EE45: 17.13534359 | EF45: 17.17942083 | EG45: 17.24093965 | EH45: 17.3197142 | EI45: 17.41551033 | EJ45: 17.52804895 | EK45: 17.65700994 | EL45: 17.8020364 | EM45: 17.96273921 | EN45: 18.13870172 | EO45: 18.32948444 | EP45: 18.53462975 | EQ45: 18.75366631 | ER45: 18.98611335 | ES45: 19.2314846 | ET45: 19.48929193 | EU45: 19.75904856 | EV45: 20.04027195 | EW45: 20.33248632 | EX45: 20.63522474 | EY45: 20.94803093 | EZ45: 21.27046074 | FA45: 21.60208323 | FB45: 21.94248163 | FC45: 22.29125389 | FD45: 22.64801316 | FE45: 23.01238797 | FF45: 23.38402232 | FG45: 23.76257562 | FH45: 24.14772246 | FI45: 24.53915239 | FJ45: 24.93656953 | FK45: 25.33969218 | FL45: 25.74825237 | FM45: 26.16199534 | FN45: 26.58067907 | FO45: 27.00407377 | FP45: 27.43196129 | FQ45: 27.86413465 | FR45: 28.30039752 | FS45: 28.74056367 | FT45: 29.18445648 | FU45: 29.63190848 | FV45: 30.08276084 | FW45: 30.53686297 | FX45: 30.99407201 | FY45: 31.45425249 | FZ45: 31.91727589 | GA45: 32.38302024 | GB45: 32.85136983 | GC45: 33.32221481 | GD45: 33.79545088 | GE45: 34.27097898 | GF45: 34.74870501 | GG45: 35.22853957 | GH45: 35.71039765 | GI45: 36.19419843 | GJ45: 36.67986505 | GK45: 37.16732436 | GL45: 37.65650674 | GM45: 38.14734591 | GN45: 38.63977873 | GO45: 39.13374503 | GP45: 39.62918748 | GQ45: 40.12605139 | GR45: 40.62428461 | GS45: 41.12383737 | GT45: 41.62466216 | GU45: 42.12671361 | GV45: 42.62994839 | GW45: 43.13432508 | GX45: 43.63980408 | GY45: 44.14634753 | GZ45: 44.6539192 | HA45: 45.16248443 | HB45: 45.67201003 | HC45: 46.1824642 | HD45: 46.69381651 | HE45: 47.20603775 | HF45: 47.71909995 | HG45: 48.23297627 | HH45: 48.74764097 | HI45: 49.26306933 | HJ45: 49.77923764 | HK45: 50.29612311 | HL45: 50.81370386 | HM45: 51.33195886 | HN45: 51.85086788 | HO45: 52.37041149 | HP45: 52.89057099 | HQ45: 53.41132839 | HR45: 53.93266635 | HS45: 54.45456822 | HT45: 54.97701793 | HU45: 55.5 | HV45: 56.02349953 | HW45: 56.54750216 | HX45: 57.07199401 | HY45: 57.59696173 | HZ45: 1.8
B46: 23 | C46: 12.65 | D46: 17.65 | E46: 1.8 | F46: 19.4618216 | G46: 17.74154728 | H46: -1.189527204 | I46: -155.5949962 | J46: 0.05138265166 | K46: 0.05636486965 | L46: 0.02328912296 | M46: -12.64291073 | N46: -11.83907085 | O46: -19.51617831 | AA46: 17.65 | AB46: 32.72632732 | AC46: 32.26553889 | AD46: 31.80758557 | AE46: 31.3525916 | AF46: 30.90068769 | AG46: 30.45201143 | AH46: 30.00670758 | AI46: 29.56492855 | AJ46: =SQRT(($AA46-$O$7)^2+(AJ$22-$P$7)^2+($DY46-$Q$7)^2) -> 29.12683471 | AK46: 28.69259486 | AL46: 28.26238666 | AM46: 27.83639704 | AN46: 27.41482263 | AO46: 26.99787029 | AP46: 26.58575747 | AQ46: 26.17871273 | AR46: 25.77697616 | AS46: 25.38079983 | AT46: 24.99044818 | AU46: 24.60619841 | AV46: 24.22834084 | AW46: 23.85717921 | AX46: 23.49303088 | AY46: 23.136227 | AZ46: 22.78711259 | BA46: 22.44604642 | BB46: 22.11340091 | BC46: 21.78956172 | BD46: 21.47492724 | BE46: 21.16990789 | BF46: 20.87492515 | BG46: 20.59041039 | BH46: 20.31680339 | BI46: 20.05455061 | BJ46: 19.80410311 | BK46: 19.56591424 | BL46: 19.34043691 | BM46: 19.12812066 | BN46: 18.92940834 | BO46: 18.74473259 | BP46: 18.57451211 | BQ46: 18.41914765 | BR46: 18.27901803 | BS46: 18.15447603 | BT46: 18.0458444 | BU46: 17.95341193 | BV46: 17.8774299 | BW46: =SQRT(($AA46-$O$7)^2+(BW$22-$P$7)^2+($DY46-$Q$7)^2) -> 17.81810877 | BX46: 17.77561532 | BY46: 17.75007042 | BZ46: 17.74154728 | CA46: 17.75007042 | CB46: 17.77561532 | CC46: 17.81810877 | CD46: 17.8774299 | CE46: 17.95341193 | CF46: 18.0458444 | CG46: 18.15447603 | CH46: 18.27901803 | CI46: 18.41914765 | CJ46: 18.57451211 | CK46: 18.74473259 | CL46: 18.92940834 | CM46: 19.12812066 | CN46: 19.34043691 | CO46: 19.56591424 | CP46: 19.80410311 | CQ46: 20.05455061 | CR46: 20.31680339 | CS46: 20.59041039 | CT46: 20.87492515 | CU46: 21.16990789 | CV46: 21.47492724 | CW46: 21.78956172 | CX46: 22.11340091 | CY46: 22.44604642 | CZ46: 22.78711259 | DA46: 23.136227 | DB46: 23.49303088 | DC46: 23.85717921 | DD46: 24.22834084 | DE46: 24.60619841 | DF46: 24.99044818 | DG46: 25.38079983 | DH46: 25.77697616 | DI46: 26.17871273 | DJ46: 26.58575747 | DK46: 26.99787029 | DL46: 27.41482263 | DM46: 27.83639704 | DN46: 28.26238666 | DO46: 28.69259486 | DP46: 29.12683471 | DQ46: 29.56492855 | DR46: 30.00670758 | DS46: 30.45201143 | DT46: 30.90068769 | DU46: 31.3525916 | DV46: 31.80758557 | DW46: 32.26553889 | DX46: 32.72632732 | DY46: 1.8 | EB46: 17.65 | EC46: 17.65 | ED46: 17.65856733 | EE46: 17.6842444 | EF46: 17.72695687 | EG46: 17.78658202 | EH46: 17.86295048 | EI46: 17.95584863 | EJ46: 18.06502145 | EK46: =SQRT(($EB46-$O$7)^2+(EK$22-$Q$7)^2+(-$P$7)^2) -> 18.19017592 | EL46: 18.3309847 | EM46: 18.48709009 | EN46: 18.65810816 | EO46: 18.84363288 | EP46: 19.04324027 | EQ46: 19.25649241 | ER46: 19.48294126 | ES46: 19.72213224 | ET46: 19.97360759 | EU46: 20.23690935 | EV46: 20.51158209 | EW46: 20.79717529 | EX46: 21.09324536 | EY46: 21.39935747 | EZ46: 21.71508692 | FA46: 22.04002042 | FB46: 22.37375695 | FC46: 22.71590852 | FD46: 23.06610067 | FE46: 23.42397276 | FF46: 23.78917821 | FG46: 24.16138448 | FH46: 24.54027302 | FI46: 24.92553911 | FJ46: 25.31689159 | FK46: 25.71405258 | FL46: 26.11675707 | FM46: 26.52475259 | FN46: 26.93779872 | FO46: 27.35566669 | FP46: 27.77813889 | FQ46: 28.20500842 | FR46: 28.63607864 | FS46: 29.07116269 | FT46: 29.51008302 | FU46: 29.952671 | FV46: 30.39876642 | FW46: 30.84821713 | FX46: =SQRT(($EB46-$O$7)^2+(FX$22-$Q$7)^2+(-$P$7)^2) -> 31.30087858 | FY46: 31.75661348 | FZ46: 32.2152914 | GA46: 32.6767884 | GB46: 33.14098671 | GC46: 33.6077744 | GD46: 34.07704506 | GE46: 34.54869752 | GF46: 35.02263554 | GG46: 35.49876758 | GH46: 35.97700655 | GI46: 36.45726951 | GJ46: 36.93947753 | GK46: 37.42355542 | GL46: 37.90943154 | GM46: 38.39703765 | GN46: 38.88630864 | GO46: 39.37718248 | GP46: 39.86959995 | GQ46: 40.36350456 | GR46: 40.85884237 | GS46: 41.3555619 | GT46: 41.85361394 | GU46: 42.35295149 | GV46: 42.85352961 | GW46: 43.35530533 | GX46: 43.85823754 | GY46: 44.36228691 | GZ46: 44.86741579 | HA46: 45.37358813 | HB46: 45.88076939 | HC46: 46.38892648 | HD46: 46.89802768 | HE46: 47.40804257 | HF46: 47.91894197 | HG46: 48.43069791 | HH46: 48.9432835 | HI46: 49.45667296 | HJ46: 49.9708415 | HK46: 50.48576532 | HL46: 51.00142155 | HM46: 51.51778819 | HN46: 52.0348441 | HO46: 52.55256892 | HP46: 53.07094309 | HQ46: 53.58994775 | HR46: 54.10956477 | HS46: 54.62977668 | HT46: 55.15056663 | HU46: 55.67191841 | HV46: 56.19381639 | HW46: 56.71624547 | HX46: 57.23919112 | HY46: 57.76263931 | HZ46: 1.8
B47: 24 | C47: 13.2 | D47: 18.2 | E47: 1.8 | F47: 19.96196383 | G47: 18.28879438 | H47: -1.142422334 | I47: -149.4334877 | J47: 0.05009527161 | K47: 0.05467828983 | L47: 0.02796899398 | M47: -12.86330628 | N47: -12.10294254 | O47: -17.92570408 | AA47: 18.2 | AB47: =SQRT(($AA47-$O$7)^2+(AB$22-$P$7)^2+($DY47-$Q$7)^2) -> 33.02620172 | AC47: 32.56965612 | AD47: 32.11603961 | AE47: 31.66547805 | AF47: 31.21810372 | AG47: 30.77405563 | AH47: 30.33347985 | AI47: 29.8965299 | AJ47: 29.46336709 | AK47: 29.03416091 | AL47: 28.60908946 | AM47: 28.18833979 | AN47: 27.77210831 | AO47: 27.36060124 | AP47: 26.95403495 | AQ47: 26.5526364 | AR47: 26.15664352 | AS47: 25.76630552 | AT47: 25.3818833 | AU47: 25.00364973 | AV47: 24.6318899 | AW47: 24.26690133 | AX47: 23.90899412 | AY47: 23.55849104 | AZ47: 23.21572743 | BA47: 22.88105111 | BB47: 22.5548221 | BC47: 22.23741217 | BD47: 21.92920427 | BE47: 21.63059176 | BF47: 21.34197742 | BG47: =SQRT(($AA47-$O$7)^2+(BG$22-$P$7)^2+($DY47-$Q$7)^2) -> 21.06377222 | BH47: 20.79639392 | BI47: 20.54026533 | BJ47: 20.29581238 | BK47: 20.06346181 | BL47: 19.84363878 | BM47: 19.63676399 | BN47: 19.44325076 | BO47: 19.26350176 | BP47: 19.09790564 | BQ47: 18.94683351 | BR47: 18.81063529 | BS47: 18.68963617 | BT47: 18.58413302 | BU47: 18.49439104 | BV47: 18.4206406 | BW47: 18.36307436 | BX47: 18.32184489 | BY47: 18.29706261 | BZ47: 18.28879438 | CA47: 18.29706261 | CB47: 18.32184489 | CC47: 18.36307436 | CD47: 18.4206406 | CE47: 18.49439104 | CF47: 18.58413302 | CG47: 18.68963617 | CH47: 18.81063529 | CI47: 18.94683351 | CJ47: 19.09790564 | CK47: 19.26350176 | CL47: 19.44325076 | CM47: 19.63676399 | CN47: 19.84363878 | CO47: 20.06346181 | CP47: 20.29581238 | CQ47: 20.54026533 | CR47: 20.79639392 | CS47: 21.06377222 | CT47: 21.34197742 | CU47: 21.63059176 | CV47: 21.92920427 | CW47: 22.23741217 | CX47: 22.5548221 | CY47: 22.88105111 | CZ47: 23.21572743 | DA47: 23.55849104 | DB47: 23.90899412 | DC47: 24.26690133 | DD47: 24.6318899 | DE47: 25.00364973 | DF47: 25.3818833 | DG47: 25.76630552 | DH47: 26.15664352 | DI47: 26.5526364 | DJ47: 26.95403495 | DK47: 27.36060124 | DL47: 27.77210831 | DM47: 28.18833979 | DN47: 28.60908946 | DO47: 29.03416091 | DP47: 29.46336709 | DQ47: 29.8965299 | DR47: 30.33347985 | DS47: 30.77405563 | DT47: 31.21810372 | DU47: 31.66547805 | DV47: 32.11603961 | DW47: 32.56965612 | DX47: 33.02620172 | DY47: 1.8 | EB47: 18.2 | EC47: =SQRT(($EB47-$O$7)^2+(EC$22-$Q$7)^2+(-$P$7)^2) -> 18.2 | ED47: 18.20830854 | EE47: 18.23321146 | EF47: 18.2746409 | EG47: 18.33248483 | EH47: 18.40658849 | EI47: 18.49675647 | EJ47: 18.60275517 | EK47: 18.72431574 | EL47: 18.86113729 | EM47: 19.01289036 | EN47: 19.17922053 | EO47: 19.35975206 | EP47: 19.55409164 | EQ47: 19.7618319 | ER47: 19.98255489 | ES47: 20.21583538 | ET47: 20.46124385 | EU47: 20.71834936 | EV47: 20.98672199 | EW47: 21.2659352 | EX47: 21.55556773 | EY47: 21.85520533 | EZ47: 22.16444224 | FA47: 22.48288238 | FB47: 22.81014029 | FC47: 23.14584196 | FD47: 23.48962537 | FE47: 23.84114091 | FF47: 24.20005165 | FG47: 24.56603346 | FH47: =SQRT(($EB47-$O$7)^2+(FH$22-$Q$7)^2+(-$P$7)^2) -> 24.93877503 | FI47: 25.3179778 | FJ47: 25.70335581 | FK47: 26.09463546 | FL47: 26.49155526 | FM47: 26.89386547 | FN47: 27.30132781 | FO47: 27.71371502 | FP47: 28.13081051 | FQ47: 28.55240795 | FR47: 28.97831085 | FS47: 29.40833215 | FT47: 29.84229381 | FU47: 30.28002642 | FV47: 30.72136878 | FW47: 31.16616755 | FX47: 31.61427684 | FY47: 32.06555785 | FZ47: 32.51987854 | GA47: 32.97711328 | GB47: 33.43714252 | GC47: 33.89985251 | GD47: 34.36513495 | GE47: 34.83288676 | GF47: 35.30300979 | GG47: 35.77541055 | GH47: 36.25 | GI47: 36.72669329 | GJ47: 37.20540955 | GK47: 37.6860717 | GL47: 38.16860621 | GM47: 38.65294297 | GN47: 39.13901506 | GO47: 39.62675864 | GP47: 40.11611272 | GQ47: 40.6070191 | GR47: 41.09942214 | GS47: 41.59326869 | GT47: 42.08850793 | GU47: 42.58509129 | GV47: 43.08297227 | GW47: 43.58210642 | GX47: 44.08245116 | GY47: 44.58396573 | GZ47: 45.08661109 | HA47: 45.59034986 | HB47: 46.09514617 | HC47: 46.60096566 | HD47: 47.10777537 | HE47: 47.61554368 | HF47: 48.12424025 | HG47: 48.63383596 | HH47: 49.14430282 | HI47: 49.65561398 | HJ47: 50.16774362 | HK47: 50.68066693 | HL47: 51.19436004 | HM47: 51.70880002 | HN47: 52.22396481 | HO47: 52.73983314 | HP47: 53.25638459 | HQ47: 53.77359947 | HR47: 54.29145881 | HS47: 54.80994435 | HT47: 55.32903849 | HU47: 55.84872425 | HV47: 56.36898527 | HW47: 56.88980577 | HX47: 57.41117052 | HY47: 57.93306482 | HZ47: 1.8
B48: 25 | C48: 13.75 | D48: 18.75 | E48: 1.8 | F48: 20.46466467 | G48: 18.83620185 | H48: -1.097715709 | I48: -143.5856793 | J48: 0.04886471468 | K48: 0.05308925908 | L48: 0.0321076651 | M48: -13.07933364 | N48: -12.3591077 | O48: -16.7270665 | AA48: 18.75 | AB48: 33.33245416 | AC48: 32.88016119 | AD48: 32.43088805 | AE48: 31.984762 | AF48: 31.54191656 | AG48: 31.10249186 | AH48: 30.66663496 | AI48: 30.23450016 | AJ48: 29.80624934 | AK48: 29.38205234 | AL48: 28.96208729 | AM48: 28.54654095 | AN48: 28.13560911 | AO48: 27.72949693 | AP48: 27.32841927 | AQ48: 26.93260106 | AR48: 26.5422776 | AS48: 26.15769485 | AT48: 25.77910976 | AU48: 25.40679043 | AV48: 25.04101635 | AW48: 24.68207852 | AX48: 24.33027949 | AY48: 23.98593338 | AZ48: =SQRT(($AA48-$O$7)^2+(AZ$22-$P$7)^2+($DY48-$Q$7)^2) -> 23.64936574 | BA48: 23.32091336 | BB48: 23.00092389 | BC48: 22.6897554 | BD48: 22.38777568 | BE48: 22.0953615 | BF48: 21.81289756 | BG48: 21.54077529 | BH48: 21.27939144 | BI48: 21.02914644 | BJ48: 20.79044252 | BK48: 20.56368158 | BL48: 20.34926289 | BM48: 20.1475805 | BN48: 19.95902052 | BO48: 19.78395815 | BP48: 19.62275465 | BQ48: 19.47575416 | BR48: 19.34328049 | BS48: 19.22563393 | BT48: 19.12308814 | BU48: 19.03588716 | BV48: 18.96424267 | BW48: 18.9083315 | BX48: 18.86829351 | BY48: 18.84422989 | BZ48: 18.83620185 | CA48: 18.84422989 | CB48: 18.86829351 | CC48: 18.9083315 | CD48: 18.96424267 | CE48: 19.03588716 | CF48: 19.12308814 | CG48: 19.22563393 | CH48: 19.34328049 | CI48: 19.47575416 | CJ48: 19.62275465 | CK48: 19.78395815 | CL48: 19.95902052 | CM48: 20.1475805 | CN48: 20.34926289 | CO48: 20.56368158 | CP48: 20.79044252 | CQ48: 21.02914644 | CR48: 21.27939144 | CS48: 21.54077529 | CT48: 21.81289756 | CU48: 22.0953615 | CV48: 22.38777568 | CW48: 22.6897554 | CX48: 23.00092389 | CY48: 23.32091336 | CZ48: 23.64936574 | DA48: 23.98593338 | DB48: 24.33027949 | DC48: 24.68207852 | DD48: 25.04101635 | DE48: 25.40679043 | DF48: 25.77910976 | DG48: 26.15769485 | DH48: 26.5422776 | DI48: 26.93260106 | DJ48: 27.32841927 | DK48: 27.72949693 | DL48: 28.13560911 | DM48: 28.54654095 | DN48: 28.96208729 | DO48: 29.38205234 | DP48: 29.80624934 | DQ48: 30.23450016 | DR48: 30.66663496 | DS48: 31.10249186 | DT48: 31.54191656 | DU48: 31.984762 | DV48: 32.43088805 | DW48: 32.88016119 | DX48: 33.33245416 | DY48: 1.8 | EB48: 18.75 | EC48: 18.75 | ED48: 18.75806493 | EE48: 18.78223895 | EF48: 18.82245999 | EG48: 18.87862548 | EH48: 18.95059366 | EI48: 19.03818531 | EJ48: 19.14118596 | EK48: 19.25934838 | EL48: 19.39239542 | EM48: 19.54002303 | EN48: 19.70190346 | EO48: 19.8776885 | EP48: 20.06701273 | EQ48: 20.26949679 | ER48: 20.48475043 | ES48: 20.71237553 | ET48: 20.95196888 | EU48: 21.20312477 | EV48: 21.46543734 | EW48: 21.73850271 | EX48: 22.0219209 | EY48: 22.31529744 | EZ48: 22.61824485 | FA48: =SQRT(($EB48-$O$7)^2+(FA$22-$Q$7)^2+(-$P$7)^2) -> 22.93038377 | FB48: 23.25134405 | FC48: 23.58076547 | FD48: 23.91829843 | FE48: 24.26360443 | FF48: 24.61635635 | FG48: 24.97623871 | FH48: 25.34294774 | FI48: 25.7161914 | FJ48: 26.0956893 | FK48: 26.48117256 | FL48: 26.87238359 | FM48: 27.26907589 | FN48: 27.67101371 | FO48: 28.07797179 | FP48: 28.48973499 | FQ48: 28.90609797 | FR48: 29.32686482 | FS48: 29.75184868 | FT48: 30.18087143 | FU48: 30.61376324 | FV48: 31.05036232 | FW48: 31.49051444 | FX48: 31.93407271 | FY48: 32.38089715 | FZ48: 32.83085439 | GA48: 33.28381739 | GB48: 33.73966508 | GC48: 34.19828212 | GD48: 34.65955857 | GE48: 35.12338964 | GF48: 35.58967547 | GG48: 36.05832082 | GH48: 36.52923487 | GI48: 37.00233101 | GJ48: 37.4775266 | GK48: 37.95474279 | GL48: 38.4339043 | GM48: 38.91493929 | GN48: 39.39777913 | GO48: 39.88235826 | GP48: 40.36861405 | GQ48: 40.85648663 | GR48: 41.34591878 | GS48: 41.83685576 | GT48: 42.32924521 | GU48: 42.82303702 | GV48: 43.31818325 | GW48: 43.81463796 | GX48: 44.31235719 | GY48: 44.8112988 | GZ48: 45.3114224 | HA48: 45.81268929 | HB48: 46.31506234 | HC48: 46.81850596 | HD48: 47.32298596 | HE48: 47.82846956 | HF48: 48.33492526 | HG48: 48.84232284 | HH48: 49.35063323 | HI48: 49.85982852 | HJ48: 50.36988187 | HK48: 50.88076749 | HL48: 51.39246054 | HM48: 51.90493714 | HN48: 52.41817433 | HO48: 52.93214997 | HP48: 53.44684275 | HQ48: 53.96223216 | HR48: 54.47829843 | HS48: 54.9950225 | HT48: 55.51238601 | HU48: 56.03037123 | HV48: 56.54896109 | HW48: 57.0681391 | HX48: 57.58788935 | HY48: 58.1081965 | HZ48: 1.8
B49: 26 | C49: 14.3 | D49: 19.3 | E49: 1.8 | F49: 20.9697401 | G49: 19.38375609 | H49: -1.055236904 | I49: -138.0292788 | J49: 0.04768776318 | K49: 0.0515895885 | L49: 0.03574029105 | M49: -13.29110195 | N49: -12.60799971 | O49: -15.79607929 | AA49: 19.3 | AB49: 33.64491046 | AC49: 33.19687485 | AD49: 32.75194651 | AE49: 32.31025379 | AF49: 31.87193122 | AG49: 31.43711978 | AH49: 31.00596717 | AI49: 30.57862816 | AJ49: 30.15526488 | AK49: 29.73604715 | AL49: 29.32115277 | AM49: 28.91076789 | AN49: 28.50508727 | AO49: 28.10431462 | AP49: 27.70866291 | AQ49: 27.31835464 | AR49: 26.93362211 | AS49: 26.55470768 | AT49: 26.18186395 | AU49: 25.81535396 | AV49: 25.45545128 | AW49: 25.10244012 | AX49: 24.75661528 | AY49: 24.41828209 | AZ49: 24.08775623 | BA49: 23.76536345 | BB49: 23.45143919 | BC49: 23.146328 | BD49: 22.85038293 | BE49: 22.56396463 | BF49: 22.28744041 | BG49: 22.02118298 | BH49: 21.76556914 | BI49: 21.52097814 | BJ49: 21.28778993 | BK49: 21.06638317 | BL49: 20.85713307 | BM49: 20.660409 | BN49: 20.47657198 | BO49: 20.30597203 | BP49: 20.14894538 | BQ49: 20.00581166 | BR49: 19.87687098 | BS49: 19.76240117 | BT49: 19.66265496 | BU49: 19.57785739 | BV49: 19.5082034 | BW49: 19.45385566 | BX49: 19.4149427 | BY49: 19.39155744 | BZ49: 19.38375609 | CA49: 19.39155744 | CB49: 19.4149427 | CC49: 19.45385566 | CD49: 19.5082034 | CE49: 19.57785739 | CF49: 19.66265496 | CG49: 19.76240117 | CH49: 19.87687098 | CI49: 20.00581166 | CJ49: 20.14894538 | CK49: 20.30597203 | CL49: 20.47657198 | CM49: 20.660409 | CN49: 20.85713307 | CO49: 21.06638317 | CP49: 21.28778993 | CQ49: 21.52097814 | CR49: 21.76556914 | CS49: 22.02118298 | CT49: 22.28744041 | CU49: 22.56396463 | CV49: 22.85038293 | CW49: 23.146328 | CX49: 23.45143919 | CY49: 23.76536345 | CZ49: 24.08775623 | DA49: 24.41828209 | DB49: 24.75661528 | DC49: 25.10244012 | DD49: 25.45545128 | DE49: 25.81535396 | DF49: 26.18186395 | DG49: 26.55470768 | DH49: 26.93362211 | DI49: 27.31835464 | DJ49: 27.70866291 | DK49: 28.10431462 | DL49: 28.50508727 | DM49: 28.91076789 | DN49: 29.32115277 | DO49: 29.73604715 | DP49: 30.15526488 | DQ49: 30.57862816 | DR49: 31.00596717 | DS49: 31.43711978 | DT49: 31.87193122 | DU49: 32.31025379 | DV49: 32.75194651 | DW49: 33.19687485 | DX49: 33.64491046 | DY49: 1.8 | EB49: 19.3 | EC49: 19.3 | ED49: 19.3078352 | EE49: 19.33132173 | EF49: 19.37040268 | EG49: 19.42498391 | EH49: 19.49493524 | EI49: 19.58009193 | EJ49: 19.6802566 | EK49: 19.79520144 | EL49: 19.92467064 | EM49: 20.06838309 | EN49: 20.2260352 | EO49: 20.39730374 | EP49: 20.5818488 | EQ49: 20.77931664 | ER49: 20.98934253 | ES49: 21.21155346 | ET49: 21.44557064 | EU49: 21.69101196 | EV49: 21.94749416 | EW49: 22.21463482 | EX49: 22.49205415 | EY49: 22.77937664 | EZ49: 23.07623236 | FA49: 23.38225823 | FB49: 23.69709898 | FC49: 24.02040799 | FD49: 24.35184798 | FE49: 24.69109151 | FF49: 25.03782139 | FG49: 25.39173094 | FH49: 25.75252415 | FI49: 26.11991577 | FJ49: 26.49363131 | FK49: 26.87340693 | FL49: 27.25898934 | FM49: 27.65013562 | FN49: 28.04661299 | FO49: 28.44819854 | FP49: 28.854679 | FQ49: 29.26585041 | FR49: 29.68151782 | FS49: 30.10149498 | FT49: 30.52560401 | FU49: 30.95367506 | FV49: 31.38554604 | FW49: 31.82106221 | FX49: 32.26007595 | FY49: 32.70244639 | FZ49: 33.14803916 | GA49: 33.59672603 | GB49: 34.04838469 | GC49: 34.50289843 | GD49: 34.96015589 | GE49: 35.42005082 | GF49: 35.8824818 | GG49: 36.34735204 | GH49: 36.81456913 | GI49: 37.28404484 | GJ49: 37.75569493 | GK49: 38.22943892 | GL49: 38.70519991 | GM49: 39.18290444 | GN49: 39.66248227 | GO49: 40.14386628 | GP49: 40.62699226 | GQ49: 41.11179879 | GR49: 41.59822713 | GS49: 42.08622102 | GT49: 42.57572665 | GU49: 43.06669247 | GV49: 43.55906909 | GW49: 44.05280922 | GX49: 44.54786751 | GY49: 45.04420051 | GZ49: 45.54176654 | HA49: 46.04052563 | HB49: 46.5404394 | HC49: 47.04147107 | HD49: 47.54358527 | HE49: 48.04674807 | HF49: 48.55092687 | HG49: 49.05609035 | HH49: 49.56220839 | HI49: 50.06925204 | HJ49: 50.57719348 | HK49: 51.08600591 | HL49: 51.59566358 | HM49: 52.10614167 | HN49: 52.61741632 | HO49: 53.12946452 | HP49: 53.64226412 | HQ49: 54.15579378 | HR49: 54.67003292 | HS49: 55.18496172 | HT49: 55.70056104 | HU49: 56.21681243 | HV49: 56.7336981 | HW49: 57.25120086 | HX49: 57.76930413 | HY49: 58.2879919 | HZ49: 1.8
B50: 27 | C50: 14.85 | D50: 19.85 | E50: 1.8 | F50: 21.47702261 | G50: 19.93144501 | H50: -1.014830487 | I50: -132.7439551 | J50: 0.04656138881 | K50: 0.05017197698 | L50: 0.03891131796 | M50: -13.49872247 | N50: -12.8500167 | O50: -15.05772217 | AA50: 19.85 | AB50: 33.96339942 | AC50: 33.51962112 | AD50: 33.07903415 | AE50: 32.64176772 | AF50: 32.20795709 | AG50: 31.77774378 | AH50: 31.35127589 | AI50: 30.92870835 | AJ50: 30.51020321 | AK50: 30.09592996 | AL50: 29.68606575 | AM50: 29.28079575 | AN50: 28.88031336 | AO50: 28.48482052 | AP50: 28.09452794 | AQ50: 27.70965536 | AR50: 27.33043176 | AS50: 26.95709554 | AT50: 26.5898947 | AU50: 26.22908691 | AV50: 25.87493961 | AW50: 25.52773002 | AX50: 25.18774504 | AY50: 24.85528113 | AZ50: 24.5306441 | BA50: 24.21414876 | BB50: 23.90611846 | BC50: 23.60688459 | BD50: 23.3167858 | BE50: 23.03616722 | BF50: 22.76537942 | BG50: 22.50477727 | BH50: 22.2547186 | BI50: 22.01556268 | BJ50: 21.78766853 | BK50: 21.57139309 | BL50: 21.36708918 | BM50: 21.17510331 | BN50: 20.99577338 | BO50: 20.8294263 | BP50: 20.67637541 | BQ50: 20.53691798 | BR50: 20.41133264 | BS50: 20.29987685 | BT50: 20.20278446 | BU50: 20.12026342 | BV50: 20.05249361 | BW50: 19.999625 | BX50: 19.96177597 | BY50: 19.93903207 | BZ50: 19.93144501 | CA50: 19.93903207 | CB50: 19.96177597 | CC50: 19.999625 | CD50: 20.05249361 | CE50: 20.12026342 | CF50: 20.20278446 | CG50: 20.29987685 | CH50: 20.41133264 | CI50: 20.53691798 | CJ50: 20.67637541 | CK50: 20.8294263 | CL50: 20.99577338 | CM50: 21.17510331 | CN50: 21.36708918 | CO50: 21.57139309 | CP50: 21.78766853 | CQ50: 22.01556268 | CR50: 22.2547186 | CS50: 22.50477727 | CT50: 22.76537942 | CU50: 23.03616722 | CV50: 23.3167858 | CW50: 23.60688459 | CX50: 23.90611846 | CY50: 24.21414876 | CZ50: 24.5306441 | DA50: 24.85528113 | DB50: 25.18774504 | DC50: 25.52773002 | DD50: 25.87493961 | DE50: 26.22908691 | DF50: 26.5898947 | DG50: 26.95709554 | DH50: 27.33043176 | DI50: 27.70965536 | DJ50: 28.09452794 | DK50: 28.48482052 | DL50: 28.88031336 | DM50: 29.28079575 | DN50: 29.68606575 | DO50: 30.09592996 | DP50: 30.51020321 | DQ50: 30.92870835 | DR50: 31.35127589 | DS50: 31.77774378 | DT50: 32.20795709 | DU50: 32.64176772 | DV50: 33.07903415 | DW50: 33.51962112 | DX50: 33.96339942 | DY50: 1.8 | EB50: 19.85 | EC50: 19.85 | ED50: 19.85761819 | EE50: 19.88045523 | EF50: 19.91845878 | EG50: 19.97154225 | EH50: 20.03958582 | EI50: 20.12243773 | EJ50: 20.21991592 | EK50: 20.33181005 | EL50: 20.45788357 | EM50: 20.5978761 | EN50: 20.75150597 | EO50: 20.9184727 | EP50: 21.09845966 | EQ50: 21.29113665 | ER50: 21.49616245 | ES50: 21.71318724 | ET50: 21.94185498 | EU50: 22.18180561 | EV50: 22.43267706 | EW50: 22.69410716 | EX50: 22.96573535 | EY50: 23.24720413 | EZ50: 23.53816051 | FA50: 23.83825707 | FB50: 24.14715304 | FC50: 24.46451512 | FD50: 24.79001815 | FE50: 25.12334572 | FF50: 25.46419054 | FG50: 25.81225484 | FH50: 26.16725052 | FI50: 26.52889934 | FJ50: 26.89693291 | FK50: 27.27109275 | FL50: 27.65113018 | FM50: 28.03680617 | FN50: 28.42789123 | FO50: 28.82416521 | FP50: 29.22541702 | FQ50: 29.63144445 | FR50: 30.04205386 | FS50: 30.45705994 | FT50: 30.8762854 | FU50: 31.2995607 | FV50: 31.72672375 | FW50: 32.15761963 | FX50: 32.59210027 | FY50: 33.03002422 | FZ50: 33.47125633 | GA50: 33.91566747 | GB50: 34.36313432 | GC50: 34.81353903 | GD50: 35.26676906 | GE50: 35.72271686 | GF50: 36.18127969 | GG50: 36.64235937 | GH50: 37.10586207 | GI50: 37.57169813 | GJ50: 38.03978181 | GK50: 38.51003116 | GL50: 38.98236781 | GM50: 39.45671679 | GN50: 39.9330064 | GO50: 40.41116801 | GP50: 40.89113596 | GQ50: 41.37284738 | GR50: 41.85624207 | GS50: 42.34126238 | GT50: 42.82785309 | GU50: 43.31596126 | GV50: 43.80553618 | GW50: 44.29652921 | GX50: 44.78889371 | GY50: 45.28258495 | GZ50: 45.77756 | HA50: 46.27377767 | HB50: 46.7711984 | HC50: 47.26978422 | HD50: 47.76949864 | HE50: 48.27030661 | HF50: 48.77217444 | HG50: 49.27506976 | HH50: 49.77896142 | HI50: 50.28381947 | HJ50: 50.78961508 | HK50: 51.29632053 | HL50: 51.80390912 | HM50: 52.31235514 | HN50: 52.82163383 | HO50: 53.33172133 | HP50: 53.84259466 | HQ50: 54.35423167 | HR50: 54.86661098 | HS50: 55.37971199 | HT50: 55.89351483 | HU50: 56.40800032 | HV50: 56.92314995 | HW50: 57.43894585 | HX50: 57.95537076 | HY50: 58.47240802 | HZ50: 1.8
B51: 28 | C51: 15.4 | D51: 20.4 | E51: 1.8 | F51: 21.98635941 | G51: 20.4792578 | H51: -0.9763544952 | I51: -127.7111389 | J51: 0.04548274598 | K51: 0.04882989461 | L51: 0.041665971 | M51: -13.70230745 | N51: -13.08552525 | O51: -14.46361084 | AA51: 20.4 | AB51: 34.28775292 | AC51: 33.84822743 | AD51: 33.4119739 | AE51: 32.97912218 | AF51: 32.54980799 | AG51: 32.12417314 | AH51: 31.70236584 | AI51: 31.28454091 | AJ51: 30.87086005 | AK51: 30.46149208 | AL51: 30.05661325 | AM51: 29.6564074 | AN51: 29.26106628 | AO51: 28.87078974 | AP51: 28.48578593 | AQ51: 28.10627154 | AR51: 27.73247194 | AS51: 27.36462132 | AT51: 27.0029628 | AU51: 26.6477485 | AV51: 26.29923953 | AW51: 25.95770598 | AX51: 25.62342678 | AY51: 25.29668951 | AZ51: 24.97779013 | BA51: 24.66703265 | BB51: 24.36472861 | BC51: 24.07119648 | BD51: 23.78676102 | BE51: 23.51175238 | BF51: 23.24650511 | BG51: 22.99135707 | BH51: 22.7466481 | BI51: 22.51271863 | BJ51: 22.28990803 | BK51: 22.07855294 | BL51: 21.87898535 | BM51: 21.69153061 | BN51: 21.51650529 | BO51: 21.35421504 | BP51: 21.20495225 | BQ51: 21.06899381 | BR51: 20.94659877 | BS51: 20.83800614 | BT51: 20.7434327 | BU51: 20.66307092 | BV51: 20.59708717 | BW51: 20.54561997 | BX51: 20.50877861 | BY51: 20.48664199 | BZ51: 20.4792578 | CA51: 20.48664199 | CB51: 20.50877861 | CC51: 20.54561997 | CD51: 20.59708717 | CE51: 20.66307092 | CF51: 20.7434327 | CG51: 20.83800614 | CH51: 20.94659877 | CI51: 21.06899381 | CJ51: 21.20495225 | CK51: 21.35421504 | CL51: 21.51650529 | CM51: 21.69153061 | CN51: 21.87898535 | CO51: 22.07855294 | CP51: 22.28990803 | CQ51: 22.51271863 | CR51: 22.7466481 | CS51: 22.99135707 | CT51: 23.24650511 | CU51: 23.51175238 | CV51: 23.78676102 | CW51: 24.07119648 | CX51: 24.36472861 | CY51: 24.66703265 | CZ51: 24.97779013 | DA51: 25.29668951 | DB51: 25.62342678 | DC51: 25.95770598 | DD51: 26.29923953 | DE51: 26.6477485 | DF51: 27.0029628 | DG51: 27.36462132 | DH51: 27.73247194 | DI51: 28.10627154 | DJ51: 28.48578593 | DK51: 28.87078974 | DL51: 29.26106628 | DM51: 29.6564074 | DN51: 30.05661325 | DO51: 30.46149208 | DP51: 30.87086005 | DQ51: 31.28454091 | DR51: 31.70236584 | DS51: 32.12417314 | DT51: 32.54980799 | DU51: 32.97912218 | DV51: 33.4119739 | DW51: 33.84822743 | DX51: 34.28775292 | DY51: 1.8 | EB51: 20.4 | EC51: 20.4 | ED51: 20.40741287 | EE51: 20.42963534 | EF51: 20.46661916 | EG51: 20.51828453 | EH51: 20.58452088 | EI51: 20.66518812 | EJ51: 20.76011802 | EK51: 20.86911594 | EL51: 20.99196275 | EM51: 21.12841688 | EN51: 21.27821656 | EO51: 21.44108206 | EP51: 21.61671807 | EQ51: 21.80481598 | ER51: 22.00505624 | ES51: 22.21711052 | ET51: 22.44064393 | EU51: 22.67531698 | EV51: 22.92078751 | EW51: 23.17671245 | EX51: 23.44274941 | EY51: 23.71855813 | EZ51: 24.00380178 | FA51: 24.29814808 | FB51: 24.60127029 | FC51: 24.91284809 | FD51: 25.23256824 | FE51: 25.5601252 | FF51: 25.89522157 | FG51: 26.23756848 | FH51: 26.58688587 | FI51: 26.94290259 | FJ51: 27.30535662 | FK51: 27.67399501 | FL51: 28.04857394 | FM51: 28.42885858 | FN51: 28.81462302 | FO51: 29.20565014 | FP51: 29.60173137 | FQ51: 30.00266655 | FR51: 30.40826368 | FS51: 30.8183387 | FT51: 31.23271522 | FU51: 31.6512243 | FV51: 32.07370418 | FW51: 32.5 | FX51: 32.92996356 | FY51: 33.36345306 | FZ51: 33.80033284 | GA51: 34.24047313 | GB51: 34.6837498 | GC51: 35.13004412 | GD51: 35.57924254 | GE51: 36.03123645 | GF51: 36.48592194 | GG51: 36.94319964 | GH51: 37.40297448 | GI51: 37.86515549 | GJ51: 38.32965562 | GK51: 38.79639158 | GL51: 39.26528365 | GM51: 39.73625549 | GN51: 40.20923401 | GO51: 40.68414925 | GP51: 41.16093415 | GQ51: 41.63952449 | GR51: 42.11985874 | GS51: 42.60187789 | GT51: 43.08552541 | GU51: 43.57074707 | GV51: 44.05749085 | GW51: 44.54570686 | GX51: 45.03534723 | GY51: 45.52636599 | GZ51: 46.01871902 | HA51: 46.51236395 | HB51: 47.00726008 | HC51: 47.5033683 | HD51: 48.00065104 | HE51: 48.49907216 | HF51: 48.99859692 | HG51: 49.49919191 | HH51: 50.00082499 | HI51: 50.50346523 | HJ51: 51.00708284 | HK51: 51.51164917 | HL51: 52.0171366 | HM51: 52.52351854 | HN51: 53.03076937 | HO51: 53.53886439 | HP51: 54.04777979 | HQ51: 54.55749261 | HR51: 55.06798071 | HS51: 55.57922274 | HT51: 56.09119806 | HU51: 56.60388679 | HV51: 57.11726972 | HW51: 57.63132829 | HX51: 58.14604458 | HY51: 58.66140128 | HZ51: 1.8
B52: 29 | C52: 15.95 | D52: 20.95 | E52: 1.8 | F52: 22.49761098 | G52: 21.02718479 | H52: -0.9396790855 | I52: -122.9138462 | J52: 0.04444916399 | K52: 0.04755748381 | L52: 0.04404727202 | M52: -13.90196905 | N52: -13.31486362 | O52: -13.98086066 | AA52: 20.95 | AB52: 34.61780611 | AC52: 34.18252478 | AD52: 33.75059259 | AE52: 33.32213979 | AF52: 32.89730232 | AG52: 32.47622207 | AH52: 32.05904709 | AI52: 31.64593181 | AJ52: 31.23703731 | AK52: 30.83253152 | AL52: 30.43258944 | AM52: 30.03739336 | AN52: 29.64713308 | AO52: 29.26200608 | AP52: 28.88221771 | AQ52: 28.50798134 | AR52: 28.13951847 | AS52: 27.77705888 | AT52: 27.42084061 | AU52: 27.07111006 | AV52: 26.72812189 | AW52: 26.39213898 | AX52: 26.06343224 | AY52: 25.7422804 | AZ52: 25.4289697 | BA52: 25.1237935 | BB52: 24.82705178 | BC52: 24.53905051 | BD52: 24.26010099 | BE52: 23.99051896 | BF52: 23.73062367 | BG52: 23.48073679 | BH52: 23.24118112 | BI52: 23.01227933 | BJ52: 22.79435237 | BK52: 22.5877179 | BL52: 22.39268854 | BM52: 22.20957001 | BN52: 22.03865922 | BO52: 21.88024223 | BP52: 21.73459224 | BQ52: 21.6019675 | BR52: 21.48260925 | BS52: 21.3767397 | BT52: 21.28456013 | BU52: 21.20624908 | BV52: 21.14196065 | BW52: 21.09182306 | BX52: 21.0559374 | BY52: 21.03437662 | BZ52: 21.02718479 | CA52: 21.03437662 | CB52: 21.0559374 | CC52: 21.09182306 | CD52: 21.14196065 | CE52: 21.20624908 | CF52: 21.28456013 | CG52: 21.3767397 | CH52: 21.48260925 | CI52: 21.6019675 | CJ52: 21.73459224 | CK52: 21.88024223 | CL52: 22.03865922 | CM52: 22.20957001 | CN52: 22.39268854 | CO52: 22.5877179 | CP52: 22.79435237 | CQ52: 23.01227933 | CR52: 23.24118112 | CS52: 23.48073679 | CT52: 23.73062367 | CU52: 23.99051896 | CV52: 24.26010099 | CW52: 24.53905051 | CX52: 24.82705178 | CY52: 25.1237935 | CZ52: 25.4289697 | DA52: 25.7422804 | DB52: 26.06343224 | DC52: 26.39213898 | DD52: 26.72812189 | DE52: 27.07111006 | DF52: 27.42084061 | DG52: 27.77705888 | DH52: 28.13951847 | DI52: 28.50798134 | DJ52: 28.88221771 | DK52: 29.26200608 | DL52: 29.64713308 | DM52: 30.03739336 | DN52: 30.43258944 | DO52: 30.83253152 | DP52: 31.23703731 | DQ52: 31.64593181 | DR52: 32.05904709 | DS52: 32.47622207 | DT52: 32.89730232 | DU52: 33.32213979 | DV52: 33.75059259 | DW52: 34.18252478 | DX52: 34.61780611 | DY52: 1.8 | EB52: 20.95 | EC52: 20.95 | ED52: 20.95721833 | EE52: 20.97885841 | EF52: 21.01487568 | EG52: 21.06519641 | EH52: 21.12971841 | EI52: 21.20831205 | EJ52: 21.30082158 | EK52: 21.40706659 | EL52: 21.52684371 | EM52: 21.65992844 | EN52: 21.80607713 | EO52: 21.96502902 | EP52: 22.13650831 | EQ52: 22.32022625 | ER52: 22.51588328 | ES52: 22.72317099 | ET52: 22.94177412 | EU52: 23.17137242 | EV52: 23.4116424 | EW52: 23.66225898 | EX52: 23.92289698 | EY52: 24.19323252 | EZ52: 24.47294424 | FA52: 24.7617144 | FB52: 25.05922984 | FC52: 25.36518283 | FD52: 25.6792718 | FE52: 26.0012019 | FF52: 26.33068552 | FG52: 26.6674427 | FH52: 27.01120138 | FI52: 27.36169768 | FJ52: 27.71867601 | FK52: 28.08188918 | FL52: 28.4510984 | FM52: 28.82607327 | FN52: 29.20659172 | FO52: 29.59243991 | FP52: 29.98341208 | FQ52: 30.37931039 | FR52: 30.77994477 | FS52: 31.18513268 | FT52: 31.59469892 | FU52: 32.00847544 | FV52: 32.42630105 | FW52: 32.84802125 | FX52: 33.27348794 | FY52: 33.70255925 | FZ52: 34.13509924 | GA52: 34.57097771 | GB52: 35.01006998 | GC52: 35.45225663 | GD52: 35.89742331 | GE52: 36.34546051 | GF52: 36.7962634 | GG52: 37.24973154 | GH52: 37.70576879 | GI52: 38.16428304 | GJ52: 38.62518608 | GK52: 39.08839342 | GL52: 39.55382409 | GM52: 40.02140053 | GN52: 40.49104839 | GO52: 40.96269644 | GP52: 41.43627638 | GQ52: 41.9117227 | GR52: 42.38897262 | GS52: 42.8679659 | GT52: 43.34864473 | GU52: 43.83095367 | GV52: 44.3148395 | GW52: 44.80025112 | GX52: 45.28713945 | GY52: 45.7754574 | GZ52: 46.26515968 | HA52: 46.7562028 | HB52: 47.24854495 | HC52: 47.74214595 | HD52: 48.23696715 | HE52: 48.73297138 | HF52: 49.23012289 | HG52: 49.72838727 | HH52: 50.22773138 | HI52: 50.72812336 | HJ52: 51.2295325 | HK52: 51.73192921 | HL52: 52.23528501 | HM52: 52.73957243 | HN52: 53.244765 | HO52: 53.7508372 | HP52: 54.25776442 | HQ52: 54.76552291 | HR52: 55.27408977 | HS52: 55.78344288 | HT52: 56.29356091 | HU52: 56.80442324 | HV52: 57.31600998 | HW52: 57.82830189 | HX52: 58.34128041 | HY52: 58.85492758 | HZ52: 1.8
B53: 30 | C53: 16.5 | D53: 21.5 | E53: 1.8 | F53: 23.01064971 | G53: 21.57521726 | H53: -0.9046853307 | I53: -118.3365207 | J53: 0.04345813841 | K53: 0.04634947531 | L53: 0.04609498346 | M53: -14.09781861 | N53: -13.53834455 | O53: -13.58616772 | AA53: 21.5 | AB53: 34.95339755 | AC53: 34.52234783 | AD53: 34.094721 | AE53: 33.67064745 | AF53: 33.25026316 | AG53: 32.83370981 | AH53: 32.42113508 | AI53: 32.0126928 | AJ53: 31.60854315 | AK53: 31.20885291 | AL53: 30.81379561 | AM53: 30.42355173 | AN53: 30.03830887 | AO53: 29.65826192 | AP53: 29.28361317 | AQ53: 28.91457245 | AR53: 28.55135724 | AS53: 28.19419266 | AT53: 27.84331158 | AU53: 27.49895453 | AV53: 27.16136963 | AW53: 26.83081251 | AX53: 26.5075461 | AY53: 26.19184033 | AZ53: 25.88397187 | BA53: 25.58422365 | BB53: 25.29288437 | BC53: 25.0102479 | BD53: 24.73661254 | BE53: 24.47228024 | BF53: 24.21755562 | BG53: 23.97274494 | BH53: 23.73815494 | BI53: 23.51409152 | BJ53: 23.30085835 | BK53: 23.09875538 | BL53: 22.90807718 | BM53: 22.72911129 | BN53: 22.56213642 | BO53: 22.40742065 | BP53: 22.26521951 | BQ53: 22.13577421 | BR53: 22.01930971 | BS53: 21.91603294 | BT53: 21.82613113 | BU53: 21.74977011 | BV53: 21.68709294 | BW53: 21.6382185 | BX53: 21.6032405 | BY53: 21.58222648 | BZ53: 21.57521726 | CA53: 21.58222648 | CB53: 21.6032405 | CC53: 21.6382185 | CD53: 21.68709294 | CE53: 21.74977011 | CF53: 21.82613113 | CG53: 21.91603294 | CH53: 22.01930971 | CI53: 22.13577421 | CJ53: 22.26521951 | CK53: 22.40742065 | CL53: 22.56213642 | CM53: 22.72911129 | CN53: 22.90807718 | CO53: 23.09875538 | CP53: 23.30085835 | CQ53: 23.51409152 | CR53: 23.73815494 | CS53: 23.97274494 | CT53: 24.21755562 | CU53: 24.47228024 | CV53: 24.73661254 | CW53: 25.0102479 | CX53: 25.29288437 | CY53: 25.58422365 | CZ53: 25.88397187 | DA53: 26.19184033 | DB53: 26.5075461 | DC53: 26.83081251 | DD53: 27.16136963 | DE53: 27.49895453 | DF53: 27.84331158 | DG53: 28.19419266 | DH53: 28.55135724 | DI53: 28.91457245 | DJ53: 29.28361317 | DK53: 29.65826192 | DL53: 30.03830887 | DM53: 30.42355173 | DN53: 30.81379561 | DO53: 31.20885291 | DP53: 31.60854315 | DQ53: 32.0126928 | DR53: 32.42113508 | DS53: 32.83370981 | DT53: 33.25026316 | DU53: 33.67064745 | DV53: =SQRT(($AA53-$O$7)^2+(DV$22-$P$7)^2+($DY53-$Q$7)^2) -> 34.094721 | DW53: 34.52234783 | DX53: 34.95339755 | DY53: 1.8 | EB53: 21.5 | EC53: 21.5 | ED53: 21.50703373 | EE53: 21.52812114 | EF53: 21.563221 | EG53: 21.61226504 | EH53: 21.67515859 | EI53: 21.75178154 | EJ53: 21.84198938 | EK53: 21.9456146 | EL53: 22.06246813 | EM53: 22.19234102 | EN53: 22.33500616 | EO53: 22.4902201 | EP53: 22.65772495 | EQ53: 22.83725027 | ER53: 23.02851493 | ES53: 23.23122898 | ET53: 23.44509544 | EU53: 23.669812 | EV53: 23.90507268 | EW53: 24.15056935 | EX53: 24.40599312 | EY53: 24.67103565 | EZ53: 24.94539036 | FA53: 25.22875344 | FB53: 25.52082483 | FC53: 25.82130903 | FD53: 26.12991581 | FE53: 26.44636081 | FF53: 26.77036608 | FG53: 27.10166047 | FH53: 27.43997996 | FI53: 27.78506793 | FJ53: 28.13667535 | FK53: 28.49456088 | FL53: 28.85849095 | FM53: 29.22823977 | FN53: 29.60358931 | FO53: 29.98432924 | FP53: 30.37025683 | FQ53: 30.76117683 | FR53: 31.15690132 | FS53: 31.55724956 | FT53: 31.96204781 | FU53: 32.37112911 | FV53: 32.78433315 | FW53: 33.20150599 | FX53: 33.62249991 | FY53: 34.04717316 | FZ53: 34.47538977 | GA53: 34.90701935 | GB53: 35.34193685 | GC53: 35.78002236 | GD53: 36.22116094 | GE53: 36.6652424 | GF53: 37.11216108 | GG53: 37.56181572 | GH53: 38.01410922 | GI53: 38.46894852 | GJ53: 38.92624436 | GK53: 39.38591119 | GL53: 39.84786694 | GM53: 40.31203294 | GN53: 40.77833371 | GO53: 41.24669684 | GP53: 41.71705287 | GQ53: 42.18933515 | GR53: 42.6634797 | GS53: 43.13942512 | GT53: 43.61711247 | GU53: 44.09648512 | GV53: 44.57748871 | GW53: 45.06007102 | GX53: 45.54418185 | GY53: 46.02977297 | GZ53: 46.51679804 | HA53: 47.00521248 | HB53: 47.49497342 | HC53: 47.98603964 | HD53: 48.47837147 | HE53: 48.97193074 | HF53: 49.46668071 | HG53: 49.962586 | HH53: 50.45961256 | HI53: 50.95772758 | HJ53: 51.45689944 | HK53: 51.95709769 | HL53: 52.45829296 | HM53: 52.96045695 | HN53: 53.46356236 | HO53: 53.96758286 | HP53: 54.47249306 | HQ53: 54.97826843 | HR53: 55.48488533 | HS53: 55.9923209 | HT53: 56.50055309 | HU53: 57.0095606 | HV53: 57.51932284 | HW53: =SQRT(($EB53-$O$7)^2+(HW$22-$Q$7)^2+(-$P$7)^2) -> 58.02981992 | HX53: 58.54103262 | HY53: 59.05294235 | HZ53: 1.8
B54: 31 | C54: 17.05 | D54: 22.05 | E54: 1.8 | F54: 23.52535866 | G54: 22.1233474 | H54: -0.871264149 | I54: -113.9648942 | J54: 0.04250732218 | K54: 0.04520111636 | L54: 0.04784531933 | M54: -14.28996605 | N54: -13.75625777 | O54: -13.26245184 | AA54: 22.05 | AB54: 35.29436924 | AC54: 34.86753504 | AD54: 34.444194 | AE54: 34.02447648 | AF54: 33.60851827 | AG54: 33.19646065 | AH54: 32.78845071 | AI54: 32.38464142 | AJ54: 31.98519189 | AK54: 31.59026749 | AL54: 31.20004006 | AM54: 30.81468806 | AN54: 30.43439666 | AO54: 30.05935794 | AP54: 29.68977097 | AQ54: 29.32584185 | AR54: 28.96778383 | AS54: 28.6158173 | AT54: 28.27016979 | AU54: 27.93107588 | AV54: 27.59877715 | AW54: 27.27352196 | AX54: 26.95556529 | AY54: 26.64516842 | AZ54: 26.34259858 | BA54: 26.04812853 | BB54: 25.76203602 | BC54: 25.48460319 | BD54: 25.21611588 | BE54: 24.95686278 | BF54: 24.7071346 | BG54: 24.46722297 | BH54: 24.23741942 | BI54: 24.01801407 | BJ54: 23.8092944 | BK54: 23.61154379 | BL54: 23.42504002 | BM54: 23.25005376 | BN54: 23.0868469 | BO54: 22.93567091 | BP54: 22.79676512 | BQ54: 22.67035509 | BR54: 22.5566509 | BS54: 22.45584556 | BT54: 22.36811347 | BU54: 22.29360895 | BV54: 22.232465 | BW54: 22.18479209 | BX54: 22.15067719 | BY54: 22.13018301 | BZ54: 22.1233474 | CA54: 22.13018301 | CB54: 22.15067719 | CC54: 22.18479209 | CD54: 22.232465 | CE54: 22.29360895 | CF54: 22.36811347 | CG54: 22.45584556 | CH54: 22.5566509 | CI54: 22.67035509 | CJ54: 22.79676512 | CK54: 22.93567091 | CL54: 23.0868469 | CM54: 23.25005376 | CN54: 23.42504002 | CO54: 23.61154379 | CP54: 23.8092944 | CQ54: 24.01801407 | CR54: 24.23741942 | CS54: 24.46722297 | CT54: 24.7071346 | CU54: 24.95686278 | CV54: 25.21611588 | CW54: 25.48460319 | CX54: 25.76203602 | CY54: 26.04812853 | CZ54: 26.34259858 | DA54: 26.64516842 | DB54: 26.95556529 | DC54: 27.27352196 | DD54: 27.59877715 | DE54: 27.93107588 | DF54: 28.27016979 | DG54: =SQRT(($AA54-$O$7)^2+(DG$22-$P$7)^2+($DY54-$Q$7)^2) -> 28.6158173 | DH54: 28.96778383 | DI54: 29.32584185 | DJ54: 29.68977097 | DK54: 30.05935794 | DL54: 30.43439666 | DM54: 30.81468806 | DN54: 31.20004006 | DO54: 31.59026749 | DP54: 31.98519189 | DQ54: 32.38464142 | DR54: 32.78845071 | DS54: 33.19646065 | DT54: 33.60851827 | DU54: 34.02447648 | DV54: 34.444194 | DW54: 34.86753504 | DX54: 35.29436924 | DY54: 1.8 | EB54: 22.05 | EC54: 22.05 | ED54: 22.05685834 | EE54: 22.07742059 | EF54: 22.11164851 | EG54: 22.15947878 | EH54: 22.22082357 | EI54: 22.29557131 | EJ54: 22.38358774 | EK54: 22.48471703 | EL54: 22.59878315 | EM54: 22.7255913 | EN54: 22.86492948 | EO54: 23.01657012 | EP54: 23.18027178 | EQ54: 23.35578087 | ER54: 23.5428333 | ES54: 23.74115625 | ET54: 23.95046972 | EU54: 24.1704882 | EV54: 24.40092211 | EW54: 24.64147926 | EX54: 24.89186614 | EY54: 25.1517892 | EZ54: 25.42095592 | FA54: 25.69907586 | FB54: 25.98586154 | FC54: 26.28102928 | FD54: 26.58429988 | FE54: 26.89539923 | FF54: 27.21405887 | FG54: 27.54001634 | FH54: 27.87301562 | FI54: 28.21280738 | FJ54: 28.55914915 | FK54: 28.91180555 | FL54: 29.27054834 | FM54: 29.63515649 | FN54: 30.00541618 | FO54: 30.38112078 | FP54: 30.7620708 | FQ54: 31.14807378 | FR54: 31.53894418 | FS54: 31.93450328 | FT54: 32.33457901 | FU54: 32.73900579 | FV54: 33.14762435 | FW54: 33.56028158 | FX54: 33.97683034 | FY54: 34.39712924 | FZ54: 34.82104249 | GA54: 35.24843968 | GB54: 35.67919562 | GC54: 36.11319011 | GD54: 36.5503078 | GE54: 36.99043795 | GF54: 37.43347432 | GG54: 37.87931494 | GH54: 38.32786193 | GI54: 38.77902139 | GJ54: 39.2327032 | GK54: 39.68882084 | GL54: 40.14729132 | GM54: 40.60803492 | GN54: 41.07097515 | GO54: 41.53603857 | GP54: 42.00315464 | GQ54: 42.47225565 | GR54: 42.94327654 | GS54: 43.41615483 | GT54: 43.89083048 | GU54: 44.3672458 | GV54: 44.84534535 | GW54: 45.32507584 | GX54: 45.80638602 | GY54: 46.28922661 | GZ54: 46.77355022 | HA54: 47.25931125 | HB54: 47.74646584 | HC54: 48.23497175 | HD54: 48.72478835 | HE54: 49.2158765 | HF54: 49.70819852 | HG54: 50.2017181 | HH54: =SQRT(($EB54-$O$7)^2+(HH$22-$Q$7)^2+(-$P$7)^2) -> 50.69640027 | HI54: 51.19221132 | HJ54: 51.68911878 | HK54: 52.18709132 | HL54: 52.68609874 | HM54: 53.18611191 | HN54: 53.68710273 | HO54: 54.1890441 | HP54: 54.69190982 | HQ54: 55.19567465 | HR54: 55.70031418 | HS54: 56.20580486 | HT54: 56.71212392 | HU54: 57.21924938 | HV54: 57.72715999 | HW54: 58.23583519 | HX54: 58.74525513 | HY54: 59.2554006 | HZ54: 1.8
B55: 32 | C55: 17.6 | D55: =C55+$O$10 -> 22.6 | E55: =C55*$G$10+$Q$10 -> 1.8 | F55: =SQRT((D55-$O$8)^2+(E55-$Q$8)^2) -> 24.04163056 | G55: =SQRT((D55-$O$7)^2+(E55-$Q$7)^2) -> 22.6715681 | H55: =G55-F55+$H$8 -> -0.8393153495 | I55: -109.7858613 | J55: =$F$8/F55 -> 0.04159451654 | K55: 0.04410810914 | L55: 0.04933098731 | M55: -14.47851937 | N55: -13.96887218 | O55: -12.99684484 | AA55: 22.6 | AB55: 35.64056677 | AC55: 35.21792867 | AD55: 34.79885056 | AE55: 34.38346259 | AF55: 33.97190015 | AG55: 33.56430396 | AH55: 33.16082026 | AI55: 32.761601 | AJ55: 32.36680398 | AK55: 31.976593 | AL55: 31.591138 | AM55: 31.21061518 | AN55: 30.83520715 | AO55: 30.46510299 | AP55: 30.10049833 | AQ55: 29.74159545 | AR55: 29.38860323 | AS55: 29.04173721 | AT55: 28.70121949 | AU55: 28.36727869 | AV55: 28.04014979 | AW55: 27.72007395 | AX55: 27.4072983 | AY55: 27.10207557 | AZ55: 26.80466377 | BA55: 26.51532576 | BB55: 26.23432866 | BC55: 25.9619433 | BD55: 25.69844353 | BE55: 25.44410541 | BF55: 25.19920634 | BG55: 24.96402411 | BH55: 24.73883587 | BI55: 24.5239169 | BJ55: 24.31953947 | BK55: 24.12597148 | BL55: 23.9434751 | BM55: 23.77230532 | BN55: 23.61270844 | BO55: 23.46492063 | BP55: 23.32916629 | BQ55: 23.20565664 | BR55: 23.09458811 | BS55: 22.99614098 | BT55: 22.91047795 | BU55: 22.83774288 | BV55: 22.77805962 | BW55: 22.73153096 | BX55: 22.69823782 | BY55: 22.67823847 | BZ55: 22.6715681 | CA55: 22.67823847 | CB55: 22.69823782 | CC55: 22.73153096 | CD55: 22.77805962 | CE55: 22.83774288 | CF55: 22.91047795 | CG55: 22.99614098 | CH55: 23.09458811 | CI55: 23.20565664 | CJ55: 23.32916629 | CK55: 23.46492063 | CL55: 23.61270844 | CM55: 23.77230532 | CN55: 23.9434751 | CO55: 24.12597148 | CP55: 24.31953947 | CQ55: 24.5239169 | CR55: 24.73883587 | CS55: =SQRT(($AA55-$O$7)^2+(CS$22-$P$7)^2+($DY55-$Q$7)^2) -> 24.96402411 | CT55: 25.19920634 | CU55: 25.44410541 | CV55: 25.69844353 | CW55: 25.9619433 | CX55: 26.23432866 | CY55: 26.51532576 | CZ55: 26.80466377 | DA55: 27.10207557 | DB55: 27.4072983 | DC55: 27.72007395 | DD55: 28.04014979 | DE55: 28.36727869 | DF55: 28.70121949 | DG55: 29.04173721 | DH55: 29.38860323 | DI55: 29.74159545 | DJ55: 30.10049833 | DK55: 30.46510299 | DL55: 30.83520715 | DM55: 31.21061518 | DN55: 31.591138 | DO55: 31.976593 | DP55: 32.36680398 | DQ55: 32.761601 | DR55: 33.16082026 | DS55: 33.56430396 | DT55: 33.97190015 | DU55: 34.38346259 | DV55: 34.79885056 | DW55: 35.21792867 | DX55: 35.64056677 | DY55: 1.8 | EB55: 22.6 | EC55: 22.6 | ED55: 22.60669149 | EE55: 22.62675408 | EF55: 22.66015225 | EG55: 22.70682717 | EH55: 22.76669717 | EI55: 22.83965849 | EJ55: 22.92558614 | EK55: 23.02433495 | EL55: 23.13574075 | EM55: 23.25962167 | EN55: 23.39577953 | EO55: 23.54400136 | EP55: 23.70406083 | EQ55: 23.87571988 | ER55: 24.05873022 | ES55: 24.25283489 | ET55: 24.45776973 | EU55: 24.67326488 | EV55: 24.89904617 | EW55: 25.13483638 | EX55: 25.38035658 | EY55: 25.63532719 | EZ55: 25.89946911 | FA55: 26.17250466 | FB55: 26.45415846 | FC55: 26.74415824 | FD55: 27.04223548 | FE55: 27.34812608 | FF55: 27.66157082 | FG55: 27.98231584 | FH55: 28.31011303 | FI55: 28.64472028 | FJ55: 28.98590175 | FK55: 29.33342803 | FL55: 29.68707631 | FM55: 30.04663043 | FN55: 30.4118809 | FO55: 30.78262497 | FP55: 31.15866653 | FQ55: 31.53981611 | FR55: 31.92589075 | FS55: 32.31671394 | FT55: 32.71211549 | FU55: 33.11193138 | FV55: 33.51600364 | FW55: 33.92418017 | FX55: 34.3363146 | FY55: 34.75226611 | FZ55: 35.17189929 | GA55: 35.59508393 | GB55: 36.02169485 | GC55: 36.45161176 | GD55: 36.88471906 | GE55: 37.32090567 | GF55: 37.76006488 | GG55: 38.20209418 | GH55: 38.64689509 | GI55: 39.094373 | GJ55: 39.54443703 | GK55: 39.99699989 | GL55: 40.4519777 | GM55: 40.9092899 | GN55: 41.36885906 | GO55: 41.8306108 | GP55: 42.29447363 | GQ55: 42.76037886 | GR55: 43.22826043 | GS55: 43.69805488 | GT55: =SQRT(($EB55-$O$7)^2+(GT$22-$Q$7)^2+(-$P$7)^2) -> 44.16970115 | GU55: 44.64314057 | GV55: 45.11831668 | GW55: 45.59517518 | GX55: 46.07366384 | GY55: 46.5537324 | GZ55: 47.03533246 | HA55: 47.51841748 | HB55: 48.00294262 | HC55: 48.4888647 | HD55: 48.97614215 | HE55: 49.46473491 | HF55: 49.95460439 | HG55: 50.4457134 | HH55: 50.93802607 | HI55: 51.43150785 | HJ55: 51.92612541 | HK55: 52.42184659 | HL55: 52.91864038 | HM55: 53.41647686 | HN55: 53.91532713 | HO55: 54.41516333 | HP55: 54.91595852 | HQ55: 55.41768671 | HR55: 55.92032278 | HS55: 56.42384248 | HT55: 56.92822235 | HU55: 57.43343974 | HV55: 57.93947273 | HW55: 58.44630014 | HX55: 58.95390148 | HY55: 59.46225694 | HZ55: 1.8
B56: 33 | C56: 18.15 | D56: 23.15 | E56: 1.8 | F56: 24.55936685 | G56: 23.21987295 | H56: -0.8087467812 | I56: -105.7873683 | J56: 0.04071766207 | K56: 0.04306655777 | L56: 0.05058137718 | M56: -14.66358432 | N56: -14.17643777 | O56: -12.779428 | AA56: 23.15 | AB56: 35.99183935 | AC56: 35.57337488 | AD56: 35.15853381 | AE56: 34.74744595 | AF56: 34.34024607 | AG56: 33.93707412 | AH56: 33.53807538 | AI56: 33.14340055 | AJ56: 32.75320595 | AK56: 32.36765361 | AL56: 31.98691139 | AM56: 31.6111531 | AN56: 31.24055857 | AO56: 30.87531376 | AP56: 30.51561076 | AQ56: 30.16164783 | AR56: 29.81362943 | AS56: 29.47176615 | AT56: 29.13627464 | AU56: 28.80737753 | AV56: 28.48530323 | AW56: 28.17028576 | AX56: 27.86256449 | AY56: 27.56238379 | AZ56: 27.26999267 | BA56: 26.98564433 | BB56: 26.70959565 | BC56: 26.44210657 | BD56: 26.18343942 | BE56: 25.93385818 | BF56: 25.69362761 | BG56: 25.46301239 | BH56: 25.24227605 | BI56: 25.03167993 | BJ56: 24.83148203 | BK56: 24.6419358 | BL56: 24.46328882 | BM56: 24.29578153 | BN56: 24.13964581 | BO56: 23.99510367 | BP56: 23.86236577 | BQ56: 23.7416301 | BR56: 23.63308063 | BS56: 23.53688595 | BT56: 23.45319808 | BU56: 23.38215131 | BV56: 23.32386117 | BW56: 23.27842349 | BX56: 23.24591362 | BY56: 23.22638586 | BZ56: 23.21987295 | CA56: 23.22638586 | CB56: 23.24591362 | CC56: 23.27842349 | CD56: 23.32386117 | CE56: 23.38215131 | CF56: 23.45319808 | CG56: 23.53688595 | CH56: 23.63308063 | CI56: 23.7416301 | CJ56: 23.86236577 | CK56: 23.99510367 | CL56: 24.13964581 | CM56: 24.29578153 | CN56: =SQRT(($AA56-$O$7)^2+(CN$22-$P$7)^2+($DY56-$Q$7)^2) -> 24.46328882 | CO56: 24.6419358 | CP56: 24.83148203 | CQ56: 25.03167993 | CR56: 25.24227605 | CS56: 25.46301239 | CT56: 25.69362761 | CU56: 25.93385818 | CV56: 26.18343942 | CW56: 26.44210657 | CX56: 26.70959565 | CY56: 26.98564433 | CZ56: 27.26999267 | DA56: 27.56238379 | DB56: 27.86256449 | DC56: 28.17028576 | DD56: 28.48530323 | DE56: 28.80737753 | DF56: 29.13627464 | DG56: 29.47176615 | DH56: 29.81362943 | DI56: 30.16164783 | DJ56: 30.51561076 | DK56: 30.87531376 | DL56: 31.24055857 | DM56: 31.6111531 | DN56: 31.98691139 | DO56: 32.36765361 | DP56: 32.75320595 | DQ56: 33.14340055 | DR56: 33.53807538 | DS56: 33.93707412 | DT56: 34.34024607 | DU56: 34.74744595 | DV56: 35.15853381 | DW56: 35.57337488 | DX56: 35.99183935 | DY56: 1.8 | EB56: 23.15 | EC56: 23.15 | ED56: 23.15653256 | EE56: 23.17611917 | EF56: 23.20872681 | EG56: 23.25430068 | EH56: 23.31276474 | EI56: 23.38402232 | EJ56: 23.46795688 | EK56: 23.56443294 | EL56: 23.67329719 | EM56: 23.79437959 | EN56: 23.92749465 | EO56: 24.07244275 | EP56: 24.22901154 | EQ56: 24.39697727 | ER56: 24.57610628 | ES56: 24.76615634 | ET56: 24.96687806 | EU56: 25.1780162 | EV56: 25.39931101 | EW56: 25.63049941 | EX56: 25.87131616 | EY56: 26.12149498 | EZ56: 26.38076951 | FA56: 26.64887427 | FB56: 26.92554549 | FC56: 27.21052186 | FD56: 27.50354523 | FE56: 27.80436117 | FF56: 28.11271954 | FG56: 28.42837491 | FH56: 28.75108694 | FI56: 29.08062069 | FJ56: 29.41674693 | FK56: 29.75924226 | FL56: 30.10788933 | FM56: 30.46247692 | FN56: 30.8228 | FO56: 31.1886598 | FP56: 31.55986375 | FQ56: 31.93622551 | FR56: 32.31756488 | FS56: 32.70370774 | FT56: 33.09448595 | FU56: 33.48973723 | FV56: 33.8893051 | FW56: 34.29303865 | FX56: 34.7007925 | FY56: 35.11242658 | FZ56: 35.52780601 | GA56: 35.94680097 | GB56: 36.36928649 | GC56: 36.79514234 | GD56: 37.22425285 | GE56: 37.65650674 | GF56: 38.09179702 | GG56: 38.53002076 | GH56: 38.97107902 | GI56: 39.41487663 | GJ56: 39.86132211 | GK56: 40.31032746 | GL56: 40.76180811 | GM56: 41.21568269 | GN56: 41.67187301 | GO56: =SQRT(($EB56-$O$7)^2+(GO$22-$Q$7)^2+(-$P$7)^2) -> 42.13030382 | GP56: 42.59090278 | GQ56: 43.05360031 | GR56: 43.51832947 | GS56: 43.98502586 | GT56: 44.45362752 | GU56: 44.92407484 | GV56: 45.39631042 | GW56: 45.87027905 | GX56: 46.34592754 | GY56: 46.82320472 | GZ56: 47.30206127 | HA56: 47.78244971 | HB56: 48.2643243 | HC56: 48.74764097 | HD56: 49.23235725 | HE56: 49.7184322 | HF56: 50.20582636 | HG56: 50.69450167 | HH56: 51.18442146 | HI56: 51.67555031 | HJ56: 52.16785409 | HK56: 52.66129983 | HL56: 53.15585575 | HM56: 53.65149113 | HN56: 54.14817633 | HO56: 54.64588274 | HP56: 55.14458269 | HQ56: 55.64424948 | HR56: 56.14485729 | HS56: 56.64638117 | HT56: 57.14879701 | HU56: 57.65208149 | HV56: 58.15621205 | HW56: 58.66116688 | HX56: 59.16692488 | HY56: 59.67346563 | HZ56: 1.8
B57: 34 | C57: 18.7 | D57: 23.7 | E57: 1.8 | F57: 25.07847683 | G57: 23.76825614 | H57: -0.7794735731 | I57: -101.9583136 | J57: 0.03987482999 | K57: 0.04207292256 | L57: 0.05162281045 | M57: -14.8452641 | N57: -14.37918737 | O57: -12.6024081 | AA57: 23.7 | AB57: 36.34803984 | AC57: 35.93372371 | AD57: 35.52309108 | AE57: 35.11627116 | AF57: 34.71339799 | AG57: 34.31461059 | AH57: 33.92005307 | AI57: 33.52987474 | AJ57: 33.14423027 | AK57: 32.76327975 | AL57: 32.38718883 | AM57: 32.01612875 | AN57: 31.65027646 | AO57: 31.28981464 | AP57: 30.93493171 | AQ57: 30.58582188 | AR57: 30.24268507 | AS57: 29.90572688 | AT57: 29.57515849 | AU57: 29.25119656 | AV57: 28.93406297 | AW57: 28.6239847 | AX57: 28.32119348 | AY57: 28.0259255 | AZ57: 27.73842101 | BA57: 27.45892387 | BB57: 27.18768103 | BC57: 26.92494197 | BD57: 26.67095799 | BE57: 26.42598153 | BF57: 26.19026537 | BG57: 25.9640617 | BH57: 25.74762125 | BI57: 25.54119222 | BJ57: 25.34501923 | BK57: 25.1593422 | BL57: 24.98439513 | BM57: 24.82040491 | BN57: 24.66759007 | BO57: 24.5261595 | BP57: 24.3963112 | BQ57: 24.27823099 | BR57: 24.17209135 | BS57: 24.07805017 | BT57: 23.99624971 | BU57: 23.9268155 | BV57: 23.86985547 | BW57: 23.82545907 | BX57: 23.79369664 | BY57: 23.77461882 | BZ57: 23.76825614 | CA57: 23.77461882 | CB57: 23.79369664 | CC57: 23.82545907 | CD57: 23.86985547 | CE57: 23.9268155 | CF57: 23.99624971 | CG57: 24.07805017 | CH57: 24.17209135 | CI57: 24.27823099 | CJ57: 24.3963112 | CK57: 24.5261595 | CL57: 24.66759007 | CM57: 24.82040491 | CN57: 24.98439513 | CO57: 25.1593422 | CP57: 25.34501923 | CQ57: 25.54119222 | CR57: 25.74762125 | CS57: 25.9640617 | CT57: 26.19026537 | CU57: 26.42598153 | CV57: 26.67095799 | CW57: 26.92494197 | CX57: 27.18768103 | CY57: 27.45892387 | CZ57: 27.73842101 | DA57: 28.0259255 | DB57: 28.32119348 | DC57: 28.6239847 | DD57: 28.93406297 | DE57: 29.25119656 | DF57: 29.57515849 | DG57: 29.90572688 | DH57: 30.24268507 | DI57: 30.58582188 | DJ57: 30.93493171 | DK57: 31.28981464 | DL57: 31.65027646 | DM57: 32.01612875 | DN57: 32.38718883 | DO57: 32.76327975 | DP57: 33.14423027 | DQ57: 33.52987474 | DR57: 33.92005307 | DS57: 34.31461059 | DT57: 34.71339799 | DU57: 35.11627116 | DV57: 35.52309108 | DW57: 35.93372371 | DX57: 36.34803984 | DY57: 1.8 | EB57: 23.7 | EC57: 23.7 | ED57: 23.706381 | EE57: 23.72551369 | EF57: 23.75736728 | EG57: 23.80189068 | EH57: 23.85901297 | EI57: 23.92864392 | EJ57: 24.01067471 | EK57: 24.10497874 | EL57: 24.2114126 | EM57: 24.3298171 | EN57: 24.4600184 | EO57: 24.6018292 | EP57: 24.75504999 | EQ57: 24.9194703 | ER57: 25.09486999 | ES57: 25.28102055 | ET57: 25.47768632 | EU57: 25.68462575 | EV57: 25.90159262 | EW57: 26.12833711 | EX57: 26.36460696 | EY57: 26.61014844 | EZ57: 26.86470733 | FA57: 27.12802978 | FB57: 27.39986314 | FC57: 27.67995665 | FD57: 27.96806214 | FE57: 28.26393462 | FF57: 28.56733274 | FG57: 28.87801932 | FH57: 29.19576168 | FI57: 29.52033198 | FJ57: 29.8515075 | FK57: 30.18907087 | FL57: 30.53281022 | FM57: 30.88251933 | FN57: 31.2379977 | FO57: 31.59905062 | FP57: 31.9654892 | FQ57: 32.33713036 | FR57: 32.71379678 | FS57: 33.09531689 | FT57: 33.48152476 | FU57: 33.87226004 | FV57: 34.26736786 | FW57: 34.66669872 | FX57: 35.07010835 | FY57: 35.47745763 | FZ57: 35.8886124 | GA57: 36.30344336 | GB57: 36.72182593 | GC57: 37.1436401 | GD57: 37.56877028 | GE57: 37.99710515 | GF57: 38.42853757 | GG57: 38.86296437 | GH57: 39.30028626 | GI57: 39.74040765 | GJ57: 40.18323655 | GK57: 40.62868445 | GL57: 41.07666613 | GM57: 41.52709959 | GN57: 41.97990591 | GO57: 42.43500913 | GP57: 42.89233615 | GQ57: 43.35181657 | GR57: 43.81338266 | GS57: 44.27696918 | GT57: 44.74251334 | GU57: 45.20995466 | GV57: 45.67923489 | GW57: 46.15029794 | GX57: 46.62308977 | GY57: 47.09755832 | GZ57: 47.57365342 | HA57: 48.05132672 | HB57: 48.53053163 | HC57: 49.0112232 | HD57: 49.49335814 | HE57: 49.97689466 | HF57: 50.46179248 | HG57: 50.94801272 | HH57: 51.43551788 | HI57: 51.92427178 | HJ57: 52.41423948 | HK57: 52.90538725 | HL57: 53.39768253 | HM57: 53.89109388 | HN57: 54.38559092 | HO57: 54.8811443 | HP57: 55.37772567 | HQ57: 55.87530761 | HR57: 56.37386362 | HS57: 56.87336811 | HT57: 57.37379628 | HU57: 57.87512419 | HV57: 58.37732865 | HW57: 58.88038723 | HX57: 59.38427822 | HY57: 59.88898062 | HZ57: 1.8
B58: 35 | C58: 19.25 | D58: 24.25 | E58: 1.8 | F58: 25.59887693 | G58: 24.31671236 | H58: -0.7514174551 | I58: -98.28845924 | J58: 0.03906421375 | K58: 0.0411239803 | L58: 0.05247880921 | M58: -15.02365924 | N58: -14.57733814 | O58: -12.45956155 | AA58: 24.25 | AB58: 36.70902478 | AC58: 36.29882918 | AD58: 35.89237384 | AE58: 35.48978726 | AF58: 35.0912026 | AG58: 34.69675777 | AH58: 34.30659558 | AI58: 33.92086379 | AJ58: 33.53971526 | AK58: 33.16330804 | AL58: 32.79180538 | AM58: 32.42537587 | AN58: 32.06419343 | AO58: 31.70843736 | AP58: 31.35829236 | AQ58: 31.01394847 | AR58: 30.67560105 | AS58: 30.34345069 | AT58: 30.01770311 | AU58: 29.69856899 | AV58: 29.3862638 | AW58: 29.08100755 | AX58: 28.78302451 | AY58: 28.49254288 | AZ58: 28.2097944 | BA58: 27.93501387 | BB58: 27.6684387 | BC58: 27.41030828 | BD58: 27.16086339 | BE58: 26.92034547 | BF58: 26.68899586 | BG58: 26.46705499 | BH58: 26.25476147 | BI58: 26.05235114 | BJ58: 25.86005607 | BK58: 25.67810351 | BL58: 25.5067148 | BM58: 25.34610424 | BN58: 25.19647793 | BO58: 25.05803264 | BP58: 24.93095465 | BQ58: 24.81541859 | BR58: 24.71158635 | BS58: 24.61960601 | BT58: 24.53961084 | BU58: 24.47171837 | BV58: 24.41602957 | BW58: 24.37262809 | BX58: 24.34157965 | BY58: 24.32293157 | BZ58: 24.31671236 | CA58: 24.32293157 | CB58: 24.34157965 | CC58: 24.37262809 | CD58: 24.41602957 | CE58: 24.47171837 | CF58: 24.53961084 | CG58: 24.61960601 | CH58: 24.71158635 | CI58: 24.81541859 | CJ58: 24.93095465 | CK58: 25.05803264 | CL58: 25.19647793 | CM58: 25.34610424 | CN58: 25.5067148 | CO58: 25.67810351 | CP58: 25.86005607 | CQ58: 26.05235114 | CR58: 26.25476147 | CS58: 26.46705499 | CT58: 26.68899586 | CU58: 26.92034547 | CV58: 27.16086339 | CW58: 27.41030828 | CX58: 27.6684387 | CY58: 27.93501387 | CZ58: 28.2097944 | DA58: 28.49254288 | DB58: 28.78302451 | DC58: 29.08100755 | DD58: 29.3862638 | DE58: 29.69856899 | DF58: 30.01770311 | DG58: 30.34345069 | DH58: 30.67560105 | DI58: 31.01394847 | DJ58: 31.35829236 | DK58: 31.70843736 | DL58: 32.06419343 | DM58: 32.42537587 | DN58: 32.79180538 | DO58: 33.16330804 | DP58: 33.53971526 | DQ58: 33.92086379 | DR58: 34.30659558 | DS58: 34.69675777 | DT58: 35.0912026 | DU58: 35.48978726 | DV58: 35.89237384 | DW58: 36.29882918 | DX58: 36.70902478 | DY58: 1.8 | EB58: 24.25 | EC58: 24.25 | ED58: 24.25623631 | EE58: 24.27493563 | EF58: 24.3060692 | EG58: 24.34958932 | EH58: 24.40542972 | EI58: 24.47350608 | EJ58: 24.55371662 | EK58: 24.64594287 | EL58: 24.7500505 | EM58: 24.86589029 | EN58: 24.9932991 | EO58: 25.13210099 | EP58: 25.2821083 | EQ58: 25.44312284 | ER58: 25.61493705 | ES58: 25.79733513 | ET58: 25.99009427 | EU58: 26.1929857 | EV58: 26.40577588 | EW58: 26.6282275 | EX58: 26.86010052 | EY58: 27.10115311 | EZ58: 27.35114257 | FA58: 27.60982615 | FB58: 27.87696181 | FC58: 28.15230896 | FD58: 28.43562906 | FE58: 28.7266862 | FF58: 29.02524763 | FG58: 29.33108419 | FH58: 29.64397072 | FI58: 29.96368636 | FJ58: 30.29001486 | FK58: 30.62274481 | FL58: 30.96166985 | FM58: 31.30658876 | FN58: 31.65730563 | FO58: 32.01362991 | FP58: 32.37537645 | FQ58: 32.74236552 | FR58: 33.11442284 | FS58: 33.49137949 | FT58: 33.8730719 | FU58: 34.25934179 | FV58: 34.65003608 | FW58: 35.04500678 | FX58: 35.44411094 | FY58: 35.84721049 | FZ58: 36.25417217 | GA58: 36.66486738 | GB58: 37.07917205 | GC58: 37.49696654 | GD58: 37.9181355 | GE58: 38.34256773 | GF58: 38.77015605 | GG58: 39.20079719 | GH58: 39.63439163 | GI58: 40.07084351 | GJ58: 40.51006048 | GK58: 40.95195356 | GL58: 41.39643704 | GM58: 41.8434284 | GN58: 42.2928481 | GO58: 42.74461954 | GP58: 43.19866896 | GQ58: 43.65492527 | GR58: 44.11331998 | GS58: 44.57378714 | GT58: 45.03626317 | GU58: 45.50068681 | GV58: 45.96699903 | GW58: 46.43514294 | GX58: 46.90506369 | GY58: 47.37670841 | GZ58: 47.85002612 | HA58: 48.32496767 | HB58: 48.80148563 | HC58: 49.27953429 | HD58: 49.75906953 | HE58: 50.24004877 | HF58: 50.72243094 | HG58: 51.20617639 | HH58: 51.69124684 | HI58: 52.17760535 | HJ58: 52.66521622 | HK58: 53.154045 | HL58: 53.64405838 | HM58: 54.13522421 | HN58: 54.62751138 | HO58: 55.12088987 | HP58: 55.61533062 | HQ58: 56.11080555 | HR58: 56.60728752 | HS58: 57.10475024 | HT58: 57.60316832 | HU58: 58.10251716 | HV58: 58.60277297 | HW58: 59.10391273 | HX58: 59.60591414 | HY58: 60.1087556 | HZ58: 1.8
B59: 36 | C59: 19.8 | D59: 24.8 | E59: 1.8 | F59: 26.12049004 | G59: 24.86523678 | H59: -0.7245061505 | I59: -94.76835115 | J59: 0.03828412095 | K59: 0.04021678977 | L59: 0.05317036316 | M59: -15.1988674 | N59: -14.77109297 | O59: -12.34584846 | AA59: 24.8 | AB59: 37.07465442 | AC59: 36.66854919 | AD59: 36.26623774 | AE59: 35.86784772 | AF59: 35.47351124 | AG59: 35.083365 | AH59: 34.69755035 | AI59: 34.31621337 | AJ59: 33.93950501 | AK59: 33.56758109 | AL59: 33.2006024 | AM59: 32.83873475 | AN59: 32.48214894 | AO59: 32.13102084 | AP59: 31.7855313 | AQ59: 31.44586618 | AR59: 31.11221625 | AS59: 30.78477708 | AT59: 30.46374895 | AU59: 30.14933664 | AV59: 29.84174928 | AW59: 29.54120004 | AX59: 29.24790591 | AY59: 28.96208729 | AZ59: 28.68396765 | BA59: 28.41377307 | BB59: 28.15173174 | BC59: 27.89807341 | BD59: 27.65302877 | BE59: 27.41682877 | BF59: 27.18970393 | BG59: 26.97188351 | BH59: 26.76359468 | BI59: 26.56506164 | BJ59: 26.3765047 | BK59: 26.19813925 | BL59: 26.0301748 | BM59: 25.87281392 | BN59: 25.72625118 | BO59: 25.59067213 | BP59: 25.46625218 | BQ59: 25.35315562 | BR59: 25.25153461 | BS59: 25.16152817 | BT59: 25.08326135 | BU59: 25.01684433 | BV59: 24.96237168 | BW59: 24.91992175 | BX59: 24.88955604 | BY59: 24.87131882 | BZ59: 24.86523678 | CA59: 24.87131882 | CB59: 24.88955604 | CC59: 24.91992175 | CD59: 24.96237168 | CE59: 25.01684433 | CF59: 25.08326135 | CG59: 25.16152817 | CH59: 25.25153461 | CI59: 25.35315562 | CJ59: 25.46625218 | CK59: 25.59067213 | CL59: 25.72625118 | CM59: 25.87281392 | CN59: 26.0301748 | CO59: 26.19813925 | CP59: 26.3765047 | CQ59: 26.56506164 | CR59: 26.76359468 | CS59: 26.97188351 | CT59: 27.18970393 | CU59: 27.41682877 | CV59: 27.65302877 | CW59: 27.89807341 | CX59: 28.15173174 | CY59: 28.41377307 | CZ59: 28.68396765 | DA59: 28.96208729 | DB59: 29.24790591 | DC59: 29.54120004 | DD59: 29.84174928 | DE59: 30.14933664 | DF59: 30.46374895 | DG59: 30.78477708 | DH59: 31.11221625 | DI59: 31.44586618 | DJ59: 31.7855313 | DK59: 32.13102084 | DL59: 32.48214894 | DM59: 32.83873475 | DN59: 33.2006024 | DO59: 33.56758109 | DP59: 33.93950501 | DQ59: 34.31621337 | DR59: 34.69755035 | DS59: 35.083365 | DT59: 35.47351124 | DU59: 35.86784772 | DV59: 36.26623774 | DW59: 36.66854919 | DX59: 37.07465442 | DY59: 1.8 | EB59: 24.8 | EC59: 24.8 | ED59: 24.80609804 | EE59: 24.82438317 | EF59: 24.8548285 | EG59: 24.89738942 | EH59: 24.95200393 | EI59: 25.01859309 | EJ59: 25.09706158 | EK59: 25.18729839 | EL59: 25.28917753 | EM59: 25.40255893 | EN59: 25.52728932 | EO59: 25.66320323 | EP59: 25.81012398 | EQ59: 25.96786476 | ER59: 26.13622964 | ES59: 26.31501473 | ET59: 26.50400913 | EU59: 26.70299609 | EV59: 26.91175394 | EW59: 27.13005713 | EX59: 27.35767717 | EY59: 27.59438349 | EZ59: 27.83994432 | FA59: 28.0941275 | FB59: 28.35670115 | FC59: 28.62743439 | FD59: 28.90609797 | FE59: 29.19246478 | FF59: 29.48631038 | FG59: 29.78741345 | FH59: 30.09555615 | FI59: 30.41052449 | FJ59: 30.73210862 | FK59: 31.06010303 | FL59: 31.39430681 | FM59: 31.73452379 | FN59: 32.08056265 | FO59: 32.43223705 | FP59: 32.78936565 | FQ59: 33.1517722 | FR59: 33.51928549 | FS59: 33.89173941 | FT59: 34.26897285 | FU59: 34.65082972 | FV59: 35.03715885 | FW59: 35.42781393 | FX59: 35.82265345 | FY59: 36.22154055 | FZ59: 36.624343 | GA59: 37.03093302 | GB59: 37.44118721 | GC59: 37.85498646 | GD59: 38.27221577 | GE59: 38.69276418 | GF59: 39.11652464 | GG59: 39.54339389 | GH59: 39.97327232 | GI59: 40.4060639 | GJ59: 40.84167602 | GK59: 41.28001938 | GL59: 41.7210079 | GM59: 42.16455858 | GN59: 42.61059141 | GO59: 43.05902925 | GP59: 43.50979775 | GQ59: 43.9628252 | GR59: 44.41804251 | GS59: 44.87538301 | GT59: 45.33478245 | GU59: 45.79617888 | GV59: 46.25951254 | GW59: 46.72472579 | GX59: 47.19176305 | GY59: 47.66057071 | GZ59: 48.13109702 | HA59: 48.60329207 | HB59: 49.0771077 | HC59: 49.55249741 | HD59: 50.02941635 | HE59: 50.50782118 | HF59: 50.98767008 | HG59: 51.46892266 | HH59: 51.95153992 | HI59: 52.43548417 | HJ59: 52.920719 | HK59: 53.40720925 | HL59: 53.89492091 | HM59: 54.38382112 | HN59: 54.87387812 | HO59: 55.36506118 | HP59: 55.85734061 | HQ59: 56.35068766 | HR59: 56.84507454 | HS59: 57.34047436 | HT59: 57.83686108 | HU59: 58.33420952 | HV59: 58.83249527 | HW59: 59.33169473 | HX59: 59.83178503 | HY59: 60.33274401 | HZ59: 1.8
B60: 37 | C60: 20.35 | D60: 25.35 | E60: 1.8 | F60: 26.64324492 | G60: 25.41382498 | H60: -0.6986728314 | I60: -91.38924794 | J60: 0.03753296578 | K60: 0.03934866164 | L60: 0.05371618403 | M60: -15.37098333 | N60: -14.96064168 | O60: -12.25713793 | AA60: 25.35 | AB60: 37.4447927 | AC60: 37.04274558 | AD60: 36.64454257 | AE60: 36.25031034 | AF60: 35.86017987 | AG60: 35.47428646 | AH60: 35.09276991 | AI60: 34.71577451 | AJ60: 34.34344916 | AK60: 33.97594737 | AL60: 33.61342738 | AM60: 33.25605208 | AN60: 32.90398912 | AO60: 32.55741083 | AP60: 32.21649422 | AQ60: 31.88142092 | AR60: 31.55237709 | AS60: 31.22955331 | AT60: 30.91314445 | AU60: 30.60334949 | AV60: 30.30037128 | AW60: 30.00441634 | AX60: 29.71569451 | AY60: 29.43441863 | AZ60: 29.16080417 | BA60: 28.89506878 | BB60: 28.6374318 | BC60: 28.38811371 | BD60: 28.14733558 | BE60: 27.91531838 | BF60: 27.69228232 | BG60: 27.4784461 | BH60: 27.27402611 | BI60: 27.07923559 | BJ60: 26.89428378 | BK60: 26.71937499 | BL60: 26.55470768 | BM60: 26.40047348 | BN60: 26.25685625 | BO60: 26.12403108 | BP60: 26.00216337 | BQ60: 25.89140784 | BR60: 25.79190765 | BS60: 25.70379349 | BT60: 25.62718283 | BU60: 25.56217909 | BV60: 25.50887101 | BW60: 25.46733202 | BX60: 25.43761978 | BY60: 25.41977577 | BZ60: 25.41382498 | CA60: 25.41977577 | CB60: 25.43761978 | CC60: 25.46733202 | CD60: 25.50887101 | CE60: 25.56217909 | CF60: 25.62718283 | CG60: 25.70379349 | CH60: 25.79190765 | CI60: 25.89140784 | CJ60: 26.00216337 | CK60: 26.12403108 | CL60: 26.25685625 | CM60: 26.40047348 | CN60: 26.55470768 | CO60: 26.71937499 | CP60: 26.89428378 | CQ60: 27.07923559 | CR60: 27.27402611 | CS60: 27.4784461 | CT60: 27.69228232 | CU60: 27.91531838 | CV60: 28.14733558 | CW60: 28.38811371 | CX60: 28.6374318 | CY60: 28.89506878 | CZ60: 29.16080417 | DA60: 29.43441863 | DB60: 29.71569451 | DC60: 30.00441634 | DD60: 30.30037128 | DE60: 30.60334949 | DF60: 30.91314445 | DG60: 31.22955331 | DH60: 31.55237709 | DI60: 31.88142092 | DJ60: 32.21649422 | DK60: 32.55741083 | DL60: 32.90398912 | DM60: 33.25605208 | DN60: 33.61342738 | DO60: 33.97594737 | DP60: 34.34344916 | DQ60: 34.71577451 | DR60: 35.09276991 | DS60: 35.47428646 | DT60: 35.86017987 | DU60: 36.25031034 | DV60: 36.64454257 | DW60: 37.04274558 | DX60: 37.4447927 | DY60: 1.8 | EB60: 25.35 | EC60: 25.35 | ED60: 25.35596577 | EE60: 25.37385465 | EF60: 25.40364147 | EG60: 25.44528444 | EH60: 25.49872546 | EI60: 25.56389055 | EJ60: 25.64069032 | EK60: 25.72902058 | EL60: 25.82876304 | EM60: 25.93978604 | EN60: 26.06194544 | EO60: 26.19508542 | EP60: 26.33903947 | EQ60: 26.49363131 | ER60: 26.65867589 | ES60: 26.83398032 | ET60: 27.01934492 | EU60: 27.21456412 | EV60: 27.41942742 | EW60: 27.63372034 | EX60: 27.85722527 | EY60: 28.08972232 | EZ60: 28.3309901 | FA60: 28.5808065 | FB60: 28.83894936 | FC60: 29.10519713 | FD60: 29.37932947 | FE60: 29.66112776 | FF60: 29.95037562 | FG60: 30.24685934 | FH60: 30.55036825 | FI60: 30.86069507 | FJ60: 31.17763622 | FK60: 31.50099205 | FL60: 31.83056707 | FM60: 32.16617012 | FN60: 32.50761449 | FO60: 32.85471808 | FP60: 33.20730341 | FQ60: 33.56519775 | FR60: 33.92823308 | FS60: 34.29624615 | FT60: 34.66907844 | FU60: 35.04657615 | FV60: 35.42859015 | FW60: 35.81497592 | FX60: 36.20559349 | FY60: 36.60030738 | FZ60: 36.99898647 | GA60: 37.40150398 | GB60: 37.8077373 | GC60: 38.21756795 | GD60: 38.63088143 | GE60: 39.04756715 | GF60: 39.46751829 | GG60: 39.89063173 | GH60: 40.31680791 | GI60: 40.74595072 | GJ60: 41.17796741 | GK60: 41.61276847 | GL60: 42.05026754 | GM60: 42.49038126 | GN60: 42.93302924 | GO60: 43.37813389 | GP60: 43.82562036 | GQ60: 44.27541643 | GR60: 44.72745242 | GS60: 45.1816611 | GT60: 45.63797761 | GU60: 46.09633933 | GV60: 46.55668588 | GW60: 47.01895894 | GX60: 47.48310226 | GY60: 47.94906151 | GZ60: 48.41678428 | HA60: 48.88621994 | HB60: 49.35731962 | HC60: 49.83003612 | HD60: 50.30432387 | HE60: 50.78013883 | HF60: 51.25743848 | HG60: 51.73618173 | HH60: 52.21632886 | HI60: 52.69784151 | HJ60: 53.18068258 | HK60: 53.66481622 | HL60: 54.15020776 | HM60: 54.63682366 | HN60: 55.12463152 | HO60: 55.61359996 | HP60: 56.10369863 | HQ60: 56.59489818 | HR60: 57.08717019 | HS60: 57.58048715 | HT60: 58.07482243 | HU60: 58.57015025 | HV60: 59.06644564 | HW60: 59.56368441 | HX60: 60.06184313 | HY60: 60.5608991 | HZ60: 1.8
B61: 38 | C61: 20.9 | D61: 25.9 | E61: 1.8 | F61: 27.16707566 | G61: 25.96247292 | H61: -0.6738556305 | I61: -88.14305713 | J61: 0.03680926179 | K61: 0.03851713214 | L61: 0.05413294228 | M61: -15.54009884 | N61: -15.14616212 | O61: -12.19000833 | AA61: 25.9 | AB61: 37.81930724 | AC61: 37.42128405 | AD61: 37.0271522 | AE61: 36.63703727 | AF61: 36.25106895 | AG61: 35.86938109 | AH61: 35.4921118 | AI61: 35.11940347 | AJ61: 34.75140285 | AK61: 34.38826108 | AL61: 34.03013371 | AM61: 33.6771807 | AN61: 33.32956645 | AO61: 32.98745974 | AP61: 32.65103367 | AQ61: 32.32046565 | AR61: 31.99593724 | AS61: 31.67763407 | AT61: 31.36574565 | AU61: 31.06046523 | AV61: 30.76198953 | AW61: 30.47051854 | AX61: 30.18625515 | AY61: 29.90940488 | AZ61: 29.64017544 | BA61: 29.37877635 | BB61: 29.12541845 | BC61: 28.88031336 | BD61: 28.64367295 | BE61: 28.41570868 | BF61: 28.196631 | BG61: 27.9866486 | BH61: 27.78596768 | BI61: 27.59479118 | BJ61: 27.41331793 | BK61: 27.24174187 | BL61: 27.08025111 | BM61: 26.92902709 | BN61: 26.78824369 | BO61: 26.65806632 | BP61: 26.53865106 | BQ61: 26.43014378 | BR61: 26.33267932 | BS61: 26.2463807 | BT61: 26.17135839 | BU61: 26.10770959 | BV61: 26.05551765 | BW61: 26.01485153 | BX61: 25.98576533 | BY61: 25.96829798 | BZ61: 25.96247292 | CA61: 25.96829798 | CB61: 25.98576533 | CC61: 26.01485153 | CD61: 26.05551765 | CE61: 26.10770959 | CF61: 26.17135839 | CG61: 26.2463807 | CH61: 26.33267932 | CI61: 26.43014378 | CJ61: 26.53865106 | CK61: 26.65806632 | CL61: =SQRT(($AA61-$O$7)^2+(CL$22-$P$7)^2+($DY61-$Q$7)^2) -> 26.78824369 | CM61: 26.92902709 | CN61: 27.08025111 | CO61: 27.24174187 | CP61: 27.41331793 | CQ61: 27.59479118 | CR61: 27.78596768 | CS61: 27.9866486 | CT61: 28.196631 | CU61: 28.41570868 | CV61: 28.64367295 | CW61: 28.88031336 | CX61: 29.12541845 | CY61: 29.37877635 | CZ61: 29.64017544 | DA61: 29.90940488 | DB61: 30.18625515 | DC61: 30.47051854 | DD61: 30.76198953 | DE61: 31.06046523 | DF61: 31.36574565 | DG61: 31.67763407 | DH61: 31.99593724 | DI61: 32.32046565 | DJ61: 32.65103367 | DK61: 32.98745974 | DL61: 33.32956645 | DM61: 33.6771807 | DN61: 34.03013371 | DO61: 34.38826108 | DP61: 34.75140285 | DQ61: 35.11940347 | DR61: 35.4921118 | DS61: 35.86938109 | DT61: 36.25106895 | DU61: 36.63703727 | DV61: 37.0271522 | DW61: 37.42128405 | DX61: 37.81930724 | DY61: 1.8 | EB61: 25.9 | EC61: 25.9 | ED61: 25.90583911 | EE61: 25.92334855 | EF61: 25.9525047 | EG61: 25.99326836 | EH61: 26.04558504 | EI61: 26.10938529 | EJ61: 26.18458516 | EK61: 26.27108677 | EL61: 26.36877889 | EM61: 26.47753765 | EN61: 26.5972273 | EO61: 26.72770099 | EP61: 26.86880161 | EQ61: 27.02036269 | ER61: 27.18220926 | ES61: 27.35415873 | ET61: 27.53602186 | EU61: 27.72760357 | EV61: 27.92870387 | EW61: 28.13911868 | EX61: 28.35864066 | EY61: 28.58706001 | EZ61: 28.82416521 | FA61: 29.06974372 | FB61: 29.32358266 | FC61: 29.58546941 | FD61: 29.85519218 | FE61: 30.13254055 | FF61: 30.41730593 | FG61: 30.70928198 | FH61: 31.00826503 | FI61: 31.31405435 | FJ61: 31.62645254 | FK61: 31.94526569 | FL61: 32.27030369 | FM61: 32.60138034 | FN61: 32.93831356 | FO61: 33.28092547 | FP61: 33.62904251 | FQ61: 33.98249549 | FR61: 34.34111967 | FS61: 34.70475472 | FT61: 35.07324479 | FU61: 35.44643847 | FV61: 35.82418876 | FW61: 36.20635303 | FX61: 36.59279301 | FY61: 36.98337464 | FZ61: 37.37796811 | GA61: 37.77644769 | GB61: 38.1786917 | GC61: 38.58458241 | GD61: 38.99400595 | GE61: 39.4068522 | GF61: 39.8230147 | GG61: 40.24239059 | GH61: 40.66488043 | GI61: 41.09038817 | GJ61: 41.51882103 | GK61: 41.95008939 | GL61: 42.38410669 | GM61: =SQRT(($EB61-$O$7)^2+(GM$22-$Q$7)^2+(-$P$7)^2) -> 42.82078934 | GN61: 43.26005663 | GO61: 43.70183063 | GP61: 44.14603606 | GQ61: 44.59260028 | GR61: 45.04145313 | GS61: 45.49252686 | GT61: 45.94575606 | GU61: 46.40107757 | GV61: 46.8584304 | GW61: 47.31775565 | GX61: 47.77899643 | GY61: 48.2420978 | GZ61: 48.70700668 | HA61: 49.17367182 | HB61: 49.64204367 | HC61: 50.11207439 | HD61: 50.58371774 | HE61: 51.05692901 | HF61: 51.53166502 | HG61: 52.00788402 | HH61: 52.48554563 | HI61: 52.96461083 | HJ61: 53.44504187 | HK61: 53.92680224 | HL61: 54.40985664 | HM61: 54.89417091 | HN61: 55.37971199 | HO61: 55.86644789 | HP61: 56.35434766 | HQ61: 56.84338132 | HR61: 57.33351986 | HS61: 57.82473519 | HT61: 58.31700009 | HU61: 58.81028822 | HV61: 59.30457402 | HW61: 59.79983278 | HX61: 60.2960405 | HY61: 60.79317396 | HZ61: 1.8
B62: 39 | C62: 21.45 | D62: 26.45 | E62: 1.8 | F62: 27.6919212 | G62: 26.51117689 | H62: -0.649997203 | I62: -85.02227777 | J62: 0.0361116151 | K62: 0.03771993994 | L62: 0.05443548409 | M62: -15.70630273 | N62: -15.32782114 | O62: -12.1415992 | AA62: 26.45 | AB62: 38.19806932 | AC62: 37.80403418 | AD62: 37.41393457 | AE62: 37.02789489 | AF62: 36.64604344 | AG62: 36.26851251 | AH62: 35.89543843 | AI62: 35.52696159 | AJ62: 35.16322653 | AK62: 34.80438191 | AL62: 34.45058055 | AM62: 34.10197941 | AN62: 33.75873961 | AO62: 33.42102632 | AP62: 33.08900875 | AQ62: =SQRT(($AA62-$O$7)^2+(AQ$22-$P$7)^2+($DY62-$Q$7)^2) -> 32.76286007 | AR62: 32.44275728 | AS62: 32.12888109 | AT62: 31.82141574 | AU62: 31.52054885 | AV62: 31.22647114 | AW62: 30.93937621 | AX62: 30.6594602 | AY62: 30.38692153 | AZ62: 30.12196043 | BA62: 29.86477859 | BB62: 29.61557867 | BC62: 29.37456383 | BD62: 29.14193714 | BE62: 28.91790103 | BF62: 28.70265667 | BG62: 28.49640328 | BH62: 28.29933745 | BI62: 28.11165239 | BJ62: 27.93353719 | BK62: 27.76517603 | BL62: 27.60674736 | BM62: 27.45842312 | BN62: 27.32036786 | BO62: 27.192738 | BP62: 27.07568097 | BQ62: 26.96933444 | BR62: 26.87382556 | BS62: 26.78927024 | BT62: 26.71577249 | BU62: 26.6534238 | BV62: 26.60230253 | BW62: =SQRT(($AA62-$O$7)^2+(BW$22-$P$7)^2+($DY62-$Q$7)^2) -> 26.56247353 | BX62: 26.53398764 | BY62: 26.51688142 | BZ62: 26.51117689 | CA62: 26.51688142 | CB62: 26.53398764 | CC62: 26.56247353 | CD62: 26.60230253 | CE62: 26.6534238 | CF62: 26.71577249 | CG62: 26.78927024 | CH62: 26.87382556 | CI62: 26.96933444 | CJ62: 27.07568097 | CK62: 27.192738 | CL62: 27.32036786 | CM62: 27.45842312 | CN62: 27.60674736 | CO62: 27.76517603 | CP62: 27.93353719 | CQ62: 28.11165239 | CR62: 28.29933745 | CS62: 28.49640328 | CT62: 28.70265667 | CU62: 28.91790103 | CV62: 29.14193714 | CW62: 29.37456383 | CX62: 29.61557867 | CY62: 29.86477859 | CZ62: 30.12196043 | DA62: 30.38692153 | DB62: 30.6594602 | DC62: 30.93937621 | DD62: 31.22647114 | DE62: 31.52054885 | DF62: 31.82141574 | DG62: 32.12888109 | DH62: 32.44275728 | DI62: 32.76286007 | DJ62: 33.08900875 | DK62: 33.42102632 | DL62: 33.75873961 | DM62: 34.10197941 | DN62: 34.45058055 | DO62: 34.80438191 | DP62: 35.16322653 | DQ62: 35.52696159 | DR62: 35.89543843 | DS62: 36.26851251 | DT62: 36.64604344 | DU62: 37.02789489 | DV62: 37.41393457 | DW62: 37.80403418 | DX62: 38.19806932 | DY62: 1.8 | EB62: 26.45 | EC62: 26.45 | ED62: 26.45571772 | EE62: 26.47286346 | EF62: 26.50141506 | EG62: 26.54133569 | EH62: 26.59257415 | EI62: 26.65506518 | EJ62: 26.72872986 | EK62: 26.81347609 | EL62: 26.90919917 | EM62: 27.01578242 | EN62: 27.13309787 | EO62: 27.26100695 | EP62: 27.39936131 | EQ62: 27.54800356 | ER62: =SQRT(($EB62-$O$7)^2+(ER$22-$Q$7)^2+(-$P$7)^2) -> 27.70676813 | ES62: 27.87548206 | ET62: 28.05396585 | EU62: 28.24203428 | EV62: 28.43949718 | EW62: 28.6461603 | EX62: 28.861826 | EY62: 29.08629402 | EZ62: 29.3193622 | FA62: 29.56082712 | FB62: 29.81048473 | FC62: 30.06813097 | FD62: 30.33356227 | FE62: 30.60657609 | FF62: 30.88697136 | FG62: 31.17454891 | FH62: 31.46911184 | FI62: 31.77046584 | FJ62: 32.07841954 | FK62: 32.39278469 | FL62: 32.71337647 | FM62: 33.04001362 | FN62: 33.37251863 | FO62: 33.71071788 | FP62: 34.05444171 | FQ62: 34.40352453 | FR62: 34.75780488 | FS62: 35.11712545 | FT62: 35.48133312 | FU62: 35.85027894 | FV62: 36.22381813 | FW62: 36.60181006 | FX62: =SQRT(($EB62-$O$7)^2+(FX$22-$Q$7)^2+(-$P$7)^2) -> 36.98411821 | FY62: 37.37061011 | FZ62: 37.76115729 | GA62: 38.15563523 | GB62: 38.55392328 | GC62: 38.95590456 | GD62: 39.36146593 | GE62: 39.77049786 | GF62: 40.18289437 | GG62: 40.59855293 | GH62: 41.01737437 | GI62: 41.43926278 | GJ62: 41.86412545 | GK62: 42.29187274 | GL62: 42.722418 | GM62: 43.15567749 | GN62: 43.59157029 | GO62: 44.03001817 | GP62: 44.47094557 | GQ62: 44.91427947 | GR62: 45.35994929 | GS62: 45.80788688 | GT62: 46.25802633 | GU62: 46.710304 | GV62: 47.16465838 | GW62: 47.62103002 | GX62: 48.07936148 | GY62: 48.53959724 | GZ62: 49.00168364 | HA62: 49.46556883 | HB62: 49.93120267 | HC62: 50.39853669 | HD62: 50.86752402 | HE62: 51.33811937 | HF62: 51.8102789 | HG62: 52.28396026 | HH62: 52.75912243 | HI62: 53.23572579 | HJ62: 53.71373195 | HK62: 54.1931038 | HL62: 54.67380543 | HM62: 55.15580205 | HN62: 55.63906002 | HO62: 56.12354675 | HP62: 56.6092307 | HQ62: 57.0960813 | HR62: 57.58406898 | HS62: 58.07316506 | HT62: 58.56334178 | HU62: 59.05457222 | HV62: 59.54683031 | HW62: 60.04009077 | HX62: 60.5343291 | HY62: 61.02952154 | HZ62: 1.8
B63: 40 | C63: 22 | D63: 27 | E63: 1.8 | F63: 28.21772493 | G63: 27.05993348 | H63: -0.6270443316 | I63: -82.01994884 | J63: 0.03543871813 | K63: 0.03695500585 | L63: 0.05463702833 | M63: -15.8696809 | N63: -15.50577548 | O63: -12.10949958 | AA63: 27 | AB63: =SQRT(($AA63-$O$7)^2+(AB$22-$P$7)^2+($DY63-$Q$7)^2) -> 38.58095385 | AC63: 38.19086933 | AD63: 37.8047616 | AE63: 37.42275377 | AF63: 37.04497267 | AG63: 36.67154892 | AH63: 36.30261699 | AI63: 35.93831521 | AJ63: 35.57878581 | AK63: 35.22417494 | AL63: 34.87463261 | AM63: 34.53031277 | AN63: 34.19137318 | AO63: 33.85797543 | AP63: 33.53028482 | AQ63: 33.20847031 | AR63: 32.89270436 | AS63: 32.58316283 | AT63: 32.28002478 | AU63: 31.98347229 | AV63: 31.69369022 | AW63: 31.41086595 | AX63: 31.1351891 | AY63: 30.86685115 | AZ63: 30.60604515 | BA63: 30.35296526 | BB63: 30.1078063 | BC63: 29.8707633 | BD63: 29.64203097 | BE63: 29.42180314 | BF63: 29.21027217 | BG63: 29.00762831 | BH63: 28.81405907 | BI63: 28.62974851 | BJ63: 28.45487656 | BK63: 28.28961824 | BL63: 28.13414296 | BM63: 27.98861376 | BN63: 27.85318653 | BO63: 27.7280093 | BP63: 27.61322147 | BQ63: 27.50895309 | BR63: 27.41532418 | BS63: 27.33244409 | BT63: 27.26041086 | BU63: 27.19931065 | BV63: 27.1492173 | BW63: 27.11019181 | BX63: 27.08228203 | BY63: 27.06552235 | BZ63: 27.05993348 | CA63: 27.06552235 | CB63: 27.08228203 | CC63: 27.11019181 | CD63: 27.1492173 | CE63: 27.19931065 | CF63: 27.26041086 | CG63: 27.33244409 | CH63: 27.41532418 | CI63: 27.50895309 | CJ63: 27.61322147 | CK63: 27.7280093 | CL63: 27.85318653 | CM63: 27.98861376 | CN63: 28.13414296 | CO63: 28.28961824 | CP63: 28.45487656 | CQ63: 28.62974851 | CR63: 28.81405907 | CS63: 29.00762831 | CT63: 29.21027217 | CU63: 29.42180314 | CV63: 29.64203097 | CW63: 29.8707633 | CX63: 30.1078063 | CY63: 30.35296526 | CZ63: 30.60604515 | DA63: 30.86685115 | DB63: 31.1351891 | DC63: 31.41086595 | DD63: 31.69369022 | DE63: 31.98347229 | DF63: 32.28002478 | DG63: 32.58316283 | DH63: 32.89270436 | DI63: 33.20847031 | DJ63: 33.53028482 | DK63: 33.85797543 | DL63: 34.19137318 | DM63: 34.53031277 | DN63: 34.87463261 | DO63: 35.22417494 | DP63: 35.57878581 | DQ63: 35.93831521 | DR63: 36.30261699 | DS63: 36.67154892 | DT63: 37.04497267 | DU63: 37.42275377 | DV63: 37.8047616 | DW63: 38.19086933 | DX63: 38.58095385 | DY63: 1.8 | EB63: 27 | EC63: =SQRT(($EB63-$O$7)^2+(EC$22-$Q$7)^2+(-$P$7)^2) -> 27 | ED63: 27.00560127 | EE63: 27.02239812 | EF63: 27.05036968 | EG63: 27.08948135 | EH63: 27.13968497 | EI63: 27.2009191 | EJ63: 27.27310947 | EK63: 27.35616932 | EL63: 27.45 | EM63: 27.55449147 | EN63: 27.66952294 | EO63: 27.79496357 | EP63: 27.9306731 | EQ63: 28.07650263 | ER63: 28.23229534 | ES63: 28.39788725 | ET63: 28.57310799 | EU63: 28.75778156 | EV63: 28.95172706 | EW63: 29.15475947 | EX63: 29.36669031 | EY63: 29.58732837 | EZ63: 29.81648034 | FA63: 30.05395149 | FB63: 30.2995462 | FC63: 30.55306859 | FD63: 30.81432297 | FE63: 31.08311439 | FF63: 31.35924903 | FG63: 31.64253466 | FH63: 31.93278096 | FI63: 32.22979988 | FJ63: 32.53340591 | FK63: 32.84341639 | FL63: 33.15965169 | FM63: 33.48193543 | FN63: 33.81009465 | FO63: 34.14395993 | FP63: 34.48336556 | FQ63: 34.82814953 | FR63: 35.17815373 | FS63: 35.53322389 | FT63: 35.89320966 | FU63: 36.25796464 | FV63: 36.62734634 | FW63: 37.0012162 | FX63: 37.37943954 | FY63: 37.76188555 | FZ63: 38.14842723 | GA63: 38.53894135 | GB63: 38.93330836 | GC63: 39.33141238 | GD63: 39.73314108 | GE63: 40.13838562 | GF63: 40.54704058 | GG63: 40.95900389 | GH63: 41.37417673 | GI63: 41.79246344 | GJ63: 42.21377145 | GK63: 42.63801121 | GL63: 43.06509608 | GM63: 43.49494223 | GN63: 43.92746863 | GO63: 44.36259686 | GP63: 44.80025112 | GQ63: 45.24035809 | GR63: 45.68284689 | GS63: 46.12764898 | GT63: 46.57469807 | GU63: 47.02393008 | GV63: 47.47528304 | GW63: 47.92869704 | GX63: 48.38411413 | GY63: 48.84147827 | GZ63: 49.30073529 | HA63: 49.76183276 | HB63: 50.22472001 | HC63: 50.68934799 | HD63: 51.15566929 | HE63: 51.623638 | HF63: 52.09320973 | HG63: 52.56434153 | HH63: 53.03699181 | HI63: 53.51112034 | HJ63: 53.98668817 | HK63: 54.46365761 | HL63: 54.94199214 | HM63: 55.42165642 | HN63: 55.90261622 | HO63: 56.38483839 | HP63: 56.86829081 | HQ63: 57.35294238 | HR63: 57.83876295 | HS63: 58.32572331 | HT63: 58.81379515 | HU63: 59.30295102 | HV63: 59.79316433 | HW63: 60.28440926 | HX63: 60.77666082 | HY63: 61.26989473 | HZ63: 1.8
B64: 41 | C64: 22.55 | D64: 27.55 | E64: 1.8 | F64: 28.74443424 | G64: 27.60873956 | H64: -0.6049475722 | I64: -79.12960284 | J64: 0.03478934362 | K64: 0.03622041484 | L64: 0.05474934408 | M64: -16.03031629 | N64: -15.68017259 | O64: -12.09166258 | AA64: 27.55 | AB64: 38.9678393 | AC64: 38.58166663 | AD64: 38.19950916 | AE64: 37.8214886 | AF64: 37.44773024 | AG64: 37.07836296 | AH64: 36.71351931 | AI64: 36.35333547 | AJ64: 35.99795133 | AK64: 35.64751043 | AL64: 35.30215999 | AM64: 34.96205086 | AN64: 34.62733747 | AO64: 34.29817779 | AP64: 33.97473326 | AQ64: 33.65716863 | AR64: 33.34565189 | AS64: 33.04035411 | AT64: 32.74144927 | AU64: 32.44911401 | AV64: 32.16352748 | AW64: 31.88487102 | AX64: 31.61332789 | AY64: 31.34908292 | AZ64: 31.0923222 | BA64: 30.84323265 | BB64: 30.60200157 | BC64: 30.36881624 | BD64: 30.14386339 | BE64: 29.92732865 | BF64: 29.71939602 | BG64: 29.52024729 | BH64: 29.33006137 | BI64: 29.14901371 | BJ64: 28.97727558 | BK64: 28.81501345 | BL64: 28.66238825 | BM64: 28.51955469 | BN64: 28.3866606 | BO64: 28.26384616 | BP64: 28.15124331 | BQ64: 28.04897503 | BR64: 27.95715472 | BS64: 27.87588564 | BT64: 27.80526029 | BU64: 27.74535997 | BV64: 27.69625426 | BW64: 27.65800065 | BX64: 27.63064422 | BY64: 27.61421735 | BZ64: 27.60873956 | CA64: 27.61421735 | CB64: 27.63064422 | CC64: 27.65800065 | CD64: 27.69625426 | CE64: 27.74535997 | CF64: 27.80526029 | CG64: 27.87588564 | CH64: 27.95715472 | CI64: 28.04897503 | CJ64: 28.15124331 | CK64: 28.26384616 | CL64: 28.3866606 | CM64: 28.51955469 | CN64: 28.66238825 | CO64: 28.81501345 | CP64: 28.97727558 | CQ64: 29.14901371 | CR64: 29.33006137 | CS64: 29.52024729 | CT64: 29.71939602 | CU64: 29.92732865 | CV64: 30.14386339 | CW64: 30.36881624 | CX64: 30.60200157 | CY64: 30.84323265 | CZ64: 31.0923222 | DA64: 31.34908292 | DB64: 31.61332789 | DC64: 31.88487102 | DD64: 32.16352748 | DE64: 32.44911401 | DF64: 32.74144927 | DG64: 33.04035411 | DH64: 33.34565189 | DI64: 33.65716863 | DJ64: 33.97473326 | DK64: 34.29817779 | DL64: 34.62733747 | DM64: 34.96205086 | DN64: 35.30215999 | DO64: 35.64751043 | DP64: 35.99795133 | DQ64: 36.35333547 | DR64: 36.71351931 | DS64: 37.07836296 | DT64: 37.44773024 | DU64: 37.8214886 | DV64: 38.19950916 | DW64: 38.58166663 | DX64: 38.9678393 | DY64: 1.8 | EB64: 27.55 | EC64: 27.55 | ED64: 27.55548947 | EE64: 27.57195133 | EF64: 27.59936593 | EG64: 27.6377007 | EH64: 27.68691026 | EI64: 27.74693677 | EJ64: 27.81771019 | EK64: 27.89914873 | EL64: 27.99115932 | EM64: 28.09363807 | EN64: 28.20647089 | EO64: 28.32953406 | EP64: 28.46269488 | EQ64: 28.60581235 | ER64: 28.7587378 | ES64: 28.92131567 | ET64: 29.09338413 | EU64: 29.27477583 | EV64: 29.4653186 | EW64: 29.66483609 | EX64: 29.87314848 | EY64: 30.09007311 | EZ64: 30.31542512 | FA64: 30.54901799 | FB64: 30.79066417 | FC64: 31.04017558 | FD64: 31.29736411 | FE64: 31.56204208 | FF64: 31.83402268 | FG64: 32.11312037 | FH64: 32.39915122 | FI64: 32.69193326 | FJ64: 32.99128673 | FK64: 33.2970344 | FL64: 33.60900177 | FM64: 33.92701726 | FN64: 34.2509124 | FO64: 34.58052197 | FP64: 34.91568415 | FQ64: 35.25624058 | FR64: 35.60203646 | FS64: 35.9529206 | FT64: 36.3087455 | FU64: 36.66936732 | FV64: 37.03464594 | FW64: 37.40444492 | FX64: 37.77863153 | FY64: 38.15707667 | FZ64: 38.5396549 | GA64: 38.92624436 | GB64: 39.31672672 | GC64: 39.71098714 | GD64: 40.10891422 | GE64: 40.5103999 | GF64: 40.91533942 | GG64: 41.32363125 | GH64: 41.73517701 | GI64: 42.14988138 | GJ64: 42.56765204 | GK64: 42.9883996 | GL64: 43.4120375 | GM64: 43.83848195 | GN64: 44.26765185 | GO64: 44.69946868 | GP64: 45.13385647 | GQ64: 45.57074171 | GR64: 46.01005325 | GS64: 46.45172225 | GT64: 46.8956821 | GU64: 47.34186836 | GV64: 47.79021866 | GW64: 48.24067267 | GX64: 48.69317201 | GY64: 49.14766017 | GZ64: 49.60408249 | HA64: 50.06238608 | HB64: 50.52251973 | HC64: 50.9844339 | HD64: 51.44808063 | HE64: 51.91341349 | HF64: 52.38038755 | HG64: 52.84895931 | HH64: 53.31908664 | HI64: 53.79072876 | HJ64: 54.26384616 | HK64: 54.7384006 | HL64: 55.21435502 | HM64: 55.69167352 | HN64: 56.17032134 | HO64: 56.65026478 | HP64: 57.13147119 | HQ64: 57.61390891 | HR64: 58.09754728 | HS64: 58.58235656 | HT64: 59.06830792 | HU64: 59.55537339 | HV64: 60.04352588 | HW64: 60.53273908 | HX64: 61.02298747 | HY64: 61.51424632 | HZ64: 1.8
B65: 42 | C65: 23.1 | D65: 28.1 | E65: 1.8 | F65: 29.27200027 | G65: 28.15759223 | H65: -0.5836609333 | I65: -76.34522391 | J65: 0.03416233912 | K65: 0.03551440024 | L65: 0.05478290987 | M65: -16.188289 | N65: -15.8511513 | O65: -12.08633906 | AA65: 28.1 | AB65: 39.3586077 | AC65: 38.97630691 | AD65: 38.59805695 | AE65: 38.22397808 | AF65: 37.85419396 | AG65: 37.48883167 | AH65: 37.12802176 | AI65: 36.77189824 | AJ65: 36.42059857 | AK65: 36.07426368 | AL65: 35.73303793 | AM65: 35.39706909 | AN65: 35.06650824 | AO65: 34.74150975 | AP65: 34.42223119 | AQ65: 34.10883317 | AR65: 33.80147926 | AS65: 33.50033582 | AT65: 33.20557182 | AU65: 32.91735864 | AV65: 32.63586984 | AW65: 32.36128088 | AX65: 32.09376887 | AY65: 31.83351222 | AZ65: 31.5806903 | BA65: 31.33548308 | BB65: 31.09807068 | BC65: 30.86863295 | BD65: 30.64734899 | BE65: 30.43439666 | BF65: 30.22995203 | BG65: 30.03418885 | BH65: 29.84727793 | BI65: 29.66938658 | BJ65: 29.50067796 | BK65: =SQRT(($AA65-$O$7)^2+(BK$22-$P$7)^2+($DY65-$Q$7)^2) -> 29.34131047 | BL65: 29.1914371 | BM65: 29.05120479 | BN65: 28.92075379 | BO65: 28.80021701 | BP65: 28.68971941 | BQ65: 28.5893774 | BR65: 28.49929824 | BS65: 28.41957952 | BT65: 28.35030864 | BU65: 28.29156235 | BV65: 28.24340631 | BW65: 28.20589477 | BX65: 28.17907025 | BY65: 28.16296327 | BZ65: 28.15759223 | CA65: 28.16296327 | CB65: 28.17907025 | CC65: 28.20589477 | CD65: 28.24340631 | CE65: 28.29156235 | CF65: 28.35030864 | CG65: 28.41957952 | CH65: 28.49929824 | CI65: 28.5893774 | CJ65: 28.68971941 | CK65: 28.80021701 | CL65: 28.92075379 | CM65: 29.05120479 | CN65: 29.1914371 | CO65: 29.34131047 | CP65: 29.50067796 | CQ65: 29.66938658 | CR65: 29.84727793 | CS65: 30.03418885 | CT65: 30.22995203 | CU65: 30.43439666 | CV65: 30.64734899 | CW65: 30.86863295 | CX65: 31.09807068 | CY65: 31.33548308 | CZ65: 31.5806903 | DA65: 31.83351222 | DB65: 32.09376887 | DC65: 32.36128088 | DD65: 32.63586984 | DE65: 32.91735864 | DF65: 33.20557182 | DG65: 33.50033582 | DH65: 33.80147926 | DI65: 34.10883317 | DJ65: 34.42223119 | DK65: 34.74150975 | DL65: 35.06650824 | DM65: 35.39706909 | DN65: 35.73303793 | DO65: 36.07426368 | DP65: 36.42059857 | DQ65: 36.77189824 | DR65: 37.12802176 | DS65: 37.48883167 | DT65: 37.85419396 | DU65: 38.22397808 | DV65: 38.59805695 | DW65: 38.97630691 | DX65: 39.3586077 | DY65: 1.8 | EB65: 28.1 | EC65: 28.1 | ED65: 28.10538205 | EE65: 28.12152201 | EF65: 28.14840138 | EG65: 28.18598943 | EH65: 28.23424339 | EI65: 28.2931087 | EJ65: 28.36251928 | EK65: 28.44239793 | EL65: 28.53265673 | EM65: 28.63319752 | EN65: 28.7439124 | EO65: 28.8646843 | EP65: 28.99538756 | EQ65: 29.13588852 | ER65: 29.28604617 | ES65: 29.44571276 | ET65: 29.61473451 | EU65: 29.79295219 | EV65: 29.9802018 | EW65: 30.17631522 | EX65: 30.38112078 | EY65: 30.59444394 | EZ65: 30.8161078 | FA65: 31.04593371 | FB65: 31.28374178 | FC65: 31.5293514 | FD65: 31.78258171 | FE65: 32.04325202 | FF65: 32.31118227 | FG65: 32.5861934 | FH65: 32.86810764 | FI65: 33.15674894 | FJ65: 33.45194314 | FK65: 33.75351834 | FL65: =SQRT(($EB65-$O$7)^2+(FL$22-$Q$7)^2+(-$P$7)^2) -> 34.06130502 | FM65: 34.37513636 | FN65: 34.69484832 | FO65: 35.02027984 | FP65: 35.35127296 | FQ65: 35.68767294 | FR65: 36.02932833 | FS65: 36.37609105 | FT65: 36.72781643 | FU65: 37.08436328 | FV65: 37.44559387 | FW65: 37.81137395 | FX65: 38.18157278 | FY65: 38.55606308 | FZ65: 38.93472101 | GA65: 39.31742616 | GB65: 39.70406151 | GC65: 40.09451334 | GD65: 40.48867126 | GE65: 40.88642807 | GF65: 41.28767976 | GG65: 41.69232543 | GH65: 42.10026722 | GI65: 42.51141023 | GJ65: 42.92566249 | GK65: 43.34293483 | GL65: 43.76314088 | GM65: 44.18619694 | GN65: 44.61202192 | GO65: 45.0405373 | GP65: 45.471667 | GQ65: 45.90533738 | GR65: 46.3414771 | GS65: 46.7800171 | GT65: 47.2208905 | GU65: 47.66403256 | GV65: 48.10938058 | GW65: 48.55687387 | GX65: 49.00645366 | GY65: 49.45806304 | GZ65: 49.91164694 | HA65: 50.36715199 | HB65: 50.82452656 | HC65: 51.28372061 | HD65: 51.74468572 | HE65: 52.20737496 | HF65: 52.6717429 | HG65: 53.13774553 | HH65: 53.60534022 | HI65: 54.07448567 | HJ65: 54.54514186 | HK65: 55.01727002 | HL65: 55.49083258 | HM65: 55.96579312 | HN65: 56.44211637 | HO65: 56.9197681 | HP65: 57.39871514 | HQ65: 57.87892535 | HR65: 58.36036755 | HS65: 58.84301148 | HT65: 59.32682783 | HU65: 59.81178814 | HV65: 60.2978648 | HW65: 60.78503105 | HX65: 61.27326089 | HY65: 61.76252909 | HZ65: 1.8
B66: 43 | C66: 23.65 | D66: 28.65 | E66: 1.8 | F66: 29.80037751 | G66: 28.70648881 | H66: -0.5631415875 | I66: -73.66121002 | J66: 0.03355662188 | K66: 0.03483532962 | L66: 0.05474705604 | M66: -16.34367631 | N66: -16.0188425 | O66: -12.09202558 | AA66: 28.65 | AB66: 39.75314453 | AC66: 39.3746746 | AD66: 39.00028846 | AE66: 38.63010484 | AF66: 38.26424571 | AG66: 37.90283631 | AH66: 37.54600511 | AI66: 37.19388391 | AJ66: 36.84660771 | AK66: 36.50431481 | AL66: 36.16714669 | AM66: 35.83524801 | AN66: 35.50876652 | AO66: 35.18785302 | AP66: 34.87266121 | AQ66: 34.56334764 | AR66: 34.26007151 | AS66: 33.96299457 | AT66: 33.67228089 | AU66: 33.38809668 | AV66: 33.11061008 | AW66: 32.83999086 | AX66: 32.57641018 | AY66: 32.32004022 | AZ66: 32.07105393 | BA66: 31.82962457 | BB66: 31.59592537 | BC66: 31.3701291 | BD66: 31.15240761 | BE66: 30.94293134 | BF66: 30.74186884 | BG66: =SQRT(($AA66-$O$7)^2+(BG$22-$P$7)^2+($DY66-$Q$7)^2) -> 30.54938625 | BH66: 30.36564671 | BI66: 30.19080986 | BJ66: 30.02503122 | BK66: 29.86846163 | BL66: 29.72124661 | BM66: 29.58352582 | BN66: 29.45543244 | BO66: 29.33709256 | BP66: 29.22862467 | BQ66: 29.13013903 | BR66: 29.04173721 | BS66: 28.96351153 | BT66: 28.89554464 | BU66: 28.83790908 | BV66: 28.79066689 | BW66: 28.7538693 | BX66: 28.72755646 | BY66: 28.71175717 | BZ66: 28.70648881 | CA66: 28.71175717 | CB66: 28.72755646 | CC66: 28.7538693 | CD66: 28.79066689 | CE66: 28.83790908 | CF66: 28.89554464 | CG66: 28.96351153 | CH66: 29.04173721 | CI66: 29.13013903 | CJ66: 29.22862467 | CK66: 29.33709256 | CL66: 29.45543244 | CM66: 29.58352582 | CN66: 29.72124661 | CO66: 29.86846163 | CP66: 30.02503122 | CQ66: 30.19080986 | CR66: 30.36564671 | CS66: 30.54938625 | CT66: 30.74186884 | CU66: 30.94293134 | CV66: 31.15240761 | CW66: 31.3701291 | CX66: 31.59592537 | CY66: 31.82962457 | CZ66: 32.07105393 | DA66: 32.32004022 | DB66: 32.57641018 | DC66: 32.83999086 | DD66: 33.11061008 | DE66: 33.38809668 | DF66: 33.67228089 | DG66: 33.96299457 | DH66: 34.26007151 | DI66: 34.56334764 | DJ66: 34.87266121 | DK66: 35.18785302 | DL66: 35.50876652 | DM66: 35.83524801 | DN66: 36.16714669 | DO66: 36.50431481 | DP66: 36.84660771 | DQ66: 37.19388391 | DR66: 37.54600511 | DS66: 37.90283631 | DT66: 38.26424571 | DU66: 38.63010484 | DV66: 39.00028846 | DW66: 39.3746746 | DX66: 39.75314453 | DY66: 1.8 | EB66: 28.65 | EC66: 28.65 | ED66: 28.65527875 | EE66: 28.67110915 | EF66: 28.69747376 | EG66: 28.73434356 | EH66: 28.7816782 | EI66: 28.83942614 | EJ66: 28.90752497 | EK66: 28.98590175 | EL66: 29.07447334 | EM66: 29.1731469 | EN66: 29.2818203 | EO66: 29.40038265 | EP66: 29.52871484 | EQ66: 29.66669007 | ER66: 29.81417448 | ES66: 29.97102768 | ET66: 30.13710338 | EU66: 30.31225 | EV66: 30.49631125 | EW66: 30.68912674 | EX66: 30.89053253 | EY66: 31.10036173 | EZ66: 31.31844504 | FA66: 31.54461127 | FB66: 31.77868783 | FC66: 32.02050125 | FD66: 32.2698776 | FE66: 32.52664293 | FF66: 32.79062366 | FG66: 33.06164696 | FH66: =SQRT(($EB66-$O$7)^2+(FH$22-$Q$7)^2+(-$P$7)^2) -> 33.33954109 | FI66: 33.62413568 | FJ66: 33.91526205 | FK66: 34.21275347 | FL66: 34.51644536 | FM66: 34.8261755 | FN66: 35.14178425 | FO66: 35.46311464 | FP66: 35.79001257 | FQ66: 36.12232689 | FR66: 36.45990949 | FS66: 36.8026154 | FT66: 37.15030283 | FU66: 37.50283323 | FV66: 37.86007132 | FW66: 38.22188509 | FX66: 38.58814585 | FY66: 38.95872816 | FZ66: 39.33350989 | GA66: 39.71237213 | GB66: 40.09519921 | GC66: 40.48187866 | GD66: 40.87230113 | GE66: 41.26636039 | GF66: 41.66395324 | GG66: 42.0649795 | GH66: 42.46934188 | GI66: 42.87694602 | GJ66: 43.28770033 | GK66: 43.70151599 | GL66: 44.11830686 | GM66: 44.5379894 | GN66: 44.96048265 | GO66: 45.3857081 | GP66: 45.81358969 | GQ66: 46.24405367 | GR66: 46.67702861 | GS66: 47.11244528 | GT66: 47.55023659 | GU66: 47.99033757 | GV66: 48.43268524 | GW66: 48.87721862 | GX66: 49.3238786 | GY66: 49.77260793 | GZ66: 50.22335114 | HA66: 50.6760545 | HB66: 51.13066595 | HC66: 51.58713502 | HD66: 52.04541286 | HE66: 52.5054521 | HF66: 52.96720684 | HG66: 53.4306326 | HH66: 53.89568628 | HI66: 54.36232611 | HJ66: 54.83051158 | HK66: 55.30020344 | HL66: 55.77136362 | HM66: 56.24395523 | HN66: 56.71794249 | HO66: 57.19329069 | HP66: 57.66996619 | HQ66: 58.14793633 | HR66: 58.62716947 | HS66: 59.10763487 | HT66: 59.58930273 | HU66: 60.07214413 | HV66: 60.55613099 | HW66: 61.04123606 | HX66: 61.52743291 | HY66: 62.01469584 | HZ66: 1.8
B67: 44 | C67: 24.2 | D67: 29.2 | E67: 1.8 | F67: 30.32952357 | G67: 29.25542685 | H67: -0.5433496099 | I67: -71.07233885 | J67: 0.03297117403 | K67: 0.03418169235 | L67: 0.05465009174 | M67: -16.49655276 | N67: -16.18336977 | O67: -12.10742308 | AA67: 29.2 | AB67: 40.15133871 | AC67: 39.77665773 | AD67: 39.4060909 | AE67: 39.03975538 | AF67: 38.67777139 | AG67: 38.32026226 | AH67: 37.9673544 | AI67: 37.61917729 | AJ67: 37.2758635 | AK67: 36.93754865 | AL67: 36.60437132 | AM67: 36.27647309 | AN67: 35.95399839 | AO67: 35.63709444 | AP67: 35.32591117 | AQ67: 35.02060108 | AR67: 34.7213191 | AS67: 34.42822243 | AT67: 34.14147038 | AU67: 33.86122414 | AV67: 33.58764654 | AW67: 33.32090185 | AX67: 33.06115545 | AY67: 32.80857357 | AZ67: 32.56332293 | BA67: 32.32557037 | BB67: 32.09548255 | BC67: 31.87322544 | BD67: 31.65896398 | BE67: 31.45286156 | BF67: 31.25507959 | BG67: 31.06577699 | BH67: 30.88510968 | BI67: 30.71323005 | BJ67: 30.55028641 | BK67: 30.39642249 | BL67: 30.25177681 | BM67: 30.1164822 | BN67: 29.99066521 | BO67: 29.8744456 | BP67: 29.76793577 | BQ67: 29.67124028 | BR67: 29.58445538 | BS67: 29.50766849 | BT67: 29.44095786 | BU67: 29.38439212 | BV67: 29.33802993 | BW67: 29.30191973 | BX67: 29.27609947 | BY67: 29.26059637 | BZ67: 29.25542685 | CA67: 29.26059637 | CB67: 29.27609947 | CC67: 29.30191973 | CD67: 29.33802993 | CE67: 29.38439212 | CF67: 29.44095786 | CG67: 29.50766849 | CH67: 29.58445538 | CI67: 29.67124028 | CJ67: 29.76793577 | CK67: 29.8744456 | CL67: 29.99066521 | CM67: 30.1164822 | CN67: 30.25177681 | CO67: 30.39642249 | CP67: 30.55028641 | CQ67: 30.71323005 | CR67: 30.88510968 | CS67: 31.06577699 | CT67: 31.25507959 | CU67: 31.45286156 | CV67: 31.65896398 | CW67: 31.87322544 | CX67: 32.09548255 | CY67: 32.32557037 | CZ67: 32.56332293 | DA67: 32.80857357 | DB67: 33.06115545 | DC67: 33.32090185 | DD67: 33.58764654 | DE67: 33.86122414 | DF67: 34.14147038 | DG67: 34.42822243 | DH67: 34.7213191 | DI67: 35.02060108 | DJ67: 35.32591117 | DK67: 35.63709444 | DL67: 35.95399839 | DM67: 36.27647309 | DN67: 36.60437132 | DO67: 36.93754865 | DP67: 37.2758635 | DQ67: 37.61917729 | DR67: 37.9673544 | DS67: 38.32026226 | DT67: 38.67777139 | DU67: 39.03975538 | DV67: 39.4060909 | DW67: 39.77665773 | DX67: 40.15133871 | DY67: 1.8 | EB67: 29.2 | EC67: 29.2 | ED67: 29.20517934 | EE67: 29.22071183 | EF67: 29.246581 | EG67: 29.28275943 | EH67: 29.32920899 | EI67: 29.38588096 | EJ67: 29.45271634 | EK67: 29.52964612 | EL67: 29.61659163 | EM67: 29.71346496 | EN67: 29.82016935 | EO67: 29.93659967 | EP67: 30.06264293 | EQ67: 30.19817875 | ER67: 30.34307994 | ES67: 30.49721299 | ET67: 30.66043868 | EU67: 30.8326126 | EV67: 31.01358573 | EW67: 31.20320496 | EX67: 31.40131367 | EY67: 31.60775221 | EZ67: 31.82235849 | FA67: 32.0449684 | FB67: 32.27541634 | FC67: 32.51353564 | FD67: 32.75915902 | FE67: 33.01211899 | FF67: 33.2722482 | FG67: 33.53937984 | FH67: 33.81334796 | FI67: 34.09398774 | FJ67: 34.38113582 | FK67: 34.6746305 | FL67: 34.974312 | FM67: 35.28002268 | FN67: 35.59160716 | FO67: 35.90891254 | FP67: 36.23178853 | FQ67: 36.56008753 | FR67: 36.89366477 | FS67: 37.23237838 | FT67: 37.57608947 | FU67: 37.92466216 | FV67: 38.27796363 | FW67: 38.63586417 | FX67: 38.99823714 | FY67: 39.36495904 | FZ67: 39.73590945 | GA67: 40.11097107 | GB67: 40.49002964 | GC67: 40.87297396 | GD67: 41.25969583 | GE67: 41.65009004 | GF67: 42.04405428 | GG67: 42.44148914 | GH67: 42.84229802 | GI67: 43.24638713 | GJ67: 43.65366537 | GK67: 44.0640443 | GL67: 44.4774381 | GM67: 44.89376349 | GN67: 45.31293965 | GO67: 45.73488821 | GP67: 46.15953314 | GQ67: 46.58680071 | GR67: 47.0166194 | GS67: 47.4489199 | GT67: 47.88363499 | GU67: 48.3206995 | GV67: 48.76005025 | GW67: 49.20162599 | GX67: 49.64536736 | GY67: 50.09121679 | GZ67: 50.53911851 | HA67: 50.98901843 | HB67: 51.44086411 | HC67: 51.89460473 | HD67: 52.35019102 | HE67: 52.80757521 | HF67: 53.26671099 | HG67: 53.72755345 | HH67: 54.19005905 | HI67: 54.65418557 | HJ67: 55.11989205 | HK67: 55.5871388 | HL67: 56.05588729 | HM67: 56.52610017 | HN67: 56.99774118 | HO67: 57.47077518 | HP67: 57.94516805 | HQ67: 58.42088668 | HR67: 58.89789894 | HS67: 59.37617367 | HT67: 59.8556806 | HU67: 60.33639035 | HV67: 60.81827439 | HW67: 61.30130504 | HX67: 61.78545541 | HY67: 62.27069937 | HZ67: 1.8
B68: 45 | C68: 24.75 | D68: 29.75 | E68: 1.8 | F68: 30.85939889 | G68: 29.80440404 | H68: -0.524247742 | I68: -68.57373685 | J68: 0.0324050382 | K68: 0.03355208843 | L68: 0.05449941787 | M68: -16.64699023 | N68: -16.34484983 | O68: -12.13140372 | AA68: 29.75 | AB68: 40.5530825 | AC68: 40.18214778 | AD68: 39.81535508 | AE68: 39.45281992 | AF68: 39.09466076 | AG68: 38.74099895 | AH68: 38.39195879 | AI68: 38.04766747 | AJ68: 37.70825506 | AK68: 37.3738545 | AL68: 37.0446015 | AM68: 36.72063453 | AN68: 36.40209472 | AO68: 36.08912579 | AP68: 35.7818739 | AQ68: 35.4804876 | AR68: 35.18511759 | AS68: 34.89591667 | AT68: 34.61303945 | AU68: 34.33664224 | AV68: 34.06688275 | AW68: 33.80391989 | AX68: 33.5479135 | AY68: 33.29902401 | AZ68: 33.05741218 | BA68: 32.82323872 | BB68: 32.59666394 | BC68: 32.37784737 | BD68: 32.16694732 | BE68: 31.96412051 | BF68: 31.76952156 | BG68: 31.58330255 | BH68: 31.40561256 | BI68: 31.23659713 | BJ68: 31.0763978 | BK68: 30.92515158 | BL68: 30.78299043 | BM68: 30.65004078 | BN68: 30.52642298 | BO68: 30.41225082 | BP68: 30.30763105 | BQ68: 30.21266291 | BR68: 30.12743766 | BS68: 30.0520382 | BT68: 29.98653865 | BU68: 29.93100399 | BV68: 29.88548979 | BW68: 29.85004188 | BX68: 29.82469614 | BY68: 29.80947836 | BZ68: 29.80440404 | CA68: 29.80947836 | CB68: 29.82469614 | CC68: 29.85004188 | CD68: 29.88548979 | CE68: 29.93100399 | CF68: 29.98653865 | CG68: 30.0520382 | CH68: 30.12743766 | CI68: 30.21266291 | CJ68: 30.30763105 | CK68: 30.41225082 | CL68: 30.52642298 | CM68: 30.65004078 | CN68: 30.78299043 | CO68: 30.92515158 | CP68: 31.0763978 | CQ68: 31.23659713 | CR68: 31.40561256 | CS68: 31.58330255 | CT68: 31.76952156 | CU68: 31.96412051 | CV68: 32.16694732 | CW68: 32.37784737 | CX68: 32.59666394 | CY68: 32.82323872 | CZ68: 33.05741218 | DA68: 33.29902401 | DB68: 33.5479135 | DC68: 33.80391989 | DD68: 34.06688275 | DE68: 34.33664224 | DF68: 34.61303945 | DG68: 34.89591667 | DH68: 35.18511759 | DI68: 35.4804876 | DJ68: 35.7818739 | DK68: 36.08912579 | DL68: 36.40209472 | DM68: 36.72063453 | DN68: 37.0446015 | DO68: 37.3738545 | DP68: 37.70825506 | DQ68: 38.04766747 | DR68: 38.39195879 | DS68: 38.74099895 | DT68: 39.09466076 | DU68: 39.45281992 | DV68: 39.81535508 | DW68: 40.18214778 | DX68: 40.5530825 | DY68: 1.8 | EB68: 29.75 | EC68: 29.75 | ED68: 29.7550836 | EE68: 29.77032919 | EF68: 29.79572117 | EG68: 29.83123363 | EH68: 29.87683049 | EI68: 29.93246565 | EJ68: 29.99808327 | EK68: 30.07361801 | EL68: 30.15899534 | EM68: 30.25413195 | EN68: 30.35893608 | EO68: 30.47330799 | EP68: 30.59714039 | EQ68: 30.7303189 | ER68: 30.87272259 | ES68: 31.02422441 | ET68: 31.18469176 | EU68: 31.35398699 | EV68: 31.53196791 | EW68: 31.7184883 | EX68: 31.91339844 | EY68: 32.11654558 | EZ68: 32.32777444 | FA68: 32.54692766 | FB68: 32.77384628 | FC68: 33.00837015 | FD68: 33.25033834 | FE68: 33.49958955 | FF68: 33.75596244 | FG68: 34.019296 | FH68: 34.28942986 | FI68: 34.56620459 | FJ68: 34.84946198 | FK68: 35.13904523 | FL68: 35.43479928 | FM68: 35.7365709 | FN68: 36.04420897 | FO68: 36.35756455 | FP68: 36.67649111 | FQ68: 37.00084458 | FR68: 37.33048352 | FS68: 37.66526915 | FT68: 38.00506545 | FU68: 38.34973924 | FV68: 38.6991602 | FW68: 39.05320089 | FX68: 39.41173683 | FY68: 39.77464645 | FZ68: 40.14181112 | GA68: 40.51311516 | GB68: 40.8884458 | GC68: 41.26769318 | GD68: 41.65075029 | GE68: 42.03751301 | GF68: 42.42787998 | GG68: 42.82175265 | GH68: 43.21903516 | GI68: 43.61963434 | GJ68: 44.02345966 | GK68: 44.43042314 | GL68: 44.84043934 | GM68: 45.25342528 | GN68: 45.66930041 | GO68: 46.0879865 | GP68: 46.50940765 | GQ68: 46.93349017 | GR68: 47.36016258 | GS68: 47.78935551 | GT68: 48.22100165 | GU68: 48.65503571 | GV68: 49.09139436 | GW68: 49.53001615 | GX68: 49.9708415 | GY68: 50.41381259 | GZ68: 50.85887337 | HA68: 51.30596944 | HB68: 51.75504806 | HC68: 52.20605808 | HD68: 52.65894986 | HE68: 53.11367526 | HF68: 53.5701876 | HG68: 54.02844158 | HH68: 54.48839326 | HI68: 54.95 | HJ68: 55.41322044 | HK68: 55.87801446 | HL68: 56.34434311 | HM68: 56.81216859 | HN68: 57.28145424 | HO68: 57.75216446 | HP68: 58.2242647 | HQ68: 58.69772142 | HR68: 59.17250206 | HS68: 59.648575 | HT68: 60.12590956 | HU68: 60.60447591 | HV68: 61.0842451 | HW68: 61.56518903 | HX68: 62.04728036 | HY68: 62.53049256 | HZ68: 1.8
B69: 46 | C69: 25.3 | D69: 30.3 | E69: 1.8 | F69: 31.38996655 | G69: 30.35341826 | H69: -0.5058011776 | I69: -66.16085119 | J69: 0.03185731334 | K69: 0.03294521861 | L69: 0.05430162759 | M69: -16.79505805 | N69: -16.50339312 | O69: -12.16298405 | AA69: 30.3 | AB69: 40.95827145 | AC69: 40.59103965 | AD69: 40.22797534 | AE69: 39.86919237 | AF69: 39.51480735 | AG69: 39.16493968 | AH69: 38.81971149 | AI69: 38.47924765 | AJ69: 38.14367575 | AK69: 37.81312603 | AL69: 37.48773133 | AM69: 37.16762704 | AN69: 36.85295104 | AO69: 36.54384353 | AP69: 36.24044702 | AQ69: 35.94290612 | AR69: 35.65136744 | AS69: 35.36597942 | AT69: 35.08689214 | AU69: 34.81425714 | AV69: 34.54822716 | AW69: 34.28895595 | AX69: 34.03659795 | AY69: 33.79130805 | AZ69: 33.55324127 | BA69: 33.32255242 | BB69: 33.09939576 | BC69: 32.88392464 | BD69: 32.6762911 | BE69: 32.47664545 | BF69: 32.2851359 | BG69: 32.10190804 | BH69: 31.92710447 | BI69: 31.76086428 | BJ69: 31.60332261 | BK69: 31.45461015 | BL69: 31.31485271 | BM69: 31.18417066 | BN69: 31.06267857 | BO69: 30.95048465 | BP69: 30.84769035 | BQ69: 30.75438993 | BR69: 30.67067003 | BS69: 30.59660929 | BT69: 30.532278 | BU69: 30.47773778 | BV69: 30.43304125 | BW69: 30.39823186 | BX69: 30.37334358 | BY69: 30.35840081 | BZ69: 30.35341826 | CA69: 30.35840081 | CB69: 30.37334358 | CC69: 30.39823186 | CD69: 30.43304125 | CE69: 30.47773778 | CF69: 30.532278 | CG69: 30.59660929 | CH69: 30.67067003 | CI69: 30.75438993 | CJ69: 30.84769035 | CK69: 30.95048465 | CL69: 31.06267857 | CM69: 31.18417066 | CN69: 31.31485271 | CO69: 31.45461015 | CP69: 31.60332261 | CQ69: 31.76086428 | CR69: 31.92710447 | CS69: 32.10190804 | CT69: 32.2851359 | CU69: 32.47664545 | CV69: 32.6762911 | CW69: 32.88392464 | CX69: 33.09939576 | CY69: 33.32255242 | CZ69: 33.55324127 | DA69: 33.79130805 | DB69: 34.03659795 | DC69: 34.28895595 | DD69: 34.54822716 | DE69: 34.81425714 | DF69: 35.08689214 | DG69: 35.36597942 | DH69: 35.65136744 | DI69: 35.94290612 | DJ69: 36.24044702 | DK69: 36.54384353 | DL69: 36.85295104 | DM69: 37.16762704 | DN69: 37.48773133 | DO69: 37.81312603 | DP69: 38.14367575 | DQ69: 38.47924765 | DR69: 38.81971149 | DS69: 39.16493968 | DT69: 39.51480735 | DU69: 39.86919237 | DV69: 40.22797534 | DW69: 40.59103965 | DX69: 40.95827145 | DY69: 1.8 | EB69: 30.3 | EC69: 30.3 | ED69: 30.30499134 | EE69: 30.31996042 | EF69: 30.34489249 | EG69: 30.379763 | EH69: 30.42453779 | EI69: 30.47917322 | EJ69: 30.54361635 | EK69: 30.61780528 | EL69: 30.70166934 | EM69: 30.79512949 | EN69: 30.89809865 | EO69: 31.0104821 | EP69: 31.13217789 | EQ69: 31.26307726 | ER69: 31.40306514 | ES69: 31.55202054 | ET69: 31.70981709 | EU69: 31.8763235 | EV69: 32.05140403 | EW69: 32.23491895 | EX69: 32.42672509 | EY69: 32.6266762 | EZ69: 32.83462349 | FA69: 33.05041603 | FB69: 33.27390118 | FC69: 33.50492501 | FD69: 33.74333267 | FE69: 33.9889688 | FF69: 34.24167782 | FG69: 34.50130432 | FH69: 34.76769334 | FI69: 35.04069063 | FJ69: 35.32014298 | FK69: 35.60589839 | FL69: 35.89780634 | FM69: 36.19571798 | FN69: 36.4994863 | FO69: 36.8089663 | FP69: 37.12401514 | FQ69: 37.44449225 | FR69: 37.77025946 | FS69: 38.10118108 | FT69: 38.43712398 | FU69: 38.77795766 | FV69: 39.12355429 | FW69: 39.47378877 | FX69: 39.82853876 | FY69: 40.18768468 | FZ69: 40.55110973 | GA69: 40.91869988 | GB69: 41.29034391 | GC69: 41.66593333 | GD69: 42.04536241 | GE69: 42.42852814 | GF69: 42.8153302 | GG69: 43.20567092 | GH69: 43.59945527 | GI69: 43.99659078 | GJ69: 44.39698751 | GK69: 44.80055803 | GL69: 45.20721734 | GM69: 45.61688284 | GN69: 46.02947425 | GO69: 46.44491361 | GP69: 46.86312516 | GQ69: 47.28403536 | GR69: 47.70757277 | GS69: 48.13366805 | GT69: 48.56225386 | GU69: 48.99326484 | GV69: 49.42663756 | GW69: 49.86231042 | GX69: 50.30022366 | GY69: 50.74031927 | GZ69: 51.18254097 | HA69: 51.62683411 | HB69: 52.07314567 | HC69: 52.5214242 | HD69: 52.97161976 | HE69: 53.42368389 | HF69: 53.87756954 | HG69: 54.33323108 | HH69: 54.7906242 | HI69: 55.24970588 | HJ69: 55.71043439 | HK69: 56.1727692 | HL69: 56.63667098 | HM69: 57.10210154 | HN69: 57.56902379 | HO69: 58.03740173 | HP69: 58.50720041 | HQ69: 58.97838587 | HR69: 59.45092514 | HS69: 59.92478619 | HT69: 60.39993791 | HU69: 60.87635009 | HV69: 61.35399335 | HW69: 61.83283917 | HX69: 62.31285983 | HY69: 62.79402838 | HZ69: 1.8
B70: 47 | C70: 25.85 | D70: 30.85 | E70: 1.8 | F70: 31.92119202 | G70: 30.90246754 | H70: -0.487977368 | I70: -63.8294244 | J70: 0.03132715092 | K70: 0.03235987543 | L70: 0.0540625955 | M70: -16.940823 | N70: -16.65910417 | O70: -12.20130315 | AA70: 30.85 | AB70: 41.36680432 | AC70: 41.00323158 | AD70: 40.64384947 | AE70: 40.28877015 | AF70: 39.93810837 | AG70: 39.59198151 | AH70: 39.25050955 | AI70: 38.91381503 | AJ70: 38.58202302 | AK70: 38.25526108 | AL70: 37.9336592 | AM70: 37.61734972 | AN70: 37.30646727 | AO70: 37.00114863 | AP70: 36.70153267 | AQ70: 36.40776016 | AR70: 36.1199737 | AS70: 35.83831748 | AT70: 35.56293717 | AU70: 35.29397966 | AV70: 35.03159288 | AW70: 34.77592558 | AX70: 34.52712702 | AY70: 34.28534672 | AZ70: 34.05073421 | BA70: 33.82343862 | BB70: 33.60360844 | BC70: 33.39139111 | BD70: 33.18693267 | BE70: 32.99037738 | BF70: 32.80186732 | BG70: 32.62154196 | BH70: 32.44953775 | BI70: 32.28598767 | BJ70: 32.13102084 | BK70: 31.984762 | BL70: 31.84733113 | BM70: 31.71884298 | BN70: 31.59940664 | BO70: 31.48912511 | BP70: 31.38809488 | BQ70: 31.29640554 | BR70: 31.21413942 | BS70: 31.1413712 | BT70: 31.07816758 | BU70: 31.02458702 | BV70: 30.98067946 | BW70: 30.94648607 | BX70: 30.92203907 | BY70: 30.90736158 | BZ70: 30.90246754 | CA70: 30.90736158 | CB70: 30.92203907 | CC70: 30.94648607 | CD70: 30.98067946 | CE70: 31.02458702 | CF70: 31.07816758 | CG70: 31.1413712 | CH70: 31.21413942 | CI70: 31.29640554 | CJ70: 31.38809488 | CK70: 31.48912511 | CL70: 31.59940664 | CM70: 31.71884298 | CN70: 31.84733113 | CO70: 31.984762 | CP70: 32.13102084 | CQ70: 32.28598767 | CR70: 32.44953775 | CS70: 32.62154196 | CT70: 32.80186732 | CU70: 32.99037738 | CV70: 33.18693267 | CW70: 33.39139111 | CX70: 33.60360844 | CY70: 33.82343862 | CZ70: 34.05073421 | DA70: 34.28534672 | DB70: 34.52712702 | DC70: 34.77592558 | DD70: 35.03159288 | DE70: 35.29397966 | DF70: 35.56293717 | DG70: 35.83831748 | DH70: 36.1199737 | DI70: 36.40776016 | DJ70: 36.70153267 | DK70: 37.00114863 | DL70: 37.30646727 | DM70: 37.61734972 | DN70: 37.9336592 | DO70: 38.25526108 | DP70: 38.58202302 | DQ70: 38.91381503 | DR70: 39.25050955 | DS70: 39.59198151 | DT70: 39.93810837 | DU70: 40.28877015 | DV70: 40.64384947 | DW70: 41.00323158 | DX70: 41.36680432 | DY70: 1.8 | EB70: 30.85 | EC70: 30.85 | ED70: 30.85490237 | EE70: 30.86960479 | EF70: 30.89409329 | EG70: 30.9283446 | EH70: 30.97232636 | EI70: 31.02599716 | EJ70: 31.08930684 | EK70: 31.16219665 | EL70: 31.24459953 | EM70: 31.33644045 | EN70: 31.43763668 | EO70: 31.5480982 | EP70: 31.66772805 | EQ70: 31.79642275 | ER70: 31.93407271 | ES70: 32.08056265 | ET70: 32.23577206 | EU70: 32.39957561 | EV70: 32.57184367 | EW70: 32.75244266 | EX70: 32.94123556 | EY70: 33.13808232 | EZ70: 33.34284031 | FA70: 33.5553647 | FB70: 33.77550888 | FC70: 34.00312486 | FD70: 34.23806361 | FE70: 34.48017546 | FF70: 34.72931039 | FG70: 34.98531835 | FH70: 35.24804959 | FI70: 35.51735491 | FJ70: 35.79308592 | FK70: 36.07509529 | FL70: 36.36323693 | FM70: 36.65736624 | FN70: 36.95734027 | FO70: 37.26301786 | FP70: 37.57425981 | FQ70: 37.89092899 | FR70: 38.2128905 | FS70: 38.54001168 | FT70: 38.87216228 | FU70: 39.20921448 | FV70: 39.55104297 | FW70: 39.89752499 | FX70: 40.24854035 | FY70: 40.60397148 | FZ70: 40.96370345 | GA70: 41.32762393 | GB70: 41.69562327 | GC70: 42.06759442 | GD70: 42.44343294 | GE70: 42.82303702 | GF70: 43.20630741 | GG70: 43.5931474 | GH70: 43.9834628 | GI70: 44.37716192 | GJ70: 44.77415549 | GK70: 45.17435666 | GL70: 45.57768094 | GM70: 45.98404615 | GN70: 46.39337237 | GO70: 46.80558193 | GP70: 47.22059932 | GQ70: 47.63835115 | GR70: 48.05876611 | GS70: 48.48177493 | GT70: 48.90731029 | GU70: 49.33530683 | GV70: 49.76570104 | GW70: 50.19843125 | GX70: 50.63343757 | GY70: 51.07066183 | GZ70: 51.51004756 | HA70: 51.95153992 | HB70: 52.39508565 | HC70: 52.84063304 | HD70: 53.28813189 | HE70: 53.73753344 | HF70: 54.18879035 | HG70: 54.64185667 | HH70: 55.09668774 | HI70: 55.55324023 | HJ70: 56.01147204 | HK70: 56.47134229 | HL70: 56.93281128 | HM70: 57.39584044 | HN70: 57.86039232 | HO70: 58.32643054 | HP70: 58.79391975 | HQ70: 59.26282562 | HR70: 59.73311477 | HS70: 60.2047548 | HT70: 60.6777142 | HU70: 61.15196236 | HV70: 61.62746952 | HW70: 62.10420678 | HX70: 62.58214602 | HY70: 63.0612599 | HZ70: 1.8
B71: 48 | C71: 26.4 | D71: 31.4 | E71: 1.8 | F71: 32.453043 | G71: 31.45155004 | H71: -0.470745846 | I71: -61.57547124 | J71: 0.03081375142 | K71: 0.03179493534 | L71: 0.05378755687 | M71: -17.08434949 | N71: -16.81208207 | O71: -12.24560462 | AA71: 31.4 | AB71: 41.77858303 | AC71: 41.41862504 | AD71: 41.06287861 | AE71: 40.71145416 | AF71: 40.36446457 | AG71: 40.02202519 | AH71: 39.6842538 | AI71: 39.35127063 | AJ71: 39.02319823 | AK71: 38.7001615 | AL71: 38.38228758 | AM71: 38.0697058 | AN71: 37.76254758 | AO71: 37.46094633 | AP71: 37.16503733 | AQ71: 36.87495763 | AR71: 36.59084585 | AS71: 36.31284208 | AT71: 36.04108766 | AU71: 35.77572501 | AV71: 35.51689739 | AW71: 35.26474869 | AX71: 35.01942318 | AY71: 34.78106525 | AZ71: 34.5498191 | BA71: 34.32582847 | BB71: 34.10923629 | BC71: 33.90018437 | BD71: 33.69881304 | BE71: 33.50526078 | BF71: 33.31966386 | BG71: 33.14215593 | BH71: 32.97286763 | BI71: 32.81192619 | BJ71: 32.65945499 | BK71: 32.51557319 | BL71: 32.3803953 | BM71: 32.25403076 | BN71: 32.13658351 | BO71: 32.02815168 | BP71: 31.9288271 | BQ71: 31.83869501 | BR71: 31.75783368 | BS71: 31.68631408 | BT71: 31.62419959 | BU71: 31.57154573 | BV71: 31.5283999 | BW71: 31.49480116 | BX71: 31.4707801 | BY71: 31.45635866 | BZ71: 31.45155004 | CA71: 31.45635866 | CB71: 31.4707801 | CC71: 31.49480116 | CD71: 31.5283999 | CE71: 31.57154573 | CF71: 31.62419959 | CG71: 31.68631408 | CH71: 31.75783368 | CI71: 31.83869501 | CJ71: 31.9288271 | CK71: 32.02815168 | CL71: 32.13658351 | CM71: 32.25403076 | CN71: 32.3803953 | CO71: 32.51557319 | CP71: 32.65945499 | CQ71: 32.81192619 | CR71: 32.97286763 | CS71: 33.14215593 | CT71: 33.31966386 | CU71: 33.50526078 | CV71: 33.69881304 | CW71: 33.90018437 | CX71: 34.10923629 | CY71: 34.32582847 | CZ71: 34.5498191 | DA71: 34.78106525 | DB71: 35.01942318 | DC71: 35.26474869 | DD71: 35.51689739 | DE71: 35.77572501 | DF71: 36.04108766 | DG71: 36.31284208 | DH71: 36.59084585 | DI71: 36.87495763 | DJ71: 37.16503733 | DK71: 37.46094633 | DL71: 37.76254758 | DM71: 38.0697058 | DN71: 38.38228758 | DO71: 38.7001615 | DP71: 39.02319823 | DQ71: 39.35127063 | DR71: 39.6842538 | DS71: 40.02202519 | DT71: 40.36446457 | DU71: 40.71145416 | DV71: 41.06287861 | DW71: 41.41862504 | DX71: 41.77858303 | DY71: 1.8 | EB71: 31.4 | EC71: 31.4 | ED71: 31.40481651 | EE71: 31.41926161 | EF71: 31.44332203 | EG71: 31.47697571 | EH71: 31.52019194 | EI71: 31.57293144 | EJ71: 31.63514659 | EK71: 31.70678161 | EL71: 31.78777281 | EM71: 31.87804887 | EN71: 31.97753117 | EO71: 32.08613408 | EP71: 32.20376531 | EQ71: 32.33032632 | ER71: 32.46571268 | ES71: 32.60981447 | ET71: 32.76251669 | EU71: 32.92369967 | EV71: 33.09323949 | EW71: 33.2710084 | EX71: 33.45687523 | EY71: 33.65070579 | EZ71: 33.85236329 | FA71: 34.06170871 | FB71: 34.2786012 | FC71: 34.50289843 | FD71: 34.73445696 | FE71: 34.97313254 | FF71: 35.2187805 | FG71: 35.47125597 | FH71: 35.73041422 | FI71: 35.9961109 | FJ71: 36.26820233 | FK71: 36.54654566 | FL71: 36.83099917 | FM71: 37.12142239 | FN71: 37.4176763 | FO71: 37.71962354 | FP71: 38.02712847 | FQ71: 38.34005738 | FR71: 38.65827854 | FS71: 38.98166236 | FT71: 39.3100814 | FU71: 39.64341055 | FV71: 39.98152698 | FW71: 40.32431029 | FX71: 40.67164246 | FY71: 41.02340795 | FZ71: 41.37949371 | GA71: 41.73978917 | GB71: 42.10418625 | GC71: 42.47257939 | GD71: 42.8448655 | GE71: 43.220944 | GF71: 43.60071674 | GG71: 43.98408803 | GH71: 44.37096461 | GI71: 44.76125557 | GJ71: 45.15487238 | GK71: 45.55172884 | GL71: 45.95174099 | GM71: 46.35482715 | GN71: 46.76090782 | GO71: 47.16990566 | GP71: 47.58174545 | GQ71: 47.99635403 | GR71: 48.41366026 | GS71: 48.83359499 | GT71: 49.25609099 | GU71: 49.68108292 | GV71: 50.10850726 | GW71: 50.53830231 | GX71: 50.97040808 | GY71: 51.40476632 | GZ71: 51.84132039 | HA71: 52.2800153 | HB71: 52.7207976 | HC71: 53.16361538 | HD71: 53.60841818 | HE71: 54.05515702 | HF71: 54.50378427 | HG71: 54.9542537 | HH71: 55.40652037 | HI71: 55.86054063 | HJ71: 56.31627207 | HK71: 56.77367348 | HL71: 57.23270481 | HM71: 57.69332717 | HN71: 58.15550275 | HO71: 58.61919481 | HP71: 59.08436764 | HQ71: 59.55098656 | HR71: 60.01901782 | HS71: 60.48842865 | HT71: 60.95918717 | HU71: 61.4312624 | HV71: 61.90462422 | HW71: 62.37924334 | HX71: 62.85509128 | HY71: 63.33214034 | HZ71: 1.8
B72: 49 | C72: 26.95 | D72: 31.95 | E72: 1.8 | F72: 32.98548923 | G72: 32.00066406 | H72: -0.4540780649 | I72: -59.39525769 | J72: 0.03031636102 | K72: 0.03124935152 | L72: 0.05348117792 | M72: -17.22569959 | N72: -16.9624208 | O72: -12.29522171 | AA72: 31.95 | AB72: 42.19351253 | AC72: 41.83712466 | AD72: 41.48496716 | AE72: 41.13714866 | AF72: 40.79378016 | AG72: 40.45497497 | AH72: 40.12084869 | AI72: 39.7915192 | AJ72: 39.46710656 | AK72: 39.14773301 | AL72: 38.83352289 | AM72: 38.52460253 | AN72: 38.22110019 | AO72: 37.92314597 | AP72: 37.63087163 | AQ72: 37.34441056 | AR72: 37.06389753 | AS72: 36.7894686 | AT72: 36.52126093 | AU72: 36.25941257 | AV72: 36.00406227 | AW72: 35.75534925 | AX72: 35.51341296 | AY72: 35.27839282 | AZ72: 35.05042796 | BA72: 34.8296569 | BB72: 34.6162173 | BC72: 34.41024557 | BD72: 34.21187659 | BE72: 34.02124336 | BF72: 33.83847662 | BG72: 33.66370449 | BH72: 33.49705211 | BI72: 33.33864124 | BJ72: 33.18858991 | BK72: 33.04701197 | BL72: 32.91401677 | BM72: 32.78970875 | BN72: 32.67418706 | BO72: 32.56754519 | BP72: 32.46987065 | BQ72: 32.38124457 | BR72: 32.30174144 | BS72: 32.23142876 | BT72: 32.1703668 | BU72: 32.11860831 | BV72: 32.07619834 | BW72: 32.043174 | BX72: 32.01956433 | BY72: 32.00539017 | BZ72: 32.00066406 | CA72: 32.00539017 | CB72: 32.01956433 | CC72: 32.043174 | CD72: 32.07619834 | CE72: 32.11860831 | CF72: 32.1703668 | CG72: 32.23142876 | CH72: 32.30174144 | CI72: 32.38124457 | CJ72: 32.46987065 | CK72: 32.56754519 | CL72: 32.67418706 | CM72: 32.78970875 | CN72: 32.91401677 | CO72: 33.04701197 | CP72: 33.18858991 | CQ72: 33.33864124 | CR72: 33.49705211 | CS72: 33.66370449 | CT72: 33.83847662 | CU72: 34.02124336 | CV72: 34.21187659 | CW72: 34.41024557 | CX72: 34.6162173 | CY72: =SQRT(($AA72-$O$7)^2+(CY$22-$P$7)^2+($DY72-$Q$7)^2) -> 34.8296569 | CZ72: 35.05042796 | DA72: 35.27839282 | DB72: 35.51341296 | DC72: 35.75534925 | DD72: 36.00406227 | DE72: 36.25941257 | DF72: 36.52126093 | DG72: 36.7894686 | DH72: 37.06389753 | DI72: 37.34441056 | DJ72: 37.63087163 | DK72: 37.92314597 | DL72: 38.22110019 | DM72: 38.52460253 | DN72: 38.83352289 | DO72: 39.14773301 | DP72: =SQRT(($AA72-$O$7)^2+(DP$22-$P$7)^2+($DY72-$Q$7)^2) -> 39.46710656 | DQ72: 39.7915192 | DR72: 40.12084869 | DS72: 40.45497497 | DT72: 40.79378016 | DU72: 41.13714866 | DV72: 41.48496716 | DW72: 41.83712466 | DX72: 42.19351253 | DY72: 1.8 | EB72: 31.95 | EC72: 31.95 | ED72: 31.95473361 | EE72: 31.96893023 | EF72: 31.99257726 | EG72: 32.02565378 | EH72: 32.0681306 | EI72: 32.11997042 | EJ72: 32.18112801 | EK72: 32.25155035 | EL72: 32.3311769 | EM72: 32.41993985 | EN72: 32.51776438 | EO72: 32.62456896 | EP72: 32.74026573 | EQ72: 32.86476076 | ER72: 32.99795448 | ES72: 33.139742 | ET72: 33.29001352 | EU72: 33.44865468 | EV72: 33.615547 | EW72: 33.79056821 | EX72: 33.97359269 | EY72: 34.1644918 | EZ72: 34.36313432 | FA72: 34.56938675 | FB72: 34.78311372 | FC72: 35.00417832 | FD72: 35.23244244 | FE72: 35.46776706 | FF72: 35.7100126 | FG72: 35.9590392 | FH72: 36.21470696 | FI72: 36.47687624 | FJ72: 36.74540788 | FK72: 37.02016342 | FL72: 37.30100535 | FM72: 37.58779722 | FN72: 37.8804039 | FO72: 38.1786917 | FP72: 38.4825285 | FQ72: 38.79178392 | FR72: 39.10632941 | FS72: 39.42603835 | FT72: 39.75078616 | FU72: 40.08045035 | FV72: 40.41491061 | FW72: 40.75404888 | FX72: 41.09774933 | FY72: 41.44589847 | FZ72: 41.79838514 | GA72: 42.15510052 | GB72: 42.51593819 | GC72: 42.88079407 | GD72: 43.24956647 | GE72: 43.62215607 | GF72: 43.99846588 | GG72: 44.37840128 | GH72: 44.76186993 | GI72: 45.14878182 | GJ72: 45.53904918 | GK72: 45.93258647 | GL72: 46.32931038 | GM72: 46.72913973 | GN72: 47.1319955 | GO72: 47.53780075 | GP72: 47.94648058 | GQ72: 48.35796212 | GR72: 48.77217444 | GS72: 49.18904858 | GT72: 49.60851741 | GU72: 50.03051569 | GV72: 50.45497993 | GW72: 50.88184843 | GX72: 51.31106119 | GY72: 51.74255985 | GZ72: =SQRT(($EB72-$O$7)^2+(GZ$22-$Q$7)^2+(-$P$7)^2) -> 52.17628772 | HA72: 52.61218965 | HB72: 53.05021206 | HC72: 53.49030286 | HD72: 53.93241141 | HE72: 54.37648849 | HF72: 54.82248626 | HG72: 55.27035824 | HH72: 55.72005922 | HI72: 56.17154529 | HJ72: 56.62477373 | HK72: 57.07970305 | HL72: 57.53629289 | HM72: 57.99450405 | HN72: 58.45429839 | HO72: 58.91563884 | HP72: 59.37848937 | HQ72: =SQRT(($EB72-$O$7)^2+(HQ$22-$Q$7)^2+(-$P$7)^2) -> 59.84281494 | HR72: 60.30858148 | HS72: 60.77575586 | HT72: 61.24430586 | HU72: 61.71420015 | HV72: 62.18540826 | HW72: 62.65790054 | HX72: 63.13164816 | HY72: 63.60662308 | HZ72: 1.8
B73: 50 | C73: 27.5 | D73: 32.5 | E73: 1.8 | F73: 33.51850235 | G73: 32.54980799 | H73: -0.4379472527 | I73: -57.28528184 | J73: 0.02983426853 | K73: 0.03072214744 | L73: 0.05314761818 | M73: -17.3649331 | N73: -17.11020961 | O73: -12.34956486 | AA73: 32.5 | AB73: 42.61150079 | AC73: 42.25863817 | AD73: 41.91002267 | AE73: 41.56576115 | AF73: 41.22596269 | AG73: 40.89073856 | AH73: 40.56020217 | AI73: 40.23446905 | AJ73: 39.91365681 | AK73: 39.59788504 | AL73: 39.28727529 | AM73: 38.98195095 | AN73: 38.68203717 | AO73: 38.38766078 | AP73: 38.09895012 | AQ73: 37.81603496 | AR73: 37.53904634 | AS73: 37.2681164 | AT73: 37.00337822 | AU73: 36.74496564 | AV73: 36.49301303 | AW73: 36.2476551 | AX73: 36.00902665 | AY73: 35.77726233 | AZ73: 35.5524964 | BA73: 35.33486239 | BB73: 35.12449288 | BC73: 34.92151915 | BD73: 34.7260709 | BE73: 34.53827587 | BF73: 34.35825956 | BG73: 34.18614485 | BH73: 34.02205167 | BI73: 33.86609662 | BJ73: 33.71839261 | BK73: 33.57904853 | BL73: 33.44816886 | BM73: 33.32585333 | BN73: 33.21219655 | BO73: 33.10728772 | BP73: 33.01121022 | BQ73: 32.92404137 | BR73: 32.8458521 | BS73: 32.77670667 | BT73: 32.71666242 | BU73: 32.66576955 | BV73: 32.62407087 | BW73: 32.59160168 | BX73: 32.56838958 | BY73: 32.55445438 | BZ73: 32.54980799 | CA73: 32.55445438 | CB73: 32.56838958 | CC73: 32.59160168 | CD73: 32.62407087 | CE73: 32.66576955 | CF73: 32.71666242 | CG73: 32.77670667 | CH73: 32.8458521 | CI73: 32.92404137 | CJ73: 33.01121022 | CK73: 33.10728772 | CL73: 33.21219655 | CM73: 33.32585333 | CN73: 33.44816886 | CO73: 33.57904853 | CP73: 33.71839261 | CQ73: 33.86609662 | CR73: 34.02205167 | CS73: 34.18614485 | CT73: 34.35825956 | CU73: 34.53827587 | CV73: 34.7260709 | CW73: 34.92151915 | CX73: 35.12449288 | CY73: 35.33486239 | CZ73: 35.5524964 | DA73: 35.77726233 | DB73: 36.00902665 | DC73: 36.2476551 | DD73: 36.49301303 | DE73: 36.74496564 | DF73: 37.00337822 | DG73: 37.2681164 | DH73: 37.53904634 | DI73: 37.81603496 | DJ73: 38.09895012 | DK73: 38.38766078 | DL73: 38.68203717 | DM73: 38.98195095 | DN73: 39.28727529 | DO73: =SQRT(($AA73-$O$7)^2+(DO$22-$P$7)^2+($DY73-$Q$7)^2) -> 39.59788504 | DP73: 39.91365681 | DQ73: 40.23446905 | DR73: 40.56020217 | DS73: 40.89073856 | DT73: 41.22596269 | DU73: 41.56576115 | DV73: 41.91002267 | DW73: 42.25863817 | DX73: 42.61150079 | DY73: 1.8 | EB73: 32.5 | EC73: 32.5 | ED73: 32.50465351 | EE73: 32.51861006 | EF73: 32.54185766 | EG73: 32.57437643 | EH73: 32.61613864 | EI73: 32.66710884 | EJ73: 32.727244 | EK73: 32.79649372 | EL73: 32.87480038 | EM73: 32.96209945 | EN73: 33.05831968 | EO73: 33.16338342 | EP73: 33.27720691 | EQ73: 33.3997006 | ER73: 33.53076945 | ES73: 33.67031333 | ET73: 33.81822733 | EU73: 33.97440213 | EV73: 34.13872435 | EW73: 34.31107693 | EX73: 34.49133949 | EY73: 34.67938869 | EZ73: 34.87509857 | FA73: 35.0783409 | FB73: 35.28898553 | FC73: 35.50690074 | FD73: 35.73195349 | FE73: 35.96400979 | FF73: 36.20293496 | FG73: 36.44859394 | FH73: 36.70085149 | FI73: 36.95957251 | FJ73: 37.22462223 | FK73: 37.49586644 | FL73: 37.7731717 | FM73: 38.05640551 | FN73: 38.3454365 | FO73: 38.64013458 | FP73: 38.94037108 | FQ73: 39.24601891 | FR73: 39.55695261 | FS73: 39.87304854 | FT73: 40.1941849 | FU73: 40.52024186 | FV73: 40.85110158 | FW73: 41.18664832 | FX73: 41.52676848 | FY73: 41.87135059 | FZ73: 42.22028541 | GA73: 42.57346591 | GB73: 42.93078732 | GC73: 43.29214709 | GD73: 43.65744496 | GE73: 44.02658288 | GF73: 44.39946509 | GG73: 44.77599803 | GH73: 45.1560904 | GI73: 45.53965305 | GJ73: 45.92659905 | GK73: 46.31684359 | GL73: 46.710304 | GM73: 47.10689971 | GN73: 47.50655218 | GO73: 47.90918492 | GP73: 48.31472343 | GQ73: 48.72309514 | GR73: 49.13422941 | GS73: 49.54805748 | GT73: 49.96451241 | GU73: 50.38352905 | GV73: 50.80504404 | GW73: 51.2289957 | GX73: 51.65532402 | GY73: 52.08397066 | GZ73: 52.51487884 | HA73: 52.94799335 | HB73: 53.38326048 | HC73: 53.82062802 | HD73: 54.26004515 | HE73: 54.7014625 | HF73: 55.14483203 | HG73: 55.59010703 | HH73: 56.03724208 | HI73: 56.486193 | HJ73: 56.93691685 | HK73: 57.38937184 | HL73: 57.84351736 | HM73: 58.29931389 | HN73: 58.75672302 | HO73: 59.21570738 | HP73: =SQRT(($EB73-$O$7)^2+(HP$22-$Q$7)^2+(-$P$7)^2) -> 59.67623061 | HQ73: 60.13825737 | HR73: 60.60175327 | HS73: 61.06668486 | HT73: 61.53301959 | HU73: 62.0007258 | HV73: 62.46977269 | HW73: 62.94013028 | HX73: 63.41176941 | HY73: 63.8846617 | HZ73: 1.8
B74: 51 | C74: 28.05 | D74: 33.05 | E74: 1.8 | F74: 34.05205574 | G74: 33.09898035 | H74: -0.422328278 | I74: -55.24225643 | J74: 0.02936680263 | K74: 0.03021241106 | L74: 0.05279058586 | M74: -17.5021077 | N74: -17.25553329 | O74: -12.40811136 | AA74: 33.05 | AB74: 43.03245868 | AC74: 42.68307627 | AD74: 42.33795578 | AE74: 41.99720229 | AF74: 41.66092294 | AG74: 41.32922695 | AH74: 41.00222555 | AI74: 40.68003196 | AJ74: 40.3627613 | AK74: 40.05053058 | AL74: 39.74345858 | AM74: 39.44166579 | AN74: 39.1452743 | AO74: 38.85440773 | AP74: 38.56919107 | AQ74: 38.28975059 | AR74: 38.01621365 | AS74: 37.74870859 | AT74: 37.48736454 | AU74: 37.23231124 | AV74: 36.98367883 | AW74: 36.74159768 | AX74: 36.5061981 | AY74: 36.27761017 | AZ74: 36.05596345 | BA74: 35.84138669 | BB74: 35.63400763 | BC74: 35.43395264 | BD74: 35.24134646 | BE74: 35.05631184 | BF74: 34.87896931 | BG74: 34.70943676 | BH74: 34.54782916 | BI74: 34.39425824 | BJ74: 34.2488321 | BK74: 34.1116549 | BL74: 33.98282655 | BM74: 33.86244232 | BN74: 33.75059259 | BO74: 33.64736245 | BP74: 33.55283148 | BQ74: 33.46707337 | BR74: 33.39015573 | BS74: 33.32213979 | BT74: 33.26308013 | BU74: 33.21302455 | BV74: 33.17201381 | BW74: 33.14008147 | BX74: 33.11725381 | BY74: 33.10354966 | BZ74: 33.09898035 | CA74: 33.10354966 | CB74: 33.11725381 | CC74: 33.14008147 | CD74: 33.17201381 | CE74: 33.21302455 | CF74: 33.26308013 | CG74: 33.32213979 | CH74: 33.39015573 | CI74: 33.46707337 | CJ74: 33.55283148 | CK74: 33.64736245 | CL74: 33.75059259 | CM74: 33.86244232 | CN74: 33.98282655 | CO74: 34.1116549 | CP74: 34.2488321 | CQ74: 34.39425824 | CR74: 34.54782916 | CS74: 34.70943676 | CT74: 34.87896931 | CU74: 35.05631184 | CV74: 35.24134646 | CW74: 35.43395264 | CX74: 35.63400763 | CY74: 35.84138669 | CZ74: 36.05596345 | DA74: 36.27761017 | DB74: 36.5061981 | DC74: 36.74159768 | DD74: 36.98367883 | DE74: 37.23231124 | DF74: 37.48736454 | DG74: 37.74870859 | DH74: 38.01621365 | DI74: 38.28975059 | DJ74: 38.56919107 | DK74: 38.85440773 | DL74: 39.1452743 | DM74: 39.44166579 | DN74: 39.74345858 | DO74: 40.05053058 | DP74: 40.3627613 | DQ74: 40.68003196 | DR74: 41.00222555 | DS74: 41.32922695 | DT74: 41.66092294 | DU74: 41.99720229 | DV74: 42.33795578 | DW74: 42.68307627 | DX74: 43.03245868 | DY74: 1.8 | EB74: 33.05 | EC74: 33.05 | ED74: 33.05457608 | EE74: 33.06830053 | EF74: 33.09116196 | EG74: 33.12314146 | EH74: 33.16421264 | EI74: 33.21434178 | EJ74: 33.27348794 | EK74: 33.34160314 | EL74: 33.41863253 | EM74: 33.50451462 | EN74: 33.59918154 | EO74: 33.70255925 | EP74: 33.81456787 | EQ74: 33.93512192 | ER74: 34.06413069 | ES74: 34.20149851 | ET74: 34.34712506 | EU74: 34.50090579 | EV74: 34.66273215 | EW74: 34.83249202 | EX74: 35.01006998 | EY74: 35.1953477 | EZ74: 35.38820425 | FA74: 35.58851641 | FB74: 35.79615901 | FC74: 36.01100526 | FD74: 36.23292701 | FE74: 36.46179507 | FF74: 36.69747948 | FG74: 36.93984976 | FH74: 37.18877519 | FI74: 37.44412504 | FJ74: 37.70576879 | FK74: 37.97357634 | FL74: 38.24741821 | FM74: 38.52716574 | FN74: 38.81269122 | FO74: 39.1038681 | FP74: 39.40057106 | FQ74: 39.70267623 | FR74: 40.01006123 | FS74: 40.32260532 | FT74: 40.64018947 | FU74: 40.96269644 | FV74: 41.2900109 | FW74: 41.62201941 | FX74: 41.95861056 | FY74: 42.29967494 | FZ74: 42.64510523 | GA74: 42.9947962 | GB74: 43.34864473 | GC74: 43.70654985 | GD74: 44.06841272 | GE74: 44.43413665 | GF74: 44.80362709 | GG74: 45.17679161 | GH74: 45.55353993 | GI74: 45.93378386 | GJ74: 46.31743732 | GK74: 46.70441628 | GL74: 47.09463876 | GM74: 47.48802481 | GN74: 47.88449645 | GO74: 48.28397767 | GP74: 48.6863944 | GQ74: 49.09167445 | GR74: 49.49974747 | GS74: 49.91054498 | GT74: 50.32400024 | GU74: 50.74004829 | GV74: 51.15862586 | GW74: 51.57967138 | GX74: 52.00312491 | GY74: 52.42892808 | GZ74: 52.85702413 | HA74: 53.28735779 | HB74: 53.71987528 | HC74: 54.15452428 | HD74: 54.59125388 | HE74: 55.03001454 | HF74: 55.47075806 | HG74: 55.91343756 | HH74: 56.35800742 | HI74: 56.80442324 | HJ74: 57.25264186 | HK74: 57.70262126 | HL74: 58.15432056 | HM74: 58.60770001 | HN74: 59.0627209 | HO74: 59.51934559 | HP74: 59.97753746 | HQ74: 60.43726086 | HR74: 60.8984811 | HS74: 61.36116443 | HT74: 61.825278 | HU74: 62.29078985 | HV74: 62.75766885 | HW74: 63.22588473 | HX74: 63.695408 | HY74: 64.16620996 | HZ74: 1.8
B75: 52 | C75: 28.6 | D75: 33.6 | E75: 1.8 | F75: 34.58612439 | G75: 33.64817974 | H75: -0.4071975293 | I75: -53.26309295 | J75: 0.0289133292 | K75: 0.02971928965 | L75: 0.05241338692 | M75: -17.63727897 | N75: -17.3984725 | O75: -12.4703965 | AA75: 33.6 | AB75: 43.45629989 | AC75: 43.11035258 | AD75: 42.76868013 | AE75: 42.43138579 | AF75: 42.0985748 | AG75: 41.77035432 | AH75: 41.44683341 | AI75: 41.12812298 | AJ75: 40.81433572 | AK75: 40.50558603 | AL75: 40.20199 | AM75: 39.90366525 | AN75: 39.61073087 | AO75: 39.32330734 | AP75: 39.04151636 | AQ75: 38.76548078 | AR75: 38.49532439 | AS75: 38.23117184 | AT75: 37.97314841 | AU75: 37.72137988 | AV75: 37.47599232 | AW75: 37.23711186 | AX75: 37.00486455 | AY75: 36.77937601 | AZ75: 36.56077133 | BA75: 36.34917468 | BB75: 36.14470916 | BC75: 35.94749644 | BD75: 35.75765652 | BE75: 35.57530745 | BF75: 35.40056497 | BG75: 35.23354226 | BH75: 35.0743496 | BI75: 34.92309408 | BJ75: 34.77987924 | BK75: 34.64480481 | BL75: 34.51796634 | BM75: 34.39945494 | BN75: 34.28935695 | BO75: 34.18775366 | BP75: 34.094721 | BQ75: 34.01032931 | BR75: 33.93464307 | BS75: 33.86772062 | BT75: 33.80961402 | BU75: 33.76036878 | BV75: 33.72002372 | BW75: 33.68861084 | BX75: 33.66615511 | BY75: 33.65267449 | BZ75: 33.64817974 | CA75: 33.65267449 | CB75: 33.66615511 | CC75: 33.68861084 | CD75: 33.72002372 | CE75: 33.76036878 | CF75: 33.80961402 | CG75: 33.86772062 | CH75: 33.93464307 | CI75: 34.01032931 | CJ75: 34.094721 | CK75: 34.18775366 | CL75: 34.28935695 | CM75: 34.39945494 | CN75: 34.51796634 | CO75: 34.64480481 | CP75: 34.77987924 | CQ75: 34.92309408 | CR75: 35.0743496 | CS75: 35.23354226 | CT75: 35.40056497 | CU75: 35.57530745 | CV75: 35.75765652 | CW75: 35.94749644 | CX75: 36.14470916 | CY75: 36.34917468 | CZ75: 36.56077133 | DA75: 36.77937601 | DB75: 37.00486455 | DC75: 37.23711186 | DD75: 37.47599232 | DE75: 37.72137988 | DF75: 37.97314841 | DG75: 38.23117184 | DH75: 38.49532439 | DI75: 38.76548078 | DJ75: 39.04151636 | DK75: 39.32330734 | DL75: 39.61073087 | DM75: 39.90366525 | DN75: 40.20199 | DO75: 40.50558603 | DP75: 40.81433572 | DQ75: 41.12812298 | DR75: 41.44683341 | DS75: 41.77035432 | DT75: 42.0985748 | DU75: 42.43138579 | DV75: 42.76868013 | DW75: 43.11035258 | DX75: 43.45629989 | DY75: 1.8 | EB75: 33.6 | EC75: 33.6 | ED75: 33.60450119 | EE75: 33.61800113 | EF75: 33.640489 | EG75: 33.67194678 | EH75: 33.71234937 | EI75: 33.76166465 | EJ75: 33.81985364 | EK75: 33.88687061 | EL75: 33.96266332 | EM75: 34.04717316 | EN75: 34.14033538 | EO75: 34.24207938 | EP75: 34.35232889 | EQ75: 34.47100231 | ER75: 34.59801295 | ES75: 34.73326935 | ET75: 34.87667559 | EU75: 35.02813155 | EV75: 35.1875333 | EW75: 35.35477337 | EX75: 35.52974106 | EY75: 35.7123228 | EZ75: 35.90240243 | FA75: 36.0998615 | FB75: 36.3045796 | FC75: 36.51643466 | FD75: 36.73530318 | FE75: 36.96106059 | FF75: 37.19358144 | FG75: 37.43273968 | FH75: 37.67840894 | FI75: 37.93046269 | FJ75: 38.18877453 | FK75: 38.45321833 | FL75: 38.72366847 | FM75: 39 | FN75: 39.28208879 | FO75: 39.56981173 | FP75: 39.8630468 | FQ75: 40.16167327 | FR75: 40.46557179 | FS75: 40.77462446 | FT75: 41.088715 | FU75: 41.40772875 | FV75: 41.73155281 | FW75: 42.06007608 | FX75: 42.39318931 | FY75: 42.73078516 | FZ75: 43.07275821 | GA75: 43.41900506 | GB75: 43.76942426 | GC75: 44.12391642 | GD75: 44.48238415 | GE75: 44.84473213 | GF75: 45.21086706 | GG75: 45.58069767 | GH75: 45.95413474 | GI75: 46.33109107 | GJ75: 46.71148146 | GK75: 47.09522269 | GL75: 47.48223352 | GM75: 47.87243466 | GN75: 48.26574873 | GO75: 48.66210024 | GP75: 49.06141559 | GQ75: 49.463623 | GR75: 49.86865248 | GS75: 50.27643583 | GT75: 50.68690659 | GU75: 51.1 | GV75: 51.51565296 | GW75: 51.93380402 | GX75: 52.35439332 | GY75: 52.77736257 | GZ75: 53.20265501 | HA75: 53.63021536 | HB75: 54.05998983 | HC75: 54.49192601 | HD75: 54.92597291 | HE75: 55.36208089 | HF75: 55.80020161 | HG75: 56.24028805 | HH75: 56.68229441 | HI75: 57.12617614 | HJ75: 57.57188984 | HK75: 58.01939331 | HL75: 58.46864544 | HM75: 58.91960624 | HN75: 59.37223678 | HO75: 59.82649915 | HP75: 60.28235646 | HQ75: 60.7397728 | HR75: 61.19871322 | HS75: 61.65914369 | HT75: 62.12103106 | HU75: 62.58434309 | HV75: 63.04904837 | HW75: 63.51511631 | HX75: 63.98251714 | HY75: 64.45122187 | HZ75: 1.8
B76: 53 | C76: 29.15 | D76: 34.15 | E76: 1.8 | F76: 35.12068479 | G76: 34.19740487 | H76: -0.3925328027 | I76: -51.34488707 | J76: 0.02847324891 | K76: 0.02924198499 | L76: 0.05201896873 | M76: -17.77050049 | N76: -17.53910399 | O76: -12.53600623 | AA76: 34.15 | AB76: 43.88294088 | AC76: 43.54038355 | AD76: 43.20211222 | AE76: 42.86822833 | AF76: 42.5388352 | AG76: 42.21403795 | AH76: 41.89394348 | AI76: 41.57866039 | AJ76: 41.26829897 | AK76: 40.96297108 | AL76: 40.66279012 | AM76: 40.36787089 | AN76: 40.07832956 | AO76: 39.79428351 | AP76: 39.51585125 | AQ76: 39.24315227 | AR76: 38.97630691 | AS76: 38.7154362 | AT76: 38.46066172 | AU76: 38.21210541 | AV76: 37.96988939 | AW76: 37.73413574 | AX76: 37.50496634 | AY76: 37.2825026 | AZ76: 37.06686526 | BA76: 36.85817413 | BB76: 36.65654785 | BC76: 36.46210361 | BD76: 36.27495693 | BE76: 36.09522129 | BF76: 35.92300795 | BG76: 35.75842558 | BH76: 35.60158002 | BI76: 35.45257395 | BJ76: 35.31150662 | BK76: 35.17847353 | BL76: 35.05356615 | BM76: 34.93687164 | BN76: 34.82847255 | BO76: 34.72844655 | BP76: 34.6368662 | BQ76: 34.55379863 | BR76: 34.47930539 | BS76: 34.41344214 | BT76: 34.35625853 | BU76: 34.30779795 | BV76: 34.26809741 | BW76: 34.23718738 | BX76: 34.2150917 | BY76: 34.20182744 | BZ76: 34.19740487 | CA76: 34.20182744 | CB76: 34.2150917 | CC76: 34.23718738 | CD76: 34.26809741 | CE76: 34.30779795 | CF76: 34.35625853 | CG76: 34.41344214 | CH76: 34.47930539 | CI76: 34.55379863 | CJ76: 34.6368662 | CK76: 34.72844655 | CL76: 34.82847255 | CM76: 34.93687164 | CN76: 35.05356615 | CO76: 35.17847353 | CP76: 35.31150662 | CQ76: 35.45257395 | CR76: 35.60158002 | CS76: 35.75842558 | CT76: 35.92300795 | CU76: 36.09522129 | CV76: 36.27495693 | CW76: 36.46210361 | CX76: 36.65654785 | CY76: 36.85817413 | CZ76: 37.06686526 | DA76: 37.2825026 | DB76: 37.50496634 | DC76: 37.73413574 | DD76: 37.96988939 | DE76: 38.21210541 | DF76: 38.46066172 | DG76: 38.7154362 | DH76: 38.97630691 | DI76: 39.24315227 | DJ76: 39.51585125 | DK76: 39.79428351 | DL76: 40.07832956 | DM76: 40.36787089 | DN76: 40.66279012 | DO76: 40.96297108 | DP76: 41.26829897 | DQ76: 41.57866039 | DR76: 41.89394348 | DS76: 42.21403795 | DT76: 42.5388352 | DU76: 42.86822833 | DV76: 43.20211222 | DW76: 43.54038355 | DX76: 43.88294088 | DY76: 1.8 | EB76: 34.15 | EC76: 34.15 | ED76: 34.1544287 | EE76: 34.16771137 | EF76: 34.18983767 | EG76: 34.22079046 | EH76: 34.26054582 | EI76: 34.30907314 | EJ76: 34.36633527 | EK76: 34.43228863 | EL76: 34.50688337 | EM76: 34.5900636 | EN76: 34.68176754 | EO76: 34.78192778 | EP76: 34.89047148 | EQ76: 35.00732066 | ER76: 35.13239246 | ES76: 35.26559939 | ET76: 35.40684962 | EU76: 35.55604731 | EV76: 35.71309284 | EW76: 35.87788316 | EX76: 36.05031207 | EY76: 36.23027049 | EZ76: 36.41764682 | FA76: 36.61232716 | FB76: 36.81419563 | FC76: 37.02313466 | FD76: 37.23902523 | FE76: 37.46174716 | FF76: 37.69117934 | FG76: 37.9272 | FH76: 38.16968693 | FI76: 38.41851767 | FJ76: 38.67356979 | FK76: 38.93472101 | FL76: 39.20184945 | FM76: 39.47483376 | FN76: 39.7535533 | FO76: 40.03788831 | FP76: 40.32772 | FQ76: 40.62293072 | FR76: 40.92340406 | FS76: 41.22902497 | FT76: 41.53967983 | FU76: 41.85525654 | FV76: 42.17564463 | FW76: 42.50073529 | FX76: 42.83042143 | FY76: 43.16459776 | FZ76: 43.5031608 | GA76: 43.84600894 | GB76: 44.19304244 | GC76: 44.54416348 | GD76: 44.89927616 | GE76: 45.25828653 | GF76: 45.62110257 | GG76: 45.98763421 | GH76: 46.3577933 | GI76: 46.73149366 | GJ76: 47.10865101 | GK76: 47.48918298 | GL76: 47.8730091 | GM76: 48.26005077 | GN76: 48.65023124 | GO76: 49.04347561 | GP76: 49.43971076 | GQ76: 49.83886536 | GR76: 50.24086982 | GS76: 50.64565628 | GT76: 51.05315857 | GU76: 51.46331217 | GV76: 51.87605421 | GW76: 52.29132337 | GX76: 52.70905994 | GY76: 53.12920572 | GZ76: 53.55170399 | HA76: 53.97649952 | HB76: 54.40353849 | HC76: 54.83276849 | HD76: 55.26413846 | HE76: 55.69759869 | HF76: 56.13310075 | HG76: 56.57059749 | HH76: 57.01004297 | HI76: 57.4513925 | HJ76: 57.89460251 | HK76: 58.33963061 | HL76: 58.78643551 | HM76: 59.234977 | HN76: 59.68521592 | HO76: 60.13711416 | HP76: 60.59063459 | HQ76: 61.04574105 | HR76: 61.50239833 | HS76: 61.96057214 | HT76: 62.42022909 | HU76: 62.88133666 | HV76: 63.34386316 | HW76: 63.80777774 | HX76: 64.27305034 | HY76: 64.73965168 | HZ76: 1.8
B77: 54 | C77: 29.7 | D77: 34.7 | E77: 1.8 | F77: 35.65571483 | G77: 34.74665452 | H77: -0.3783132009 | I77: -49.48490533 | J77: 0.028045995 | K77: 0.02877974913 | L77: 0.05160995875 | M77: -17.90182394 | N77: -17.67750091 | O77: -12.60457075 | AA77: 34.7 | AB77: 44.31230078 | AC77: 43.97308836 | AD77: 43.63817136 | AE77: 43.30764944 | AF77: 42.98162398 | AG77: 42.66019808 | AH77: 42.34347648 | AI77: 42.03156552 | AJ77: 41.7245731 | AK77: 41.42260856 | AL77: 41.12578267 | AM77: 40.83420747 | AN77: 40.54799625 | AO77: 40.26726338 | AP77: 39.99212422 | AQ77: 39.72269502 | AR77: 39.45909274 | AS77: 39.20143492 | AT77: 38.94983954 | AU77: 38.70442481 | AV77: 38.46530905 | AW77: 38.23261043 | AX77: 38.00644682 | AY77: 37.78693557 | AZ77: 37.57419327 | BA77: 37.36833553 | BB77: 37.16947672 | BC77: 36.97772978 | BD77: 36.79320589 | BE77: 36.61601426 | BF77: 36.44626181 | BG77: 36.28405297 | BH77: 36.12948934 | BI77: 35.98266944 | BJ77: 35.84368843 | BK77: 35.71263782 | BL77: 35.58960522 | BM77: 35.47467406 | BN77: 35.36792332 | BO77: 35.26942727 | BP77: 35.17925525 | BQ77: 35.09747142 | BR77: 35.02413454 | BS77: 34.95929776 | BT77: 34.90300847 | BU77: 34.85530806 | BV77: 34.81623185 | BW77: 34.78580889 | BX77: 34.7640619 | BY77: 34.75100718 | BZ77: 34.74665452 | CA77: 34.75100718 | CB77: 34.7640619 | CC77: 34.78580889 | CD77: 34.81623185 | CE77: 34.85530806 | CF77: 34.90300847 | CG77: 34.95929776 | CH77: 35.02413454 | CI77: 35.09747142 | CJ77: 35.17925525 | CK77: 35.26942727 | CL77: 35.36792332 | CM77: 35.47467406 | CN77: 35.58960522 | CO77: 35.71263782 | CP77: 35.84368843 | CQ77: 35.98266944 | CR77: 36.12948934 | CS77: 36.28405297 | CT77: 36.44626181 | CU77: 36.61601426 | CV77: 36.79320589 | CW77: 36.97772978 | CX77: 37.16947672 | CY77: 37.36833553 | CZ77: 37.57419327 | DA77: 37.78693557 | DB77: 38.00644682 | DC77: 38.23261043 | DD77: 38.46530905 | DE77: 38.70442481 | DF77: 38.94983954 | DG77: 39.20143492 | DH77: 39.45909274 | DI77: 39.72269502 | DJ77: 39.99212422 | DK77: 40.26726338 | DL77: 40.54799625 | DM77: 40.83420747 | DN77: 41.12578267 | DO77: 41.42260856 | DP77: 41.7245731 | DQ77: 42.03156552 | DR77: 42.34347648 | DS77: 42.66019808 | DT77: 42.98162398 | DU77: 43.30764944 | DV77: 43.63817136 | DW77: 43.97308836 | DX77: 44.31230078 | DY77: 1.8 | EB77: 34.7 | EC77: 34.7 | ED77: 34.70435852 | EE77: 34.71743078 | EF77: 34.73920696 | EG77: 34.76967069 | EH77: 34.80879917 | EI77: 34.85656323 | EJ77: 34.91292741 | EK77: 34.97785013 | EL77: 35.05128386 | EM77: 35.13317521 | EN77: 35.22346519 | EO77: 35.32208941 | EP77: 35.42897825 | EQ77: 35.54405717 | ER77: 35.66724688 | ES77: 35.79846365 | ET77: 35.93761957 | EU77: 36.08462276 | EV77: 36.23937775 | EW77: 36.40178567 | EX77: 36.57174456 | EY77: 36.74914965 | EZ77: 36.93389365 | FA77: 37.12586699 | FB77: 37.32495814 | FC77: 37.53105381 | FD77: 37.74403926 | FE77: 37.96379855 | FF77: 38.19021472 | FG77: 38.42317009 | FH77: 38.66254648 | FI77: 38.90822535 | FJ77: 39.1600881 | FK77: 39.41801619 | FL77: 39.68189134 | FM77: 39.95159571 | FN77: 40.22701207 | FO77: 40.5080239 | FP77: 40.79451556 | FQ77: 41.08637244 | FR77: 41.383481 | FS77: 41.68572897 | FT77: 41.99300537 | FU77: 42.30520063 | FV77: 42.62220665 | FW77: 42.94391691 | FX77: 43.27022648 | FY77: 43.6010321 | FZ77: 43.9362322 | GA77: 44.27572698 | GB77: 44.61941842 | GC77: 44.96721028 | GD77: 45.31900815 | GE77: 45.67471948 | GF77: 46.03425355 | GG77: 46.39752149 | GH77: 46.76443627 | GI77: 47.13491275 | GJ77: 47.50886759 | GK77: 47.88621931 | GL77: 48.26688824 | GM77: 48.6507965 | GN77: 49.03786802 | GO77: 49.42802849 | GP77: 49.82120532 | GQ77: 50.21732769 | GR77: 50.61632642 | GS77: 51.01813403 | GT77: 51.42268468 | GU77: 51.82991414 | GV77: 52.23975976 | GW77: 52.65216045 | GX77: 53.06705664 | GY77: 53.48439025 | GZ77: 53.90410467 | HA77: 54.32614472 | HB77: 54.75045662 | HC77: 55.17698796 | HD77: 55.60568766 | HE77: 56.03650596 | HF77: 56.46939437 | HG77: 56.90430564 | HH77: 57.34119374 | HI77: 57.78001385 | HJ77: 58.22072226 | HK77: 58.66327642 | HL77: 59.10763487 | HM77: 59.55375723 | HN77: 60.00160415 | HO77: 60.45113729 | HP77: 60.90231933 | HQ77: 61.35511389 | HR77: 61.80948552 | HS77: 62.2653997 | HT77: 62.7228228 | HU77: 63.18172204 | HV77: 63.64206549 | HW77: 64.10382204 | HX77: 64.56696137 | HY77: 65.03145393 | HZ77: 1.8
B78: 55 | C78: 30.25 | D78: 35.25 | E78: 1.8 | F78: 36.19119368 | G78: 35.29592753 | H78: -0.3645190397 | I78: -47.68057295 | J78: 0.02763103115 | K78: 0.02833188048 | L78: 0.05118869898 | M78: -18.03129914 | N78: -17.81373297 | O78: -12.67575916 | AA78: 35.25 | AB78: 44.74430131 | AC78: 44.40838885 | AD78: 44.0767796 | AE78: 43.74957143 | AF78: 43.42686381 | AG78: 43.10875781 | AH78: 42.79535606 | AI78: 42.48676264 | AJ78: 42.1830831 | AK78: 41.88442431 | AL78: 41.59089444 | AM78: 41.30260282 | AN78: 41.01965992 | AO78: 40.74217716 | AP78: 40.47026686 | AQ78: =SQRT(($AA78-$O$7)^2+(AQ$22-$P$7)^2+($DY78-$Q$7)^2) -> 40.20404209 | AR78: 39.94361651 | AS78: 39.6891043 | AT78: 39.44061992 | AU78: 39.19827802 | AV78: 38.96219321 | AW78: 38.73247991 | AX78: 38.50925214 | AY78: 38.29262331 | AZ78: 38.08270605 | BA78: 37.87961193 | BB78: 37.68345128 | BC78: 37.49433291 | BD78: 37.3123639 | BE78: 37.13764936 | BF78: 36.97029213 | BG78: 36.81039255 | BH78: 36.65804823 | BI78: 36.51335372 | BJ78: 36.37640032 | BK78: 36.24727576 | BL78: 36.126064 | BM78: 36.01284493 | BN78: 35.90769416 | BO78: 35.81068276 | BP78: 35.72187705 | BQ78: 35.64133836 | BR78: 35.56912285 | BS78: 35.5052813 | BT78: 35.44985896 | BU78: 35.40289536 | BV78: 35.36442421 | BW78: 35.33447325 | BX78: 35.31306415 | BY78: 35.30021246 | BZ78: 35.29592753 | CA78: 35.30021246 | CB78: 35.31306415 | CC78: 35.33447325 | CD78: 35.36442421 | CE78: 35.40289536 | CF78: 35.44985896 | CG78: 35.5052813 | CH78: 35.56912285 | CI78: 35.64133836 | CJ78: 35.72187705 | CK78: 35.81068276 | CL78: 35.90769416 | CM78: 36.01284493 | CN78: 36.126064 | CO78: 36.24727576 | CP78: 36.37640032 | CQ78: 36.51335372 | CR78: 36.65804823 | CS78: 36.81039255 | CT78: 36.97029213 | CU78: 37.13764936 | CV78: 37.3123639 | CW78: 37.49433291 | CX78: 37.68345128 | CY78: 37.87961193 | CZ78: 38.08270605 | DA78: 38.29262331 | DB78: 38.50925214 | DC78: 38.73247991 | DD78: 38.96219321 | DE78: 39.19827802 | DF78: 39.44061992 | DG78: 39.6891043 | DH78: 39.94361651 | DI78: 40.20404209 | DJ78: 40.47026686 | DK78: 40.74217716 | DL78: 41.01965992 | DM78: 41.30260282 | DN78: 41.59089444 | DO78: 41.88442431 | DP78: 42.1830831 | DQ78: 42.48676264 | DR78: 42.79535606 | DS78: 43.10875781 | DT78: 43.42686381 | DU78: 43.74957143 | DV78: 44.0767796 | DW78: 44.40838885 | DX78: 44.74430131 | DY78: 1.8 | EB78: 35.25 | EC78: 35.25 | ED78: 35.25429052 | EE78: 35.26715894 | EF78: 35.28859589 | EG78: 35.31858576 | EH78: 35.35710678 | EI78: 35.40413111 | EJ78: 35.45962493 | EK78: 35.52354853 | EL78: 35.5958565 | EM78: 35.67649787 | EN78: 35.76541626 | EO78: 35.8625501 | EP78: 35.96783285 | EQ78: 36.08119316 | ER78: =SQRT(($EB78-$O$7)^2+(ER$22-$Q$7)^2+(-$P$7)^2) -> 36.20255516 | ES78: 36.33183865 | ET78: 36.4689594 | EU78: 36.61382935 | EV78: 36.7663569 | EW78: 36.92644716 | EX78: 37.09400221 | EY78: 37.26892137 | EZ78: 37.45110145 | FA78: 37.64043703 | FB78: 37.83682069 | FC78: 38.04014327 | FD78: 38.25029412 | FE78: 38.46716132 | FF78: 38.69063194 | FG78: 38.92059224 | FH78: 39.15692787 | FI78: 39.39952411 | FJ78: 39.64826604 | FK78: 39.90303873 | FL78: 40.16372742 | FM78: 40.43021766 | FN78: 40.70239551 | FO78: 40.98014763 | FP78: 41.26336147 | FQ78: 41.55192535 | FR78: 41.84572858 | FS78: 42.14466158 | FT78: 42.448616 | FU78: 42.75748472 | FV78: 43.07116205 | FW78: 43.38954367 | FX78: 43.71252681 | FY78: 44.04001022 | FZ78: 44.37189426 | GA78: 44.70808093 | GB78: 45.04847389 | GC78: 45.39297853 | GD78: 45.74150194 | GE78: 46.09395297 | GF78: 46.4502422 | GG78: 46.81028199 | GH78: 47.17398648 | GI78: 47.54127154 | GJ78: 47.91205485 | GK78: 48.28625581 | GL78: 48.66379558 | GM78: 49.04459705 | GN78: 49.42858485 | GO78: 49.81568528 | GP78: 50.20582636 | GQ78: 50.59893774 | GR78: 50.99495073 | GS78: 51.39379826 | GT78: 51.79541485 | GU78: 52.19973659 | GV78: 52.60670109 | GW78: 53.01624751 | GX78: 53.42831646 | GY78: 53.84285004 | GZ78: 54.25979174 | HA78: 54.6790865 | HB78: 55.10068058 | HC78: 55.52452161 | HD78: 55.95055853 | HE78: 56.37874156 | HF78: 56.80902217 | HG78: 57.24135306 | HH78: 57.67568812 | HI78: 58.11198241 | HJ78: 58.55019214 | HK78: 58.99027462 | HL78: 59.43218825 | HM78: 59.87589248 | HN78: 60.3213478 | HO78: 60.7685157 | HP78: 61.21735865 | HQ78: 61.66784008 | HR78: 62.11992434 | HS78: 62.57357669 | HT78: 63.02876328 | HU78: 63.48545109 | HV78: 63.94360797 | HW78: 64.40320256 | HX78: 64.8642043 | HY78: 65.32658341 | HZ78: 1.8
B79: 56 | C79: 30.8 | D79: 35.8 | E79: 1.8 | F79: 36.72710171 | G79: 35.84522283 | H79: -0.3511317627 | I79: -45.92946266 | J79: 0.02722784956 | K79: 0.02789772028 | L79: 0.05075727647 | M79: -18.15897414 | N79: -17.94786668 | O79: -12.74927478 | AA79: 35.8 | AB79: =SQRT(($AA79-$O$7)^2+(AB$22-$P$7)^2+($DY79-$Q$7)^2) -> 45.17886674 | AC79: 44.84620943 | AD79: 44.51786158 | AE79: 44.19391926 | AF79: 43.87448005 | AG79: 43.55964302 | AH79: 43.24950867 | AI79: 42.94417888 | AJ79: 42.64375687 | AK79: 42.34834708 | AL79: 42.05805511 | AM79: 41.77298768 | AN79: 41.49325246 | AO79: 41.21895802 | AP79: 40.95021367 | AQ79: 40.68712941 | AR79: 40.42981573 | AS79: 40.17838349 | AT79: 39.93294379 | AU79: 39.6936078 | AV79: 39.46048657 | AW79: 39.23369088 | AX79: 39.01333105 | AY79: 38.79951675 | AZ79: 38.59235676 | BA79: 38.39195879 | BB79: 38.19842929 | BC79: 38.01187315 | BD79: 37.83239353 | BE79: 37.66009161 | BF79: 37.49506634 | BG79: 37.33741421 | BH79: 37.18722899 | BI79: 37.0446015 | BJ79: 36.90961934 | BK79: 36.7823667 | BL79: 36.66292405 | BM79: 36.55136796 | BN79: 36.44777085 | BO79: 36.35220076 | BP79: 36.26472115 | BQ79: 36.1853907 | BR79: 36.11426311 | BS79: 36.05138694 | BT79: 35.99680541 | BU79: 35.95055632 | BV79: 35.91267186 | BW79: 35.88317851 | BX79: 35.86209698 | BY79: 35.84944212 | BZ79: 35.84522283 | CA79: 35.84944212 | CB79: 35.86209698 | CC79: 35.88317851 | CD79: 35.91267186 | CE79: 35.95055632 | CF79: 35.99680541 | CG79: 36.05138694 | CH79: 36.11426311 | CI79: 36.1853907 | CJ79: 36.26472115 | CK79: 36.35220076 | CL79: 36.44777085 | CM79: 36.55136796 | CN79: 36.66292405 | CO79: 36.7823667 | CP79: 36.90961934 | CQ79: 37.0446015 | CR79: 37.18722899 | CS79: 37.33741421 | CT79: 37.49506634 | CU79: 37.66009161 | CV79: 37.83239353 | CW79: 38.01187315 | CX79: 38.19842929 | CY79: 38.39195879 | CZ79: 38.59235676 | DA79: 38.79951675 | DB79: 39.01333105 | DC79: 39.23369088 | DD79: 39.46048657 | DE79: 39.6936078 | DF79: 39.93294379 | DG79: 40.17838349 | DH79: 40.42981573 | DI79: 40.68712941 | DJ79: 40.95021367 | DK79: 41.21895802 | DL79: 41.49325246 | DM79: 41.77298768 | DN79: 42.05805511 | DO79: 42.34834708 | DP79: 42.64375687 | DQ79: 42.94417888 | DR79: 43.24950867 | DS79: 43.55964302 | DT79: 43.87448005 | DU79: 44.19391926 | DV79: 44.51786158 | DW79: 44.84620943 | DX79: 45.17886674 | DY79: 1.8 | EB79: 35.8 | EC79: =SQRT(($EB79-$O$7)^2+(EC$22-$Q$7)^2+(-$P$7)^2) -> 35.8 | ED79: 35.80422461 | EE79: 35.81689545 | EF79: 35.83800357 | EG79: 35.86753407 | EH79: 35.90546616 | EI79: 35.95177325 | EJ79: 36.00642304 | EK79: 36.06937759 | EL79: 36.14059352 | EM79: 36.22002209 | EN79: 36.3076094 | EO79: 36.40329655 | EP79: 36.50701987 | EQ79: 36.61871106 | ER79: 36.73829746 | ES79: 36.86570222 | ET79: 37.00084458 | EU79: 37.1436401 | EV79: 37.29400086 | EW79: 37.45183574 | EX79: 37.61705066 | EY79: 37.78954882 | EZ79: 37.96923096 | FA79: 38.1559956 | FB79: 38.34973924 | FC79: 38.55035668 | FD79: 38.75774116 | FE79: 38.97178467 | FF79: 39.19237809 | FG79: 39.41941146 | FH79: 39.65277418 | FI79: 39.89235516 | FJ79: 40.13804305 | FK79: 40.38972642 | FL79: 40.64729388 | FM79: 40.91063431 | FN79: 41.17963696 | FO79: 41.45419159 | FP79: 41.73418862 | FQ79: 42.01951927 | FR79: 42.31007563 | FS79: 42.60575079 | FT79: 42.90643891 | FU79: 43.21203536 | FV79: 43.52243674 | FW79: 43.83754099 | FX79: 44.15724742 | FY79: 44.48145681 | FZ79: 44.81007141 | GA79: 45.14299503 | GB79: 45.48013303 | GC79: 45.82139238 | GD79: 46.16668171 | GE79: 46.51591126 | GF79: 46.86899295 | GG79: 47.22584038 | GH79: 47.58636885 | GI79: 47.95049531 | GJ79: 48.31813842 | GK79: 48.68921852 | GL79: 49.06365763 | GM79: 49.44137943 | GN79: 49.82230926 | GO79: 50.2063741 | GP79: 50.59350255 | GQ79: 50.98362482 | GR79: 51.37667272 | GS79: 51.77257962 | GT79: 52.17128041 | GU79: 52.57271155 | GV79: 52.97681096 | GW79: 53.38351806 | GX79: 53.79277368 | GY79: 54.20452011 | GZ79: 54.61870101 | HA79: 55.03526142 | HB79: 55.45414773 | HC79: 55.87530761 | HD79: 56.29869004 | HE79: 56.72424526 | HF79: 57.15192473 | HG79: 57.58168111 | HH79: 58.01346826 | HI79: 58.44724117 | HJ79: 58.88295594 | HK79: 59.32056979 | HL79: 59.760041 | HM79: 60.20132889 | HN79: 60.64439381 | HO79: 61.08919708 | HP79: 61.53570102 | HQ79: 61.98386887 | HR79: 62.4336648 | HS79: 62.88505387 | HT79: 63.33800202 | HU79: 63.79247605 | HV79: 64.24844356 | HW79: 64.70587299 | HX79: 65.16473356 | HY79: 65.62499524 | HZ79: 1.8
B80: 57 | C80: 31.35 | D80: 36.35 | E80: 1.8 | F80: 37.2634204 | G80: 36.39453943 | H80: -0.3381338623 | I80: -44.22928443 | J80: 0.02683596914 | K80: 0.0274766494 | L80: 0.05031755058 | M80: -18.28489531 | N80: -18.07996554 | O80: -12.82485115 | AA80: 36.35 | AB80: 45.61592375 | AC80: 45.28647701 | AD80: 44.96134451 | AE80: 44.64062052 | AF80: 44.32440073 | AG80: 44.01278223 | AH80: 43.70586345 | AI80: 43.40374408 | AJ80: 43.10652503 | AK80: 42.81430836 | AL80: 42.52719718 | AM80: 42.2452956 | AN80: 41.96870858 | AO80: 41.69754189 | AP80: 41.43190196 | AQ80: 41.17189575 | AR80: 40.91763067 | AS80: 40.6692144 | AT80: 40.42675475 | AU80: 40.19035954 | AV80: 39.96013639 | AW80: 39.73619257 | AX80: 39.51863484 | AY80: 39.30756925 | AZ80: 39.1031009 | BA80: 38.90533382 | BB80: 38.71437072 | BC80: 38.53031274 | BD80: 38.35325931 | BE80: 38.18330787 | BF80: 38.02055365 | BG80: 37.86508946 | BH80: 37.71700545 | BI80: 37.57638886 | BJ80: 37.44332384 | BK80: 37.31789115 | BL80: 37.20016801 | BM80: 37.09022782 | BN80: 36.98813999 | BO80: 36.8939697 | BP80: 36.80777771 | BQ80: 36.7296202 | BR80: 36.65954855 | BS80: 36.59760921 | BT80: 36.54384353 | BU80: 36.49828763 | BV80: 36.46097229 | BW80: 36.43192282 | BX80: 36.411159 | BY80: 36.39869503 | BZ80: 36.39453943 | CA80: 36.39869503 | CB80: 36.411159 | CC80: 36.43192282 | CD80: 36.46097229 | CE80: 36.49828763 | CF80: 36.54384353 | CG80: 36.59760921 | CH80: 36.65954855 | CI80: 36.7296202 | CJ80: 36.80777771 | CK80: 36.8939697 | CL80: 36.98813999 | CM80: 37.09022782 | CN80: 37.20016801 | CO80: 37.31789115 | CP80: 37.44332384 | CQ80: 37.57638886 | CR80: 37.71700545 | CS80: 37.86508946 | CT80: 38.02055365 | CU80: 38.18330787 | CV80: 38.35325931 | CW80: 38.53031274 | CX80: 38.71437072 | CY80: 38.90533382 | CZ80: 39.1031009 | DA80: 39.30756925 | DB80: 39.51863484 | DC80: 39.73619257 | DD80: 39.96013639 | DE80: 40.19035954 | DF80: 40.42675475 | DG80: 40.6692144 | DH80: 40.91763067 | DI80: 41.17189575 | DJ80: 41.43190196 | DK80: 41.69754189 | DL80: 41.96870858 | DM80: 42.2452956 | DN80: 42.52719718 | DO80: 42.81430836 | DP80: 43.10652503 | DQ80: 43.40374408 | DR80: 43.70586345 | DS80: 44.01278223 | DT80: 44.32440073 | DU80: 44.64062052 | DV80: 44.96134451 | DW80: 45.28647701 | DX80: 45.61592375 | DY80: 1.8 | EB80: 36.35 | EC80: 36.35 | ED80: 36.3541607 | EE80: 36.36663993 | EF80: 36.38742915 | EG80: 36.41651411 | EH80: 36.45387497 | EI80: 36.4994863 | EJ80: 36.55331722 | EK80: 36.61533149 | EL80: 36.68548759 | EM80: 36.76373893 | EN80: 36.85003392 | EO80: 36.94431621 | EP80: 37.0465248 | EQ80: 37.1565943 | ER80: 37.27445506 | ES80: 37.40003342 | ET80: 37.53325192 | EU80: 37.67402952 | EV80: 37.82228179 | EW80: 37.97792122 | EX80: 38.14085736 | EY80: 38.31099712 | EZ80: 38.48824496 | FA80: 38.67250315 | FB80: 38.86367198 | FC80: 39.06164999 | FD80: 39.26633418 | FE80: 39.47762024 | FF80: 39.69540276 | FG80: 39.9195754 | FH80: 40.15003113 | FI80: 40.3866624 | FJ80: 40.6293613 | FK80: 40.87801977 | FL80: 41.13252971 | FM80: 41.39278319 | FN80: 41.65867257 | FO80: 41.93009063 | FP80: 42.20693071 | FQ80: 42.48908683 | FR80: 42.7764538 | FS80: 43.06892731 | FT80: 43.36640405 | FU80: 43.66878176 | FV80: 43.97595934 | FW80: 44.28783693 | FX80: 44.60431593 | FY80: 44.92529911 | FZ80: 45.2506906 | GA80: 45.58039601 | GB80: 45.91432238 | GC80: 46.25237832 | GD80: 46.59447392 | GE80: 46.94052087 | GF80: 47.29043244 | GG80: 47.64412346 | GH80: 48.00151039 | GI80: 48.36251131 | GJ80: 48.72704588 | GK80: 49.09503539 | GL80: 49.46640274 | GM80: 49.84107242 | GN80: 50.21897052 | GO80: 50.6000247 | GP80: 50.98416421 | GQ80: 51.37131982 | GR80: 51.76142386 | GS80: 52.15441017 | GT80: 52.55021408 | GU80: 52.94877241 | GV80: 53.35002343 | GW80: 53.75390683 | GX80: 54.16036374 | GY80: 54.56933663 | GZ80: 54.98076937 | HA80: 55.39460714 | HB80: 55.81079645 | HC80: 56.22928507 | HD80: 56.65002207 | HE80: 57.07295769 | HF80: 57.49804344 | HG80: 57.92523198 | HH80: 58.35447712 | HI80: 58.78573381 | HJ80: 59.21895811 | HK80: 59.65410715 | HL80: 60.09113911 | HM80: 60.53001322 | HN80: 60.97068968 | HO80: 61.4131297 | HP80: 61.85729545 | HQ80: 62.30315 | HR80: 62.75065737 | HS80: 63.19978244 | HT80: 63.65049096 | HU80: 64.10274955 | HV80: 64.55652562 | HW80: 65.01178739 | HX80: 65.46850388 | HY80: 65.92664484 | HZ80: 1.8
B81: 58 | C81: 31.9 | D81: 36.9 | E81: 1.8 | F81: 37.80013227 | G81: 36.94387635 | H81: -0.3255088083 | I81: -42.57787602 | J81: 0.02645493388 | K81: 0.0270680854 | L81: 0.04987117716 | M81: -18.40910738 | N81: -18.21009023 | O81: -12.9022486 | AA81: 36.9 | AB81: 46.05540142 | AC81: 45.72912092 | AD81: 45.40715803 | AE81: 45.08960523 | AF81: 44.77655637 | AG81: 44.46810655 | AH81: 44.16435214 | AI81: 43.86539069 | AJ81: 43.57132084 | AK81: 43.28224232 | AL81: 42.99825578 | AM81: 42.71946278 | AN81: 42.44596565 | AO81: 42.17786742 | AP81: 41.91527168 | AQ81: 41.65828249 | AR81: 41.40700424 | AS81: 41.16154152 | AT81: 40.92199897 | AU81: 40.68848117 | AV81: 40.46109242 | AW81: 40.23993663 | AX81: 40.02511711 | AY81: 39.81673643 | AZ81: 39.61489619 | BA81: 39.41969685 | BB81: 39.23123755 | BC81: 39.04961588 | BD81: 38.87492765 | BE81: 38.70726676 | BF81: 38.54672489 | BG81: 38.39339136 | BH81: 38.24735285 | BI81: 38.10869323 | BJ81: 37.97749333 | BK81: 37.85383072 | BL81: 37.73777948 | BM81: 37.62941004 | BN81: 37.52878895 | BO81: 37.43597868 | BP81: 37.35103747 | BQ81: 37.2740191 | BR81: 37.20497279 | BS81: 37.14394298 | BT81: 37.09096925 | BU81: 37.04608616 | BV81: =SQRT(($AA81-$O$7)^2+(BV$22-$P$7)^2+($DY81-$Q$7)^2) -> 37.00932315 | BW81: 36.98070443 | BX81: 36.96024892 | BY81: 36.94797017 | BZ81: 36.94387635 | CA81: 36.94797017 | CB81: 36.96024892 | CC81: 36.98070443 | CD81: 37.00932315 | CE81: 37.04608616 | CF81: 37.09096925 | CG81: 37.14394298 | CH81: 37.20497279 | CI81: 37.2740191 | CJ81: 37.35103747 | CK81: 37.43597868 | CL81: 37.52878895 | CM81: 37.62941004 | CN81: 37.73777948 | CO81: 37.85383072 | CP81: 37.97749333 | CQ81: 38.10869323 | CR81: 38.24735285 | CS81: 38.39339136 | CT81: 38.54672489 | CU81: 38.70726676 | CV81: 38.87492765 | CW81: 39.04961588 | CX81: 39.23123755 | CY81: 39.41969685 | CZ81: 39.61489619 | DA81: 39.81673643 | DB81: 40.02511711 | DC81: 40.23993663 | DD81: 40.46109242 | DE81: 40.68848117 | DF81: 40.92199897 | DG81: 41.16154152 | DH81: 41.40700424 | DI81: 41.65828249 | DJ81: 41.91527168 | DK81: 42.17786742 | DL81: 42.44596565 | DM81: 42.71946278 | DN81: 42.99825578 | DO81: 43.28224232 | DP81: 43.57132084 | DQ81: 43.86539069 | DR81: 44.16435214 | DS81: 44.46810655 | DT81: 44.77655637 | DU81: 45.08960523 | DV81: 45.40715803 | DW81: 45.72912092 | DX81: 46.05540142 | DY81: 1.8 | EB81: 36.9 | EC81: 36.9 | ED81: 36.90409869 | EE81: 36.91639202 | EF81: 36.93687182 | EG81: 36.96552448 | EH81: 37.00233101 | EI81: 37.04726711 | EJ81: 37.10030323 | EK81: 37.16140471 | EL81: 37.23053183 | EM81: 37.30763997 | EN81: 37.39267976 | EO81: 37.48559723 | EP81: 37.58633395 | EQ81: 37.69482723 | ER81: 37.8110103 | ES81: 37.93481251 | ET81: 38.06615951 | EU81: 38.2049735 | EV81: 38.35117338 | EW81: 38.50467504 | EX81: 38.6653915 | EY81: 38.83323319 | EZ81: 39.00810813 | FA81: 39.18992217 | FB81: 39.3785792 | FC81: 39.57398135 | FD81: 39.77602921 | FE81: 39.98462204 | FF81: 40.19965796 | FG81: 40.42103413 | FH81: 40.64864696 | FI81: 40.8823923 | FJ81: 41.12216556 | FK81: 41.36786192 | FL81: 41.6193765 | FM81: 41.87660445 | FN81: 42.13944114 | FO81: 42.4077823 | FP81: 42.68152411 | FQ81: 42.96056331 | FR81: 43.24479737 | FS81: 43.53412455 | FT81: 43.82844396 | FU81: 44.12765573 | FV81: 44.43166101 | FW81: =SQRT(($EB81-$O$7)^2+(FW$22-$Q$7)^2+(-$P$7)^2) -> 44.74036209 | FX81: 45.05366245 | FY81: 45.3714668 | FZ81: 45.69368118 | GA81: 46.02021295 | GB81: 46.35097086 | GC81: 46.6858651 | GD81: 47.02480728 | GE81: 47.36771052 | GF81: 47.71448941 | GG81: 48.06506007 | GH81: 48.41934014 | GI81: 48.77724879 | GJ81: 49.13870674 | GK81: 49.50363623 | GL81: 49.87196106 | GM81: 50.24360656 | GN81: 50.61849958 | GO81: 50.99656851 | GP81: 51.37774324 | GQ81: 51.76195514 | GR81: 52.1491371 | GS81: 52.53922344 | GT81: 52.93214997 | GU81: 53.32785389 | GV81: 53.72627383 | GW81: 54.12734983 | GX81: 54.53102328 | GY81: 54.93723692 | GZ81: 55.34593481 | HA81: 55.75706233 | HB81: 56.17056614 | HC81: 56.58639412 | HD81: 57.00449544 | HE81: 57.42482042 | HF81: 57.84732059 | HG81: 58.27194865 | HH81: 58.69865842 | HI81: 59.12740481 | HJ81: 59.55814386 | HK81: 59.99083263 | HL81: 60.42542925 | HM81: 60.86189284 | HN81: 61.30018352 | HO81: 61.74026239 | HP81: 62.18209147 | HQ81: 62.62563373 | HR81: 63.07085301 | HS81: 63.51771406 | HT81: 63.96618247 | HU81: 64.41622466 | HV81: 64.86780789 | HW81: 65.32090018 | HX81: 65.77547035 | HY81: 66.23148798 | HZ81: 1.8
B82: 59 | C82: 32.45 | D82: 37.45 | E82: 1.8 | F82: 38.33722082 | G82: 37.49323272 | H82: -0.3132409813 | I82: -40.97319435 | J82: 0.02608431124 | K82: 0.02667147982 | L82: 0.04941963008 | M82: -18.53165352 | N82: -18.33829874 | O82: -12.98125118 | AA82: 37.45 | AB82: 46.4972311 | AC82: 46.17407281 | AD82: 45.85523416 | AE82: 45.54080588 | AF82: 45.23087994 | AG82: 44.92554952 | AH82: 44.62490896 | AI82: 44.32905368 | AJ82: 44.03808011 | AK82: 43.75208566 | AL82: 43.47116861 | AM82: 43.195428 | AN82: 42.9249636 | AO82: 42.65987576 | AP82: 42.40026533 | AQ82: 42.14623352 | AR82: 41.89788181 | AS82: 41.65531179 | AT82: 41.41862504 | AU82: 41.18792299 | AV82: 40.96330675 | AW82: 40.74487698 | AX82: 40.53273369 | AY82: 40.32697608 | AZ82: 40.1277024 | BA82: 39.9350097 | BB82: 39.7489937 | BC82: 39.56974855 | BD82: 39.39736666 | BE82: 39.23193852 | BF82: 39.07355244 | BG82: =SQRT(($AA82-$O$7)^2+(BG$22-$P$7)^2+($DY82-$Q$7)^2) -> 38.92229438 | BH82: 38.77824777 | BI82: 38.64149324 | BJ82: 38.51210849 | BK82: 38.39016801 | BL82: 38.27574297 | BM82: 38.16890095 | BN82: 38.0697058 | BO82: 37.97821744 | BP82: 37.89449168 | BQ82: 37.81858009 | BR82: 37.7505298 | BS82: 37.69038339 | BT82: 37.63817876 | BU82: 37.59394898 | BV82: 37.55772224 | BW82: 37.52952171 | BX82: 37.5093655 | BY82: 37.49726657 | BZ82: 37.49323272 | CA82: 37.49726657 | CB82: 37.5093655 | CC82: 37.52952171 | CD82: 37.55772224 | CE82: 37.59394898 | CF82: 37.63817876 | CG82: 37.69038339 | CH82: 37.7505298 | CI82: 37.81858009 | CJ82: 37.89449168 | CK82: 37.97821744 | CL82: 38.0697058 | CM82: 38.16890095 | CN82: 38.27574297 | CO82: 38.39016801 | CP82: 38.51210849 | CQ82: 38.64149324 | CR82: 38.77824777 | CS82: 38.92229438 | CT82: 39.07355244 | CU82: 39.23193852 | CV82: 39.39736666 | CW82: 39.56974855 | CX82: 39.7489937 | CY82: 39.9350097 | CZ82: 40.1277024 | DA82: 40.32697608 | DB82: 40.53273369 | DC82: 40.74487698 | DD82: 40.96330675 | DE82: 41.18792299 | DF82: 41.41862504 | DG82: 41.65531179 | DH82: 41.89788181 | DI82: 42.14623352 | DJ82: 42.40026533 | DK82: 42.65987576 | DL82: 42.9249636 | DM82: 43.195428 | DN82: 43.47116861 | DO82: 43.75208566 | DP82: 44.03808011 | DQ82: 44.32905368 | DR82: 44.62490896 | DS82: 44.92554952 | DT82: 45.23087994 | DU82: 45.54080588 | DV82: 45.85523416 | DW82: 46.17407281 | DX82: 46.4972311 | DY82: 1.8 | EB82: 37.45 | EC82: 37.45 | ED82: 37.4540385 | EE82: 37.46615139 | EF82: 37.48633084 | EG82: 37.51456384 | EH82: 37.55083221 | EI82: 37.59511271 | EJ82: 37.64737707 | EK82: 37.70759207 | EL82: 37.77571972 | EM82: 37.85171727 | EN82: 37.93553743 | EO82: 38.02712847 | EP82: 38.1264344 | EQ82: 38.23339509 | ER82: 38.34794649 | ES82: 38.4700208 | ET82: 38.59954663 | EU82: 38.73644924 | EV82: 38.88065071 | EW82: 39.03207015 | EX82: 39.19062388 | EY82: 39.35622568 | EZ82: 39.52878698 | FA82: 39.70821703 | FB82: 39.89442317 | FC82: 40.08731096 | FD82: 40.28678443 | FE82: 40.49274626 | FF82: 40.70509796 | FG82: 40.92374005 | FH82: =SQRT(($EB82-$O$7)^2+(FH$22-$Q$7)^2+(-$P$7)^2) -> 41.14857227 | FI82: 41.37949371 | FJ82: 41.61640302 | FK82: 41.85919851 | FL82: 42.10777838 | FM82: 42.36204079 | FN82: 42.62188405 | FO82: 42.88720672 | FP82: 43.15790773 | FQ82: 43.43388654 | FR82: 43.71504318 | FS82: 44.00127839 | FT82: 44.29249372 | FU82: 44.58859159 | FV82: 44.88947538 | FW82: 45.19504951 | FX82: 45.50521948 | FY82: 45.81989197 | FZ82: 46.13897485 | GA82: 46.46237725 | GB82: 46.79000962 | GC82: 47.12178371 | GD82: 47.45761267 | GE82: 47.79741102 | GF82: 48.14109471 | GG82: 48.48858113 | GH82: 48.83978911 | GI82: 49.19463894 | GJ82: 49.55305238 | GK82: 49.91495267 | GL82: 50.28026452 | GM82: 50.6489141 | GN82: 51.02082908 | GO82: 51.39593856 | GP82: 51.7741731 | GQ82: 52.15546472 | GR82: 52.53974686 | GS82: 52.92695438 | GT82: 53.31702355 | GU82: 53.70989201 | GV82: 54.1054988 | GW82: 54.50378427 | GX82: 54.90469015 | GY82: 55.30815943 | GZ82: 55.71413645 | HA82: 56.12256676 | HB82: 56.53339721 | HC82: 56.94657584 | HD82: 57.36205192 | HE82: 57.77977587 | HF82: 58.19969931 | HG82: 58.62177496 | HH82: 59.04595668 | HI82: 59.47219939 | HJ82: 59.9004591 | HK82: 60.33069285 | HL82: 60.76285872 | HM82: 61.19691577 | HN82: 61.63282405 | HO82: 62.07054454 | HP82: 62.51003919 | HQ82: 62.95127084 | HR82: 63.39420321 | HS82: 63.8388009 | HT82: 64.28502936 | HU82: 64.73285487 | HV82: 65.18224451 | HW82: 65.63316616 | HX82: 66.08558844 | HY82: 66.53948076 | HZ82: 1.8
B83: 60 | C83: 33 | D83: 38 | E83: 1.8 | F83: 38.87467042 | G83: 38.04260769 | H83: -0.3013156113 | I83: -39.41330746 | J83: 0.02572369076 | K83: 0.02628631581 | L83: 0.04896422042 | M83: -18.65257539 | N83: -18.46464656 | O83: -13.0616641 | AA83: 38 | AB83: 46.94134638 | AC83: 46.62126661 | AD83: 46.30550723 | AE83: 45.99415724 | AF83: 45.68730677 | AG83: 45.3850471 | AH83: 45.08747054 | AI83: 44.79467044 | AJ83: 44.50674106 | AK83: 44.22377754 | AL83: 43.9458758 | AM83: 43.67313247 | AN83: 43.40564479 | AO83: 43.14351052 | AP83: 42.88682781 | AQ83: 42.63569514 | AR83: 42.39021113 | AS83: 42.15047449 | AT83: 41.91658383 | AU83: 41.68863754 | AV83: 41.46673365 | AW83: 41.25096969 | AX83: 41.04144247 | AY83: 40.838248 | AZ83: 40.64148127 | BA83: 40.45123608 | BB83: 40.26760485 | BC83: 40.09067847 | BD83: 39.92054609 | BE83: 39.75729493 | BF83: 39.60101009 | BG83: 39.45177436 | BH83: 39.30966802 | BI83: 39.17476867 | BJ83: 39.04715098 | BK83: 38.9268866 | BL83: 38.81404385 | BM83: 38.70868766 | BN83: 38.6108793 | BO83: 38.52067627 | BP83: 38.43813211 | BQ83: 38.36329626 | BR83: 38.29621391 | BS83: 38.23692587 | BT83: 38.18546844 | BU83: 38.14187332 | BV83: 38.10616748 | BW83: 38.07837313 | BX83: 38.05850759 | BY83: 38.04658329 | BZ83: 38.04260769 | CA83: 38.04658329 | CB83: 38.05850759 | CC83: 38.07837313 | CD83: 38.10616748 | CE83: 38.14187332 | CF83: 38.18546844 | CG83: 38.23692587 | CH83: 38.29621391 | CI83: 38.36329626 | CJ83: 38.43813211 | CK83: 38.52067627 | CL83: 38.6108793 | CM83: 38.70868766 | CN83: 38.81404385 | CO83: 38.9268866 | CP83: 39.04715098 | CQ83: 39.17476867 | CR83: 39.30966802 | CS83: 39.45177436 | CT83: 39.60101009 | CU83: 39.75729493 | CV83: 39.92054609 | CW83: 40.09067847 | CX83: 40.26760485 | CY83: 40.45123608 | CZ83: 40.64148127 | DA83: 40.838248 | DB83: 41.04144247 | DC83: 41.25096969 | DD83: 41.46673365 | DE83: 41.68863754 | DF83: 41.91658383 | DG83: 42.15047449 | DH83: 42.39021113 | DI83: 42.63569514 | DJ83: 42.88682781 | DK83: 43.14351052 | DL83: 43.40564479 | DM83: 43.67313247 | DN83: 43.9458758 | DO83: 44.22377754 | DP83: 44.50674106 | DQ83: 44.79467044 | DR83: 45.08747054 | DS83: 45.3850471 | DT83: 45.68730677 | DU83: 45.99415724 | DV83: 46.30550723 | DW83: 46.62126661 | DX83: 46.94134638 | DY83: 1.8 | EB83: 38 | EC83: 38 | ED83: 38.00398005 | EE83: 38.01591772 | EF83: 38.0358055 | EG83: 38.06363094 | EH83: 38.09937664 | EI83: 38.14302033 | EJ83: 38.19453495 | EK83: 38.25388869 | EL83: 38.32104513 | EM83: 38.39596333 | EN83: 38.47859795 | EO83: 38.56889939 | EP83: 38.66681394 | EQ83: 38.77228392 | ER83: 38.88524785 | ES83: 39.00564062 | ET83: 39.13339367 | EU83: 39.26843516 | EV83: 39.41069017 | EW83: 39.56008089 | EX83: 39.71652679 | EY83: 39.87994483 | EZ83: 40.05024969 | FA83: 40.22735388 | FB83: 40.41116801 | FC83: 40.60160095 | FD83: 40.79856002 | FE83: 41.00195117 | FF83: 41.21167917 | FG83: 41.42764777 | FH83: 41.6497599 | FI83: 41.87791781 | FJ83: 42.11202322 | FK83: 42.35197752 | FL83: 42.59768186 | FM83: 42.84903733 | FN83: 43.10594507 | FO83: 43.3683064 | FP83: 43.63602296 | FQ83: 43.9089968 | FR83: 44.18713048 | FS83: 44.47032719 | FT83: 44.75849081 | FU83: 45.05152606 | FV83: 45.34933847 | FW83: 45.65183457 | FX83: 45.95892188 | FY83: 46.27050897 | FZ83: 46.58650556 | GA83: 46.90682253 | GB83: 47.23137199 | GC83: 47.56006728 | GD83: 47.89282305 | GE83: 48.22955525 | GF83: 48.57018118 | GG83: 48.91461949 | GH83: 49.26279022 | GI83: 49.61461478 | GJ83: 49.97001601 | GK83: 50.32891813 | GL83: 50.69124678 | GM83: 51.05692901 | GN83: 51.42589328 | GO83: 51.79806946 | GP83: 52.17338881 | GQ83: 52.55178398 | GR83: 52.93318902 | GS83: 53.31753933 | GT83: 53.70477167 | GU83: 54.09482415 | GV83: 54.48763621 | GW83: 54.8831486 | GX83: 55.28130335 | GY83: 55.68204378 | GZ83: 56.08531448 | HA83: 56.49106124 | HB83: 56.8992311 | HC83: 57.30977229 | HD83: 57.72263421 | HE83: 58.13776741 | HF83: 58.5551236 | HG83: 58.97465557 | HH83: 59.39631723 | HI83: 59.82006352 | HJ83: 60.24585048 | HK83: 60.67363513 | HL83: 61.10337552 | HM83: 61.53503067 | HN83: 61.96856058 | HO83: 62.40392616 | HP83: 62.84108926 | HQ83: 63.28001264 | HR83: 63.72065991 | HS83: 64.16299557 | HT83: 64.60698492 | HU83: 65.05259411 | HV83: 65.49979008 | HW83: 65.94854054 | HX83: 66.398814 | HY83: 66.85057965 | HZ83: 1.8
B84: 61 | C84: 33.55 | D84: 38.55 | E84: 1.8 | F84: 39.4124663 | G84: 38.59200047 | H84: -0.2897187221 | I84: -37.89638718 | J84: 0.02537268265 | K84: 0.02591210582 | L84: 0.0485061136 | M84: -18.77191324 | N84: -18.58918682 | O84: -13.1433114 | AA84: 38.55 | AB84: 47.387683 | AC84: 47.07063841 | AD84: 46.75791377 | AE84: 46.44959634 | AF84: 46.14577445 | AG84: 45.84653749 | AH84: 45.55197581 | AI84: 45.26218068 | AJ84: 44.97724425 | AK84: 44.69725942 | AL84: 44.42231984 | AM84: 44.15251975 | AN84: 43.88795393 | AO84: 43.62871761 | AP84: 43.37490634 | AQ84: 43.12661591 | AR84: 42.88394222 | AS84: 42.64698114 | AT84: 42.41582841 | AU84: 42.19057952 | AV84: 41.9713295 | AW84: 41.75817285 | AX84: 41.55120335 | AY84: 41.3505139 | AZ84: 41.15619637 | BA84: 40.96834144 | BB84: 40.78703838 | BC84: 40.61237496 | BD84: 40.44443719 | BE84: 40.2833092 | BF84: 40.129073 | BG84: 39.98180836 | BH84: 39.84159259 | BI84: 39.70850035 | BJ84: 39.5826035 | BK84: 39.46397091 | BL84: 39.35266827 | BM84: 39.24875794 | BN84: 39.15229878 | BO84: 39.06334599 | BP84: 38.98195095 | BQ84: 38.9081611 | BR84: 38.84201977 | BS84: 38.78356611 | BT84: 38.73283491 | BU84: 38.68985655 | BV84: 38.6546569 | BW84: 38.62725722 | BX84: 38.60767411 | BY84: 38.59591947 | BZ84: 38.59200047 | CA84: 38.59591947 | CB84: 38.60767411 | CC84: 38.62725722 | CD84: 38.6546569 | CE84: 38.68985655 | CF84: 38.73283491 | CG84: 38.78356611 | CH84: 38.84201977 | CI84: 38.9081611 | CJ84: 38.98195095 | CK84: 39.06334599 | CL84: 39.15229878 | CM84: 39.24875794 | CN84: 39.35266827 | CO84: 39.46397091 | CP84: 39.5826035 | CQ84: 39.70850035 | CR84: 39.84159259 | CS84: 39.98180836 | CT84: 40.129073 | CU84: 40.2833092 | CV84: 40.44443719 | CW84: 40.61237496 | CX84: 40.78703838 | CY84: 40.96834144 | CZ84: 41.15619637 | DA84: 41.3505139 | DB84: 41.55120335 | DC84: 41.75817285 | DD84: 41.9713295 | DE84: 42.19057952 | DF84: 42.41582841 | DG84: 42.64698114 | DH84: 42.88394222 | DI84: 43.12661591 | DJ84: 43.37490634 | DK84: 43.62871761 | DL84: 43.88795393 | DM84: 44.15251975 | DN84: 44.42231984 | DO84: 44.69725942 | DP84: 44.97724425 | DQ84: 45.26218068 | DR84: 45.55197581 | DS84: 45.84653749 | DT84: 46.14577445 | DU84: 46.44959634 | DV84: 46.75791377 | DW84: 47.07063841 | DX84: 47.387683 | DY84: 1.8 | EB84: 38.55 | EC84: 38.55 | ED84: 38.55392328 | EE84: 38.56569071 | EF84: 38.58529513 | EG84: 38.61272459 | EH84: 38.64796243 | EI84: 38.69098732 | EJ84: 38.74177332 | EK84: 38.80028995 | EL84: 38.86650229 | EM84: 38.94037108 | EN84: 39.02185285 | EO84: 39.11090002 | EP84: 39.20746102 | EQ84: 39.31148051 | ER84: 39.42289944 | ES84: 39.54165525 | ET84: 39.66768206 | EU84: 39.80091079 | EV84: 39.94126938 | EW84: 40.08868294 | EX84: 40.24307394 | EY84: 40.40436239 | EZ84: 40.57246603 | FA84: 40.74730052 | FB84: 40.92877961 | FC84: 41.11681529 | FD84: 41.31131806 | FE84: 41.512197 | FF84: 41.71936001 | FG84: 41.93271396 | FH84: 42.15216483 | FI84: 42.37761791 | FJ84: 42.60897793 | FK84: 42.84614919 | FL84: 43.08903573 | FM84: 43.33754146 | FN84: 43.59157029 | FO84: 43.85102621 | FP84: 44.11581349 | FQ84: 44.3858367 | FR84: 44.66100088 | FS84: 44.9412116 | FT84: 45.22637505 | FU84: 45.51639814 | FV84: 45.81118859 | FW84: 46.11065495 | FX84: 46.41470672 | FY84: 46.72325438 | FZ84: 47.03620946 | GA84: 47.35348456 | GB84: 47.67499345 | GC84: 48.00065104 | GD84: 48.33037347 | GE84: 48.66407813 | GF84: 49.00168364 | GG84: 49.34310995 | GH84: 49.6882783 | GI84: 50.03711123 | GJ84: 50.38953264 | GK84: 50.74546778 | GL84: 51.10484321 | GM84: 51.46758689 | GN84: 51.83362808 | GO84: 52.20289743 | GP84: 52.57532691 | GQ84: 52.95084985 | GR84: 53.3294009 | GS84: 53.71091602 | GT84: 54.09533252 | GU84: 54.48258896 | GV84: 54.87262523 | GW84: 55.26538247 | GX84: 55.66080308 | GY84: 56.0588307 | GZ84: 56.4594102 | HA84: 56.86248763 | HB84: 57.26801027 | HC84: 57.67592652 | HD84: 58.08618597 | HE84: 58.4987393 | HF84: 58.91353834 | HG84: 59.33053598 | HH84: 59.74968619 | HI84: 60.17094398 | HJ84: 60.59426541 | HK84: 61.0196075 | HL84: 61.44692832 | HM84: 61.87618686 | HN84: 62.30734307 | HO84: 62.74035782 | HP84: 63.17519292 | HQ84: 63.61181101 | HR84: 64.05017564 | HS84: 64.4902512 | HT84: 64.9320029 | HU84: 65.37539675 | HV84: 65.82039957 | HW84: 66.26697896 | HX84: 66.71510324 | HY84: 67.16474149 | HZ84: 1.8
B85: 62 | C85: 34.1 | D85: 39.1 | E85: 1.8 | F85: 39.95059449 | G85: 39.1414103 | H85: -0.2784370788 | I85: -36.42070235 | J85: 0.02503091663 | K85: 0.02554838961 | L85: 0.04804634463 | M85: -18.88970591 | N85: -18.71197038 | O85: -13.22603395 | AA85: 39.1 | AB85: 47.83617878 | AC85: 47.52212643 | AD85: 47.21239244 | AE85: 46.90706237 | AF85: 46.60622276 | AG85: 46.30996113 | AH85: 46.0183659 | AI85: 45.73152632 | AJ85: 45.44953245 | AK85: 45.17247503 | AL85: 44.90044543 | AM85: 44.6335356 | AN85: 44.37183792 | AO85: 44.11544514 | AP85: 43.8644503 | AQ85: 43.61894657 | AR85: 43.37902719 | AS85: 43.14478532 | AT85: 42.91631391 | AU85: 42.69370563 | AV85: 42.47705263 | AW85: 42.2664465 | AX85: 42.06197808 | AY85: 41.86373729 | AZ85: 41.67181302 | BA85: 41.48629292 | BB85: 41.30726328 | BC85: 41.13480886 | BD85: 40.96901268 | BE85: 40.80995589 | BF85: 40.65771759 | BG85: 40.51237465 | BH85: 40.37400154 | BI85: 40.24267014 | BJ85: 40.11844962 | BK85: 40.00140623 | BL85: 39.89160313 | BM85: 39.78910027 | BN85: 39.6939542 | BO85: 39.60621795 | BP85: 39.52594085 | BQ85: 39.45316844 | BR85: 39.38794232 | BS85: 39.33030002 | BT85: 39.28027495 | BU85: 39.23789622 | BV85: 39.20318865 | BW85: 39.17617261 | BX85: 39.15686402 | BY85: 39.1452743 | BZ85: 39.1414103 | CA85: 39.1452743 | CB85: 39.15686402 | CC85: 39.17617261 | CD85: 39.20318865 | CE85: 39.23789622 | CF85: 39.28027495 | CG85: 39.33030002 | CH85: 39.38794232 | CI85: 39.45316844 | CJ85: 39.52594085 | CK85: 39.60621795 | CL85: 39.6939542 | CM85: 39.78910027 | CN85: 39.89160313 | CO85: 40.00140623 | CP85: 40.11844962 | CQ85: 40.24267014 | CR85: 40.37400154 | CS85: 40.51237465 | CT85: 40.65771759 | CU85: 40.80995589 | CV85: 40.96901268 | CW85: 41.13480886 | CX85: 41.30726328 | CY85: 41.48629292 | CZ85: 41.67181302 | DA85: 41.86373729 | DB85: 42.06197808 | DC85: 42.2664465 | DD85: 42.47705263 | DE85: 42.69370563 | DF85: 42.91631391 | DG85: 43.14478532 | DH85: 43.37902719 | DI85: 43.61894657 | DJ85: 43.8644503 | DK85: 44.11544514 | DL85: 44.37183792 | DM85: 44.6335356 | DN85: 44.90044543 | DO85: 45.17247503 | DP85: 45.44953245 | DQ85: 45.73152632 | DR85: 46.0183659 | DS85: 46.30996113 | DT85: 46.60622276 | DU85: 46.90706237 | DV85: 47.21239244 | DW85: 47.52212643 | DX85: 47.83617878 | DY85: 1.8 | EB85: 39.1 | EC85: 39.1 | ED85: 39.1038681 | EE85: 39.11547009 | EF85: 39.13479909 | EG85: 39.16184367 | EH85: 39.19658786 | EI85: 39.2390112 | EJ85: 39.28908882 | EK85: 39.34679148 | EL85: 39.41208571 | EM85: 39.48493384 | EN85: 39.56529414 | EO85: 39.65312094 | EP85: 39.74836475 | EQ85: 39.85097238 | ER85: 39.96088713 | ES85: 40.07804885 | ET85: 40.20239421 | EU85: 40.33385675 | EV85: 40.47236712 | EW85: 40.61785322 | EX85: 40.77024037 | EY85: 40.9294515 | EZ85: 41.09540729 | FA85: 41.26802636 | FB85: 41.44722548 | FC85: 41.63291967 | FD85: 41.82502241 | FE85: 42.02344584 | FF85: 42.22810083 | FG85: 42.43889725 | FH85: 42.65574404 | FI85: 42.87854942 | FJ85: 43.10722097 | FK85: 43.34166587 | FL85: 43.58179092 | FM85: 43.82750278 | FN85: 44.07870801 | FO85: 44.33531324 | FP85: 44.59722525 | FQ85: 44.8643511 | FR85: 45.13659823 | FS85: 45.41387453 | FT85: 45.69608845 | FU85: 45.98314909 | FV85: 46.27496623 | FW85: 46.57145048 | FX85: 46.87251327 | FY85: 47.17806694 | FZ85: 47.48802481 | GA85: 47.8023012 | GB85: 48.12081151 | GC85: 48.44347221 | GD85: 48.77020094 | GE85: 49.10091649 | GF85: 49.43553884 | GG85: 49.77398919 | GH85: 50.11619 | GI85: 50.46206496 | GJ85: 50.81153904 | GK85: 51.1645385 | GL85: 51.52099087 | GM85: 51.88082497 | GN85: 52.24397094 | GO85: 52.6103602 | GP85: 52.97992544 | GQ85: 53.35260069 | GR85: 53.72832121 | GS85: 54.10702357 | GT85: 54.48864561 | GU85: 54.87312639 | GV85: 55.26040626 | GW85: 55.65042677 | GX85: 56.04313071 | GY85: 56.43846206 | GZ85: 56.836366 | HA85: 57.23678887 | HB85: 57.63967817 | HC85: 58.04498256 | HD85: 58.45265178 | HE85: 58.86263671 | HF85: 59.27488929 | HG85: 59.68936254 | HH85: 60.10601051 | HI85: 60.52478831 | HJ85: 60.94565202 | HK85: 61.36855873 | HL85: 61.79346648 | HM85: 62.2203343 | HN85: 62.6491221 | HO85: 63.07979074 | HP85: 63.51230196 | HQ85: 63.94661836 | HR85: 64.38270342 | HS85: 64.82052144 | HT85: 65.26003754 | HU85: 65.70121764 | HV85: 66.14402845 | HW85: 66.58843743 | HX85: 67.0344128 | HY85: 67.48192351 | HZ85: 1.8
B86: 63 | C86: 34.65 | D86: 39.65 | E86: 1.8 | F86: 40.48904173 | G86: 39.69083647 | H86: -0.2674581401 | I86: -34.98461251 | J86: 0.02469804069 | K86: 0.02519473231 | L86: 0.04758583172 | M86: -19.00599095 | N86: -18.83304602 | O86: -13.3096877 | AA86: 39.65 | AB86: 48.28677355 | AC86: 47.97567092 | AD86: 47.66888398 | AE86: 47.3664966 | AF86: 47.06859356 | AG86: 46.77526056 | AH86: 46.48658409 | AI86: 46.20265144 | AJ86: 45.9235506 | AK86: 45.6493702 | AL86: 45.38019943 | AM86: 45.11612794 | AN86: 44.85724579 | AO86: 44.60364335 | AP86: 44.35541117 | AQ86: 44.11263991 | AR86: 43.87542023 | AS86: 43.64384264 | AT86: 43.41799742 | AU86: 43.19797449 | AV86: 42.98386325 | AW86: 42.77575248 | AX86: 42.57373016 | AY86: 42.37788338 | AZ86: 42.18829814 | BA86: 42.00505922 | BB86: 41.82825002 | BC86: 41.65795242 | BD86: 41.49424659 | BE86: 41.33721084 | BF86: 41.18692147 | BG86: 41.04345258 | BH86: 40.90687595 | BI86: 40.77726082 | BJ86: 40.65467378 | BK86: 40.53917858 | BL86: 40.430836 | BM86: 40.32970369 | BN86: 40.23583602 | BO86: 40.14928393 | BP86: 40.07009483 | BQ86: 39.99831246 | BR86: 39.93397676 | BS86: 39.87712377 | BT86: 39.82778553 | BU86: 39.78599 | BV86: 39.75176097 | BW86: 39.725118 | BX86: 39.70607636 | BY86: 39.69464699 | BZ86: 39.69083647 | CA86: 39.69464699 | CB86: 39.70607636 | CC86: 39.725118 | CD86: 39.75176097 | CE86: 39.78599 | CF86: 39.82778553 | CG86: 39.87712377 | CH86: 39.93397676 | CI86: 39.99831246 | CJ86: 40.07009483 | CK86: 40.14928393 | CL86: 40.23583602 | CM86: 40.32970369 | CN86: 40.430836 | CO86: 40.53917858 | CP86: 40.65467378 | CQ86: 40.77726082 | CR86: 40.90687595 | CS86: 41.04345258 | CT86: 41.18692147 | CU86: 41.33721084 | CV86: 41.49424659 | CW86: 41.65795242 | CX86: 41.82825002 | CY86: 42.00505922 | CZ86: 42.18829814 | DA86: 42.37788338 | DB86: 42.57373016 | DC86: 42.77575248 | DD86: 42.98386325 | DE86: 43.19797449 | DF86: 43.41799742 | DG86: 43.64384264 | DH86: 43.87542023 | DI86: 44.11263991 | DJ86: 44.35541117 | DK86: 44.60364335 | DL86: 44.85724579 | DM86: 45.11612794 | DN86: 45.38019943 | DO86: 45.6493702 | DP86: 45.9235506 | DQ86: 46.20265144 | DR86: 46.48658409 | DS86: 46.77526056 | DT86: 47.06859356 | DU86: 47.3664966 | DV86: 47.66888398 | DW86: 47.97567092 | DX86: 48.28677355 | DY86: 1.8 | EB86: 39.65 | EC86: 39.65 | ED86: 39.65381444 | EE86: 39.66525558 | EF86: 39.6843168 | EG86: 39.71098714 | EH86: 39.74525129 | EI86: 39.78708961 | EJ86: 39.83647826 | EK86: 39.89338918 | EL86: 39.95779023 | EM86: 40.02964526 | EN86: 40.10891422 | EO86: 40.19555324 | EP86: 40.28951477 | EQ86: 40.3907477 | ER86: 40.49919752 | ES86: 40.61480641 | ET86: 40.73751342 | EU86: 40.86725462 | EV86: 41.00396322 | EW86: 41.14756979 | EX86: 41.29800237 | EY86: 41.45518665 | EZ86: 41.61904612 | FA86: 41.78950227 | FB86: 41.96647471 | FC86: 42.14988138 | FD86: 42.33963864 | FE86: 42.53566151 | FF86: 42.73786377 | FG86: 42.94615815 | FH86: 43.16045644 | FI86: 43.38066966 | FJ86: 43.6067082 | FK86: 43.83848195 | FL86: 44.07590044 | FM86: 44.31887295 | FN86: 44.56730865 | FO86: 44.82111668 | FP86: 45.0802063 | FQ86: 45.34448699 | FR86: 45.61386851 | FS86: 45.88826103 | FT86: 46.1675752 | FU86: 46.45172225 | FV86: 46.74061403 | FW86: 47.03416312 | FX86: 47.33228285 | FY86: 47.63488743 | FZ86: 47.94189191 | GA86: 48.25321233 | GB86: 48.56876568 | GC86: 48.88847001 | GD86: 49.21224441 | GE86: 49.54000908 | GF86: 49.87168535 | GG86: 50.2071957 | GH86: 50.54646377 | GI86: 50.88941442 | GJ86: 51.23597369 | GK86: 51.58606886 | GL86: 51.93962842 | GM86: 52.29658211 | GN86: 52.6568609 | GO86: 53.02039702 | GP86: 53.38712392 | GQ86: 53.75697629 | GR86: 54.12989008 | GS86: 54.50580244 | GT86: 54.88465177 | GU86: 55.26637766 | GV86: 55.65092093 | GW86: 56.03822356 | GX86: 56.42822875 | GY86: 56.82088084 | GZ86: 57.21612535 | HA86: 57.61390891 | HB86: 58.0141793 | HC86: 58.4168854 | HD86: 58.82197719 | HE86: 59.2294057 | HF86: 59.63912307 | HG86: 60.05108242 | HH86: 60.46523795 | HI86: 60.88154482 | HJ86: 61.29995922 | HK86: 61.72043827 | HL86: 62.14294007 | HM86: 62.56742363 | HN86: 62.99384891 | HO86: 63.42217672 | HP86: 63.85236879 | HQ86: 64.28438768 | HR86: 64.71819682 | HS86: 65.15376044 | HT86: 65.5910436 | HU86: 66.03001212 | HV86: 66.47063261 | HW86: 66.91287245 | HX86: 67.35669974 | HY86: 67.8020833 | HZ86: 1.8
B87: 64 | C87: 35.2 | D87: =C87+$O$10 -> 40.2 | E87: =C87*$G$10+$Q$10 -> 1.8 | F87: =SQRT((D87-$O$8)^2+(E87-$Q$8)^2) -> 41.02779546 | G87: =SQRT((D87-$O$7)^2+(E87-$Q$7)^2) -> 40.24027833 | H87: =G87-F87+$H$8 -> -0.2567700138 | I87: -33.58656213 | J87: =$F$8/F87 -> 0.02437372003 | K87: 0.02485072275 | L87: 0.04712538844 | M87: -19.12080462 | N87: -18.95246051 | O87: -13.39414213 | AA87: 40.2 | AB87: 48.73940911 | AC87: 48.43121411 | AD87: 48.12733111 | AE87: 47.82784231 | AF87: 47.53283076 | AG87: 47.24238034 | AH87: 46.95657568 | AI87: 46.67550214 | AJ87: 46.39924568 | AK87: 46.12789286 | AL87: 45.86153072 | AM87: 45.60024671 | AN87: 45.34412862 | AO87: 45.09326446 | AP87: 44.84774242 | AQ87: 44.60765069 | AR87: 44.37307742 | AS87: 44.14411059 | AT87: 43.92083788 | AU87: 43.70334655 | AV87: 43.49172335 | AW87: 43.28605434 | AX87: 43.08642478 | AY87: 42.892919 | AZ87: 42.70562024 | BA87: 42.52461052 | BB87: 42.34997048 | BC87: 42.18177924 | BD87: 42.02011423 | BE87: 41.86505106 | BF87: 41.71666334 | BG87: 41.57502255 | BH87: 41.44019788 | BI87: 41.31225605 | BJ87: 41.19126121 | BK87: 41.07727474 | BL87: 40.97035514 | BM87: 40.87055786 | BN87: 40.77793521 | BO87: 40.69253617 | BP87: 40.61440631 | BQ87: 40.54358766 | BR87: 40.48011858 | BS87: 40.42403369 | BT87: 40.37536378 | BU87: 40.33413567 | BV87: 40.30037221 | BW87: 40.27409217 | BX87: 40.25531021 | BY87: 40.24403683 | BZ87: 40.24027833 | CA87: 40.24403683 | CB87: 40.25531021 | CC87: 40.27409217 | CD87: 40.30037221 | CE87: 40.33413567 | CF87: 40.37536378 | CG87: 40.42403369 | CH87: 40.48011858 | CI87: 40.54358766 | CJ87: 40.61440631 | CK87: 40.69253617 | CL87: 40.77793521 | CM87: 40.87055786 | CN87: 40.97035514 | CO87: 41.07727474 | CP87: 41.19126121 | CQ87: 41.31225605 | CR87: 41.44019788 | CS87: 41.57502255 | CT87: 41.71666334 | CU87: 41.86505106 | CV87: 42.02011423 | CW87: 42.18177924 | CX87: 42.34997048 | CY87: 42.52461052 | CZ87: 42.70562024 | DA87: 42.892919 | DB87: 43.08642478 | DC87: 43.28605434 | DD87: 43.49172335 | DE87: 43.70334655 | DF87: 43.92083788 | DG87: 44.14411059 | DH87: 44.37307742 | DI87: 44.60765069 | DJ87: 44.84774242 | DK87: 45.09326446 | DL87: 45.34412862 | DM87: 45.60024671 | DN87: 45.86153072 | DO87: 46.12789286 | DP87: 46.39924568 | DQ87: 46.67550214 | DR87: 46.95657568 | DS87: 47.24238034 | DT87: 47.53283076 | DU87: 47.82784231 | DV87: 48.12733111 | DW87: 48.43121411 | DX87: 48.73940911 | DY87: 1.8 | EB87: 40.2 | EC87: 40.2 | ED87: 40.20376226 | EE87: 40.21504694 | EF87: 40.23384769 | EG87: 40.260154 | EH87: 40.29395116 | EI87: 40.33522034 | EJ87: 40.38393864 | EK87: 40.44007913 | EL87: 40.50361095 | EM87: 40.57449938 | EN87: 40.65270594 | EO87: 40.73818847 | EP87: 40.83090129 | EQ87: 40.93079525 | ER87: 41.03781792 | ES87: 41.15191369 | ET87: 41.27302388 | EU87: 41.40108694 | EV87: 41.53603857 | EW87: 41.67781184 | EX87: 41.8263374 | EY87: 41.98154356 | EZ87: 42.14335653 | FA87: 42.31170051 | FB87: 42.48649786 | FC87: 42.66766926 | FD87: 42.85513388 | FE87: 43.04880951 | FF87: 43.24861269 | FG87: 43.45445892 | FH87: 43.66626272 | FI87: 43.88393784 | FJ87: 44.10739734 | FK87: 44.33655377 | FL87: 44.57131925 | FM87: 44.81160564 | FN87: 45.0573246 | FO87: 45.30838774 | FP87: 45.56470674 | FQ87: 45.82619338 | FR87: 46.09275974 | FS87: 46.36431818 | FT87: 46.64078151 | FU87: 46.92206304 | FV87: 47.20807664 | FW87: 47.49873683 | FX87: 47.79395882 | FY87: 48.09365863 | FZ87: 48.39775305 | GA87: 48.70615977 | GB87: 49.01879741 | GC87: 49.33558553 | GD87: 49.6564447 | GE87: 49.9812965 | GF87: 50.31006361 | GG87: 50.64266976 | GH87: 50.97903981 | GI87: 51.31909976 | GJ87: 51.66277674 | GK87: 52.00999904 | GL87: 52.36069614 | GM87: 52.71479868 | GN87: 53.07223851 | GO87: 53.43294864 | GP87: 53.79686329 | GQ87: 54.16391788 | GR87: 54.534049 | GS87: 54.90719443 | GT87: 55.28329314 | GU87: 55.66228526 | GV87: 56.04411209 | GW87: 56.42871609 | GX87: 56.81604087 | GY87: 57.20603115 | GZ87: 57.5986328 | HA87: 57.99379277 | HB87: 58.39145914 | HC87: 58.79158103 | HD87: 59.19410866 | HE87: 59.59899328 | HF87: 60.00618718 | HG87: 60.41564367 | HH87: 60.82731705 | HI87: 61.24116263 | HJ87: 61.65713665 | HK87: 62.07519633 | HL87: 62.49529982 | HM87: 62.91740618 | HN87: 63.34147535 | HO87: 63.76746819 | HP87: 64.1953464 | HQ87: 64.62507253 | HR87: 65.05660996 | HS87: 65.48992289 | HT87: 65.9249763 | HU87: 66.36173596 | HV87: 66.80016841 | HW87: 67.24024093 | HX87: 67.68192152 | HY87: 68.1251789 | HZ87: 1.8
B88: 65 | C88: =B88*$G$11 -> 35.75 | D88: 40.75 | E88: 1.8 | F88: 41.56684376 | G88: 40.78973523 | H88: -0.2463614163 | I88: =360*H88/$F$3 -> -32.22507523 | J88: 0.02405763608 | K88: =$F$7/G88 -> 0.02451597183 | L88: =SQRT(J88^2+K88^2+2*J88*K88*COS(RADIANS(I88))) -> 0.04666573459 | M88: =20*LOG(J88/$J$19) -> -19.23418197 | N88: =20*LOG(K88/$J$19) -> -19.07025871 | O88: =20*LOG(L88/$J$19) -> -13.47927886 | AA88: =$D88 -> 40.75 | AB88: 49.19402911 | AC88: 48.88870013 | AD88: 48.58767848 | AE88: 48.29104472 | AF88: 47.9988802 | AG88: 47.71126701 | AH88: 47.42828797 | AI88: 47.15002651 | AJ88: 46.87656664 | AK88: 46.60799288 | AL88: 46.34439017 | AM88: 46.08584381 | AN88: 45.83243939 | AO88: 45.58426264 | AP88: 45.3413994 | AQ88: 45.10393553 | AR88: 44.87195672 | AS88: 44.64554849 | AT88: 44.424796 | AU88: 44.20978398 | AV88: 44.00059659 | AW88: 43.79731727 | AX88: 43.60002867 | AY88: 43.40881247 | AZ88: 43.22374926 | BA88: 43.0449184 | BB88: 42.87239788 | BC88: 42.70626418 | BD88: 42.54659211 | BE88: 42.39345468 | BF88: 42.24692296 | BG88: 42.10706592 | BH88: 41.97395025 | BI88: 41.84764032 | BJ88: 41.7281979 | BK88: 41.61568214 | BL88: 41.51014936 | BM88: 41.41165295 | BN88: 41.32024322 | BO88: 41.23596731 | BP88: 41.15886903 | BQ88: 41.08898879 | BR88: 41.02636348 | BS88: 40.97102635 | BT88: 40.92300698 | BU88: 40.88233115 | BV88: 40.8490208 | BW88: 40.82309395 | BX88: 40.8045647 | BY88: 40.7934431 | BZ88: 40.78973523 | CA88: 40.7934431 | CB88: 40.8045647 | CC88: 40.82309395 | CD88: 40.8490208 | CE88: 40.88233115 | CF88: 40.92300698 | CG88: 40.97102635 | CH88: 41.02636348 | CI88: 41.08898879 | CJ88: 41.15886903 | CK88: 41.23596731 | CL88: 41.32024322 | CM88: 41.41165295 | CN88: 41.51014936 | CO88: 41.61568214 | CP88: 41.7281979 | CQ88: 41.84764032 | CR88: =SQRT(($AA88-$O$7)^2+(CR$22-$P$7)^2+($DY88-$Q$7)^2) -> 41.97395025 | CS88: 42.10706592 | CT88: 42.24692296 | CU88: 42.39345468 | CV88: 42.54659211 | CW88: 42.70626418 | CX88: 42.87239788 | CY88: 43.0449184 | CZ88: 43.22374926 | DA88: 43.40881247 | DB88: 43.60002867 | DC88: 43.79731727 | DD88: 44.00059659 | DE88: 44.20978398 | DF88: 44.424796 | DG88: 44.64554849 | DH88: 44.87195672 | DI88: 45.10393553 | DJ88: 45.3413994 | DK88: 45.58426264 | DL88: 45.83243939 | DM88: 46.08584381 | DN88: 46.34439017 | DO88: 46.60799288 | DP88: 46.87656664 | DQ88: 47.15002651 | DR88: 47.42828797 | DS88: 47.71126701 | DT88: 47.9988802 | DU88: 48.29104472 | DV88: 48.58767848 | DW88: 48.88870013 | DX88: 49.19402911 | DY88: =$E88 -> 1.8 | EB88: =$D88 -> 40.75 | EC88: 40.75 | ED88: 40.75371149 | EE88: 40.76484392 | EF88: 40.78339123 | EG88: 40.80934329 | EH88: 40.842686 | EI88: 40.88340128 | EJ88: 40.93146711 | EK88: 40.98685765 | EL88: 41.04954324 | EM88: 41.11949051 | EN88: 41.19666249 | EO88: 41.28101864 | EP88: 41.37251503 | EQ88: 41.4711044 | ER88: 41.57673628 | ES88: 41.68935716 | ET88: 41.80891053 | EU88: 41.93533713 | EV88: 42.06857497 | EW88: 42.20855956 | EX88: 42.355224 | EY88: 42.50849915 | EZ88: 42.66831377 | FA88: 42.83459466 | FB88: 43.00726683 | FC88: 43.1862536 | FD88: 43.3714768 | FE88: 43.56285689 | FF88: 43.76031307 | FG88: 43.96376349 | FH88: 44.17312531 | FI88: 44.3883149 | FJ88: 44.60924792 | FK88: 44.83583946 | FL88: 45.06800417 | FM88: 45.30565638 | FN88: 45.54871019 | FO88: 45.7970796 | FP88: 46.05067861 | FQ88: 46.30942129 | FR88: 46.57322192 | FS88: 46.84199505 | FT88: 47.11565557 | FU88: 47.39411883 | FV88: 47.67730068 | FW88: 47.96511753 | FX88: 48.25748647 | FY88: 48.55432525 | FZ88: 48.8555524 | GA88: 49.16108725 | GB88: 49.47085 | GC88: 49.78476172 | GD88: 50.10274444 | GE88: 50.42472112 | GF88: 50.75061576 | GG88: 51.08035337 | GH88: 51.41386 | GI88: 51.75106279 | GJ88: 52.09188996 | GK88: 52.43627084 | GL88: 52.78413587 | GM88: 53.13541663 | GN88: 53.4900458 | GO88: 53.84795725 | GP88: 54.20908595 | GQ88: 54.57336805 | GR88: 54.9407408 | GS88: =SQRT(($EB88-$O$7)^2+(GS$22-$Q$7)^2+(-$P$7)^2) -> 55.31114264 | GT88: 55.68451311 | GU88: 56.06079289 | GV88: 56.43992381 | GW88: 56.82184879 | GX88: 57.20651187 | GY88: 57.59385818 | GZ88: 57.98383395 | HA88: 58.37638649 | HB88: 58.77146416 | HC88: 59.16901639 | HD88: 59.56899361 | HE88: 59.97134733 | HF88: 60.37603001 | HG88: 60.78299515 | HH88: 61.19219722 | HI88: 61.60359162 | HJ88: 62.01713473 | HK88: 62.43278386 | HL88: 62.85049721 | HM88: 63.27023392 | HN88: 63.69195397 | HO88: 64.11561822 | HP88: 64.5411884 | HQ88: 64.96862704 | HR88: 65.39789752 | HS88: 65.82896399 | HT88: 66.2617914 | HU88: 66.69634548 | HV88: 67.13259268 | HW88: 67.57050022 | HX88: 68.01003602 | HY88: 68.45116873 | HZ88: =$E88 -> 1.8
